Workbook

Sheet Présentation
I5: Modèle financier: mine d'or
B10: Objectif
B23: Table des matières
B44: Relation au modele FARI du FMI
B62: DISCLAIMER
J74: Ce travail est sous la licence Creative Commons Attribution 4.0 International.
J75: Pour une copie de cette licence, merci de vous rendre sur le site : https://creativecommons.org/licenses/by/4.0/deed.fr

Sheet Résultats
B1: Resultats
B4: Hypothèses - mine d'or | C4: unités | D4: =Paramètres!E108 -> Mine modele - analyse de Randgold (2015)
B5: Réserves récupérables | C5: onces | D5: =Paramètres!C112 -> 2970000
B6: Première production | C6: année | D6: =Modèle!$C$31 -> 3
B7: Couts d'exploration | C7: $m | D7: =Paramètres!C115 -> 0
B8: Couts de développement (CAPEX) | C8: $m | D8: =Paramètres!C117+Paramètres!C118 -> 557.915
B9: Production / CAPEX | C9: oz/$m | D9: =D5/D8 -> 5323.391556
B10: CAPEX par once | C10: $/oz | D10: =D8/D5*1000000 -> 187.8501684
B11: Prix du minerai | C11: $/oz | D11: =Paramètres!$G$104 -> 1300
B12: Cout opérationnel | C12: $m | D12: =Paramètres!C119 -> 1930.5
B13: Cout opérationnel par once | C13: $/oz | D13: =D12/D5*1000000 -> 650
B14: Cout de transport | C14: $/oz | D14: =Paramètres!C113/Paramètres!C112 -> 0
B15: Charge de traitement / raffinage | C15: $/oz | D15: =Paramètres!C114/Paramètres!C112 -> 0
B16: Taux d'actualisation (Etat) | C16: % | D16: =Paramètres!F93 -> 0.1
B17: Taux d'actualisation (investisseurs) | C17: % | D17: =Paramètres!F94 -> 0.125
B18: Inflation | C18: % | D18: =Paramètres!F95 -> 0.02
B19: Taux d’intérêt réel | C19: % | D19: =Paramètres!F92 -> 0.125
B20: Endettement (capitaux propres/actifs) | C20: % | D20: =Paramètres!F90 -> 0.5
B22: Résultats - synthèse | C22: unités
B23: Flux de trésorerie nets avant impôts du projet (actualisés) | C23: $m | D23: =Modèle!C25 -> 527.8970093
B24: TRI avant impôt du projet | C24: % | D24: =Modèle!C24 -> 0.2788380486
B25: TRI après impôt du projet | C25: % | D25: =Modèle!C362 -> 0.1988518851
B26: Taux de rendement minimum - investisseurs | C26: % | D26: =D17 -> 0.125
B27: TRI supérieur au rendement minimum? | D27: =D25>D26 -> TRUE
B28: Période de retour sur investissement (cash-flow non actualisés) | C28: années | D28: =Modèle!C292 -> 5.079535049
B29: Période de retour sur investissement (cash-flow actualisés) | C29: années | D29: =Modèle!C297 -> 7.267980616
B32: Utiliser « sélection des données » dans chaque graphique pour ajuster la longueur des axes et les cellules de données, par exemple, après avoir changé le régime fiscal ou le profil du projet.
J128: Projet selectionné:
J129: =Paramètres!$F$7 -> RDC - 2002
B152: Tableaux utilises pour certains graphiques
B154: Graphique 1. TEMI
C155: TEMI
B156: =TRANSPOSE(Modèle!G437:Q437) -> RDC - 2002 | C156: =TRANSPOSE(Modèle!G441:Q441) -> 0.5502041087
B157: RDC 2015 - projet d'amendement | C157: 0.6089709637
B158: RDC 2018 - sans substances strategiques | C158: 0.5852316227
B159: RDC 2018 - or substance strategique | C159: 0.7177398849
B160: Proposition des miniers - Mai 2018 | C160: 0.659268778
B161: Tanzanie 2017 | C161: 0.6801631785
B162: Ghana | C162: 0.6316965488
B163: Zambie | C163: 0.4997347206
B164: Australie Occidentale | C164: 0.5110295657
B165: Chili | C165: 0.5490143849
B166: Perou | C166: 0.5145366037
B170: Graphique 3a. Profil des recettes de l'Etat - comparaison des regimes fiscaux (VAN10)
C172: VAN | D172: Proportion
B173: =Modèle!D385 -> Bonus de signature | C173: =Modèle!C385 -> 0 | D173: =C173/$C$185 -> 0
B174: =Modèle!D386 -> Droits de douane | C174: =Modèle!C386 -> 62.210375 | D174: 0.1014026192
B175: =Modèle!D387 -> Redevance | C175: =Modèle!C387 -> 96.525 | D175: 0.1573352968
B176: =Modèle!D388 -> Redevance de controle de change | C176: =Modèle!C388 -> 0 | D176: 0
B177: =Modèle!D389 -> Redevance a taux variable - sur les prix | C177: =Modèle!C389 -> 0 | D177: 0
B178: =Modèle!D390 -> Impot sur la marge operationnelle | C178: =Modèle!C390 -> 0 | D178: 0
B179: =Modèle!D391 -> Impot sur les benefices et profits | C179: =Modèle!C391 -> 340.1813714 | D179: 0.5544940382
B180: =Modèle!D392 -> Impot sur la rente | C180: =Modèle!C392 -> 0 | D180: 0
B181: =Modèle!D393 -> Impot sur les benefices a taux variable | C181: =Modèle!C393 -> 0 | D181: 0
B182: =Modèle!D394 -> Impot sur les profits excedentaires | C182: =Modèle!C394 -> 0 | D182: 0
B183: =Modèle!D395 -> Participation de l'Etat | C183: =Modèle!C395 -> 39.51101833 | D183: 0.06440277439
B184: =Modèle!D396 -> Prelevement a la source sur les dividendes | C184: =Modèle!C396 -> 75.07093483 | D184: 0.1223652713
B185: =Modèle!D397 -> Recettes totales de l'Etat | C185: =Modèle!C397 -> 613.4986995 | D185: 1

Sheet Paramètres
A1: INPUTS
D3: Hypotheses du regime fiscal - principaux impots et taxes
L5: --- Selection de regimes fiscaux a comparer ---
D6: Choisir le numero du regime fiscal | F6: 1 | H6: 1 | I6: 2 | J6: 3 | K6: 4 | L6: 5 | M6: 6 | N6: 7 | O6: 8 | P6: 9 | Q6: 10 | R6: 11
D7: Nom du regime fiscal | F7: =INDEX(H7:R7,$F$6) -> RDC - 2002 | H7: RDC - 2002 | I7: RDC 2015 - projet d'amendement | J7: RDC 2018 - sans substances strategiques | K7: RDC 2018 - or substance strategique | L7: Proposition des miniers - Mai 2018 | M7: Tanzanie 2017 | N7: Ghana | O7: Zambie | P7: Australie Occidentale | Q7: Chili | R7: Perou
D9: Bonus de signature | E9: $mm | F9: =INDEX(H9:R9,$F$135) -> 0 | H9: 0 | I9: 0 | J9: 0 | K9: 0 | L9: 0 | M9: 0 | N9: 0 | O9: 0 | P9: 0 | Q9: 0 | R9: 0
D10: Redevance
D11: Taux de redevance | E11: % | F11: =INDEX(H11:R11,$F$135) -> 0.025 | H11: 0.025 | I11: 0.035 | J11: 0.035 | K11: 0.1 | L11: 0 | M11: 0.07 | N11: 0.05 | O11: 0.06 | P11: 0.025 | Q11: 0 | R11: 0
D12: Assiette de la redevance (nette / brute) | E12: switch | F12: =INDEX(H12:R12,$F$135) -> net | H12: net | I12: gross | J12: gross | K12: gross | L12: gross | M12: gross | N12: gross | O12: gross | P12: gross | Q12: gross | R12: gross
D13: Impôt sur les bénéfices
D14: Taux de l’impôt sur les bénéfices | E14: % | F14: =INDEX(H14:R14,$F$135) -> 0.3 | H14: 0.3 | I14: 0.35 | J14: 0.3 | K14: 0.3 | L14: 0.3 | M14: 0.3 | N14: 0.35 | O14: 0.3 | P14: 0.3 | Q14: 0.25 | R14: 0.295
D15: Deductibilite des couts d'exploration | E15: switch | F15: deferred | H15: deferred | I15: deferred | J15: deferred | K15: deferred | L15: deferred | M15: deferred | N15: deferred | O15: deferred | P15: deferred | Q15: deferred | R15: deferred
D16: Deductibilite des couts d'investissement - immobilisation incorporelles | E16: switch | F16: deferred | H16: deferred | I16: deferred | J16: deferred | K16: deferred | L16: deferred | M16: deferred | N16: deferred | O16: deferred | P16: deferred | Q16: deferred | R16: deferred
D17: Amortissement des couts d'investissement - immobilisations corporelles | E17: switch | F17: deferred | H17: deferred | I17: deferred | J17: deferred | K17: deferred | L17: deferred | M17: deferred | N17: deferred | O17: deferred | P17: deferred | Q17: deferred | R17: deferred
D18: Report des pertes | E18: years | F18: 5 | H18: 5 | I18: 5 | J18: 5 | K18: 5 | L18: 5 | M18: 100 | N18: 5 | O18: 10 | P18: 100 | Q18: 100 | R18: 4
D19: Report des pertes (limite) | E19: % | F19: 1 | H19: 1 | I19: 1 | J19: 1 | K19: 1 | L19: 1 | M19: 0.7 | N19: 1 | O19: 0.5 | P19: 1 | Q19: 1 | R19: 1
D20: Regime d'amortissement (sur le capital physique et de remplacement) | E20: years | F20: 1 | H20: 1 | I20: 10 | J20: 10 | K20: 10 | L20: 10 | M20: 5 | N20: 5 | O20: 4 | P20: 10 | Q20: 10 | R20: 10
D21: Amortissement accelere | F21: 1 | H21: 1 | I21: 0 | J21: 0 | K21: 0 | L21: 0 | M21: 0 | N21: 0 | O21: 0 | P21: 0 | Q21: 0 | R21: 0
D22: Option pour les redevances a taux variables (variables dans les tableaux ci-dessous)
D23: Redevance a taux variable - application sur le CA marginal (choisir entre les systemes 1 a 4) | E23: switch | F23: =INDEX(H23:R23,$F$135) -> 1 | H23: 1 | I23: 1 | J23: 1 | K23: 1 | L23: 3 | M23: 1 | N23: 1 | O23: 1 | P23: 1 | Q23: 1 | R23: 1
D24: Redevance a taux variable - application sur le CA total (1=off, 2=on) | F24: 1 | H24: 1 | I24: 1 | J24: 1 | K24: 1 | L24: 2 | M24: 1 | N24: 1 | O24: 1 | P24: 1 | Q24: 1 | R24: 1
D25: Taux de la taxe sur la rente | E25: % | F25: 0
D26: Seuil de la taxe sur la rente | E26: % | F26: 0
D27: Deductibilite de l'Impot sur les benefices (oui/non) | E27: switch | F27: 0
D28: Taxe sur la marge opérationnelle (Choisir 1, 2, 3, 4 dans la section des taux variables) | E28: switch | F28: 1 | H28: 1 | I28: 1 | J28: 1 | K28: 1 | L28: 1 | M28: 1 | N28: 1 | O28: 1 | P28: 1 | Q28: 3 | R28: 2
D29: Impôt variable sur les bénéfices (1 = off, 2 = on) | E29: switch | F29: 1 | H29: 1 | I29: 1 | J29: 1 | K29: 1 | L29: 1 | M29: 1 | N29: 1 | O29: 1 | P29: 1 | Q29: 1 | R29: 1
D30: Taux de l'mpot sur les profits excedentaires (RDC amendement) | E30: % | F30: 0 | H30: 0 | I30: 0.5 | J30: 0.5 | K30: 0.5 | L30: 0 | M30: 0 | N30: 0 | O30: 0 | P30: 0 | Q30: 0 | R30: 0
D31: Seuil de l'impot sur les profits excedentaires (RDC amendement) | E31: % | F31: 0 | H31: 0 | I31: 0.25 | J31: 0.25 | K31: 0.25 | L31: 0 | M31: 0 | N31: 0 | O31: 0 | P31: 0 | Q31: 0 | R31: 0
D32: Autres taxes et dispositions pertinentes
D33: Impôt sur le revenu des valeurs mobilières | E33: % | F33: =INDEX(H33:R33,$F$135) -> 0.1 | H33: 0.1 | I33: 0.1 | J33: 0.1 | K33: 0.1 | L33: 0.1 | M33: 0.1 | N33: 0.08 | O33: 0 | P33: 0 | Q33: 0.1 | R33: 0.05
D34: Participation gratuite de l’Etat (sans contribution) | E34: % | F34: 0.05 | H34: 0.05 | I34: 0.1 | J34: 0.1 | K34: 0.1 | L34: 0.1 | M34: 0.16 | N34: 0.1 | O34: 0 | P34: 0 | Q34: 0 | R34: 0
D35: Redevance de controle de change | E35: % | F35: 0 | J35: 0.002 | K35: 0.002
D36: Contribution au developpement communautaire | E36: % | F36: 0 | H36: 0 | I36: 0.001 | J36: 0.003 | K36: 0.003 | L36: 0.003
D37: Droits de douane | E37: % | F37: 0.05 | H37: 0.05 | I37: 0.05 | J37: 0.05 | K37: 0.05 | L37: 0.05 | M37: 0 | N37: 0 | O37: 0 | P37: 0.05 | Q37: 0.06 | R37: 0
D38: Clause de rehabilitation (oui/non) | E38: switch | F38: oui | H38: oui | I38: oui | J38: oui | K38: oui | L38: oui | M38: oui | N38: oui | O38: oui | P38: oui | Q38: oui | R38: oui
D39: Clause sur le declenchement de la rehabilitation | E39: % depletion | F39: 0.01 | H39: 0.01 | I39: 0.01 | J39: 0.01 | K39: 0.01 | L39: 0.01 | M39: 0.01 | N39: 0.6 | O39: 0.6 | P39: 0.6 | Q39: 0.6 | R39: 0.6
D41: Amortissement accelere
D43: Amortissement annee 1 | H43: 0.6
D44: Amortissement annee 2 | H44: 0.2
D45: Amortissement annee 3 | H45: 0.1
D46: Amortissement annee 4 | H46: 0.05
D47: Amortissement annee 5 | H47: 0.05
D48: Amortissement annee 6 | H48: 0
D49: Amortissement annee 7 | H49: 0
D50: Amortissement annee 8 | H50: 0
D51: Amortissement annee 9 | H51: 0
D52: Amortissement annee 10 | H52: 0
D54: Impôts variables - regimes
D55: Les "impots variables" sont les taxes dont le taux depend de mesures economiques telles que la marge operationnelle ou le prix des minerais.
D57: Redevance a taux variable | F57: Tableau | H57: 1 - No RTV | J57: 2 - Zambie 2016 | L57: 3 - Proposition RDC 2018 | N57: 4 - Alternative
D58: Paliers | E58: Limite inferieure ($mm) | F58: Taux marginal | H58: Limite inferieure ($mm) | I58: Taux marginal | J58: Limite inferieure ($mm) | K58: Taux marginal | L58: Limite inferieure ($mm) | M58: Taux marginal | N58: Limite inferieure ($mm) | O58: Taux marginal
D59: 1 | E59: =CHOOSE($F$23,H59,J59,L59,N59) -> 0 | F59: =CHOOSE($F$23,I59,K59,M59,O59) -> 0 | H59: 0 | I59: 0 | L59: 1001 | M59: 0.03
D60: 2 | E60: =CHOOSE($F$23,H60,J60,L60,N60) -> 0 | F60: 0 | H60: 0 | I60: 0 | L60: 1301 | M60: 0.035
D61: 3 | E61: 0 | F61: 0 | H61: 0 | I61: 0 | L61: 1601 | M61: 0.04
D62: 4 | E62: 0 | F62: 0 | H62: 0 | I62: 0 | L62: 2001 | M62: 0.05
E63: =CHOOSE($F$23,H63,J63,L63,N63) -> 0 | F63: =CHOOSE($F$23,I63,K63,M63,O63) -> 0 | H63: 0 | I63: 0 | M63: 0.06
D65: Impot sur la marge operationnelle | F65: Tableau | H65: 1 - No IMO | J65: 2 - Perou | L65: 3 - Chili | N65: 4 - Alternative
D66: Paliers | E66: Limite inferieure | F66: Taux marginal | H66: Limite inferieure | I66: Taux marginal | J66: Limite inferieure | K66: Taux marginal | L66: Limite inferieure | M66: Taux marginal | N66: Limite inferieure | O66: Taux marginal
D67: 1 | E67: =CHOOSE($F$28,H67,J67,L67,N67) -> 0 | F67: =CHOOSE($F$28,I67,K67,M67,O67) -> 0 | H67: 0 | I67: 0 | J67: 0 | K67: 0.03 | L67: 0 | M67: 0.05
D68: 2 | E68: 0 | F68: 0 | H68: 0 | I68: 0 | J68: 0.1 | K68: 0.0415 | L68: 0.35 | M68: 0.08
D69: 3 | E69: 0 | F69: 0 | H69: 0 | I69: 0 | J69: 0.15 | K69: 0.053 | L69: 0.4 | M69: 0.105
D70: 4 | E70: 0 | F70: 0 | H70: 0 | I70: 0 | J70: 0.2 | K70: 0.0645 | L70: 0.45 | M70: 0.13
D71: 5 | E71: 0 | F71: 0 | H71: 0 | I71: 0 | J71: 0.25 | K71: 0.076 | L71: 0.5 | M71: 0.155 | Q71: `
D72: 6 | E72: 0 | F72: 0 | H72: 0 | I72: 0 | J72: 0.3 | K72: 0.0875 | L72: 0.55 | M72: 0.18
D73: 7 | E73: 0 | F73: 0 | H73: 0 | I73: 0 | J73: 0.35 | K73: 0.099 | L73: 0.6 | M73: 0.21
D74: 8 | E74: 0 | F74: 0 | H74: 0 | I74: 0 | J74: 0.4 | K74: 0.1105 | L74: 0.65 | M74: 0.24
D75: 9 | E75: 0 | F75: 0 | H75: 0 | I75: 0 | J75: 0.45 | K75: 0.122 | L75: 0.7 | M75: 0.275
D76: 10 | E76: 0 | F76: 0 | H76: 0 | I76: 0 | J76: 0.5 | K76: 0.1335 | L76: 0.75 | M76: 0.31
D77: 11 | E77: 0 | F77: 0 | H77: 0 | I77: 0 | J77: 0.55 | K77: 0.145 | L77: 0.8 | M77: 0.345
D78: 12 | E78: 0 | F78: 0 | H78: 0 | I78: 0 | J78: 0.6 | K78: 0.1565 | L78: 0.85 | M78: 0.345
D79: 13 | E79: 0 | F79: 0 | H79: 0 | I79: 0 | J79: 0.65 | K79: 0.168 | L79: 0.85 | M79: 0.345
D80: 14 | E80: 0 | F80: 0 | H80: 0 | I80: 0 | J80: 0.7 | K80: 0.1795 | L80: 0.85 | M80: 0.345
D81: 15 | E81: 0 | F81: 0 | H81: 0 | I81: 0 | J81: 0.75 | K81: 0.191 | L81: 0.85 | M81: 0.345
D82: 16 | E82: 0 | F82: 0 | H82: 0 | I82: 0 | J82: 0.8 | K82: 0.2 | L82: 0.85 | M82: 0.345
D83: 17 | E83: 0 | F83: 0 | H83: 0 | I83: 0 | J83: 0.85 | K83: 0.204 | L83: 0.85 | M83: 0.345
D84: Impot variable sur les benefices - (modela Zambien historique)
D85: Variable "a" dans la formule | F85: 0.15
D86: Variable "c" dans la formule | F86: 0.08
D88: Hypotheses economiques et financieres
D90: Pourcentage des couts de developpement emprunte | E90: % | F90: 0.5
D91: Periode de remboursement (a partir du debut de la production) | E91: annees | F91: 5
D92: Taux d'interet reel | E92: % | F92: 0.125
D93: Taux d'actualisation de l'Etat | E93: % | F93: 0.1
D94: Taux d'actualisation de l'investisseur | E94: % | F94: 0.125
D95: Taux d'inflation du dollar US | E95: % | F95: 0.02
D96: Prix du minerai | E96: $/Once | F96: 1300
D97: Prix de l'etude de faisabilite (pour le calcul de l'impot sur les profits excedentaires de RDC 2018) | E97: $/Once | F97: 1100
D98: Couts soumis aux droits de douane
D99: Opex | E99: % | F99: 0.5
D100: Capex | E100: % | F100: 0.5
D102: Hypotheses de prix | E102: year | G102: 1 | H102: 2 | I102: 3 | J102: 4 | K102: 5 | L102: 6 | M102: 7 | N102: 8 | O102: 9 | P102: 10 | Q102: 11 | R102: 12 | S102: 13 | T102: 14 | U102: 15 | V102: 16 | W102: 17 | X102: 18 | Y102: 19 | Z102: 20 | AA102: 21 | AB102: 22 | AC102: 23 | AD102: 24 | AE102: 25 | AF102: 26 | AG102: 27 | AH102: 28 | AI102: 29 | AJ102: 30 | AK102: 31 | AL102: 32 | AM102: 33 | AN102: 34 | AO102: 35 | AP102: 36 | AQ102: 37 | AR102: 38 | AS102: 39 | AT102: 40 | AU102: 41 | AV102: 42 | AW102: 43 | AX102: 44 | AY102: 45 | AZ102: 46 | BA102: 47 | BB102: 48 | BC102: 49 | BD102: 50
D104: Prix (reel) | G104: =F96 -> 1300 | H104: =$F$134 -> 1300 | I104: 1300 | J104: 1300 | K104: 1300 | L104: 1300 | M104: 1300 | N104: 1300 | O104: 1300 | P104: 1300 | Q104: 1300 | R104: 1300 | S104: 1300 | T104: 1300 | U104: 1300 | V104: 1300 | W104: 1300 | X104: 1300 | Y104: 1300 | Z104: 1300 | AA104: 1300 | AB104: 1300 | AC104: 1300 | AD104: 1300 | AE104: 1300 | AF104: 1300 | AG104: 1300 | AH104: 1300 | AI104: 1300 | AJ104: 1300 | AK104: 1300 | AL104: 1300 | AM104: 1300 | AN104: =$F$134 -> 1300 | AO104: 1300 | AP104: 1300 | AQ104: 1300 | AR104: 1300 | AS104: 1300 | AT104: 1300 | AU104: 1300 | AV104: 1300 | AW104: 1300 | AX104: 1300 | AY104: 1300 | AZ104: 1300 | BA104: 1300 | BB104: 1300 | BC104: 1300 | BD104: 1300
D106: Hypothese du profil de projet (valeurs reelles)
D108: Choisir le profil de mine | E108: Mine modele - analyse de Randgold (2015)
F109: =MATCH(E108,'Profil de mines'!B1:B5,0) -> 1
C110: Total | D110: Mine de taille moyenne | E110: year | G110: 1 | H110: =G110+1 -> 2 | I110: =H110+1 -> 3 | J110: 4 | K110: 5 | L110: 6 | M110: 7 | N110: 8 | O110: 9 | P110: 10 | Q110: 11 | R110: 12 | S110: 13 | T110: 14 | U110: 15 | V110: 16 | W110: 17 | X110: 18 | Y110: 19 | Z110: 20 | AA110: 21 | AB110: 22 | AC110: 23 | AD110: 24 | AE110: 25 | AF110: 26 | AG110: 27 | AH110: 28 | AI110: 29 | AJ110: 30 | AK110: 31 | AL110: 32 | AM110: 33 | AN110: 34 | AO110: 35 | AP110: 36 | AQ110: 37 | AR110: 38 | AS110: 39 | AT110: 40 | AU110: 41 | AV110: 42 | AW110: 43 | AX110: 44 | AY110: 45 | AZ110: 46 | BA110: 47 | BB110: 48 | BC110: 49 | BD110: 50
C112: =SUM(G112:BD112) -> 2970000 | D112: Production | E112: onces | G112: =CHOOSE($F$109,'Profil de mines'!F10,'Profil de mines'!F27,'Profil de mines'!F45,'Profil de mines'!F62) -> 0 | H112: =CHOOSE($F$109,'Profil de mines'!G10,'Profil de mines'!G27,'Profil de mines'!G45,'Profil de mines'!G62) -> 0 | I112: =CHOOSE($F$109,'Profil de mines'!H10,'Profil de mines'!H27,'Profil de mines'!H45,'Profil de mines'!H62) -> 270000 | J112: =CHOOSE($F$109,'Profil de mines'!I10,'Profil de mines'!I27,'Profil de mines'!I45,'Profil de mines'!I62) -> 270000 | K112: =CHOOSE($F$109,'Profil de mines'!J10,'Profil de mines'!J27,'Profil de mines'!J45,'Profil de mines'!J62) -> 270000 | L112: =CHOOSE($F$109,'Profil de mines'!K10,'Profil de mines'!K27,'Profil de mines'!K45,'Profil de mines'!K62) -> 270000 | M112: =CHOOSE($F$109,'Profil de mines'!L10,'Profil de mines'!L27,'Profil de mines'!L45,'Profil de mines'!L62) -> 270000 | N112: =CHOOSE($F$109,'Profil de mines'!M10,'Profil de mines'!M27,'Profil de mines'!M45,'Profil de mines'!M62) -> 270000 | O112: =CHOOSE($F$109,'Profil de mines'!N10,'Profil de mines'!N27,'Profil de mines'!N45,'Profil de mines'!N62) -> 270000 | P112: =CHOOSE($F$109,'Profil de mines'!O10,'Profil de mines'!O27,'Profil de mines'!O45,'Profil de mines'!O62) -> 270000 | Q112: =CHOOSE($F$109,'Profil de mines'!P10,'Profil de mines'!P27,'Profil de mines'!P45,'Profil de mines'!P62) -> 270000 | R112: =CHOOSE($F$109,'Profil de mines'!Q10,'Profil de mines'!Q27,'Profil de mines'!Q45,'Profil de mines'!Q62) -> 270000 | S112: =CHOOSE($F$109,'Profil de mines'!R10,'Profil de mines'!R27,'Profil de mines'!R45,'Profil de mines'!R62) -> 270000 | T112: =CHOOSE($F$109,'Profil de mines'!S10,'Profil de mines'!S27,'Profil de mines'!S45,'Profil de mines'!S62) -> 0 | U112: =CHOOSE($F$109,'Profil de mines'!T10,'Profil de mines'!T27,'Profil de mines'!T45,'Profil de mines'!T62) -> 0 | V112: =CHOOSE($F$109,'Profil de mines'!U10,'Profil de mines'!U27,'Profil de mines'!U45,'Profil de mines'!U62) -> 0 | W112: =CHOOSE($F$109,'Profil de mines'!V10,'Profil de mines'!V27,'Profil de mines'!V45,'Profil de mines'!V62) -> 0 | X112: =CHOOSE($F$109,'Profil de mines'!W10,'Profil de mines'!W27,'Profil de mines'!W45,'Profil de mines'!W62) -> 0 | Y112: =CHOOSE($F$109,'Profil de mines'!X10,'Profil de mines'!X27,'Profil de mines'!X45,'Profil de mines'!X62) -> 0 | Z112: =CHOOSE($F$109,'Profil de mines'!Y10,'Profil de mines'!Y27,'Profil de mines'!Y45,'Profil de mines'!Y62) -> 0 | AA112: =CHOOSE($F$109,'Profil de mines'!Z10,'Profil de mines'!Z27,'Profil de mines'!Z45,'Profil de mines'!Z62) -> 0 | AB112: =CHOOSE($F$109,'Profil de mines'!AA10,'Profil de mines'!AA27,'Profil de mines'!AA45,'Profil de mines'!AA62) -> 0 | AC112: =CHOOSE($F$109,'Profil de mines'!AB10,'Profil de mines'!AB27,'Profil de mines'!AB45,'Profil de mines'!AB62) -> 0 | AD112: =CHOOSE($F$109,'Profil de mines'!AC10,'Profil de mines'!AC27,'Profil de mines'!AC45,'Profil de mines'!AC62) -> 0 | AE112: =CHOOSE($F$109,'Profil de mines'!AD10,'Profil de mines'!AD27,'Profil de mines'!AD45,'Profil de mines'!AD62) -> 0 | AF112: =CHOOSE($F$109,'Profil de mines'!AE10,'Profil de mines'!AE27,'Profil de mines'!AE45,'Profil de mines'!AE62) -> 0 | AG112: =CHOOSE($F$109,'Profil de mines'!AF10,'Profil de mines'!AF27,'Profil de mines'!AF45,'Profil de mines'!AF62) -> 0 | AH112: =CHOOSE($F$109,'Profil de mines'!AG10,'Profil de mines'!AG27,'Profil de mines'!AG45,'Profil de mines'!AG62) -> 0 | AI112: =CHOOSE($F$109,'Profil de mines'!AH10,'Profil de mines'!AH27,'Profil de mines'!AH45,'Profil de mines'!AH62) -> 0 | AJ112: =CHOOSE($F$109,'Profil de mines'!AI10,'Profil de mines'!AI27,'Profil de mines'!AI45,'Profil de mines'!AI62) -> 0 | AK112: =CHOOSE($F$109,'Profil de mines'!AJ10,'Profil de mines'!AJ27,'Profil de mines'!AJ45,'Profil de mines'!AJ62) -> 0 | AL112: =CHOOSE($F$109,'Profil de mines'!AK10,'Profil de mines'!AK27,'Profil de mines'!AK45,'Profil de mines'!AK62) -> 0 | AM112: =CHOOSE($F$109,'Profil de mines'!AL10,'Profil de mines'!AL27,'Profil de mines'!AL45,'Profil de mines'!AL62) -> 0 | AN112: =CHOOSE($F$109,'Profil de mines'!AM10,'Profil de mines'!AM27,'Profil de mines'!AM45,'Profil de mines'!AM62) -> 0 | AO112: =CHOOSE($F$109,'Profil de mines'!AN10,'Profil de mines'!AN27,'Profil de mines'!AN45,'Profil de mines'!AN62) -> 0 | AP112: =CHOOSE($F$109,'Profil de mines'!AO10,'Profil de mines'!AO27,'Profil de mines'!AO45,'Profil de mines'!AO62) -> 0 | AQ112: =CHOOSE($F$109,'Profil de mines'!AP10,'Profil de mines'!AP27,'Profil de mines'!AP45,'Profil de mines'!AP62) -> 0 | AR112: =CHOOSE($F$109,'Profil de mines'!AQ10,'Profil de mines'!AQ27,'Profil de mines'!AQ45,'Profil de mines'!AQ62) -> 0 | AS112: =CHOOSE($F$109,'Profil de mines'!AR10,'Profil de mines'!AR27,'Profil de mines'!AR45,'Profil de mines'!AR62) -> 0 | AT112: =CHOOSE($F$109,'Profil de mines'!AS10,'Profil de mines'!AS27,'Profil de mines'!AS45,'Profil de mines'!AS62) -> 0 | AU112: =CHOOSE($F$109,'Profil de mines'!AT10,'Profil de mines'!AT27,'Profil de mines'!AT45,'Profil de mines'!AT62) -> 0 | AV112: =CHOOSE($F$109,'Profil de mines'!AU10,'Profil de mines'!AU27,'Profil de mines'!AU45,'Profil de mines'!AU62) -> 0 | AW112: =CHOOSE($F$109,'Profil de mines'!AV10,'Profil de mines'!AV27,'Profil de mines'!AV45,'Profil de mines'!AV62) -> 0 | AX112: =CHOOSE($F$109,'Profil de mines'!AW10,'Profil de mines'!AW27,'Profil de mines'!AW45,'Profil de mines'!AW62) -> 0 | AY112: =CHOOSE($F$109,'Profil de mines'!AX10,'Profil de mines'!AX27,'Profil de mines'!AX45,'Profil de mines'!AX62) -> 0 | AZ112: =CHOOSE($F$109,'Profil de mines'!AY10,'Profil de mines'!AY27,'Profil de mines'!AY45,'Profil de mines'!AY62) -> 0 | BA112: =CHOOSE($F$109,'Profil de mines'!AZ10,'Profil de mines'!AZ27,'Profil de mines'!AZ45,'Profil de mines'!AZ62) -> 0 | BB112: =CHOOSE($F$109,'Profil de mines'!BA10,'Profil de mines'!BA27,'Profil de mines'!BA45,'Profil de mines'!BA62) -> 0 | BC112: =CHOOSE($F$109,'Profil de mines'!BB10,'Profil de mines'!BB27,'Profil de mines'!BB45,'Profil de mines'!BB62) -> 0 | BD112: =CHOOSE($F$109,'Profil de mines'!BC10,'Profil de mines'!BC27,'Profil de mines'!BC45,'Profil de mines'!BC62) -> 0
C113: 0 | D113: Transport après imposition | E113: $mm reel | G113: =CHOOSE($F$109,'Profil de mines'!F11,'Profil de mines'!F28,'Profil de mines'!F46,'Profil de mines'!F63) -> 0 | H113: =CHOOSE($F$109,'Profil de mines'!G11,'Profil de mines'!G28,'Profil de mines'!G46,'Profil de mines'!G63) -> 0 | I113: =CHOOSE($F$109,'Profil de mines'!H11,'Profil de mines'!H28,'Profil de mines'!H46,'Profil de mines'!H63) -> 0 | J113: =CHOOSE($F$109,'Profil de mines'!I11,'Profil de mines'!I28,'Profil de mines'!I46,'Profil de mines'!I63) -> 0 | K113: =CHOOSE($F$109,'Profil de mines'!J11,'Profil de mines'!J28,'Profil de mines'!J46,'Profil de mines'!J63) -> 0 | L113: =CHOOSE($F$109,'Profil de mines'!K11,'Profil de mines'!K28,'Profil de mines'!K46,'Profil de mines'!K63) -> 0 | M113: =CHOOSE($F$109,'Profil de mines'!L11,'Profil de mines'!L28,'Profil de mines'!L46,'Profil de mines'!L63) -> 0 | N113: =CHOOSE($F$109,'Profil de mines'!M11,'Profil de mines'!M28,'Profil de mines'!M46,'Profil de mines'!M63) -> 0 | O113: =CHOOSE($F$109,'Profil de mines'!N11,'Profil de mines'!N28,'Profil de mines'!N46,'Profil de mines'!N63) -> 0 | P113: =CHOOSE($F$109,'Profil de mines'!O11,'Profil de mines'!O28,'Profil de mines'!O46,'Profil de mines'!O63) -> 0 | Q113: =CHOOSE($F$109,'Profil de mines'!P11,'Profil de mines'!P28,'Profil de mines'!P46,'Profil de mines'!P63) -> 0 | R113: =CHOOSE($F$109,'Profil de mines'!Q11,'Profil de mines'!Q28,'Profil de mines'!Q46,'Profil de mines'!Q63) -> 0 | S113: =CHOOSE($F$109,'Profil de mines'!R11,'Profil de mines'!R28,'Profil de mines'!R46,'Profil de mines'!R63) -> 0 | T113: =CHOOSE($F$109,'Profil de mines'!S11,'Profil de mines'!S28,'Profil de mines'!S46,'Profil de mines'!S63) -> 0 | U113: =CHOOSE($F$109,'Profil de mines'!T11,'Profil de mines'!T28,'Profil de mines'!T46,'Profil de mines'!T63) -> 0 | V113: =CHOOSE($F$109,'Profil de mines'!U11,'Profil de mines'!U28,'Profil de mines'!U46,'Profil de mines'!U63) -> 0 | W113: =CHOOSE($F$109,'Profil de mines'!V11,'Profil de mines'!V28,'Profil de mines'!V46,'Profil de mines'!V63) -> 0 | X113: =CHOOSE($F$109,'Profil de mines'!W11,'Profil de mines'!W28,'Profil de mines'!W46,'Profil de mines'!W63) -> 0 | Y113: =CHOOSE($F$109,'Profil de mines'!X11,'Profil de mines'!X28,'Profil de mines'!X46,'Profil de mines'!X63) -> 0 | Z113: =CHOOSE($F$109,'Profil de mines'!Y11,'Profil de mines'!Y28,'Profil de mines'!Y46,'Profil de mines'!Y63) -> 0 | AA113: =CHOOSE($F$109,'Profil de mines'!Z11,'Profil de mines'!Z28,'Profil de mines'!Z46,'Profil de mines'!Z63) -> 0 | AB113: =CHOOSE($F$109,'Profil de mines'!AA11,'Profil de mines'!AA28,'Profil de mines'!AA46,'Profil de mines'!AA63) -> 0 | AC113: =CHOOSE($F$109,'Profil de mines'!AB11,'Profil de mines'!AB28,'Profil de mines'!AB46,'Profil de mines'!AB63) -> 0 | AD113: =CHOOSE($F$109,'Profil de mines'!AC11,'Profil de mines'!AC28,'Profil de mines'!AC46,'Profil de mines'!AC63) -> 0 | AE113: =CHOOSE($F$109,'Profil de mines'!AD11,'Profil de mines'!AD28,'Profil de mines'!AD46,'Profil de mines'!AD63) -> 0 | AF113: =CHOOSE($F$109,'Profil de mines'!AE11,'Profil de mines'!AE28,'Profil de mines'!AE46,'Profil de mines'!AE63) -> 0 | AG113: =CHOOSE($F$109,'Profil de mines'!AF11,'Profil de mines'!AF28,'Profil de mines'!AF46,'Profil de mines'!AF63) -> 0 | AH113: =CHOOSE($F$109,'Profil de mines'!AG11,'Profil de mines'!AG28,'Profil de mines'!AG46,'Profil de mines'!AG63) -> 0 | AI113: =CHOOSE($F$109,'Profil de mines'!AH11,'Profil de mines'!AH28,'Profil de mines'!AH46,'Profil de mines'!AH63) -> 0 | AJ113: =CHOOSE($F$109,'Profil de mines'!AI11,'Profil de mines'!AI28,'Profil de mines'!AI46,'Profil de mines'!AI63) -> 0 | AK113: =CHOOSE($F$109,'Profil de mines'!AJ11,'Profil de mines'!AJ28,'Profil de mines'!AJ46,'Profil de mines'!AJ63) -> 0 | AL113: =CHOOSE($F$109,'Profil de mines'!AK11,'Profil de mines'!AK28,'Profil de mines'!AK46,'Profil de mines'!AK63) -> 0 | AM113: =CHOOSE($F$109,'Profil de mines'!AL11,'Profil de mines'!AL28,'Profil de mines'!AL46,'Profil de mines'!AL63) -> 0 | AN113: =CHOOSE($F$109,'Profil de mines'!AM11,'Profil de mines'!AM28,'Profil de mines'!AM46,'Profil de mines'!AM63) -> 0 | AO113: =CHOOSE($F$109,'Profil de mines'!AN11,'Profil de mines'!AN28,'Profil de mines'!AN46,'Profil de mines'!AN63) -> 0 | AP113: =CHOOSE($F$109,'Profil de mines'!AO11,'Profil de mines'!AO28,'Profil de mines'!AO46,'Profil de mines'!AO63) -> 0 | AQ113: =CHOOSE($F$109,'Profil de mines'!AP11,'Profil de mines'!AP28,'Profil de mines'!AP46,'Profil de mines'!AP63) -> 0 | AR113: =CHOOSE($F$109,'Profil de mines'!AQ11,'Profil de mines'!AQ28,'Profil de mines'!AQ46,'Profil de mines'!AQ63) -> 0 | AS113: =CHOOSE($F$109,'Profil de mines'!AR11,'Profil de mines'!AR28,'Profil de mines'!AR46,'Profil de mines'!AR63) -> 0 | AT113: =CHOOSE($F$109,'Profil de mines'!AS11,'Profil de mines'!AS28,'Profil de mines'!AS46,'Profil de mines'!AS63) -> 0 | AU113: =CHOOSE($F$109,'Profil de mines'!AT11,'Profil de mines'!AT28,'Profil de mines'!AT46,'Profil de mines'!AT63) -> 0 | AV113: =CHOOSE($F$109,'Profil de mines'!AU11,'Profil de mines'!AU28,'Profil de mines'!AU46,'Profil de mines'!AU63) -> 0 | AW113: =CHOOSE($F$109,'Profil de mines'!AV11,'Profil de mines'!AV28,'Profil de mines'!AV46,'Profil de mines'!AV63) -> 0 | AX113: =CHOOSE($F$109,'Profil de mines'!AW11,'Profil de mines'!AW28,'Profil de mines'!AW46,'Profil de mines'!AW63) -> 0 | AY113: =CHOOSE($F$109,'Profil de mines'!AX11,'Profil de mines'!AX28,'Profil de mines'!AX46,'Profil de mines'!AX63) -> 0 | AZ113: =CHOOSE($F$109,'Profil de mines'!AY11,'Profil de mines'!AY28,'Profil de mines'!AY46,'Profil de mines'!AY63) -> 0 | BA113: =CHOOSE($F$109,'Profil de mines'!AZ11,'Profil de mines'!AZ28,'Profil de mines'!AZ46,'Profil de mines'!AZ63) -> 0 | BB113: =CHOOSE($F$109,'Profil de mines'!BA11,'Profil de mines'!BA28,'Profil de mines'!BA46,'Profil de mines'!BA63) -> 0 | BC113: =CHOOSE($F$109,'Profil de mines'!BB11,'Profil de mines'!BB28,'Profil de mines'!BB46,'Profil de mines'!BB63) -> 0 | BD113: =CHOOSE($F$109,'Profil de mines'!BC11,'Profil de mines'!BC28,'Profil de mines'!BC46,'Profil de mines'!BC63) -> 0
C114: 0 | D114: Charge de traitement / raffinage après imposition | E114: $mm reel | G114: =CHOOSE($F$109,'Profil de mines'!F12,'Profil de mines'!F29,'Profil de mines'!F47,'Profil de mines'!F64) -> 0 | H114: =CHOOSE($F$109,'Profil de mines'!G12,'Profil de mines'!G29,'Profil de mines'!G47,'Profil de mines'!G64) -> 0 | I114: =CHOOSE($F$109,'Profil de mines'!H12,'Profil de mines'!H29,'Profil de mines'!H47,'Profil de mines'!H64) -> 0 | J114: =CHOOSE($F$109,'Profil de mines'!I12,'Profil de mines'!I29,'Profil de mines'!I47,'Profil de mines'!I64) -> 0 | K114: =CHOOSE($F$109,'Profil de mines'!J12,'Profil de mines'!J29,'Profil de mines'!J47,'Profil de mines'!J64) -> 0 | L114: =CHOOSE($F$109,'Profil de mines'!K12,'Profil de mines'!K29,'Profil de mines'!K47,'Profil de mines'!K64) -> 0 | M114: =CHOOSE($F$109,'Profil de mines'!L12,'Profil de mines'!L29,'Profil de mines'!L47,'Profil de mines'!L64) -> 0 | N114: =CHOOSE($F$109,'Profil de mines'!M12,'Profil de mines'!M29,'Profil de mines'!M47,'Profil de mines'!M64) -> 0 | O114: =CHOOSE($F$109,'Profil de mines'!N12,'Profil de mines'!N29,'Profil de mines'!N47,'Profil de mines'!N64) -> 0 | P114: =CHOOSE($F$109,'Profil de mines'!O12,'Profil de mines'!O29,'Profil de mines'!O47,'Profil de mines'!O64) -> 0 | Q114: =CHOOSE($F$109,'Profil de mines'!P12,'Profil de mines'!P29,'Profil de mines'!P47,'Profil de mines'!P64) -> 0 | R114: =CHOOSE($F$109,'Profil de mines'!Q12,'Profil de mines'!Q29,'Profil de mines'!Q47,'Profil de mines'!Q64) -> 0 | S114: =CHOOSE($F$109,'Profil de mines'!R12,'Profil de mines'!R29,'Profil de mines'!R47,'Profil de mines'!R64) -> 0 | T114: =CHOOSE($F$109,'Profil de mines'!S12,'Profil de mines'!S29,'Profil de mines'!S47,'Profil de mines'!S64) -> 0 | U114: =CHOOSE($F$109,'Profil de mines'!T12,'Profil de mines'!T29,'Profil de mines'!T47,'Profil de mines'!T64) -> 0 | V114: =CHOOSE($F$109,'Profil de mines'!U12,'Profil de mines'!U29,'Profil de mines'!U47,'Profil de mines'!U64) -> 0 | W114: =CHOOSE($F$109,'Profil de mines'!V12,'Profil de mines'!V29,'Profil de mines'!V47,'Profil de mines'!V64) -> 0 | X114: =CHOOSE($F$109,'Profil de mines'!W12,'Profil de mines'!W29,'Profil de mines'!W47,'Profil de mines'!W64) -> 0 | Y114: =CHOOSE($F$109,'Profil de mines'!X12,'Profil de mines'!X29,'Profil de mines'!X47,'Profil de mines'!X64) -> 0 | Z114: =CHOOSE($F$109,'Profil de mines'!Y12,'Profil de mines'!Y29,'Profil de mines'!Y47,'Profil de mines'!Y64) -> 0 | AA114: =CHOOSE($F$109,'Profil de mines'!Z12,'Profil de mines'!Z29,'Profil de mines'!Z47,'Profil de mines'!Z64) -> 0 | AB114: =CHOOSE($F$109,'Profil de mines'!AA12,'Profil de mines'!AA29,'Profil de mines'!AA47,'Profil de mines'!AA64) -> 0 | AC114: =CHOOSE($F$109,'Profil de mines'!AB12,'Profil de mines'!AB29,'Profil de mines'!AB47,'Profil de mines'!AB64) -> 0 | AD114: =CHOOSE($F$109,'Profil de mines'!AC12,'Profil de mines'!AC29,'Profil de mines'!AC47,'Profil de mines'!AC64) -> 0 | AE114: =CHOOSE($F$109,'Profil de mines'!AD12,'Profil de mines'!AD29,'Profil de mines'!AD47,'Profil de mines'!AD64) -> 0 | AF114: =CHOOSE($F$109,'Profil de mines'!AE12,'Profil de mines'!AE29,'Profil de mines'!AE47,'Profil de mines'!AE64) -> 0 | AG114: =CHOOSE($F$109,'Profil de mines'!AF12,'Profil de mines'!AF29,'Profil de mines'!AF47,'Profil de mines'!AF64) -> 0 | AH114: =CHOOSE($F$109,'Profil de mines'!AG12,'Profil de mines'!AG29,'Profil de mines'!AG47,'Profil de mines'!AG64) -> 0 | AI114: =CHOOSE($F$109,'Profil de mines'!AH12,'Profil de mines'!AH29,'Profil de mines'!AH47,'Profil de mines'!AH64) -> 0 | AJ114: =CHOOSE($F$109,'Profil de mines'!AI12,'Profil de mines'!AI29,'Profil de mines'!AI47,'Profil de mines'!AI64) -> 0 | AK114: =CHOOSE($F$109,'Profil de mines'!AJ12,'Profil de mines'!AJ29,'Profil de mines'!AJ47,'Profil de mines'!AJ64) -> 0 | AL114: =CHOOSE($F$109,'Profil de mines'!AK12,'Profil de mines'!AK29,'Profil de mines'!AK47,'Profil de mines'!AK64) -> 0 | AM114: =CHOOSE($F$109,'Profil de mines'!AL12,'Profil de mines'!AL29,'Profil de mines'!AL47,'Profil de mines'!AL64) -> 0 | AN114: =CHOOSE($F$109,'Profil de mines'!AM12,'Profil de mines'!AM29,'Profil de mines'!AM47,'Profil de mines'!AM64) -> 0 | AO114: =CHOOSE($F$109,'Profil de mines'!AN12,'Profil de mines'!AN29,'Profil de mines'!AN47,'Profil de mines'!AN64) -> 0 | AP114: =CHOOSE($F$109,'Profil de mines'!AO12,'Profil de mines'!AO29,'Profil de mines'!AO47,'Profil de mines'!AO64) -> 0 | AQ114: =CHOOSE($F$109,'Profil de mines'!AP12,'Profil de mines'!AP29,'Profil de mines'!AP47,'Profil de mines'!AP64) -> 0 | AR114: =CHOOSE($F$109,'Profil de mines'!AQ12,'Profil de mines'!AQ29,'Profil de mines'!AQ47,'Profil de mines'!AQ64) -> 0 | AS114: =CHOOSE($F$109,'Profil de mines'!AR12,'Profil de mines'!AR29,'Profil de mines'!AR47,'Profil de mines'!AR64) -> 0 | AT114: =CHOOSE($F$109,'Profil de mines'!AS12,'Profil de mines'!AS29,'Profil de mines'!AS47,'Profil de mines'!AS64) -> 0 | AU114: =CHOOSE($F$109,'Profil de mines'!AT12,'Profil de mines'!AT29,'Profil de mines'!AT47,'Profil de mines'!AT64) -> 0 | AV114: =CHOOSE($F$109,'Profil de mines'!AU12,'Profil de mines'!AU29,'Profil de mines'!AU47,'Profil de mines'!AU64) -> 0 | AW114: =CHOOSE($F$109,'Profil de mines'!AV12,'Profil de mines'!AV29,'Profil de mines'!AV47,'Profil de mines'!AV64) -> 0 | AX114: =CHOOSE($F$109,'Profil de mines'!AW12,'Profil de mines'!AW29,'Profil de mines'!AW47,'Profil de mines'!AW64) -> 0 | AY114: =CHOOSE($F$109,'Profil de mines'!AX12,'Profil de mines'!AX29,'Profil de mines'!AX47,'Profil de mines'!AX64) -> 0 | AZ114: =CHOOSE($F$109,'Profil de mines'!AY12,'Profil de mines'!AY29,'Profil de mines'!AY47,'Profil de mines'!AY64) -> 0 | BA114: =CHOOSE($F$109,'Profil de mines'!AZ12,'Profil de mines'!AZ29,'Profil de mines'!AZ47,'Profil de mines'!AZ64) -> 0 | BB114: =CHOOSE($F$109,'Profil de mines'!BA12,'Profil de mines'!BA29,'Profil de mines'!BA47,'Profil de mines'!BA64) -> 0 | BC114: =CHOOSE($F$109,'Profil de mines'!BB12,'Profil de mines'!BB29,'Profil de mines'!BB47,'Profil de mines'!BB64) -> 0 | BD114: =CHOOSE($F$109,'Profil de mines'!BC12,'Profil de mines'!BC29,'Profil de mines'!BC47,'Profil de mines'!BC64) -> 0
C115: 0 | D115: Couts d’exploration | E115: $mm reel | G115: =CHOOSE($F$109,'Profil de mines'!F13,'Profil de mines'!F30,'Profil de mines'!F48,'Profil de mines'!F65) -> 0 | H115: =CHOOSE($F$109,'Profil de mines'!G13,'Profil de mines'!G30,'Profil de mines'!G48,'Profil de mines'!G65) -> 0 | I115: =CHOOSE($F$109,'Profil de mines'!H13,'Profil de mines'!H30,'Profil de mines'!H48,'Profil de mines'!H65) -> 0 | J115: =CHOOSE($F$109,'Profil de mines'!I13,'Profil de mines'!I30,'Profil de mines'!I48,'Profil de mines'!I65) -> 0 | K115: =CHOOSE($F$109,'Profil de mines'!J13,'Profil de mines'!J30,'Profil de mines'!J48,'Profil de mines'!J65) -> 0 | L115: =CHOOSE($F$109,'Profil de mines'!K13,'Profil de mines'!K30,'Profil de mines'!K48,'Profil de mines'!K65) -> 0 | M115: =CHOOSE($F$109,'Profil de mines'!L13,'Profil de mines'!L30,'Profil de mines'!L48,'Profil de mines'!L65) -> 0 | N115: =CHOOSE($F$109,'Profil de mines'!M13,'Profil de mines'!M30,'Profil de mines'!M48,'Profil de mines'!M65) -> 0 | O115: =CHOOSE($F$109,'Profil de mines'!N13,'Profil de mines'!N30,'Profil de mines'!N48,'Profil de mines'!N65) -> 0 | P115: =CHOOSE($F$109,'Profil de mines'!O13,'Profil de mines'!O30,'Profil de mines'!O48,'Profil de mines'!O65) -> 0 | Q115: =CHOOSE($F$109,'Profil de mines'!P13,'Profil de mines'!P30,'Profil de mines'!P48,'Profil de mines'!P65) -> 0 | R115: =CHOOSE($F$109,'Profil de mines'!Q13,'Profil de mines'!Q30,'Profil de mines'!Q48,'Profil de mines'!Q65) -> 0 | S115: =CHOOSE($F$109,'Profil de mines'!R13,'Profil de mines'!R30,'Profil de mines'!R48,'Profil de mines'!R65) -> 0 | T115: =CHOOSE($F$109,'Profil de mines'!S13,'Profil de mines'!S30,'Profil de mines'!S48,'Profil de mines'!S65) -> 0 | U115: =CHOOSE($F$109,'Profil de mines'!T13,'Profil de mines'!T30,'Profil de mines'!T48,'Profil de mines'!T65) -> 0 | V115: =CHOOSE($F$109,'Profil de mines'!U13,'Profil de mines'!U30,'Profil de mines'!U48,'Profil de mines'!U65) -> 0 | W115: =CHOOSE($F$109,'Profil de mines'!V13,'Profil de mines'!V30,'Profil de mines'!V48,'Profil de mines'!V65) -> 0 | X115: =CHOOSE($F$109,'Profil de mines'!W13,'Profil de mines'!W30,'Profil de mines'!W48,'Profil de mines'!W65) -> 0 | Y115: =CHOOSE($F$109,'Profil de mines'!X13,'Profil de mines'!X30,'Profil de mines'!X48,'Profil de mines'!X65) -> 0 | Z115: =CHOOSE($F$109,'Profil de mines'!Y13,'Profil de mines'!Y30,'Profil de mines'!Y48,'Profil de mines'!Y65) -> 0 | AA115: =CHOOSE($F$109,'Profil de mines'!Z13,'Profil de mines'!Z30,'Profil de mines'!Z48,'Profil de mines'!Z65) -> 0 | AB115: =CHOOSE($F$109,'Profil de mines'!AA13,'Profil de mines'!AA30,'Profil de mines'!AA48,'Profil de mines'!AA65) -> 0 | AC115: =CHOOSE($F$109,'Profil de mines'!AB13,'Profil de mines'!AB30,'Profil de mines'!AB48,'Profil de mines'!AB65) -> 0 | AD115: =CHOOSE($F$109,'Profil de mines'!AC13,'Profil de mines'!AC30,'Profil de mines'!AC48,'Profil de mines'!AC65) -> 0 | AE115: =CHOOSE($F$109,'Profil de mines'!AD13,'Profil de mines'!AD30,'Profil de mines'!AD48,'Profil de mines'!AD65) -> 0 | AF115: =CHOOSE($F$109,'Profil de mines'!AE13,'Profil de mines'!AE30,'Profil de mines'!AE48,'Profil de mines'!AE65) -> 0 | AG115: =CHOOSE($F$109,'Profil de mines'!AF13,'Profil de mines'!AF30,'Profil de mines'!AF48,'Profil de mines'!AF65) -> 0 | AH115: =CHOOSE($F$109,'Profil de mines'!AG13,'Profil de mines'!AG30,'Profil de mines'!AG48,'Profil de mines'!AG65) -> 0 | AI115: =CHOOSE($F$109,'Profil de mines'!AH13,'Profil de mines'!AH30,'Profil de mines'!AH48,'Profil de mines'!AH65) -> 0 | AJ115: =CHOOSE($F$109,'Profil de mines'!AI13,'Profil de mines'!AI30,'Profil de mines'!AI48,'Profil de mines'!AI65) -> 0 | AK115: =CHOOSE($F$109,'Profil de mines'!AJ13,'Profil de mines'!AJ30,'Profil de mines'!AJ48,'Profil de mines'!AJ65) -> 0 | AL115: =CHOOSE($F$109,'Profil de mines'!AK13,'Profil de mines'!AK30,'Profil de mines'!AK48,'Profil de mines'!AK65) -> 0 | AM115: =CHOOSE($F$109,'Profil de mines'!AL13,'Profil de mines'!AL30,'Profil de mines'!AL48,'Profil de mines'!AL65) -> 0 | AN115: =CHOOSE($F$109,'Profil de mines'!AM13,'Profil de mines'!AM30,'Profil de mines'!AM48,'Profil de mines'!AM65) -> 0 | AO115: =CHOOSE($F$109,'Profil de mines'!AN13,'Profil de mines'!AN30,'Profil de mines'!AN48,'Profil de mines'!AN65) -> 0 | AP115: =CHOOSE($F$109,'Profil de mines'!AO13,'Profil de mines'!AO30,'Profil de mines'!AO48,'Profil de mines'!AO65) -> 0 | AQ115: =CHOOSE($F$109,'Profil de mines'!AP13,'Profil de mines'!AP30,'Profil de mines'!AP48,'Profil de mines'!AP65) -> 0 | AR115: =CHOOSE($F$109,'Profil de mines'!AQ13,'Profil de mines'!AQ30,'Profil de mines'!AQ48,'Profil de mines'!AQ65) -> 0 | AS115: =CHOOSE($F$109,'Profil de mines'!AR13,'Profil de mines'!AR30,'Profil de mines'!AR48,'Profil de mines'!AR65) -> 0 | AT115: =CHOOSE($F$109,'Profil de mines'!AS13,'Profil de mines'!AS30,'Profil de mines'!AS48,'Profil de mines'!AS65) -> 0 | AU115: =CHOOSE($F$109,'Profil de mines'!AT13,'Profil de mines'!AT30,'Profil de mines'!AT48,'Profil de mines'!AT65) -> 0 | AV115: =CHOOSE($F$109,'Profil de mines'!AU13,'Profil de mines'!AU30,'Profil de mines'!AU48,'Profil de mines'!AU65) -> 0 | AW115: =CHOOSE($F$109,'Profil de mines'!AV13,'Profil de mines'!AV30,'Profil de mines'!AV48,'Profil de mines'!AV65) -> 0 | AX115: =CHOOSE($F$109,'Profil de mines'!AW13,'Profil de mines'!AW30,'Profil de mines'!AW48,'Profil de mines'!AW65) -> 0 | AY115: =CHOOSE($F$109,'Profil de mines'!AX13,'Profil de mines'!AX30,'Profil de mines'!AX48,'Profil de mines'!AX65) -> 0 | AZ115: =CHOOSE($F$109,'Profil de mines'!AY13,'Profil de mines'!AY30,'Profil de mines'!AY48,'Profil de mines'!AY65) -> 0 | BA115: =CHOOSE($F$109,'Profil de mines'!AZ13,'Profil de mines'!AZ30,'Profil de mines'!AZ48,'Profil de mines'!AZ65) -> 0 | BB115: =CHOOSE($F$109,'Profil de mines'!BA13,'Profil de mines'!BA30,'Profil de mines'!BA48,'Profil de mines'!BA65) -> 0 | BC115: =CHOOSE($F$109,'Profil de mines'!BB13,'Profil de mines'!BB30,'Profil de mines'!BB48,'Profil de mines'!BB65) -> 0 | BD115: =CHOOSE($F$109,'Profil de mines'!BC13,'Profil de mines'!BC30,'Profil de mines'!BC48,'Profil de mines'!BC65) -> 0
C116: 0 | D116: Couts d’investissement en capital - incorporel | E116: $mm reel | G116: =CHOOSE($F$109,'Profil de mines'!F14,'Profil de mines'!F31,'Profil de mines'!F49,'Profil de mines'!F66) -> 0 | H116: =CHOOSE($F$109,'Profil de mines'!G14,'Profil de mines'!G31,'Profil de mines'!G49,'Profil de mines'!G66) -> 0 | I116: =CHOOSE($F$109,'Profil de mines'!H14,'Profil de mines'!H31,'Profil de mines'!H49,'Profil de mines'!H66) -> 0 | J116: =CHOOSE($F$109,'Profil de mines'!I14,'Profil de mines'!I31,'Profil de mines'!I49,'Profil de mines'!I66) -> 0 | K116: =CHOOSE($F$109,'Profil de mines'!J14,'Profil de mines'!J31,'Profil de mines'!J49,'Profil de mines'!J66) -> 0 | L116: =CHOOSE($F$109,'Profil de mines'!K14,'Profil de mines'!K31,'Profil de mines'!K49,'Profil de mines'!K66) -> 0 | M116: =CHOOSE($F$109,'Profil de mines'!L14,'Profil de mines'!L31,'Profil de mines'!L49,'Profil de mines'!L66) -> 0 | N116: =CHOOSE($F$109,'Profil de mines'!M14,'Profil de mines'!M31,'Profil de mines'!M49,'Profil de mines'!M66) -> 0 | O116: =CHOOSE($F$109,'Profil de mines'!N14,'Profil de mines'!N31,'Profil de mines'!N49,'Profil de mines'!N66) -> 0 | P116: =CHOOSE($F$109,'Profil de mines'!O14,'Profil de mines'!O31,'Profil de mines'!O49,'Profil de mines'!O66) -> 0 | Q116: =CHOOSE($F$109,'Profil de mines'!P14,'Profil de mines'!P31,'Profil de mines'!P49,'Profil de mines'!P66) -> 0 | R116: =CHOOSE($F$109,'Profil de mines'!Q14,'Profil de mines'!Q31,'Profil de mines'!Q49,'Profil de mines'!Q66) -> 0 | S116: =CHOOSE($F$109,'Profil de mines'!R14,'Profil de mines'!R31,'Profil de mines'!R49,'Profil de mines'!R66) -> 0 | T116: =CHOOSE($F$109,'Profil de mines'!S14,'Profil de mines'!S31,'Profil de mines'!S49,'Profil de mines'!S66) -> 0 | U116: =CHOOSE($F$109,'Profil de mines'!T14,'Profil de mines'!T31,'Profil de mines'!T49,'Profil de mines'!T66) -> 0 | V116: =CHOOSE($F$109,'Profil de mines'!U14,'Profil de mines'!U31,'Profil de mines'!U49,'Profil de mines'!U66) -> 0 | W116: =CHOOSE($F$109,'Profil de mines'!V14,'Profil de mines'!V31,'Profil de mines'!V49,'Profil de mines'!V66) -> 0 | X116: =CHOOSE($F$109,'Profil de mines'!W14,'Profil de mines'!W31,'Profil de mines'!W49,'Profil de mines'!W66) -> 0 | Y116: =CHOOSE($F$109,'Profil de mines'!X14,'Profil de mines'!X31,'Profil de mines'!X49,'Profil de mines'!X66) -> 0 | Z116: =CHOOSE($F$109,'Profil de mines'!Y14,'Profil de mines'!Y31,'Profil de mines'!Y49,'Profil de mines'!Y66) -> 0 | AA116: =CHOOSE($F$109,'Profil de mines'!Z14,'Profil de mines'!Z31,'Profil de mines'!Z49,'Profil de mines'!Z66) -> 0 | AB116: =CHOOSE($F$109,'Profil de mines'!AA14,'Profil de mines'!AA31,'Profil de mines'!AA49,'Profil de mines'!AA66) -> 0 | AC116: =CHOOSE($F$109,'Profil de mines'!AB14,'Profil de mines'!AB31,'Profil de mines'!AB49,'Profil de mines'!AB66) -> 0 | AD116: =CHOOSE($F$109,'Profil de mines'!AC14,'Profil de mines'!AC31,'Profil de mines'!AC49,'Profil de mines'!AC66) -> 0 | AE116: =CHOOSE($F$109,'Profil de mines'!AD14,'Profil de mines'!AD31,'Profil de mines'!AD49,'Profil de mines'!AD66) -> 0 | AF116: =CHOOSE($F$109,'Profil de mines'!AE14,'Profil de mines'!AE31,'Profil de mines'!AE49,'Profil de mines'!AE66) -> 0 | AG116: =CHOOSE($F$109,'Profil de mines'!AF14,'Profil de mines'!AF31,'Profil de mines'!AF49,'Profil de mines'!AF66) -> 0 | AH116: =CHOOSE($F$109,'Profil de mines'!AG14,'Profil de mines'!AG31,'Profil de mines'!AG49,'Profil de mines'!AG66) -> 0 | AI116: =CHOOSE($F$109,'Profil de mines'!AH14,'Profil de mines'!AH31,'Profil de mines'!AH49,'Profil de mines'!AH66) -> 0 | AJ116: =CHOOSE($F$109,'Profil de mines'!AI14,'Profil de mines'!AI31,'Profil de mines'!AI49,'Profil de mines'!AI66) -> 0 | AK116: =CHOOSE($F$109,'Profil de mines'!AJ14,'Profil de mines'!AJ31,'Profil de mines'!AJ49,'Profil de mines'!AJ66) -> 0 | AL116: =CHOOSE($F$109,'Profil de mines'!AK14,'Profil de mines'!AK31,'Profil de mines'!AK49,'Profil de mines'!AK66) -> 0 | AM116: =CHOOSE($F$109,'Profil de mines'!AL14,'Profil de mines'!AL31,'Profil de mines'!AL49,'Profil de mines'!AL66) -> 0 | AN116: =CHOOSE($F$109,'Profil de mines'!AM14,'Profil de mines'!AM31,'Profil de mines'!AM49,'Profil de mines'!AM66) -> 0 | AO116: =CHOOSE($F$109,'Profil de mines'!AN14,'Profil de mines'!AN31,'Profil de mines'!AN49,'Profil de mines'!AN66) -> 0 | AP116: =CHOOSE($F$109,'Profil de mines'!AO14,'Profil de mines'!AO31,'Profil de mines'!AO49,'Profil de mines'!AO66) -> 0 | AQ116: =CHOOSE($F$109,'Profil de mines'!AP14,'Profil de mines'!AP31,'Profil de mines'!AP49,'Profil de mines'!AP66) -> 0 | AR116: =CHOOSE($F$109,'Profil de mines'!AQ14,'Profil de mines'!AQ31,'Profil de mines'!AQ49,'Profil de mines'!AQ66) -> 0 | AS116: =CHOOSE($F$109,'Profil de mines'!AR14,'Profil de mines'!AR31,'Profil de mines'!AR49,'Profil de mines'!AR66) -> 0 | AT116: =CHOOSE($F$109,'Profil de mines'!AS14,'Profil de mines'!AS31,'Profil de mines'!AS49,'Profil de mines'!AS66) -> 0 | AU116: =CHOOSE($F$109,'Profil de mines'!AT14,'Profil de mines'!AT31,'Profil de mines'!AT49,'Profil de mines'!AT66) -> 0 | AV116: =CHOOSE($F$109,'Profil de mines'!AU14,'Profil de mines'!AU31,'Profil de mines'!AU49,'Profil de mines'!AU66) -> 0 | AW116: =CHOOSE($F$109,'Profil de mines'!AV14,'Profil de mines'!AV31,'Profil de mines'!AV49,'Profil de mines'!AV66) -> 0 | AX116: =CHOOSE($F$109,'Profil de mines'!AW14,'Profil de mines'!AW31,'Profil de mines'!AW49,'Profil de mines'!AW66) -> 0 | AY116: =CHOOSE($F$109,'Profil de mines'!AX14,'Profil de mines'!AX31,'Profil de mines'!AX49,'Profil de mines'!AX66) -> 0 | AZ116: =CHOOSE($F$109,'Profil de mines'!AY14,'Profil de mines'!AY31,'Profil de mines'!AY49,'Profil de mines'!AY66) -> 0 | BA116: =CHOOSE($F$109,'Profil de mines'!AZ14,'Profil de mines'!AZ31,'Profil de mines'!AZ49,'Profil de mines'!AZ66) -> 0 | BB116: =CHOOSE($F$109,'Profil de mines'!BA14,'Profil de mines'!BA31,'Profil de mines'!BA49,'Profil de mines'!BA66) -> 0 | BC116: =CHOOSE($F$109,'Profil de mines'!BB14,'Profil de mines'!BB31,'Profil de mines'!BB49,'Profil de mines'!BB66) -> 0 | BD116: =CHOOSE($F$109,'Profil de mines'!BC14,'Profil de mines'!BC31,'Profil de mines'!BC49,'Profil de mines'!BC66) -> 0
C117: 500 | D117: Couts d’investissement en capital - corporel | E117: $mm reel | G117: =CHOOSE($F$109,'Profil de mines'!F15,'Profil de mines'!F32,'Profil de mines'!F50,'Profil de mines'!F67) -> 250 | H117: =CHOOSE($F$109,'Profil de mines'!G15,'Profil de mines'!G32,'Profil de mines'!G50,'Profil de mines'!G67) -> 250 | I117: =CHOOSE($F$109,'Profil de mines'!H15,'Profil de mines'!H32,'Profil de mines'!H50,'Profil de mines'!H67) -> 0 | J117: =CHOOSE($F$109,'Profil de mines'!I15,'Profil de mines'!I32,'Profil de mines'!I50,'Profil de mines'!I67) -> 0 | K117: =CHOOSE($F$109,'Profil de mines'!J15,'Profil de mines'!J32,'Profil de mines'!J50,'Profil de mines'!J67) -> 0 | L117: =CHOOSE($F$109,'Profil de mines'!K15,'Profil de mines'!K32,'Profil de mines'!K50,'Profil de mines'!K67) -> 0 | M117: =CHOOSE($F$109,'Profil de mines'!L15,'Profil de mines'!L32,'Profil de mines'!L50,'Profil de mines'!L67) -> 0 | N117: =CHOOSE($F$109,'Profil de mines'!M15,'Profil de mines'!M32,'Profil de mines'!M50,'Profil de mines'!M67) -> 0 | O117: =CHOOSE($F$109,'Profil de mines'!N15,'Profil de mines'!N32,'Profil de mines'!N50,'Profil de mines'!N67) -> 0 | P117: =CHOOSE($F$109,'Profil de mines'!O15,'Profil de mines'!O32,'Profil de mines'!O50,'Profil de mines'!O67) -> 0 | Q117: =CHOOSE($F$109,'Profil de mines'!P15,'Profil de mines'!P32,'Profil de mines'!P50,'Profil de mines'!P67) -> 0 | R117: =CHOOSE($F$109,'Profil de mines'!Q15,'Profil de mines'!Q32,'Profil de mines'!Q50,'Profil de mines'!Q67) -> 0 | S117: =CHOOSE($F$109,'Profil de mines'!R15,'Profil de mines'!R32,'Profil de mines'!R50,'Profil de mines'!R67) -> 0 | T117: =CHOOSE($F$109,'Profil de mines'!S15,'Profil de mines'!S32,'Profil de mines'!S50,'Profil de mines'!S67) -> 0 | U117: =CHOOSE($F$109,'Profil de mines'!T15,'Profil de mines'!T32,'Profil de mines'!T50,'Profil de mines'!T67) -> 0 | V117: =CHOOSE($F$109,'Profil de mines'!U15,'Profil de mines'!U32,'Profil de mines'!U50,'Profil de mines'!U67) -> 0 | W117: =CHOOSE($F$109,'Profil de mines'!V15,'Profil de mines'!V32,'Profil de mines'!V50,'Profil de mines'!V67) -> 0 | X117: =CHOOSE($F$109,'Profil de mines'!W15,'Profil de mines'!W32,'Profil de mines'!W50,'Profil de mines'!W67) -> 0 | Y117: =CHOOSE($F$109,'Profil de mines'!X15,'Profil de mines'!X32,'Profil de mines'!X50,'Profil de mines'!X67) -> 0 | Z117: =CHOOSE($F$109,'Profil de mines'!Y15,'Profil de mines'!Y32,'Profil de mines'!Y50,'Profil de mines'!Y67) -> 0 | AA117: =CHOOSE($F$109,'Profil de mines'!Z15,'Profil de mines'!Z32,'Profil de mines'!Z50,'Profil de mines'!Z67) -> 0 | AB117: =CHOOSE($F$109,'Profil de mines'!AA15,'Profil de mines'!AA32,'Profil de mines'!AA50,'Profil de mines'!AA67) -> 0 | AC117: =CHOOSE($F$109,'Profil de mines'!AB15,'Profil de mines'!AB32,'Profil de mines'!AB50,'Profil de mines'!AB67) -> 0 | AD117: =CHOOSE($F$109,'Profil de mines'!AC15,'Profil de mines'!AC32,'Profil de mines'!AC50,'Profil de mines'!AC67) -> 0 | AE117: =CHOOSE($F$109,'Profil de mines'!AD15,'Profil de mines'!AD32,'Profil de mines'!AD50,'Profil de mines'!AD67) -> 0 | AF117: =CHOOSE($F$109,'Profil de mines'!AE15,'Profil de mines'!AE32,'Profil de mines'!AE50,'Profil de mines'!AE67) -> 0 | AG117: =CHOOSE($F$109,'Profil de mines'!AF15,'Profil de mines'!AF32,'Profil de mines'!AF50,'Profil de mines'!AF67) -> 0 | AH117: =CHOOSE($F$109,'Profil de mines'!AG15,'Profil de mines'!AG32,'Profil de mines'!AG50,'Profil de mines'!AG67) -> 0 | AI117: =CHOOSE($F$109,'Profil de mines'!AH15,'Profil de mines'!AH32,'Profil de mines'!AH50,'Profil de mines'!AH67) -> 0 | AJ117: =CHOOSE($F$109,'Profil de mines'!AI15,'Profil de mines'!AI32,'Profil de mines'!AI50,'Profil de mines'!AI67) -> 0 | AK117: =CHOOSE($F$109,'Profil de mines'!AJ15,'Profil de mines'!AJ32,'Profil de mines'!AJ50,'Profil de mines'!AJ67) -> 0 | AL117: =CHOOSE($F$109,'Profil de mines'!AK15,'Profil de mines'!AK32,'Profil de mines'!AK50,'Profil de mines'!AK67) -> 0 | AM117: =CHOOSE($F$109,'Profil de mines'!AL15,'Profil de mines'!AL32,'Profil de mines'!AL50,'Profil de mines'!AL67) -> 0 | AN117: =CHOOSE($F$109,'Profil de mines'!AM15,'Profil de mines'!AM32,'Profil de mines'!AM50,'Profil de mines'!AM67) -> 0 | AO117: =CHOOSE($F$109,'Profil de mines'!AN15,'Profil de mines'!AN32,'Profil de mines'!AN50,'Profil de mines'!AN67) -> 0 | AP117: =CHOOSE($F$109,'Profil de mines'!AO15,'Profil de mines'!AO32,'Profil de mines'!AO50,'Profil de mines'!AO67) -> 0 | AQ117: =CHOOSE($F$109,'Profil de mines'!AP15,'Profil de mines'!AP32,'Profil de mines'!AP50,'Profil de mines'!AP67) -> 0 | AR117: =CHOOSE($F$109,'Profil de mines'!AQ15,'Profil de mines'!AQ32,'Profil de mines'!AQ50,'Profil de mines'!AQ67) -> 0 | AS117: =CHOOSE($F$109,'Profil de mines'!AR15,'Profil de mines'!AR32,'Profil de mines'!AR50,'Profil de mines'!AR67) -> 0 | AT117: =CHOOSE($F$109,'Profil de mines'!AS15,'Profil de mines'!AS32,'Profil de mines'!AS50,'Profil de mines'!AS67) -> 0 | AU117: =CHOOSE($F$109,'Profil de mines'!AT15,'Profil de mines'!AT32,'Profil de mines'!AT50,'Profil de mines'!AT67) -> 0 | AV117: =CHOOSE($F$109,'Profil de mines'!AU15,'Profil de mines'!AU32,'Profil de mines'!AU50,'Profil de mines'!AU67) -> 0 | AW117: =CHOOSE($F$109,'Profil de mines'!AV15,'Profil de mines'!AV32,'Profil de mines'!AV50,'Profil de mines'!AV67) -> 0 | AX117: =CHOOSE($F$109,'Profil de mines'!AW15,'Profil de mines'!AW32,'Profil de mines'!AW50,'Profil de mines'!AW67) -> 0 | AY117: =CHOOSE($F$109,'Profil de mines'!AX15,'Profil de mines'!AX32,'Profil de mines'!AX50,'Profil de mines'!AX67) -> 0 | AZ117: =CHOOSE($F$109,'Profil de mines'!AY15,'Profil de mines'!AY32,'Profil de mines'!AY50,'Profil de mines'!AY67) -> 0 | BA117: =CHOOSE($F$109,'Profil de mines'!AZ15,'Profil de mines'!AZ32,'Profil de mines'!AZ50,'Profil de mines'!AZ67) -> 0 | BB117: =CHOOSE($F$109,'Profil de mines'!BA15,'Profil de mines'!BA32,'Profil de mines'!BA50,'Profil de mines'!BA67) -> 0 | BC117: =CHOOSE($F$109,'Profil de mines'!BB15,'Profil de mines'!BB32,'Profil de mines'!BB50,'Profil de mines'!BB67) -> 0 | BD117: =CHOOSE($F$109,'Profil de mines'!BC15,'Profil de mines'!BC32,'Profil de mines'!BC50,'Profil de mines'!BC67) -> 0
C118: 57.915 | D118: Capital de réinvestissement | E118: $mm reel | G118: =CHOOSE($F$109,'Profil de mines'!F16,'Profil de mines'!F33,'Profil de mines'!F51,'Profil de mines'!F68) -> 0 | H118: =CHOOSE($F$109,'Profil de mines'!G16,'Profil de mines'!G33,'Profil de mines'!G51,'Profil de mines'!G68) -> 0 | I118: =CHOOSE($F$109,'Profil de mines'!H16,'Profil de mines'!H33,'Profil de mines'!H51,'Profil de mines'!H68) -> 5.265 | J118: =CHOOSE($F$109,'Profil de mines'!I16,'Profil de mines'!I33,'Profil de mines'!I51,'Profil de mines'!I68) -> 5.265 | K118: =CHOOSE($F$109,'Profil de mines'!J16,'Profil de mines'!J33,'Profil de mines'!J51,'Profil de mines'!J68) -> 5.265 | L118: =CHOOSE($F$109,'Profil de mines'!K16,'Profil de mines'!K33,'Profil de mines'!K51,'Profil de mines'!K68) -> 5.265 | M118: =CHOOSE($F$109,'Profil de mines'!L16,'Profil de mines'!L33,'Profil de mines'!L51,'Profil de mines'!L68) -> 5.265 | N118: =CHOOSE($F$109,'Profil de mines'!M16,'Profil de mines'!M33,'Profil de mines'!M51,'Profil de mines'!M68) -> 5.265 | O118: =CHOOSE($F$109,'Profil de mines'!N16,'Profil de mines'!N33,'Profil de mines'!N51,'Profil de mines'!N68) -> 5.265 | P118: =CHOOSE($F$109,'Profil de mines'!O16,'Profil de mines'!O33,'Profil de mines'!O51,'Profil de mines'!O68) -> 5.265 | Q118: =CHOOSE($F$109,'Profil de mines'!P16,'Profil de mines'!P33,'Profil de mines'!P51,'Profil de mines'!P68) -> 5.265 | R118: =CHOOSE($F$109,'Profil de mines'!Q16,'Profil de mines'!Q33,'Profil de mines'!Q51,'Profil de mines'!Q68) -> 5.265 | S118: =CHOOSE($F$109,'Profil de mines'!R16,'Profil de mines'!R33,'Profil de mines'!R51,'Profil de mines'!R68) -> 5.265 | T118: =CHOOSE($F$109,'Profil de mines'!S16,'Profil de mines'!S33,'Profil de mines'!S51,'Profil de mines'!S68) -> 0 | U118: =CHOOSE($F$109,'Profil de mines'!T16,'Profil de mines'!T33,'Profil de mines'!T51,'Profil de mines'!T68) -> 0 | V118: =CHOOSE($F$109,'Profil de mines'!U16,'Profil de mines'!U33,'Profil de mines'!U51,'Profil de mines'!U68) -> 0 | W118: =CHOOSE($F$109,'Profil de mines'!V16,'Profil de mines'!V33,'Profil de mines'!V51,'Profil de mines'!V68) -> 0 | X118: =CHOOSE($F$109,'Profil de mines'!W16,'Profil de mines'!W33,'Profil de mines'!W51,'Profil de mines'!W68) -> 0 | Y118: =CHOOSE($F$109,'Profil de mines'!X16,'Profil de mines'!X33,'Profil de mines'!X51,'Profil de mines'!X68) -> 0 | Z118: =CHOOSE($F$109,'Profil de mines'!Y16,'Profil de mines'!Y33,'Profil de mines'!Y51,'Profil de mines'!Y68) -> 0 | AA118: =CHOOSE($F$109,'Profil de mines'!Z16,'Profil de mines'!Z33,'Profil de mines'!Z51,'Profil de mines'!Z68) -> 0 | AB118: =CHOOSE($F$109,'Profil de mines'!AA16,'Profil de mines'!AA33,'Profil de mines'!AA51,'Profil de mines'!AA68) -> 0 | AC118: =CHOOSE($F$109,'Profil de mines'!AB16,'Profil de mines'!AB33,'Profil de mines'!AB51,'Profil de mines'!AB68) -> 0 | AD118: =CHOOSE($F$109,'Profil de mines'!AC16,'Profil de mines'!AC33,'Profil de mines'!AC51,'Profil de mines'!AC68) -> 0 | AE118: =CHOOSE($F$109,'Profil de mines'!AD16,'Profil de mines'!AD33,'Profil de mines'!AD51,'Profil de mines'!AD68) -> 0 | AF118: =CHOOSE($F$109,'Profil de mines'!AE16,'Profil de mines'!AE33,'Profil de mines'!AE51,'Profil de mines'!AE68) -> 0 | AG118: =CHOOSE($F$109,'Profil de mines'!AF16,'Profil de mines'!AF33,'Profil de mines'!AF51,'Profil de mines'!AF68) -> 0 | AH118: =CHOOSE($F$109,'Profil de mines'!AG16,'Profil de mines'!AG33,'Profil de mines'!AG51,'Profil de mines'!AG68) -> 0 | AI118: =CHOOSE($F$109,'Profil de mines'!AH16,'Profil de mines'!AH33,'Profil de mines'!AH51,'Profil de mines'!AH68) -> 0 | AJ118: =CHOOSE($F$109,'Profil de mines'!AI16,'Profil de mines'!AI33,'Profil de mines'!AI51,'Profil de mines'!AI68) -> 0 | AK118: =CHOOSE($F$109,'Profil de mines'!AJ16,'Profil de mines'!AJ33,'Profil de mines'!AJ51,'Profil de mines'!AJ68) -> 0 | AL118: =CHOOSE($F$109,'Profil de mines'!AK16,'Profil de mines'!AK33,'Profil de mines'!AK51,'Profil de mines'!AK68) -> 0 | AM118: =CHOOSE($F$109,'Profil de mines'!AL16,'Profil de mines'!AL33,'Profil de mines'!AL51,'Profil de mines'!AL68) -> 0 | AN118: =CHOOSE($F$109,'Profil de mines'!AM16,'Profil de mines'!AM33,'Profil de mines'!AM51,'Profil de mines'!AM68) -> 0 | AO118: =CHOOSE($F$109,'Profil de mines'!AN16,'Profil de mines'!AN33,'Profil de mines'!AN51,'Profil de mines'!AN68) -> 0 | AP118: =CHOOSE($F$109,'Profil de mines'!AO16,'Profil de mines'!AO33,'Profil de mines'!AO51,'Profil de mines'!AO68) -> 0 | AQ118: =CHOOSE($F$109,'Profil de mines'!AP16,'Profil de mines'!AP33,'Profil de mines'!AP51,'Profil de mines'!AP68) -> 0 | AR118: =CHOOSE($F$109,'Profil de mines'!AQ16,'Profil de mines'!AQ33,'Profil de mines'!AQ51,'Profil de mines'!AQ68) -> 0 | AS118: =CHOOSE($F$109,'Profil de mines'!AR16,'Profil de mines'!AR33,'Profil de mines'!AR51,'Profil de mines'!AR68) -> 0 | AT118: =CHOOSE($F$109,'Profil de mines'!AS16,'Profil de mines'!AS33,'Profil de mines'!AS51,'Profil de mines'!AS68) -> 0 | AU118: =CHOOSE($F$109,'Profil de mines'!AT16,'Profil de mines'!AT33,'Profil de mines'!AT51,'Profil de mines'!AT68) -> 0 | AV118: =CHOOSE($F$109,'Profil de mines'!AU16,'Profil de mines'!AU33,'Profil de mines'!AU51,'Profil de mines'!AU68) -> 0 | AW118: =CHOOSE($F$109,'Profil de mines'!AV16,'Profil de mines'!AV33,'Profil de mines'!AV51,'Profil de mines'!AV68) -> 0 | AX118: =CHOOSE($F$109,'Profil de mines'!AW16,'Profil de mines'!AW33,'Profil de mines'!AW51,'Profil de mines'!AW68) -> 0 | AY118: =CHOOSE($F$109,'Profil de mines'!AX16,'Profil de mines'!AX33,'Profil de mines'!AX51,'Profil de mines'!AX68) -> 0 | AZ118: =CHOOSE($F$109,'Profil de mines'!AY16,'Profil de mines'!AY33,'Profil de mines'!AY51,'Profil de mines'!AY68) -> 0 | BA118: =CHOOSE($F$109,'Profil de mines'!AZ16,'Profil de mines'!AZ33,'Profil de mines'!AZ51,'Profil de mines'!AZ68) -> 0 | BB118: =CHOOSE($F$109,'Profil de mines'!BA16,'Profil de mines'!BA33,'Profil de mines'!BA51,'Profil de mines'!BA68) -> 0 | BC118: =CHOOSE($F$109,'Profil de mines'!BB16,'Profil de mines'!BB33,'Profil de mines'!BB51,'Profil de mines'!BB68) -> 0 | BD118: =CHOOSE($F$109,'Profil de mines'!BC16,'Profil de mines'!BC33,'Profil de mines'!BC51,'Profil de mines'!BC68) -> 0
C119: 1930.5 | D119: Couts opérationnels - extraction | E119: $mm reel | G119: =CHOOSE($F$109,'Profil de mines'!F17,'Profil de mines'!F34,'Profil de mines'!F52,'Profil de mines'!F69) -> 0 | H119: =CHOOSE($F$109,'Profil de mines'!G17,'Profil de mines'!G34,'Profil de mines'!G52,'Profil de mines'!G69) -> 0 | I119: =CHOOSE($F$109,'Profil de mines'!H17,'Profil de mines'!H34,'Profil de mines'!H52,'Profil de mines'!H69) -> 175.5 | J119: =CHOOSE($F$109,'Profil de mines'!I17,'Profil de mines'!I34,'Profil de mines'!I52,'Profil de mines'!I69) -> 175.5 | K119: =CHOOSE($F$109,'Profil de mines'!J17,'Profil de mines'!J34,'Profil de mines'!J52,'Profil de mines'!J69) -> 175.5 | L119: =CHOOSE($F$109,'Profil de mines'!K17,'Profil de mines'!K34,'Profil de mines'!K52,'Profil de mines'!K69) -> 175.5 | M119: =CHOOSE($F$109,'Profil de mines'!L17,'Profil de mines'!L34,'Profil de mines'!L52,'Profil de mines'!L69) -> 175.5 | N119: =CHOOSE($F$109,'Profil de mines'!M17,'Profil de mines'!M34,'Profil de mines'!M52,'Profil de mines'!M69) -> 175.5 | O119: =CHOOSE($F$109,'Profil de mines'!N17,'Profil de mines'!N34,'Profil de mines'!N52,'Profil de mines'!N69) -> 175.5 | P119: =CHOOSE($F$109,'Profil de mines'!O17,'Profil de mines'!O34,'Profil de mines'!O52,'Profil de mines'!O69) -> 175.5 | Q119: =CHOOSE($F$109,'Profil de mines'!P17,'Profil de mines'!P34,'Profil de mines'!P52,'Profil de mines'!P69) -> 175.5 | R119: =CHOOSE($F$109,'Profil de mines'!Q17,'Profil de mines'!Q34,'Profil de mines'!Q52,'Profil de mines'!Q69) -> 175.5 | S119: =CHOOSE($F$109,'Profil de mines'!R17,'Profil de mines'!R34,'Profil de mines'!R52,'Profil de mines'!R69) -> 175.5 | T119: =CHOOSE($F$109,'Profil de mines'!S17,'Profil de mines'!S34,'Profil de mines'!S52,'Profil de mines'!S69) -> 0 | U119: =CHOOSE($F$109,'Profil de mines'!T17,'Profil de mines'!T34,'Profil de mines'!T52,'Profil de mines'!T69) -> 0 | V119: =CHOOSE($F$109,'Profil de mines'!U17,'Profil de mines'!U34,'Profil de mines'!U52,'Profil de mines'!U69) -> 0 | W119: =CHOOSE($F$109,'Profil de mines'!V17,'Profil de mines'!V34,'Profil de mines'!V52,'Profil de mines'!V69) -> 0 | X119: =CHOOSE($F$109,'Profil de mines'!W17,'Profil de mines'!W34,'Profil de mines'!W52,'Profil de mines'!W69) -> 0 | Y119: =CHOOSE($F$109,'Profil de mines'!X17,'Profil de mines'!X34,'Profil de mines'!X52,'Profil de mines'!X69) -> 0 | Z119: =CHOOSE($F$109,'Profil de mines'!Y17,'Profil de mines'!Y34,'Profil de mines'!Y52,'Profil de mines'!Y69) -> 0 | AA119: =CHOOSE($F$109,'Profil de mines'!Z17,'Profil de mines'!Z34,'Profil de mines'!Z52,'Profil de mines'!Z69) -> 0 | AB119: =CHOOSE($F$109,'Profil de mines'!AA17,'Profil de mines'!AA34,'Profil de mines'!AA52,'Profil de mines'!AA69) -> 0 | AC119: =CHOOSE($F$109,'Profil de mines'!AB17,'Profil de mines'!AB34,'Profil de mines'!AB52,'Profil de mines'!AB69) -> 0 | AD119: =CHOOSE($F$109,'Profil de mines'!AC17,'Profil de mines'!AC34,'Profil de mines'!AC52,'Profil de mines'!AC69) -> 0 | AE119: =CHOOSE($F$109,'Profil de mines'!AD17,'Profil de mines'!AD34,'Profil de mines'!AD52,'Profil de mines'!AD69) -> 0 | AF119: =CHOOSE($F$109,'Profil de mines'!AE17,'Profil de mines'!AE34,'Profil de mines'!AE52,'Profil de mines'!AE69) -> 0 | AG119: =CHOOSE($F$109,'Profil de mines'!AF17,'Profil de mines'!AF34,'Profil de mines'!AF52,'Profil de mines'!AF69) -> 0 | AH119: =CHOOSE($F$109,'Profil de mines'!AG17,'Profil de mines'!AG34,'Profil de mines'!AG52,'Profil de mines'!AG69) -> 0 | AI119: =CHOOSE($F$109,'Profil de mines'!AH17,'Profil de mines'!AH34,'Profil de mines'!AH52,'Profil de mines'!AH69) -> 0 | AJ119: =CHOOSE($F$109,'Profil de mines'!AI17,'Profil de mines'!AI34,'Profil de mines'!AI52,'Profil de mines'!AI69) -> 0 | AK119: =CHOOSE($F$109,'Profil de mines'!AJ17,'Profil de mines'!AJ34,'Profil de mines'!AJ52,'Profil de mines'!AJ69) -> 0 | AL119: =CHOOSE($F$109,'Profil de mines'!AK17,'Profil de mines'!AK34,'Profil de mines'!AK52,'Profil de mines'!AK69) -> 0 | AM119: =CHOOSE($F$109,'Profil de mines'!AL17,'Profil de mines'!AL34,'Profil de mines'!AL52,'Profil de mines'!AL69) -> 0 | AN119: =CHOOSE($F$109,'Profil de mines'!AM17,'Profil de mines'!AM34,'Profil de mines'!AM52,'Profil de mines'!AM69) -> 0 | AO119: =CHOOSE($F$109,'Profil de mines'!AN17,'Profil de mines'!AN34,'Profil de mines'!AN52,'Profil de mines'!AN69) -> 0 | AP119: =CHOOSE($F$109,'Profil de mines'!AO17,'Profil de mines'!AO34,'Profil de mines'!AO52,'Profil de mines'!AO69) -> 0 | AQ119: =CHOOSE($F$109,'Profil de mines'!AP17,'Profil de mines'!AP34,'Profil de mines'!AP52,'Profil de mines'!AP69) -> 0 | AR119: =CHOOSE($F$109,'Profil de mines'!AQ17,'Profil de mines'!AQ34,'Profil de mines'!AQ52,'Profil de mines'!AQ69) -> 0 | AS119: =CHOOSE($F$109,'Profil de mines'!AR17,'Profil de mines'!AR34,'Profil de mines'!AR52,'Profil de mines'!AR69) -> 0 | AT119: =CHOOSE($F$109,'Profil de mines'!AS17,'Profil de mines'!AS34,'Profil de mines'!AS52,'Profil de mines'!AS69) -> 0 | AU119: =CHOOSE($F$109,'Profil de mines'!AT17,'Profil de mines'!AT34,'Profil de mines'!AT52,'Profil de mines'!AT69) -> 0 | AV119: =CHOOSE($F$109,'Profil de mines'!AU17,'Profil de mines'!AU34,'Profil de mines'!AU52,'Profil de mines'!AU69) -> 0 | AW119: =CHOOSE($F$109,'Profil de mines'!AV17,'Profil de mines'!AV34,'Profil de mines'!AV52,'Profil de mines'!AV69) -> 0 | AX119: =CHOOSE($F$109,'Profil de mines'!AW17,'Profil de mines'!AW34,'Profil de mines'!AW52,'Profil de mines'!AW69) -> 0 | AY119: =CHOOSE($F$109,'Profil de mines'!AX17,'Profil de mines'!AX34,'Profil de mines'!AX52,'Profil de mines'!AX69) -> 0 | AZ119: =CHOOSE($F$109,'Profil de mines'!AY17,'Profil de mines'!AY34,'Profil de mines'!AY52,'Profil de mines'!AY69) -> 0 | BA119: =CHOOSE($F$109,'Profil de mines'!AZ17,'Profil de mines'!AZ34,'Profil de mines'!AZ52,'Profil de mines'!AZ69) -> 0 | BB119: =CHOOSE($F$109,'Profil de mines'!BA17,'Profil de mines'!BA34,'Profil de mines'!BA52,'Profil de mines'!BA69) -> 0 | BC119: =CHOOSE($F$109,'Profil de mines'!BB17,'Profil de mines'!BB34,'Profil de mines'!BB52,'Profil de mines'!BB69) -> 0 | BD119: =CHOOSE($F$109,'Profil de mines'!BC17,'Profil de mines'!BC34,'Profil de mines'!BC52,'Profil de mines'!BC69) -> 0
C120: 0 | D120: Couts opérationnels - broyage | E120: $mm reel | G120: =CHOOSE($F$109,'Profil de mines'!F18,'Profil de mines'!F35,'Profil de mines'!F53,'Profil de mines'!F70) -> 0 | H120: =CHOOSE($F$109,'Profil de mines'!G18,'Profil de mines'!G35,'Profil de mines'!G53,'Profil de mines'!G70) -> 0 | I120: =CHOOSE($F$109,'Profil de mines'!H18,'Profil de mines'!H35,'Profil de mines'!H53,'Profil de mines'!H70) -> 0 | J120: =CHOOSE($F$109,'Profil de mines'!I18,'Profil de mines'!I35,'Profil de mines'!I53,'Profil de mines'!I70) -> 0 | K120: =CHOOSE($F$109,'Profil de mines'!J18,'Profil de mines'!J35,'Profil de mines'!J53,'Profil de mines'!J70) -> 0 | L120: =CHOOSE($F$109,'Profil de mines'!K18,'Profil de mines'!K35,'Profil de mines'!K53,'Profil de mines'!K70) -> 0 | M120: =CHOOSE($F$109,'Profil de mines'!L18,'Profil de mines'!L35,'Profil de mines'!L53,'Profil de mines'!L70) -> 0 | N120: =CHOOSE($F$109,'Profil de mines'!M18,'Profil de mines'!M35,'Profil de mines'!M53,'Profil de mines'!M70) -> 0 | O120: =CHOOSE($F$109,'Profil de mines'!N18,'Profil de mines'!N35,'Profil de mines'!N53,'Profil de mines'!N70) -> 0 | P120: =CHOOSE($F$109,'Profil de mines'!O18,'Profil de mines'!O35,'Profil de mines'!O53,'Profil de mines'!O70) -> 0 | Q120: =CHOOSE($F$109,'Profil de mines'!P18,'Profil de mines'!P35,'Profil de mines'!P53,'Profil de mines'!P70) -> 0 | R120: =CHOOSE($F$109,'Profil de mines'!Q18,'Profil de mines'!Q35,'Profil de mines'!Q53,'Profil de mines'!Q70) -> 0 | S120: =CHOOSE($F$109,'Profil de mines'!R18,'Profil de mines'!R35,'Profil de mines'!R53,'Profil de mines'!R70) -> 0 | T120: =CHOOSE($F$109,'Profil de mines'!S18,'Profil de mines'!S35,'Profil de mines'!S53,'Profil de mines'!S70) -> 0 | U120: =CHOOSE($F$109,'Profil de mines'!T18,'Profil de mines'!T35,'Profil de mines'!T53,'Profil de mines'!T70) -> 0 | V120: =CHOOSE($F$109,'Profil de mines'!U18,'Profil de mines'!U35,'Profil de mines'!U53,'Profil de mines'!U70) -> 0 | W120: =CHOOSE($F$109,'Profil de mines'!V18,'Profil de mines'!V35,'Profil de mines'!V53,'Profil de mines'!V70) -> 0 | X120: =CHOOSE($F$109,'Profil de mines'!W18,'Profil de mines'!W35,'Profil de mines'!W53,'Profil de mines'!W70) -> 0 | Y120: =CHOOSE($F$109,'Profil de mines'!X18,'Profil de mines'!X35,'Profil de mines'!X53,'Profil de mines'!X70) -> 0 | Z120: =CHOOSE($F$109,'Profil de mines'!Y18,'Profil de mines'!Y35,'Profil de mines'!Y53,'Profil de mines'!Y70) -> 0 | AA120: =CHOOSE($F$109,'Profil de mines'!Z18,'Profil de mines'!Z35,'Profil de mines'!Z53,'Profil de mines'!Z70) -> 0 | AB120: =CHOOSE($F$109,'Profil de mines'!AA18,'Profil de mines'!AA35,'Profil de mines'!AA53,'Profil de mines'!AA70) -> 0 | AC120: =CHOOSE($F$109,'Profil de mines'!AB18,'Profil de mines'!AB35,'Profil de mines'!AB53,'Profil de mines'!AB70) -> 0 | AD120: =CHOOSE($F$109,'Profil de mines'!AC18,'Profil de mines'!AC35,'Profil de mines'!AC53,'Profil de mines'!AC70) -> 0 | AE120: =CHOOSE($F$109,'Profil de mines'!AD18,'Profil de mines'!AD35,'Profil de mines'!AD53,'Profil de mines'!AD70) -> 0 | AF120: =CHOOSE($F$109,'Profil de mines'!AE18,'Profil de mines'!AE35,'Profil de mines'!AE53,'Profil de mines'!AE70) -> 0 | AG120: =CHOOSE($F$109,'Profil de mines'!AF18,'Profil de mines'!AF35,'Profil de mines'!AF53,'Profil de mines'!AF70) -> 0 | AH120: =CHOOSE($F$109,'Profil de mines'!AG18,'Profil de mines'!AG35,'Profil de mines'!AG53,'Profil de mines'!AG70) -> 0 | AI120: =CHOOSE($F$109,'Profil de mines'!AH18,'Profil de mines'!AH35,'Profil de mines'!AH53,'Profil de mines'!AH70) -> 0 | AJ120: =CHOOSE($F$109,'Profil de mines'!AI18,'Profil de mines'!AI35,'Profil de mines'!AI53,'Profil de mines'!AI70) -> 0 | AK120: =CHOOSE($F$109,'Profil de mines'!AJ18,'Profil de mines'!AJ35,'Profil de mines'!AJ53,'Profil de mines'!AJ70) -> 0 | AL120: =CHOOSE($F$109,'Profil de mines'!AK18,'Profil de mines'!AK35,'Profil de mines'!AK53,'Profil de mines'!AK70) -> 0 | AM120: =CHOOSE($F$109,'Profil de mines'!AL18,'Profil de mines'!AL35,'Profil de mines'!AL53,'Profil de mines'!AL70) -> 0 | AN120: =CHOOSE($F$109,'Profil de mines'!AM18,'Profil de mines'!AM35,'Profil de mines'!AM53,'Profil de mines'!AM70) -> 0 | AO120: =CHOOSE($F$109,'Profil de mines'!AN18,'Profil de mines'!AN35,'Profil de mines'!AN53,'Profil de mines'!AN70) -> 0 | AP120: =CHOOSE($F$109,'Profil de mines'!AO18,'Profil de mines'!AO35,'Profil de mines'!AO53,'Profil de mines'!AO70) -> 0 | AQ120: =CHOOSE($F$109,'Profil de mines'!AP18,'Profil de mines'!AP35,'Profil de mines'!AP53,'Profil de mines'!AP70) -> 0 | AR120: =CHOOSE($F$109,'Profil de mines'!AQ18,'Profil de mines'!AQ35,'Profil de mines'!AQ53,'Profil de mines'!AQ70) -> 0 | AS120: =CHOOSE($F$109,'Profil de mines'!AR18,'Profil de mines'!AR35,'Profil de mines'!AR53,'Profil de mines'!AR70) -> 0 | AT120: =CHOOSE($F$109,'Profil de mines'!AS18,'Profil de mines'!AS35,'Profil de mines'!AS53,'Profil de mines'!AS70) -> 0 | AU120: =CHOOSE($F$109,'Profil de mines'!AT18,'Profil de mines'!AT35,'Profil de mines'!AT53,'Profil de mines'!AT70) -> 0 | AV120: =CHOOSE($F$109,'Profil de mines'!AU18,'Profil de mines'!AU35,'Profil de mines'!AU53,'Profil de mines'!AU70) -> 0 | AW120: =CHOOSE($F$109,'Profil de mines'!AV18,'Profil de mines'!AV35,'Profil de mines'!AV53,'Profil de mines'!AV70) -> 0 | AX120: =CHOOSE($F$109,'Profil de mines'!AW18,'Profil de mines'!AW35,'Profil de mines'!AW53,'Profil de mines'!AW70) -> 0 | AY120: =CHOOSE($F$109,'Profil de mines'!AX18,'Profil de mines'!AX35,'Profil de mines'!AX53,'Profil de mines'!AX70) -> 0 | AZ120: =CHOOSE($F$109,'Profil de mines'!AY18,'Profil de mines'!AY35,'Profil de mines'!AY53,'Profil de mines'!AY70) -> 0 | BA120: =CHOOSE($F$109,'Profil de mines'!AZ18,'Profil de mines'!AZ35,'Profil de mines'!AZ53,'Profil de mines'!AZ70) -> 0 | BB120: =CHOOSE($F$109,'Profil de mines'!BA18,'Profil de mines'!BA35,'Profil de mines'!BA53,'Profil de mines'!BA70) -> 0 | BC120: =CHOOSE($F$109,'Profil de mines'!BB18,'Profil de mines'!BB35,'Profil de mines'!BB53,'Profil de mines'!BB70) -> 0 | BD120: =CHOOSE($F$109,'Profil de mines'!BC18,'Profil de mines'!BC35,'Profil de mines'!BC53,'Profil de mines'!BC70) -> 0
C121: 0 | D121: Couts opérationnels - autres | E121: $mm reel | G121: =CHOOSE($F$109,'Profil de mines'!F19,'Profil de mines'!F36,'Profil de mines'!F54,'Profil de mines'!F71) -> 0 | H121: =CHOOSE($F$109,'Profil de mines'!G19,'Profil de mines'!G36,'Profil de mines'!G54,'Profil de mines'!G71) -> 0 | I121: =CHOOSE($F$109,'Profil de mines'!H19,'Profil de mines'!H36,'Profil de mines'!H54,'Profil de mines'!H71) -> 0 | J121: =CHOOSE($F$109,'Profil de mines'!I19,'Profil de mines'!I36,'Profil de mines'!I54,'Profil de mines'!I71) -> 0 | K121: =CHOOSE($F$109,'Profil de mines'!J19,'Profil de mines'!J36,'Profil de mines'!J54,'Profil de mines'!J71) -> 0 | L121: =CHOOSE($F$109,'Profil de mines'!K19,'Profil de mines'!K36,'Profil de mines'!K54,'Profil de mines'!K71) -> 0 | M121: =CHOOSE($F$109,'Profil de mines'!L19,'Profil de mines'!L36,'Profil de mines'!L54,'Profil de mines'!L71) -> 0 | N121: =CHOOSE($F$109,'Profil de mines'!M19,'Profil de mines'!M36,'Profil de mines'!M54,'Profil de mines'!M71) -> 0 | O121: =CHOOSE($F$109,'Profil de mines'!N19,'Profil de mines'!N36,'Profil de mines'!N54,'Profil de mines'!N71) -> 0 | P121: =CHOOSE($F$109,'Profil de mines'!O19,'Profil de mines'!O36,'Profil de mines'!O54,'Profil de mines'!O71) -> 0 | Q121: =CHOOSE($F$109,'Profil de mines'!P19,'Profil de mines'!P36,'Profil de mines'!P54,'Profil de mines'!P71) -> 0 | R121: =CHOOSE($F$109,'Profil de mines'!Q19,'Profil de mines'!Q36,'Profil de mines'!Q54,'Profil de mines'!Q71) -> 0 | S121: =CHOOSE($F$109,'Profil de mines'!R19,'Profil de mines'!R36,'Profil de mines'!R54,'Profil de mines'!R71) -> 0 | T121: =CHOOSE($F$109,'Profil de mines'!S19,'Profil de mines'!S36,'Profil de mines'!S54,'Profil de mines'!S71) -> 0 | U121: =CHOOSE($F$109,'Profil de mines'!T19,'Profil de mines'!T36,'Profil de mines'!T54,'Profil de mines'!T71) -> 0 | V121: =CHOOSE($F$109,'Profil de mines'!U19,'Profil de mines'!U36,'Profil de mines'!U54,'Profil de mines'!U71) -> 0 | W121: =CHOOSE($F$109,'Profil de mines'!V19,'Profil de mines'!V36,'Profil de mines'!V54,'Profil de mines'!V71) -> 0 | X121: =CHOOSE($F$109,'Profil de mines'!W19,'Profil de mines'!W36,'Profil de mines'!W54,'Profil de mines'!W71) -> 0 | Y121: =CHOOSE($F$109,'Profil de mines'!X19,'Profil de mines'!X36,'Profil de mines'!X54,'Profil de mines'!X71) -> 0 | Z121: =CHOOSE($F$109,'Profil de mines'!Y19,'Profil de mines'!Y36,'Profil de mines'!Y54,'Profil de mines'!Y71) -> 0 | AA121: =CHOOSE($F$109,'Profil de mines'!Z19,'Profil de mines'!Z36,'Profil de mines'!Z54,'Profil de mines'!Z71) -> 0 | AB121: =CHOOSE($F$109,'Profil de mines'!AA19,'Profil de mines'!AA36,'Profil de mines'!AA54,'Profil de mines'!AA71) -> 0 | AC121: =CHOOSE($F$109,'Profil de mines'!AB19,'Profil de mines'!AB36,'Profil de mines'!AB54,'Profil de mines'!AB71) -> 0 | AD121: =CHOOSE($F$109,'Profil de mines'!AC19,'Profil de mines'!AC36,'Profil de mines'!AC54,'Profil de mines'!AC71) -> 0 | AE121: =CHOOSE($F$109,'Profil de mines'!AD19,'Profil de mines'!AD36,'Profil de mines'!AD54,'Profil de mines'!AD71) -> 0 | AF121: =CHOOSE($F$109,'Profil de mines'!AE19,'Profil de mines'!AE36,'Profil de mines'!AE54,'Profil de mines'!AE71) -> 0 | AG121: =CHOOSE($F$109,'Profil de mines'!AF19,'Profil de mines'!AF36,'Profil de mines'!AF54,'Profil de mines'!AF71) -> 0 | AH121: =CHOOSE($F$109,'Profil de mines'!AG19,'Profil de mines'!AG36,'Profil de mines'!AG54,'Profil de mines'!AG71) -> 0 | AI121: =CHOOSE($F$109,'Profil de mines'!AH19,'Profil de mines'!AH36,'Profil de mines'!AH54,'Profil de mines'!AH71) -> 0 | AJ121: =CHOOSE($F$109,'Profil de mines'!AI19,'Profil de mines'!AI36,'Profil de mines'!AI54,'Profil de mines'!AI71) -> 0 | AK121: =CHOOSE($F$109,'Profil de mines'!AJ19,'Profil de mines'!AJ36,'Profil de mines'!AJ54,'Profil de mines'!AJ71) -> 0 | AL121: =CHOOSE($F$109,'Profil de mines'!AK19,'Profil de mines'!AK36,'Profil de mines'!AK54,'Profil de mines'!AK71) -> 0 | AM121: =CHOOSE($F$109,'Profil de mines'!AL19,'Profil de mines'!AL36,'Profil de mines'!AL54,'Profil de mines'!AL71) -> 0 | AN121: =CHOOSE($F$109,'Profil de mines'!AM19,'Profil de mines'!AM36,'Profil de mines'!AM54,'Profil de mines'!AM71) -> 0 | AO121: =CHOOSE($F$109,'Profil de mines'!AN19,'Profil de mines'!AN36,'Profil de mines'!AN54,'Profil de mines'!AN71) -> 0 | AP121: =CHOOSE($F$109,'Profil de mines'!AO19,'Profil de mines'!AO36,'Profil de mines'!AO54,'Profil de mines'!AO71) -> 0 | AQ121: =CHOOSE($F$109,'Profil de mines'!AP19,'Profil de mines'!AP36,'Profil de mines'!AP54,'Profil de mines'!AP71) -> 0 | AR121: =CHOOSE($F$109,'Profil de mines'!AQ19,'Profil de mines'!AQ36,'Profil de mines'!AQ54,'Profil de mines'!AQ71) -> 0 | AS121: =CHOOSE($F$109,'Profil de mines'!AR19,'Profil de mines'!AR36,'Profil de mines'!AR54,'Profil de mines'!AR71) -> 0 | AT121: =CHOOSE($F$109,'Profil de mines'!AS19,'Profil de mines'!AS36,'Profil de mines'!AS54,'Profil de mines'!AS71) -> 0 | AU121: =CHOOSE($F$109,'Profil de mines'!AT19,'Profil de mines'!AT36,'Profil de mines'!AT54,'Profil de mines'!AT71) -> 0 | AV121: =CHOOSE($F$109,'Profil de mines'!AU19,'Profil de mines'!AU36,'Profil de mines'!AU54,'Profil de mines'!AU71) -> 0 | AW121: =CHOOSE($F$109,'Profil de mines'!AV19,'Profil de mines'!AV36,'Profil de mines'!AV54,'Profil de mines'!AV71) -> 0 | AX121: =CHOOSE($F$109,'Profil de mines'!AW19,'Profil de mines'!AW36,'Profil de mines'!AW54,'Profil de mines'!AW71) -> 0 | AY121: =CHOOSE($F$109,'Profil de mines'!AX19,'Profil de mines'!AX36,'Profil de mines'!AX54,'Profil de mines'!AX71) -> 0 | AZ121: =CHOOSE($F$109,'Profil de mines'!AY19,'Profil de mines'!AY36,'Profil de mines'!AY54,'Profil de mines'!AY71) -> 0 | BA121: =CHOOSE($F$109,'Profil de mines'!AZ19,'Profil de mines'!AZ36,'Profil de mines'!AZ54,'Profil de mines'!AZ71) -> 0 | BB121: =CHOOSE($F$109,'Profil de mines'!BA19,'Profil de mines'!BA36,'Profil de mines'!BA54,'Profil de mines'!BA71) -> 0 | BC121: =CHOOSE($F$109,'Profil de mines'!BB19,'Profil de mines'!BB36,'Profil de mines'!BB54,'Profil de mines'!BB71) -> 0 | BD121: =CHOOSE($F$109,'Profil de mines'!BC19,'Profil de mines'!BC36,'Profil de mines'!BC54,'Profil de mines'!BC71) -> 0
C122: 0 | D122: Couts opérationnels - energie | E122: $mm reel | G122: =CHOOSE($F$109,'Profil de mines'!F20,'Profil de mines'!F37,'Profil de mines'!F55,'Profil de mines'!F72) -> 0 | H122: =CHOOSE($F$109,'Profil de mines'!G20,'Profil de mines'!G37,'Profil de mines'!G55,'Profil de mines'!G72) -> 0 | I122: =CHOOSE($F$109,'Profil de mines'!H20,'Profil de mines'!H37,'Profil de mines'!H55,'Profil de mines'!H72) -> 0 | J122: =CHOOSE($F$109,'Profil de mines'!I20,'Profil de mines'!I37,'Profil de mines'!I55,'Profil de mines'!I72) -> 0 | K122: =CHOOSE($F$109,'Profil de mines'!J20,'Profil de mines'!J37,'Profil de mines'!J55,'Profil de mines'!J72) -> 0 | L122: =CHOOSE($F$109,'Profil de mines'!K20,'Profil de mines'!K37,'Profil de mines'!K55,'Profil de mines'!K72) -> 0 | M122: =CHOOSE($F$109,'Profil de mines'!L20,'Profil de mines'!L37,'Profil de mines'!L55,'Profil de mines'!L72) -> 0 | N122: =CHOOSE($F$109,'Profil de mines'!M20,'Profil de mines'!M37,'Profil de mines'!M55,'Profil de mines'!M72) -> 0 | O122: =CHOOSE($F$109,'Profil de mines'!N20,'Profil de mines'!N37,'Profil de mines'!N55,'Profil de mines'!N72) -> 0 | P122: =CHOOSE($F$109,'Profil de mines'!O20,'Profil de mines'!O37,'Profil de mines'!O55,'Profil de mines'!O72) -> 0 | Q122: =CHOOSE($F$109,'Profil de mines'!P20,'Profil de mines'!P37,'Profil de mines'!P55,'Profil de mines'!P72) -> 0 | R122: =CHOOSE($F$109,'Profil de mines'!Q20,'Profil de mines'!Q37,'Profil de mines'!Q55,'Profil de mines'!Q72) -> 0 | S122: =CHOOSE($F$109,'Profil de mines'!R20,'Profil de mines'!R37,'Profil de mines'!R55,'Profil de mines'!R72) -> 0 | T122: =CHOOSE($F$109,'Profil de mines'!S20,'Profil de mines'!S37,'Profil de mines'!S55,'Profil de mines'!S72) -> 0 | U122: =CHOOSE($F$109,'Profil de mines'!T20,'Profil de mines'!T37,'Profil de mines'!T55,'Profil de mines'!T72) -> 0 | V122: =CHOOSE($F$109,'Profil de mines'!U20,'Profil de mines'!U37,'Profil de mines'!U55,'Profil de mines'!U72) -> 0 | W122: =CHOOSE($F$109,'Profil de mines'!V20,'Profil de mines'!V37,'Profil de mines'!V55,'Profil de mines'!V72) -> 0 | X122: =CHOOSE($F$109,'Profil de mines'!W20,'Profil de mines'!W37,'Profil de mines'!W55,'Profil de mines'!W72) -> 0 | Y122: =CHOOSE($F$109,'Profil de mines'!X20,'Profil de mines'!X37,'Profil de mines'!X55,'Profil de mines'!X72) -> 0 | Z122: =CHOOSE($F$109,'Profil de mines'!Y20,'Profil de mines'!Y37,'Profil de mines'!Y55,'Profil de mines'!Y72) -> 0 | AA122: =CHOOSE($F$109,'Profil de mines'!Z20,'Profil de mines'!Z37,'Profil de mines'!Z55,'Profil de mines'!Z72) -> 0 | AB122: =CHOOSE($F$109,'Profil de mines'!AA20,'Profil de mines'!AA37,'Profil de mines'!AA55,'Profil de mines'!AA72) -> 0 | AC122: =CHOOSE($F$109,'Profil de mines'!AB20,'Profil de mines'!AB37,'Profil de mines'!AB55,'Profil de mines'!AB72) -> 0 | AD122: =CHOOSE($F$109,'Profil de mines'!AC20,'Profil de mines'!AC37,'Profil de mines'!AC55,'Profil de mines'!AC72) -> 0 | AE122: =CHOOSE($F$109,'Profil de mines'!AD20,'Profil de mines'!AD37,'Profil de mines'!AD55,'Profil de mines'!AD72) -> 0 | AF122: =CHOOSE($F$109,'Profil de mines'!AE20,'Profil de mines'!AE37,'Profil de mines'!AE55,'Profil de mines'!AE72) -> 0 | AG122: =CHOOSE($F$109,'Profil de mines'!AF20,'Profil de mines'!AF37,'Profil de mines'!AF55,'Profil de mines'!AF72) -> 0 | AH122: =CHOOSE($F$109,'Profil de mines'!AG20,'Profil de mines'!AG37,'Profil de mines'!AG55,'Profil de mines'!AG72) -> 0 | AI122: =CHOOSE($F$109,'Profil de mines'!AH20,'Profil de mines'!AH37,'Profil de mines'!AH55,'Profil de mines'!AH72) -> 0 | AJ122: =CHOOSE($F$109,'Profil de mines'!AI20,'Profil de mines'!AI37,'Profil de mines'!AI55,'Profil de mines'!AI72) -> 0 | AK122: =CHOOSE($F$109,'Profil de mines'!AJ20,'Profil de mines'!AJ37,'Profil de mines'!AJ55,'Profil de mines'!AJ72) -> 0 | AL122: =CHOOSE($F$109,'Profil de mines'!AK20,'Profil de mines'!AK37,'Profil de mines'!AK55,'Profil de mines'!AK72) -> 0 | AM122: =CHOOSE($F$109,'Profil de mines'!AL20,'Profil de mines'!AL37,'Profil de mines'!AL55,'Profil de mines'!AL72) -> 0 | AN122: =CHOOSE($F$109,'Profil de mines'!AM20,'Profil de mines'!AM37,'Profil de mines'!AM55,'Profil de mines'!AM72) -> 0 | AO122: =CHOOSE($F$109,'Profil de mines'!AN20,'Profil de mines'!AN37,'Profil de mines'!AN55,'Profil de mines'!AN72) -> 0 | AP122: =CHOOSE($F$109,'Profil de mines'!AO20,'Profil de mines'!AO37,'Profil de mines'!AO55,'Profil de mines'!AO72) -> 0 | AQ122: =CHOOSE($F$109,'Profil de mines'!AP20,'Profil de mines'!AP37,'Profil de mines'!AP55,'Profil de mines'!AP72) -> 0 | AR122: =CHOOSE($F$109,'Profil de mines'!AQ20,'Profil de mines'!AQ37,'Profil de mines'!AQ55,'Profil de mines'!AQ72) -> 0 | AS122: =CHOOSE($F$109,'Profil de mines'!AR20,'Profil de mines'!AR37,'Profil de mines'!AR55,'Profil de mines'!AR72) -> 0 | AT122: =CHOOSE($F$109,'Profil de mines'!AS20,'Profil de mines'!AS37,'Profil de mines'!AS55,'Profil de mines'!AS72) -> 0 | AU122: =CHOOSE($F$109,'Profil de mines'!AT20,'Profil de mines'!AT37,'Profil de mines'!AT55,'Profil de mines'!AT72) -> 0 | AV122: =CHOOSE($F$109,'Profil de mines'!AU20,'Profil de mines'!AU37,'Profil de mines'!AU55,'Profil de mines'!AU72) -> 0 | AW122: =CHOOSE($F$109,'Profil de mines'!AV20,'Profil de mines'!AV37,'Profil de mines'!AV55,'Profil de mines'!AV72) -> 0 | AX122: =CHOOSE($F$109,'Profil de mines'!AW20,'Profil de mines'!AW37,'Profil de mines'!AW55,'Profil de mines'!AW72) -> 0 | AY122: =CHOOSE($F$109,'Profil de mines'!AX20,'Profil de mines'!AX37,'Profil de mines'!AX55,'Profil de mines'!AX72) -> 0 | AZ122: =CHOOSE($F$109,'Profil de mines'!AY20,'Profil de mines'!AY37,'Profil de mines'!AY55,'Profil de mines'!AY72) -> 0 | BA122: =CHOOSE($F$109,'Profil de mines'!AZ20,'Profil de mines'!AZ37,'Profil de mines'!AZ55,'Profil de mines'!AZ72) -> 0 | BB122: =CHOOSE($F$109,'Profil de mines'!BA20,'Profil de mines'!BA37,'Profil de mines'!BA55,'Profil de mines'!BA72) -> 0 | BC122: =CHOOSE($F$109,'Profil de mines'!BB20,'Profil de mines'!BB37,'Profil de mines'!BB55,'Profil de mines'!BB72) -> 0 | BD122: =CHOOSE($F$109,'Profil de mines'!BC20,'Profil de mines'!BC37,'Profil de mines'!BC55,'Profil de mines'!BC72) -> 0
C123: 0 | D123: Couts opérationnels - services domestiques | E123: $mm reel | G123: =CHOOSE($F$109,'Profil de mines'!F21,'Profil de mines'!F38,'Profil de mines'!F56,'Profil de mines'!F73) -> 0 | H123: =CHOOSE($F$109,'Profil de mines'!G21,'Profil de mines'!G38,'Profil de mines'!G56,'Profil de mines'!G73) -> 0 | I123: =CHOOSE($F$109,'Profil de mines'!H21,'Profil de mines'!H38,'Profil de mines'!H56,'Profil de mines'!H73) -> 0 | J123: =CHOOSE($F$109,'Profil de mines'!I21,'Profil de mines'!I38,'Profil de mines'!I56,'Profil de mines'!I73) -> 0 | K123: =CHOOSE($F$109,'Profil de mines'!J21,'Profil de mines'!J38,'Profil de mines'!J56,'Profil de mines'!J73) -> 0 | L123: =CHOOSE($F$109,'Profil de mines'!K21,'Profil de mines'!K38,'Profil de mines'!K56,'Profil de mines'!K73) -> 0 | M123: =CHOOSE($F$109,'Profil de mines'!L21,'Profil de mines'!L38,'Profil de mines'!L56,'Profil de mines'!L73) -> 0 | N123: =CHOOSE($F$109,'Profil de mines'!M21,'Profil de mines'!M38,'Profil de mines'!M56,'Profil de mines'!M73) -> 0 | O123: =CHOOSE($F$109,'Profil de mines'!N21,'Profil de mines'!N38,'Profil de mines'!N56,'Profil de mines'!N73) -> 0 | P123: =CHOOSE($F$109,'Profil de mines'!O21,'Profil de mines'!O38,'Profil de mines'!O56,'Profil de mines'!O73) -> 0 | Q123: =CHOOSE($F$109,'Profil de mines'!P21,'Profil de mines'!P38,'Profil de mines'!P56,'Profil de mines'!P73) -> 0 | R123: =CHOOSE($F$109,'Profil de mines'!Q21,'Profil de mines'!Q38,'Profil de mines'!Q56,'Profil de mines'!Q73) -> 0 | S123: =CHOOSE($F$109,'Profil de mines'!R21,'Profil de mines'!R38,'Profil de mines'!R56,'Profil de mines'!R73) -> 0 | T123: =CHOOSE($F$109,'Profil de mines'!S21,'Profil de mines'!S38,'Profil de mines'!S56,'Profil de mines'!S73) -> 0 | U123: =CHOOSE($F$109,'Profil de mines'!T21,'Profil de mines'!T38,'Profil de mines'!T56,'Profil de mines'!T73) -> 0 | V123: =CHOOSE($F$109,'Profil de mines'!U21,'Profil de mines'!U38,'Profil de mines'!U56,'Profil de mines'!U73) -> 0 | W123: =CHOOSE($F$109,'Profil de mines'!V21,'Profil de mines'!V38,'Profil de mines'!V56,'Profil de mines'!V73) -> 0 | X123: =CHOOSE($F$109,'Profil de mines'!W21,'Profil de mines'!W38,'Profil de mines'!W56,'Profil de mines'!W73) -> 0 | Y123: =CHOOSE($F$109,'Profil de mines'!X21,'Profil de mines'!X38,'Profil de mines'!X56,'Profil de mines'!X73) -> 0 | Z123: =CHOOSE($F$109,'Profil de mines'!Y21,'Profil de mines'!Y38,'Profil de mines'!Y56,'Profil de mines'!Y73) -> 0 | AA123: =CHOOSE($F$109,'Profil de mines'!Z21,'Profil de mines'!Z38,'Profil de mines'!Z56,'Profil de mines'!Z73) -> 0 | AB123: =CHOOSE($F$109,'Profil de mines'!AA21,'Profil de mines'!AA38,'Profil de mines'!AA56,'Profil de mines'!AA73) -> 0 | AC123: =CHOOSE($F$109,'Profil de mines'!AB21,'Profil de mines'!AB38,'Profil de mines'!AB56,'Profil de mines'!AB73) -> 0 | AD123: =CHOOSE($F$109,'Profil de mines'!AC21,'Profil de mines'!AC38,'Profil de mines'!AC56,'Profil de mines'!AC73) -> 0 | AE123: =CHOOSE($F$109,'Profil de mines'!AD21,'Profil de mines'!AD38,'Profil de mines'!AD56,'Profil de mines'!AD73) -> 0 | AF123: =CHOOSE($F$109,'Profil de mines'!AE21,'Profil de mines'!AE38,'Profil de mines'!AE56,'Profil de mines'!AE73) -> 0 | AG123: =CHOOSE($F$109,'Profil de mines'!AF21,'Profil de mines'!AF38,'Profil de mines'!AF56,'Profil de mines'!AF73) -> 0 | AH123: =CHOOSE($F$109,'Profil de mines'!AG21,'Profil de mines'!AG38,'Profil de mines'!AG56,'Profil de mines'!AG73) -> 0 | AI123: =CHOOSE($F$109,'Profil de mines'!AH21,'Profil de mines'!AH38,'Profil de mines'!AH56,'Profil de mines'!AH73) -> 0 | AJ123: =CHOOSE($F$109,'Profil de mines'!AI21,'Profil de mines'!AI38,'Profil de mines'!AI56,'Profil de mines'!AI73) -> 0 | AK123: =CHOOSE($F$109,'Profil de mines'!AJ21,'Profil de mines'!AJ38,'Profil de mines'!AJ56,'Profil de mines'!AJ73) -> 0 | AL123: =CHOOSE($F$109,'Profil de mines'!AK21,'Profil de mines'!AK38,'Profil de mines'!AK56,'Profil de mines'!AK73) -> 0 | AM123: =CHOOSE($F$109,'Profil de mines'!AL21,'Profil de mines'!AL38,'Profil de mines'!AL56,'Profil de mines'!AL73) -> 0 | AN123: =CHOOSE($F$109,'Profil de mines'!AM21,'Profil de mines'!AM38,'Profil de mines'!AM56,'Profil de mines'!AM73) -> 0 | AO123: =CHOOSE($F$109,'Profil de mines'!AN21,'Profil de mines'!AN38,'Profil de mines'!AN56,'Profil de mines'!AN73) -> 0 | AP123: =CHOOSE($F$109,'Profil de mines'!AO21,'Profil de mines'!AO38,'Profil de mines'!AO56,'Profil de mines'!AO73) -> 0 | AQ123: =CHOOSE($F$109,'Profil de mines'!AP21,'Profil de mines'!AP38,'Profil de mines'!AP56,'Profil de mines'!AP73) -> 0 | AR123: =CHOOSE($F$109,'Profil de mines'!AQ21,'Profil de mines'!AQ38,'Profil de mines'!AQ56,'Profil de mines'!AQ73) -> 0 | AS123: =CHOOSE($F$109,'Profil de mines'!AR21,'Profil de mines'!AR38,'Profil de mines'!AR56,'Profil de mines'!AR73) -> 0 | AT123: =CHOOSE($F$109,'Profil de mines'!AS21,'Profil de mines'!AS38,'Profil de mines'!AS56,'Profil de mines'!AS73) -> 0 | AU123: =CHOOSE($F$109,'Profil de mines'!AT21,'Profil de mines'!AT38,'Profil de mines'!AT56,'Profil de mines'!AT73) -> 0 | AV123: =CHOOSE($F$109,'Profil de mines'!AU21,'Profil de mines'!AU38,'Profil de mines'!AU56,'Profil de mines'!AU73) -> 0 | AW123: =CHOOSE($F$109,'Profil de mines'!AV21,'Profil de mines'!AV38,'Profil de mines'!AV56,'Profil de mines'!AV73) -> 0 | AX123: =CHOOSE($F$109,'Profil de mines'!AW21,'Profil de mines'!AW38,'Profil de mines'!AW56,'Profil de mines'!AW73) -> 0 | AY123: =CHOOSE($F$109,'Profil de mines'!AX21,'Profil de mines'!AX38,'Profil de mines'!AX56,'Profil de mines'!AX73) -> 0 | AZ123: =CHOOSE($F$109,'Profil de mines'!AY21,'Profil de mines'!AY38,'Profil de mines'!AY56,'Profil de mines'!AY73) -> 0 | BA123: =CHOOSE($F$109,'Profil de mines'!AZ21,'Profil de mines'!AZ38,'Profil de mines'!AZ56,'Profil de mines'!AZ73) -> 0 | BB123: =CHOOSE($F$109,'Profil de mines'!BA21,'Profil de mines'!BA38,'Profil de mines'!BA56,'Profil de mines'!BA73) -> 0 | BC123: =CHOOSE($F$109,'Profil de mines'!BB21,'Profil de mines'!BB38,'Profil de mines'!BB56,'Profil de mines'!BB73) -> 0 | BD123: =CHOOSE($F$109,'Profil de mines'!BC21,'Profil de mines'!BC38,'Profil de mines'!BC56,'Profil de mines'!BC73) -> 0
C124: 0 | D124: Parafiscalité | E124: $mm reel | G124: =CHOOSE($F$109,'Profil de mines'!F22,'Profil de mines'!F39,'Profil de mines'!F57,'Profil de mines'!F74) -> 0 | H124: =CHOOSE($F$109,'Profil de mines'!G22,'Profil de mines'!G39,'Profil de mines'!G57,'Profil de mines'!G74) -> 0 | I124: =CHOOSE($F$109,'Profil de mines'!H22,'Profil de mines'!H39,'Profil de mines'!H57,'Profil de mines'!H74) -> 0 | J124: =CHOOSE($F$109,'Profil de mines'!I22,'Profil de mines'!I39,'Profil de mines'!I57,'Profil de mines'!I74) -> 0 | K124: =CHOOSE($F$109,'Profil de mines'!J22,'Profil de mines'!J39,'Profil de mines'!J57,'Profil de mines'!J74) -> 0 | L124: =CHOOSE($F$109,'Profil de mines'!K22,'Profil de mines'!K39,'Profil de mines'!K57,'Profil de mines'!K74) -> 0 | M124: =CHOOSE($F$109,'Profil de mines'!L22,'Profil de mines'!L39,'Profil de mines'!L57,'Profil de mines'!L74) -> 0 | N124: =CHOOSE($F$109,'Profil de mines'!M22,'Profil de mines'!M39,'Profil de mines'!M57,'Profil de mines'!M74) -> 0 | O124: =CHOOSE($F$109,'Profil de mines'!N22,'Profil de mines'!N39,'Profil de mines'!N57,'Profil de mines'!N74) -> 0 | P124: =CHOOSE($F$109,'Profil de mines'!O22,'Profil de mines'!O39,'Profil de mines'!O57,'Profil de mines'!O74) -> 0 | Q124: =CHOOSE($F$109,'Profil de mines'!P22,'Profil de mines'!P39,'Profil de mines'!P57,'Profil de mines'!P74) -> 0 | R124: =CHOOSE($F$109,'Profil de mines'!Q22,'Profil de mines'!Q39,'Profil de mines'!Q57,'Profil de mines'!Q74) -> 0 | S124: =CHOOSE($F$109,'Profil de mines'!R22,'Profil de mines'!R39,'Profil de mines'!R57,'Profil de mines'!R74) -> 0 | T124: =CHOOSE($F$109,'Profil de mines'!S22,'Profil de mines'!S39,'Profil de mines'!S57,'Profil de mines'!S74) -> 0 | U124: =CHOOSE($F$109,'Profil de mines'!T22,'Profil de mines'!T39,'Profil de mines'!T57,'Profil de mines'!T74) -> 0 | V124: =CHOOSE($F$109,'Profil de mines'!U22,'Profil de mines'!U39,'Profil de mines'!U57,'Profil de mines'!U74) -> 0 | W124: =CHOOSE($F$109,'Profil de mines'!V22,'Profil de mines'!V39,'Profil de mines'!V57,'Profil de mines'!V74) -> 0 | X124: =CHOOSE($F$109,'Profil de mines'!W22,'Profil de mines'!W39,'Profil de mines'!W57,'Profil de mines'!W74) -> 0 | Y124: =CHOOSE($F$109,'Profil de mines'!X22,'Profil de mines'!X39,'Profil de mines'!X57,'Profil de mines'!X74) -> 0 | Z124: =CHOOSE($F$109,'Profil de mines'!Y22,'Profil de mines'!Y39,'Profil de mines'!Y57,'Profil de mines'!Y74) -> 0 | AA124: =CHOOSE($F$109,'Profil de mines'!Z22,'Profil de mines'!Z39,'Profil de mines'!Z57,'Profil de mines'!Z74) -> 0 | AB124: =CHOOSE($F$109,'Profil de mines'!AA22,'Profil de mines'!AA39,'Profil de mines'!AA57,'Profil de mines'!AA74) -> 0 | AC124: =CHOOSE($F$109,'Profil de mines'!AB22,'Profil de mines'!AB39,'Profil de mines'!AB57,'Profil de mines'!AB74) -> 0 | AD124: =CHOOSE($F$109,'Profil de mines'!AC22,'Profil de mines'!AC39,'Profil de mines'!AC57,'Profil de mines'!AC74) -> 0 | AE124: =CHOOSE($F$109,'Profil de mines'!AD22,'Profil de mines'!AD39,'Profil de mines'!AD57,'Profil de mines'!AD74) -> 0 | AF124: =CHOOSE($F$109,'Profil de mines'!AE22,'Profil de mines'!AE39,'Profil de mines'!AE57,'Profil de mines'!AE74) -> 0 | AG124: =CHOOSE($F$109,'Profil de mines'!AF22,'Profil de mines'!AF39,'Profil de mines'!AF57,'Profil de mines'!AF74) -> 0 | AH124: =CHOOSE($F$109,'Profil de mines'!AG22,'Profil de mines'!AG39,'Profil de mines'!AG57,'Profil de mines'!AG74) -> 0 | AI124: =CHOOSE($F$109,'Profil de mines'!AH22,'Profil de mines'!AH39,'Profil de mines'!AH57,'Profil de mines'!AH74) -> 0 | AJ124: =CHOOSE($F$109,'Profil de mines'!AI22,'Profil de mines'!AI39,'Profil de mines'!AI57,'Profil de mines'!AI74) -> 0 | AK124: =CHOOSE($F$109,'Profil de mines'!AJ22,'Profil de mines'!AJ39,'Profil de mines'!AJ57,'Profil de mines'!AJ74) -> 0 | AL124: =CHOOSE($F$109,'Profil de mines'!AK22,'Profil de mines'!AK39,'Profil de mines'!AK57,'Profil de mines'!AK74) -> 0 | AM124: =CHOOSE($F$109,'Profil de mines'!AL22,'Profil de mines'!AL39,'Profil de mines'!AL57,'Profil de mines'!AL74) -> 0 | AN124: =CHOOSE($F$109,'Profil de mines'!AM22,'Profil de mines'!AM39,'Profil de mines'!AM57,'Profil de mines'!AM74) -> 0 | AO124: =CHOOSE($F$109,'Profil de mines'!AN22,'Profil de mines'!AN39,'Profil de mines'!AN57,'Profil de mines'!AN74) -> 0 | AP124: =CHOOSE($F$109,'Profil de mines'!AO22,'Profil de mines'!AO39,'Profil de mines'!AO57,'Profil de mines'!AO74) -> 0 | AQ124: =CHOOSE($F$109,'Profil de mines'!AP22,'Profil de mines'!AP39,'Profil de mines'!AP57,'Profil de mines'!AP74) -> 0 | AR124: =CHOOSE($F$109,'Profil de mines'!AQ22,'Profil de mines'!AQ39,'Profil de mines'!AQ57,'Profil de mines'!AQ74) -> 0 | AS124: =CHOOSE($F$109,'Profil de mines'!AR22,'Profil de mines'!AR39,'Profil de mines'!AR57,'Profil de mines'!AR74) -> 0 | AT124: =CHOOSE($F$109,'Profil de mines'!AS22,'Profil de mines'!AS39,'Profil de mines'!AS57,'Profil de mines'!AS74) -> 0 | AU124: =CHOOSE($F$109,'Profil de mines'!AT22,'Profil de mines'!AT39,'Profil de mines'!AT57,'Profil de mines'!AT74) -> 0 | AV124: =CHOOSE($F$109,'Profil de mines'!AU22,'Profil de mines'!AU39,'Profil de mines'!AU57,'Profil de mines'!AU74) -> 0 | AW124: =CHOOSE($F$109,'Profil de mines'!AV22,'Profil de mines'!AV39,'Profil de mines'!AV57,'Profil de mines'!AV74) -> 0 | AX124: =CHOOSE($F$109,'Profil de mines'!AW22,'Profil de mines'!AW39,'Profil de mines'!AW57,'Profil de mines'!AW74) -> 0 | AY124: =CHOOSE($F$109,'Profil de mines'!AX22,'Profil de mines'!AX39,'Profil de mines'!AX57,'Profil de mines'!AX74) -> 0 | AZ124: =CHOOSE($F$109,'Profil de mines'!AY22,'Profil de mines'!AY39,'Profil de mines'!AY57,'Profil de mines'!AY74) -> 0 | BA124: =CHOOSE($F$109,'Profil de mines'!AZ22,'Profil de mines'!AZ39,'Profil de mines'!AZ57,'Profil de mines'!AZ74) -> 0 | BB124: =CHOOSE($F$109,'Profil de mines'!BA22,'Profil de mines'!BA39,'Profil de mines'!BA57,'Profil de mines'!BA74) -> 0 | BC124: =CHOOSE($F$109,'Profil de mines'!BB22,'Profil de mines'!BB39,'Profil de mines'!BB57,'Profil de mines'!BB74) -> 0 | BD124: =CHOOSE($F$109,'Profil de mines'!BC22,'Profil de mines'!BC39,'Profil de mines'!BC57,'Profil de mines'!BC74) -> 0
C125: 0 | D125: Couts de fermeture et de rehabilitation | E125: $mm reel | G125: =CHOOSE($F$109,'Profil de mines'!F23,'Profil de mines'!F40,'Profil de mines'!F58,'Profil de mines'!F75) -> 0 | H125: =CHOOSE($F$109,'Profil de mines'!G23,'Profil de mines'!G40,'Profil de mines'!G58,'Profil de mines'!G75) -> 0 | I125: =CHOOSE($F$109,'Profil de mines'!H23,'Profil de mines'!H40,'Profil de mines'!H58,'Profil de mines'!H75) -> 0 | J125: =CHOOSE($F$109,'Profil de mines'!I23,'Profil de mines'!I40,'Profil de mines'!I58,'Profil de mines'!I75) -> 0 | K125: =CHOOSE($F$109,'Profil de mines'!J23,'Profil de mines'!J40,'Profil de mines'!J58,'Profil de mines'!J75) -> 0 | L125: =CHOOSE($F$109,'Profil de mines'!K23,'Profil de mines'!K40,'Profil de mines'!K58,'Profil de mines'!K75) -> 0 | M125: =CHOOSE($F$109,'Profil de mines'!L23,'Profil de mines'!L40,'Profil de mines'!L58,'Profil de mines'!L75) -> 0 | N125: =CHOOSE($F$109,'Profil de mines'!M23,'Profil de mines'!M40,'Profil de mines'!M58,'Profil de mines'!M75) -> 0 | O125: =CHOOSE($F$109,'Profil de mines'!N23,'Profil de mines'!N40,'Profil de mines'!N58,'Profil de mines'!N75) -> 0 | P125: =CHOOSE($F$109,'Profil de mines'!O23,'Profil de mines'!O40,'Profil de mines'!O58,'Profil de mines'!O75) -> 0 | Q125: =CHOOSE($F$109,'Profil de mines'!P23,'Profil de mines'!P40,'Profil de mines'!P58,'Profil de mines'!P75) -> 0 | R125: =CHOOSE($F$109,'Profil de mines'!Q23,'Profil de mines'!Q40,'Profil de mines'!Q58,'Profil de mines'!Q75) -> 0 | S125: =CHOOSE($F$109,'Profil de mines'!R23,'Profil de mines'!R40,'Profil de mines'!R58,'Profil de mines'!R75) -> 0 | T125: =CHOOSE($F$109,'Profil de mines'!S23,'Profil de mines'!S40,'Profil de mines'!S58,'Profil de mines'!S75) -> 0 | U125: =CHOOSE($F$109,'Profil de mines'!T23,'Profil de mines'!T40,'Profil de mines'!T58,'Profil de mines'!T75) -> 0 | V125: =CHOOSE($F$109,'Profil de mines'!U23,'Profil de mines'!U40,'Profil de mines'!U58,'Profil de mines'!U75) -> 0 | W125: =CHOOSE($F$109,'Profil de mines'!V23,'Profil de mines'!V40,'Profil de mines'!V58,'Profil de mines'!V75) -> 0 | X125: =CHOOSE($F$109,'Profil de mines'!W23,'Profil de mines'!W40,'Profil de mines'!W58,'Profil de mines'!W75) -> 0 | Y125: =CHOOSE($F$109,'Profil de mines'!X23,'Profil de mines'!X40,'Profil de mines'!X58,'Profil de mines'!X75) -> 0 | Z125: =CHOOSE($F$109,'Profil de mines'!Y23,'Profil de mines'!Y40,'Profil de mines'!Y58,'Profil de mines'!Y75) -> 0 | AA125: =CHOOSE($F$109,'Profil de mines'!Z23,'Profil de mines'!Z40,'Profil de mines'!Z58,'Profil de mines'!Z75) -> 0 | AB125: =CHOOSE($F$109,'Profil de mines'!AA23,'Profil de mines'!AA40,'Profil de mines'!AA58,'Profil de mines'!AA75) -> 0 | AC125: =CHOOSE($F$109,'Profil de mines'!AB23,'Profil de mines'!AB40,'Profil de mines'!AB58,'Profil de mines'!AB75) -> 0 | AD125: =CHOOSE($F$109,'Profil de mines'!AC23,'Profil de mines'!AC40,'Profil de mines'!AC58,'Profil de mines'!AC75) -> 0 | AE125: =CHOOSE($F$109,'Profil de mines'!AD23,'Profil de mines'!AD40,'Profil de mines'!AD58,'Profil de mines'!AD75) -> 0 | AF125: =CHOOSE($F$109,'Profil de mines'!AE23,'Profil de mines'!AE40,'Profil de mines'!AE58,'Profil de mines'!AE75) -> 0 | AG125: =CHOOSE($F$109,'Profil de mines'!AF23,'Profil de mines'!AF40,'Profil de mines'!AF58,'Profil de mines'!AF75) -> 0 | AH125: =CHOOSE($F$109,'Profil de mines'!AG23,'Profil de mines'!AG40,'Profil de mines'!AG58,'Profil de mines'!AG75) -> 0 | AI125: =CHOOSE($F$109,'Profil de mines'!AH23,'Profil de mines'!AH40,'Profil de mines'!AH58,'Profil de mines'!AH75) -> 0 | AJ125: =CHOOSE($F$109,'Profil de mines'!AI23,'Profil de mines'!AI40,'Profil de mines'!AI58,'Profil de mines'!AI75) -> 0 | AK125: =CHOOSE($F$109,'Profil de mines'!AJ23,'Profil de mines'!AJ40,'Profil de mines'!AJ58,'Profil de mines'!AJ75) -> 0 | AL125: =CHOOSE($F$109,'Profil de mines'!AK23,'Profil de mines'!AK40,'Profil de mines'!AK58,'Profil de mines'!AK75) -> 0 | AM125: =CHOOSE($F$109,'Profil de mines'!AL23,'Profil de mines'!AL40,'Profil de mines'!AL58,'Profil de mines'!AL75) -> 0 | AN125: =CHOOSE($F$109,'Profil de mines'!AM23,'Profil de mines'!AM40,'Profil de mines'!AM58,'Profil de mines'!AM75) -> 0 | AO125: =CHOOSE($F$109,'Profil de mines'!AN23,'Profil de mines'!AN40,'Profil de mines'!AN58,'Profil de mines'!AN75) -> 0 | AP125: =CHOOSE($F$109,'Profil de mines'!AO23,'Profil de mines'!AO40,'Profil de mines'!AO58,'Profil de mines'!AO75) -> 0 | AQ125: =CHOOSE($F$109,'Profil de mines'!AP23,'Profil de mines'!AP40,'Profil de mines'!AP58,'Profil de mines'!AP75) -> 0 | AR125: =CHOOSE($F$109,'Profil de mines'!AQ23,'Profil de mines'!AQ40,'Profil de mines'!AQ58,'Profil de mines'!AQ75) -> 0 | AS125: =CHOOSE($F$109,'Profil de mines'!AR23,'Profil de mines'!AR40,'Profil de mines'!AR58,'Profil de mines'!AR75) -> 0 | AT125: =CHOOSE($F$109,'Profil de mines'!AS23,'Profil de mines'!AS40,'Profil de mines'!AS58,'Profil de mines'!AS75) -> 0 | AU125: =CHOOSE($F$109,'Profil de mines'!AT23,'Profil de mines'!AT40,'Profil de mines'!AT58,'Profil de mines'!AT75) -> 0 | AV125: =CHOOSE($F$109,'Profil de mines'!AU23,'Profil de mines'!AU40,'Profil de mines'!AU58,'Profil de mines'!AU75) -> 0 | AW125: =CHOOSE($F$109,'Profil de mines'!AV23,'Profil de mines'!AV40,'Profil de mines'!AV58,'Profil de mines'!AV75) -> 0 | AX125: =CHOOSE($F$109,'Profil de mines'!AW23,'Profil de mines'!AW40,'Profil de mines'!AW58,'Profil de mines'!AW75) -> 0 | AY125: =CHOOSE($F$109,'Profil de mines'!AX23,'Profil de mines'!AX40,'Profil de mines'!AX58,'Profil de mines'!AX75) -> 0 | AZ125: =CHOOSE($F$109,'Profil de mines'!AY23,'Profil de mines'!AY40,'Profil de mines'!AY58,'Profil de mines'!AY75) -> 0 | BA125: =CHOOSE($F$109,'Profil de mines'!AZ23,'Profil de mines'!AZ40,'Profil de mines'!AZ58,'Profil de mines'!AZ75) -> 0 | BB125: =CHOOSE($F$109,'Profil de mines'!BA23,'Profil de mines'!BA40,'Profil de mines'!BA58,'Profil de mines'!BA75) -> 0 | BC125: =CHOOSE($F$109,'Profil de mines'!BB23,'Profil de mines'!BB40,'Profil de mines'!BB58,'Profil de mines'!BB75) -> 0 | BD125: =CHOOSE($F$109,'Profil de mines'!BC23,'Profil de mines'!BC40,'Profil de mines'!BC58,'Profil de mines'!BC75) -> 0
D128: Conversion des unites
D130: livres en tonnes | E130: 2204.622622
D132: NE PAS SUPPRIMER - variables utilisees pour les calculs de sensibilite
D134: Prix | F134: =Modèle!E539 -> 1300
D135: Selection du regime fiscal | F135: =Modèle!F401 -> 1
D136: Cout d'operation | F136: =C119/C112*1000000 -> 650
D408: =Paramètres!L7 -> Proposition des miniers - Mai 2018

Sheet Modèle
A2: Verification: | C2: =AND(A:A) -> TRUE | E2: annee | G2: 1 | H2: =G2+1 -> 2 | I2: 3 | J2: 4 | K2: 5 | L2: 6 | M2: 7 | N2: 8 | O2: 9 | P2: 10 | Q2: 11 | R2: 12 | S2: 13 | T2: 14 | U2: 15 | V2: 16 | W2: 17 | X2: 18 | Y2: 19 | Z2: 20 | AA2: 21 | AB2: 22 | AC2: 23 | AD2: 24 | AE2: 25 | AF2: 26 | AG2: 27 | AH2: 28 | AI2: 29 | AJ2: 30 | AK2: 31 | AL2: 32 | AM2: 33 | AN2: =AM2+1 -> 34 | AO2: 35 | AP2: 36 | AQ2: 37 | AR2: 38 | AS2: 39 | AT2: 40 | AU2: 41 | AV2: 42 | AW2: 43 | AX2: 44 | AY2: 45 | AZ2: 46 | BA2: 47 | BB2: 48 | BC2: 49 | BD2: 50
A4: Flux de tresorerie du projet
D7: Flux de tresorerie du projet avant impots: reel | E7: annee | G7: =G$2 -> 1 | H7: 2 | I7: 3 | J7: 4 | K7: 5 | L7: 6 | M7: 7 | N7: 8 | O7: 9 | P7: 10 | Q7: 11 | R7: 12 | S7: 13 | T7: 14 | U7: 15 | V7: 16 | W7: 17 | X7: 18 | Y7: 19 | Z7: 20 | AA7: 21 | AB7: 22 | AC7: 23 | AD7: 24 | AE7: 25 | AF7: 26 | AG7: 27 | AH7: 28 | AI7: 29 | AJ7: 30 | AK7: 31 | AL7: 32 | AM7: =AM$2 -> 33 | AN7: 34 | AO7: 35 | AP7: 36 | AQ7: 37 | AR7: 38 | AS7: 39 | AT7: 40 | AU7: 41 | AV7: 42 | AW7: 43 | AX7: 44 | AY7: 45 | AZ7: 46 | BA7: 47 | BB7: 48 | BC7: 49 | BD7: 50
C8: =SUM(G8:BD8) -> 2970000 | D8: Production | E8: onces | G8: =Paramètres!G112 -> 0 | H8: =Paramètres!H112 -> 0 | I8: =Paramètres!I112 -> 270000 | J8: =Paramètres!J112 -> 270000 | K8: =Paramètres!K112 -> 270000 | L8: =Paramètres!L112 -> 270000 | M8: =Paramètres!M112 -> 270000 | N8: =Paramètres!N112 -> 270000 | O8: =Paramètres!O112 -> 270000 | P8: =Paramètres!P112 -> 270000 | Q8: =Paramètres!Q112 -> 270000 | R8: =Paramètres!R112 -> 270000 | S8: =Paramètres!S112 -> 270000 | T8: =Paramètres!T112 -> 0 | U8: =Paramètres!U112 -> 0 | V8: =Paramètres!V112 -> 0 | W8: =Paramètres!W112 -> 0 | X8: =Paramètres!X112 -> 0 | Y8: =Paramètres!Y112 -> 0 | Z8: =Paramètres!Z112 -> 0 | AA8: =Paramètres!AA112 -> 0 | AB8: =Paramètres!AB112 -> 0 | AC8: =Paramètres!AC112 -> 0 | AD8: =Paramètres!AD112 -> 0 | AE8: =Paramètres!AE112 -> 0 | AF8: =Paramètres!AF112 -> 0 | AG8: =Paramètres!AG112 -> 0 | AH8: =Paramètres!AH112 -> 0 | AI8: =Paramètres!AI112 -> 0 | AJ8: =Paramètres!AJ112 -> 0 | AK8: =Paramètres!AK112 -> 0 | AL8: =Paramètres!AL112 -> 0 | AM8: =Paramètres!AM112 -> 0 | AN8: =Paramètres!AN112 -> 0 | AO8: =Paramètres!AO112 -> 0 | AP8: =Paramètres!AP112 -> 0 | AQ8: =Paramètres!AQ112 -> 0 | AR8: =Paramètres!AR112 -> 0 | AS8: =Paramètres!AS112 -> 0 | AT8: =Paramètres!AT112 -> 0 | AU8: =Paramètres!AU112 -> 0 | AV8: =Paramètres!AV112 -> 0 | AW8: =Paramètres!AW112 -> 0 | AX8: =Paramètres!AX112 -> 0 | AY8: =Paramètres!AY112 -> 0 | AZ8: =Paramètres!AZ112 -> 0 | BA8: =Paramètres!BA112 -> 0 | BB8: =Paramètres!BB112 -> 0 | BC8: =Paramètres!BC112 -> 0 | BD8: =Paramètres!BD112 -> 0
C9: =SUM(G9:BD9) -> 3861 | D9: Chiffre d'affaires brut | E9: $mm reel | G9: =G8*Paramètres!G104/1000000 -> 0 | H9: =H8*Paramètres!H104/1000000 -> 0 | I9: =I8*Paramètres!I104/1000000 -> 351 | J9: =J8*Paramètres!J104/1000000 -> 351 | K9: =K8*Paramètres!K104/1000000 -> 351 | L9: =L8*Paramètres!L104/1000000 -> 351 | M9: =M8*Paramètres!M104/1000000 -> 351 | N9: =N8*Paramètres!N104/1000000 -> 351 | O9: =O8*Paramètres!O104/1000000 -> 351 | P9: =P8*Paramètres!P104/1000000 -> 351 | Q9: =Q8*Paramètres!Q104/1000000 -> 351 | R9: =R8*Paramètres!R104/1000000 -> 351 | S9: =S8*Paramètres!S104/1000000 -> 351 | T9: =T8*Paramètres!T104/1000000 -> 0 | U9: =U8*Paramètres!U104/1000000 -> 0 | V9: =V8*Paramètres!V104/1000000 -> 0 | W9: =W8*Paramètres!W104/1000000 -> 0 | X9: =X8*Paramètres!X104/1000000 -> 0 | Y9: =Y8*Paramètres!Y104/1000000 -> 0 | Z9: =Z8*Paramètres!Z104/1000000 -> 0 | AA9: =AA8*Paramètres!AA104/1000000 -> 0 | AB9: =AB8*Paramètres!AB104/1000000 -> 0 | AC9: =AC8*Paramètres!AC104/1000000 -> 0 | AD9: =AD8*Paramètres!AD104/1000000 -> 0 | AE9: =AE8*Paramètres!AE104/1000000 -> 0 | AF9: =AF8*Paramètres!AF104/1000000 -> 0 | AG9: =AG8*Paramètres!AG104/1000000 -> 0 | AH9: =AH8*Paramètres!AH104/1000000 -> 0 | AI9: =AI8*Paramètres!AI104/1000000 -> 0 | AJ9: =AJ8*Paramètres!AJ104/1000000 -> 0 | AK9: =AK8*Paramètres!AK104/1000000 -> 0 | AL9: =AL8*Paramètres!AL104/1000000 -> 0 | AM9: =AM8*Paramètres!AM104/1000000 -> 0 | AN9: =AN8*Paramètres!AN104/1000000 -> 0 | AO9: =AO8*Paramètres!AO104/1000000 -> 0 | AP9: =AP8*Paramètres!AP104/1000000 -> 0 | AQ9: =AQ8*Paramètres!AQ104/1000000 -> 0 | AR9: =AR8*Paramètres!AR104/1000000 -> 0 | AS9: =AS8*Paramètres!AS104/1000000 -> 0 | AT9: =AT8*Paramètres!AT104/1000000 -> 0 | AU9: =AU8*Paramètres!AU104/1000000 -> 0 | AV9: =AV8*Paramètres!AV104/1000000 -> 0 | AW9: =AW8*Paramètres!AW104/1000000 -> 0 | AX9: =AX8*Paramètres!AX104/1000000 -> 0 | AY9: =AY8*Paramètres!AY104/1000000 -> 0 | AZ9: =AZ8*Paramètres!AZ104/1000000 -> 0 | BA9: =BA8*Paramètres!BA104/1000000 -> 0 | BB9: =BB8*Paramètres!BB104/1000000 -> 0 | BC9: =BC8*Paramètres!BC104/1000000 -> 0 | BD9: =BD8*Paramètres!BD104/1000000 -> 0
C10: 0 | D10: Transport et traitement apres imposition | E10: $mm reel | G10: =Paramètres!G113+Paramètres!G114 -> 0 | H10: =Paramètres!H113+Paramètres!H114 -> 0 | I10: =Paramètres!I113+Paramètres!I114 -> 0 | J10: =Paramètres!J113+Paramètres!J114 -> 0 | K10: =Paramètres!K113+Paramètres!K114 -> 0 | L10: =Paramètres!L113+Paramètres!L114 -> 0 | M10: =Paramètres!M113+Paramètres!M114 -> 0 | N10: =Paramètres!N113+Paramètres!N114 -> 0 | O10: =Paramètres!O113+Paramètres!O114 -> 0 | P10: =Paramètres!P113+Paramètres!P114 -> 0 | Q10: =Paramètres!Q113+Paramètres!Q114 -> 0 | R10: =Paramètres!R113+Paramètres!R114 -> 0 | S10: =Paramètres!S113+Paramètres!S114 -> 0 | T10: =Paramètres!T113+Paramètres!T114 -> 0 | U10: =Paramètres!U113+Paramètres!U114 -> 0 | V10: =Paramètres!V113+Paramètres!V114 -> 0 | W10: =Paramètres!W113+Paramètres!W114 -> 0 | X10: =Paramètres!X113+Paramètres!X114 -> 0 | Y10: =Paramètres!Y113+Paramètres!Y114 -> 0 | Z10: =Paramètres!Z113+Paramètres!Z114 -> 0 | AA10: =Paramètres!AA113+Paramètres!AA114 -> 0 | AB10: =Paramètres!AB113+Paramètres!AB114 -> 0 | AC10: =Paramètres!AC113+Paramètres!AC114 -> 0 | AD10: =Paramètres!AD113+Paramètres!AD114 -> 0 | AE10: =Paramètres!AE113+Paramètres!AE114 -> 0 | AF10: =Paramètres!AF113+Paramètres!AF114 -> 0 | AG10: =Paramètres!AG113+Paramètres!AG114 -> 0 | AH10: =Paramètres!AH113+Paramètres!AH114 -> 0 | AI10: =Paramètres!AI113+Paramètres!AI114 -> 0 | AJ10: =Paramètres!AJ113+Paramètres!AJ114 -> 0 | AK10: =Paramètres!AK113+Paramètres!AK114 -> 0 | AL10: =Paramètres!AL113+Paramètres!AL114 -> 0 | AM10: =Paramètres!AM113+Paramètres!AM114 -> 0 | AN10: =Paramètres!AN113+Paramètres!AN114 -> 0 | AO10: =Paramètres!AO113+Paramètres!AO114 -> 0 | AP10: =Paramètres!AP113+Paramètres!AP114 -> 0 | AQ10: =Paramètres!AQ113+Paramètres!AQ114 -> 0 | AR10: =Paramètres!AR113+Paramètres!AR114 -> 0 | AS10: =Paramètres!AS113+Paramètres!AS114 -> 0 | AT10: =Paramètres!AT113+Paramètres!AT114 -> 0 | AU10: =Paramètres!AU113+Paramètres!AU114 -> 0 | AV10: =Paramètres!AV113+Paramètres!AV114 -> 0 | AW10: =Paramètres!AW113+Paramètres!AW114 -> 0 | AX10: =Paramètres!AX113+Paramètres!AX114 -> 0 | AY10: =Paramètres!AY113+Paramètres!AY114 -> 0 | AZ10: =Paramètres!AZ113+Paramètres!AZ114 -> 0 | BA10: =Paramètres!BA113+Paramètres!BA114 -> 0 | BB10: =Paramètres!BB113+Paramètres!BB114 -> 0 | BC10: =Paramètres!BC113+Paramètres!BC114 -> 0 | BD10: =Paramètres!BD113+Paramètres!BD114 -> 0
A11: =ROUND(C11-(C9-C10),5)=0 -> TRUE | C11: =SUM(G11:BD11) -> 3861 | D11: Chiffre d'affaires net | E11: $mm reel | G11: =G9-G10 -> 0 | H11: =H9-H10 -> 0 | I11: 351 | J11: 351 | K11: 351 | L11: 351 | M11: 351 | N11: 351 | O11: 351 | P11: 351 | Q11: 351 | R11: 351 | S11: 351 | T11: =T9-T10 -> 0 | U11: 0 | V11: 0 | W11: 0 | X11: 0 | Y11: 0 | Z11: 0 | AA11: 0 | AB11: 0 | AC11: 0 | AD11: 0 | AE11: 0 | AF11: 0 | AG11: 0 | AH11: 0 | AI11: 0 | AJ11: 0 | AK11: 0 | AL11: 0 | AM11: 0 | AN11: 0 | AO11: 0 | AP11: 0 | AQ11: 0 | AR11: 0 | AS11: 0 | AT11: 0 | AU11: 0 | AV11: 0 | AW11: 0 | AX11: 0 | AY11: 0 | AZ11: 0 | BA11: 0 | BB11: 0 | BC11: 0 | BD11: 0
C12: 0 | D12: Couts d’exploration | E12: $mm reel | G12: =Paramètres!G115 -> 0 | H12: =Paramètres!H115 -> 0 | I12: =Paramètres!I115 -> 0 | J12: =Paramètres!J115 -> 0 | K12: =Paramètres!K115 -> 0 | L12: =Paramètres!L115 -> 0 | M12: =Paramètres!M115 -> 0 | N12: =Paramètres!N115 -> 0 | O12: =Paramètres!O115 -> 0 | P12: =Paramètres!P115 -> 0 | Q12: =Paramètres!Q115 -> 0 | R12: =Paramètres!R115 -> 0 | S12: =Paramètres!S115 -> 0 | T12: =Paramètres!T115 -> 0 | U12: =Paramètres!U115 -> 0 | V12: =Paramètres!V115 -> 0 | W12: =Paramètres!W115 -> 0 | X12: =Paramètres!X115 -> 0 | Y12: =Paramètres!Y115 -> 0 | Z12: =Paramètres!Z115 -> 0 | AA12: =Paramètres!AA115 -> 0 | AB12: =Paramètres!AB115 -> 0 | AC12: =Paramètres!AC115 -> 0 | AD12: =Paramètres!AD115 -> 0 | AE12: =Paramètres!AE115 -> 0 | AF12: =Paramètres!AF115 -> 0 | AG12: =Paramètres!AG115 -> 0 | AH12: =Paramètres!AH115 -> 0 | AI12: =Paramètres!AI115 -> 0 | AJ12: =Paramètres!AJ115 -> 0 | AK12: =Paramètres!AK115 -> 0 | AL12: =Paramètres!AL115 -> 0 | AM12: =Paramètres!AM115 -> 0 | AN12: =Paramètres!AN115 -> 0 | AO12: =Paramètres!AO115 -> 0 | AP12: =Paramètres!AP115 -> 0 | AQ12: =Paramètres!AQ115 -> 0 | AR12: =Paramètres!AR115 -> 0 | AS12: =Paramètres!AS115 -> 0 | AT12: =Paramètres!AT115 -> 0 | AU12: =Paramètres!AU115 -> 0 | AV12: =Paramètres!AV115 -> 0 | AW12: =Paramètres!AW115 -> 0 | AX12: =Paramètres!AX115 -> 0 | AY12: =Paramètres!AY115 -> 0 | AZ12: =Paramètres!AZ115 -> 0 | BA12: =Paramètres!BA115 -> 0 | BB12: =Paramètres!BB115 -> 0 | BC12: =Paramètres!BC115 -> 0 | BD12: =Paramètres!BD115 -> 0
C13: 0 | D13: Couts d’investissement en capital - incorporel | E13: $mm reel | G13: =Paramètres!G116 -> 0 | H13: =Paramètres!H116 -> 0 | I13: =Paramètres!I116 -> 0 | J13: =Paramètres!J116 -> 0 | K13: =Paramètres!K116 -> 0 | L13: =Paramètres!L116 -> 0 | M13: =Paramètres!M116 -> 0 | N13: =Paramètres!N116 -> 0 | O13: =Paramètres!O116 -> 0 | P13: =Paramètres!P116 -> 0 | Q13: =Paramètres!Q116 -> 0 | R13: =Paramètres!R116 -> 0 | S13: =Paramètres!S116 -> 0 | T13: =Paramètres!T116 -> 0 | U13: =Paramètres!U116 -> 0 | V13: =Paramètres!V116 -> 0 | W13: =Paramètres!W116 -> 0 | X13: =Paramètres!X116 -> 0 | Y13: =Paramètres!Y116 -> 0 | Z13: =Paramètres!Z116 -> 0 | AA13: =Paramètres!AA116 -> 0 | AB13: =Paramètres!AB116 -> 0 | AC13: =Paramètres!AC116 -> 0 | AD13: =Paramètres!AD116 -> 0 | AE13: =Paramètres!AE116 -> 0 | AF13: =Paramètres!AF116 -> 0 | AG13: =Paramètres!AG116 -> 0 | AH13: =Paramètres!AH116 -> 0 | AI13: =Paramètres!AI116 -> 0 | AJ13: =Paramètres!AJ116 -> 0 | AK13: =Paramètres!AK116 -> 0 | AL13: =Paramètres!AL116 -> 0 | AM13: =Paramètres!AM116 -> 0 | AN13: =Paramètres!AN116 -> 0 | AO13: =Paramètres!AO116 -> 0 | AP13: =Paramètres!AP116 -> 0 | AQ13: =Paramètres!AQ116 -> 0 | AR13: =Paramètres!AR116 -> 0 | AS13: =Paramètres!AS116 -> 0 | AT13: =Paramètres!AT116 -> 0 | AU13: =Paramètres!AU116 -> 0 | AV13: =Paramètres!AV116 -> 0 | AW13: =Paramètres!AW116 -> 0 | AX13: =Paramètres!AX116 -> 0 | AY13: =Paramètres!AY116 -> 0 | AZ13: =Paramètres!AZ116 -> 0 | BA13: =Paramètres!BA116 -> 0 | BB13: =Paramètres!BB116 -> 0 | BC13: =Paramètres!BC116 -> 0 | BD13: =Paramètres!BD116 -> 0
C14: 500 | D14: Couts d’investissement en capital - corporel | E14: $mm reel | G14: =Paramètres!G117 -> 250 | H14: =Paramètres!H117 -> 250 | I14: =Paramètres!I117 -> 0 | J14: =Paramètres!J117 -> 0 | K14: =Paramètres!K117 -> 0 | L14: =Paramètres!L117 -> 0 | M14: =Paramètres!M117 -> 0 | N14: =Paramètres!N117 -> 0 | O14: =Paramètres!O117 -> 0 | P14: =Paramètres!P117 -> 0 | Q14: =Paramètres!Q117 -> 0 | R14: =Paramètres!R117 -> 0 | S14: =Paramètres!S117 -> 0 | T14: =Paramètres!T117 -> 0 | U14: =Paramètres!U117 -> 0 | V14: =Paramètres!V117 -> 0 | W14: =Paramètres!W117 -> 0 | X14: =Paramètres!X117 -> 0 | Y14: =Paramètres!Y117 -> 0 | Z14: =Paramètres!Z117 -> 0 | AA14: =Paramètres!AA117 -> 0 | AB14: =Paramètres!AB117 -> 0 | AC14: =Paramètres!AC117 -> 0 | AD14: =Paramètres!AD117 -> 0 | AE14: =Paramètres!AE117 -> 0 | AF14: =Paramètres!AF117 -> 0 | AG14: =Paramètres!AG117 -> 0 | AH14: =Paramètres!AH117 -> 0 | AI14: =Paramètres!AI117 -> 0 | AJ14: =Paramètres!AJ117 -> 0 | AK14: =Paramètres!AK117 -> 0 | AL14: =Paramètres!AL117 -> 0 | AM14: =Paramètres!AM117 -> 0 | AN14: =Paramètres!AN117 -> 0 | AO14: =Paramètres!AO117 -> 0 | AP14: =Paramètres!AP117 -> 0 | AQ14: =Paramètres!AQ117 -> 0 | AR14: =Paramètres!AR117 -> 0 | AS14: =Paramètres!AS117 -> 0 | AT14: =Paramètres!AT117 -> 0 | AU14: =Paramètres!AU117 -> 0 | AV14: =Paramètres!AV117 -> 0 | AW14: =Paramètres!AW117 -> 0 | AX14: =Paramètres!AX117 -> 0 | AY14: =Paramètres!AY117 -> 0 | AZ14: =Paramètres!AZ117 -> 0 | BA14: =Paramètres!BA117 -> 0 | BB14: =Paramètres!BB117 -> 0 | BC14: =Paramètres!BC117 -> 0 | BD14: =Paramètres!BD117 -> 0
C15: 57.915 | D15: Capital de réinvestissement | E15: $mm reel | G15: =Paramètres!G118 -> 0 | H15: =Paramètres!H118 -> 0 | I15: =Paramètres!I118 -> 5.265 | J15: =Paramètres!J118 -> 5.265 | K15: =Paramètres!K118 -> 5.265 | L15: =Paramètres!L118 -> 5.265 | M15: =Paramètres!M118 -> 5.265 | N15: =Paramètres!N118 -> 5.265 | O15: =Paramètres!O118 -> 5.265 | P15: =Paramètres!P118 -> 5.265 | Q15: =Paramètres!Q118 -> 5.265 | R15: =Paramètres!R118 -> 5.265 | S15: =Paramètres!S118 -> 5.265 | T15: =Paramètres!T118 -> 0 | U15: =Paramètres!U118 -> 0 | V15: =Paramètres!V118 -> 0 | W15: =Paramètres!W118 -> 0 | X15: =Paramètres!X118 -> 0 | Y15: =Paramètres!Y118 -> 0 | Z15: =Paramètres!Z118 -> 0 | AA15: =Paramètres!AA118 -> 0 | AB15: =Paramètres!AB118 -> 0 | AC15: =Paramètres!AC118 -> 0 | AD15: =Paramètres!AD118 -> 0 | AE15: =Paramètres!AE118 -> 0 | AF15: =Paramètres!AF118 -> 0 | AG15: =Paramètres!AG118 -> 0 | AH15: =Paramètres!AH118 -> 0 | AI15: =Paramètres!AI118 -> 0 | AJ15: =Paramètres!AJ118 -> 0 | AK15: =Paramètres!AK118 -> 0 | AL15: =Paramètres!AL118 -> 0 | AM15: =Paramètres!AM118 -> 0 | AN15: =Paramètres!AN118 -> 0 | AO15: =Paramètres!AO118 -> 0 | AP15: =Paramètres!AP118 -> 0 | AQ15: =Paramètres!AQ118 -> 0 | AR15: =Paramètres!AR118 -> 0 | AS15: =Paramètres!AS118 -> 0 | AT15: =Paramètres!AT118 -> 0 | AU15: =Paramètres!AU118 -> 0 | AV15: =Paramètres!AV118 -> 0 | AW15: =Paramètres!AW118 -> 0 | AX15: =Paramètres!AX118 -> 0 | AY15: =Paramètres!AY118 -> 0 | AZ15: =Paramètres!AZ118 -> 0 | BA15: =Paramètres!BA118 -> 0 | BB15: =Paramètres!BB118 -> 0 | BC15: =Paramètres!BC118 -> 0 | BD15: =Paramètres!BD118 -> 0
D16: Couts opérationnels - extraction | E16: $mm reel | G16: =Paramètres!G119 -> 0 | H16: =Paramètres!H119 -> 0 | I16: =Paramètres!I119 -> 175.5 | J16: =Paramètres!J119 -> 175.5 | K16: =Paramètres!K119 -> 175.5 | L16: =Paramètres!L119 -> 175.5 | M16: =Paramètres!M119 -> 175.5 | N16: =Paramètres!N119 -> 175.5 | O16: =Paramètres!O119 -> 175.5 | P16: =Paramètres!P119 -> 175.5 | Q16: =Paramètres!Q119 -> 175.5 | R16: =Paramètres!R119 -> 175.5 | S16: =Paramètres!S119 -> 175.5 | T16: =Paramètres!T119 -> 0 | U16: =Paramètres!U119 -> 0 | V16: =Paramètres!V119 -> 0 | W16: =Paramètres!W119 -> 0 | X16: =Paramètres!X119 -> 0 | Y16: =Paramètres!Y119 -> 0 | Z16: =Paramètres!Z119 -> 0 | AA16: =Paramètres!AA119 -> 0 | AB16: =Paramètres!AB119 -> 0 | AC16: =Paramètres!AC119 -> 0 | AD16: =Paramètres!AD119 -> 0 | AE16: =Paramètres!AE119 -> 0 | AF16: =Paramètres!AF119 -> 0 | AG16: =Paramètres!AG119 -> 0 | AH16: =Paramètres!AH119 -> 0 | AI16: =Paramètres!AI119 -> 0 | AJ16: =Paramètres!AJ119 -> 0 | AK16: =Paramètres!AK119 -> 0 | AL16: =Paramètres!AL119 -> 0 | AM16: =Paramètres!AM119 -> 0 | AN16: =Paramètres!AN119 -> 0 | AO16: =Paramètres!AO119 -> 0 | AP16: =Paramètres!AP119 -> 0 | AQ16: =Paramètres!AQ119 -> 0 | AR16: =Paramètres!AR119 -> 0 | AS16: =Paramètres!AS119 -> 0 | AT16: =Paramètres!AT119 -> 0 | AU16: =Paramètres!AU119 -> 0 | AV16: =Paramètres!AV119 -> 0 | AW16: =Paramètres!AW119 -> 0 | AX16: =Paramètres!AX119 -> 0 | AY16: =Paramètres!AY119 -> 0 | AZ16: =Paramètres!AZ119 -> 0 | BA16: =Paramètres!BA119 -> 0 | BB16: =Paramètres!BB119 -> 0 | BC16: =Paramètres!BC119 -> 0 | BD16: =Paramètres!BD119 -> 0
C17: =SUM(G17:BD17) -> 1930.5 | D17: Couts opérationnels - total | E17: $mm reel | G17: =SUM(G16:G16) -> 0 | H17: 0 | I17: 175.5 | J17: 175.5 | K17: 175.5 | L17: 175.5 | M17: 175.5 | N17: 175.5 | O17: 175.5 | P17: 175.5 | Q17: 175.5 | R17: 175.5 | S17: 175.5 | T17: 0 | U17: 0 | V17: 0 | W17: 0 | X17: 0 | Y17: 0 | Z17: 0 | AA17: 0 | AB17: 0 | AC17: 0 | AD17: 0 | AE17: 0 | AF17: 0 | AG17: 0 | AH17: 0 | AI17: 0 | AJ17: 0 | AK17: 0 | AL17: 0 | AM17: =SUM(AM16:AM16) -> 0 | AN17: 0 | AO17: 0 | AP17: 0 | AQ17: 0 | AR17: 0 | AS17: 0 | AT17: 0 | AU17: 0 | AV17: 0 | AW17: 0 | AX17: 0 | AY17: 0 | AZ17: 0 | BA17: 0 | BB17: 0 | BC17: 0 | BD17: 0
C18: 0 | D18: Parafiscalité | E18: $mm reel | G18: =Paramètres!G124 -> 0 | H18: =Paramètres!H124 -> 0 | I18: =Paramètres!I124 -> 0 | J18: =Paramètres!J124 -> 0 | K18: =Paramètres!K124 -> 0 | L18: =Paramètres!L124 -> 0 | M18: =Paramètres!M124 -> 0 | N18: =Paramètres!N124 -> 0 | O18: =Paramètres!O124 -> 0 | P18: =Paramètres!P124 -> 0 | Q18: =Paramètres!Q124 -> 0 | R18: =Paramètres!R124 -> 0 | S18: =Paramètres!S124 -> 0 | T18: =Paramètres!T124 -> 0 | U18: =Paramètres!U124 -> 0 | V18: =Paramètres!V124 -> 0 | W18: =Paramètres!W124 -> 0 | X18: =Paramètres!X124 -> 0 | Y18: =Paramètres!Y124 -> 0 | Z18: =Paramètres!Z124 -> 0 | AA18: =Paramètres!AA124 -> 0 | AB18: =Paramètres!AB124 -> 0 | AC18: =Paramètres!AC124 -> 0 | AD18: =Paramètres!AD124 -> 0 | AE18: =Paramètres!AE124 -> 0 | AF18: =Paramètres!AF124 -> 0 | AG18: =Paramètres!AG124 -> 0 | AH18: =Paramètres!AH124 -> 0 | AI18: =Paramètres!AI124 -> 0 | AJ18: =Paramètres!AJ124 -> 0 | AK18: =Paramètres!AK124 -> 0 | AL18: =Paramètres!AL124 -> 0 | AM18: =Paramètres!AM124 -> 0 | AN18: =Paramètres!AN124 -> 0 | AO18: =Paramètres!AO124 -> 0 | AP18: =Paramètres!AP124 -> 0 | AQ18: =Paramètres!AQ124 -> 0 | AR18: =Paramètres!AR124 -> 0 | AS18: =Paramètres!AS124 -> 0 | AT18: =Paramètres!AT124 -> 0 | AU18: =Paramètres!AU124 -> 0 | AV18: =Paramètres!AV124 -> 0 | AW18: =Paramètres!AW124 -> 0 | AX18: =Paramètres!AX124 -> 0 | AY18: =Paramètres!AY124 -> 0 | AZ18: =Paramètres!AZ124 -> 0 | BA18: =Paramètres!BA124 -> 0 | BB18: =Paramètres!BB124 -> 0 | BC18: =Paramètres!BC124 -> 0 | BD18: =Paramètres!BD124 -> 0
C19: 0 | D19: Couts de fermeture et de rehabilitation | E19: $mm reel | G19: =Paramètres!G125 -> 0 | H19: =Paramètres!H125 -> 0 | I19: =Paramètres!I125 -> 0 | J19: =Paramètres!J125 -> 0 | K19: =Paramètres!K125 -> 0 | L19: =Paramètres!L125 -> 0 | M19: =Paramètres!M125 -> 0 | N19: =Paramètres!N125 -> 0 | O19: =Paramètres!O125 -> 0 | P19: =Paramètres!P125 -> 0 | Q19: =Paramètres!Q125 -> 0 | R19: =Paramètres!R125 -> 0 | S19: =Paramètres!S125 -> 0 | T19: =Paramètres!T125 -> 0 | U19: =Paramètres!U125 -> 0 | V19: =Paramètres!V125 -> 0 | W19: =Paramètres!W125 -> 0 | X19: =Paramètres!X125 -> 0 | Y19: =Paramètres!Y125 -> 0 | Z19: =Paramètres!Z125 -> 0 | AA19: =Paramètres!AA125 -> 0 | AB19: =Paramètres!AB125 -> 0 | AC19: =Paramètres!AC125 -> 0 | AD19: =Paramètres!AD125 -> 0 | AE19: =Paramètres!AE125 -> 0 | AF19: =Paramètres!AF125 -> 0 | AG19: =Paramètres!AG125 -> 0 | AH19: =Paramètres!AH125 -> 0 | AI19: =Paramètres!AI125 -> 0 | AJ19: =Paramètres!AJ125 -> 0 | AK19: =Paramètres!AK125 -> 0 | AL19: =Paramètres!AL125 -> 0 | AM19: =Paramètres!AM125 -> 0 | AN19: =Paramètres!AN125 -> 0 | AO19: =Paramètres!AO125 -> 0 | AP19: =Paramètres!AP125 -> 0 | AQ19: =Paramètres!AQ125 -> 0 | AR19: =Paramètres!AR125 -> 0 | AS19: =Paramètres!AS125 -> 0 | AT19: =Paramètres!AT125 -> 0 | AU19: =Paramètres!AU125 -> 0 | AV19: =Paramètres!AV125 -> 0 | AW19: =Paramètres!AW125 -> 0 | AX19: =Paramètres!AX125 -> 0 | AY19: =Paramètres!AY125 -> 0 | AZ19: =Paramètres!AZ125 -> 0 | BA19: =Paramètres!BA125 -> 0 | BB19: =Paramètres!BB125 -> 0 | BC19: =Paramètres!BC125 -> 0 | BD19: =Paramètres!BD125 -> 0
C20: =SUM(G20:BD20) -> 2488.415 | D20: Couts totaux | E20: $mm reel | G20: =SUM(G12:G15)+G17+G18+G19 -> 250 | H20: 250 | I20: 180.765 | J20: 180.765 | K20: 180.765 | L20: 180.765 | M20: 180.765 | N20: 180.765 | O20: 180.765 | P20: 180.765 | Q20: 180.765 | R20: 180.765 | S20: 180.765 | T20: 0 | U20: 0 | V20: 0 | W20: 0 | X20: 0 | Y20: 0 | Z20: 0 | AA20: 0 | AB20: 0 | AC20: 0 | AD20: 0 | AE20: 0 | AF20: 0 | AG20: 0 | AH20: 0 | AI20: 0 | AJ20: 0 | AK20: 0 | AL20: 0 | AM20: =SUM(AM12:AM15)+AM17+AM18+AM19 -> 0 | AN20: 0 | AO20: 0 | AP20: 0 | AQ20: 0 | AR20: 0 | AS20: 0 | AT20: 0 | AU20: 0 | AV20: 0 | AW20: 0 | AX20: 0 | AY20: 0 | AZ20: 0 | BA20: 0 | BB20: 0 | BC20: 0 | BD20: 0
A21: =ROUND(C21-(C11-SUM(C12:C19)),5)=0 -> TRUE | C21: =SUM(G21:BD21) -> 1372.585 | D21: Flux de tresorerie du projet avant redevances, droits de douanes et impots | E21: $mm reel | G21: =G11-G20 -> -250 | H21: -250 | I21: 170.235 | J21: 170.235 | K21: 170.235 | L21: 170.235 | M21: 170.235 | N21: 170.235 | O21: 170.235 | P21: 170.235 | Q21: 170.235 | R21: 170.235 | S21: 170.235 | T21: 0 | U21: 0 | V21: 0 | W21: 0 | X21: 0 | Y21: 0 | Z21: 0 | AA21: 0 | AB21: 0 | AC21: 0 | AD21: 0 | AE21: 0 | AF21: 0 | AG21: 0 | AH21: 0 | AI21: 0 | AJ21: 0 | AK21: 0 | AL21: 0 | AM21: =AM11-AM20 -> 0 | AN21: 0 | AO21: 0 | AP21: 0 | AQ21: 0 | AR21: 0 | AS21: 0 | AT21: 0 | AU21: 0 | AV21: 0 | AW21: 0 | AX21: 0 | AY21: 0 | AZ21: 0 | BA21: 0 | BB21: 0 | BC21: 0 | BD21: 0
C23: =AVERAGE(G23:BD23) -> 0.485 | D23: Marge operationnelle | E23: % | G23: =IFERROR(G21/G11,"") ->  | I23: 0.485 | J23: 0.485 | K23: 0.485 | L23: 0.485 | M23: 0.485 | N23: 0.485 | O23: 0.485 | P23: 0.485 | Q23: 0.485 | R23: 0.485 | S23: 0.485 | AM23: =IFERROR(AM21/AM11,"") -> 
C24: =IFERROR(IRR($G21:BD21),0) -> 0.2788380486 | D24: Taux de rendement interne (reel) | E24: % | G24: =IFERROR(IRR($G21:G21),"--") -> -- | H24: =IFERROR(IRR($G21:H21),"--") -> -- | I24: =IFERROR(IRR($G21:I21),"--") -> -0.5351476797 | J24: =IFERROR(IRR($G21:J21),"--") -> -0.174809113 | K24: =IFERROR(IRR($G21:K21),"--") -> 0.008515655854 | L24: =IFERROR(IRR($G21:L21),"--") -> 0.1104683929 | M24: =IFERROR(IRR($G21:M21),"--") -> 0.1714285397 | N24: =IFERROR(IRR($G21:N21),"--") -> 0.2099043937 | O24: =IFERROR(IRR($G21:O21),"--") -> 0.2352005616 | P24: =IFERROR(IRR($G21:P21),"--") -> 0.2523614617 | Q24: =IFERROR(IRR($G21:Q21),"--") -> 0.2642921781 | R24: =IFERROR(IRR($G21:R21),"--") -> 0.2727492957 | S24: =IFERROR(IRR($G21:S21),"--") -> 0.2788380486 | T24: =IFERROR(IRR($G21:T21),"--") -> 0.2788380486 | U24: =IFERROR(IRR($G21:U21),"--") -> 0.2788380486 | V24: =IFERROR(IRR($G21:V21),"--") -> 0.2788380486 | W24: =IFERROR(IRR($G21:W21),"--") -> 0.2788380486 | X24: =IFERROR(IRR($G21:X21),"--") -> 0.2788380486 | Y24: =IFERROR(IRR($G21:Y21),"--") -> 0.2788380486 | Z24: =IFERROR(IRR($G21:Z21),"--") -> 0.2788380486 | AA24: =IFERROR(IRR($G21:AA21),"--") -> 0.2788380486 | AB24: =IFERROR(IRR($G21:AB21),"--") -> 0.2788380486 | AC24: =IFERROR(IRR($G21:AC21),"--") -> 0.2788380486 | AD24: =IFERROR(IRR($G21:AD21),"--") -> 0.2788380486 | AE24: =IFERROR(IRR($G21:AE21),"--") -> 0.2788380486 | AF24: =IFERROR(IRR($G21:AF21),"--") -> 0.2788380486 | AG24: =IFERROR(IRR($G21:AG21),"--") -> 0.2788380486 | AH24: =IFERROR(IRR($G21:AH21),"--") -> 0.2788380486 | AI24: =IFERROR(IRR($G21:AI21),"--") -> 0.2788380486 | AJ24: =IFERROR(IRR($G21:AJ21),"--") -> 0.2788380486 | AK24: =IFERROR(IRR($G21:AK21),"--") -> 0.2788380486 | AL24: =IFERROR(IRR($G21:AL21),"--") -> 0.2788380486 | AM24: =IFERROR(IRR($G21:AM21),"--") -> 0.2788380486 | AN24: =IFERROR(IRR($G21:AN21),"--") -> 0.2788380486 | AO24: =IFERROR(IRR($G21:AO21),"--") -> 0.2788380486 | AP24: =IFERROR(IRR($G21:AP21),"--") -> 0.2788380486 | AQ24: =IFERROR(IRR($G21:AQ21),"--") -> 0.2788380486 | AR24: =IFERROR(IRR($G21:AR21),"--") -> 0.2788380486 | AS24: =IFERROR(IRR($G21:AS21),"--") -> 0.2788380486 | AT24: =IFERROR(IRR($G21:AT21),"--") -> 0.2788380486 | AU24: =IFERROR(IRR($G21:AU21),"--") -> 0.2788380486 | AV24: =IFERROR(IRR($G21:AV21),"--") -> 0.2788380486 | AW24: =IFERROR(IRR($G21:AW21),"--") -> 0.2788380486 | AX24: =IFERROR(IRR($G21:AX21),"--") -> 0.2788380486 | AY24: =IFERROR(IRR($G21:AY21),"--") -> 0.2788380486 | AZ24: =IFERROR(IRR($G21:AZ21),"--") -> 0.2788380486 | BA24: =IFERROR(IRR($G21:BA21),"--") -> 0.2788380486 | BB24: =IFERROR(IRR($G21:BB21),"--") -> 0.2788380486 | BC24: =IFERROR(IRR($G21:BC21),"--") -> 0.2788380486 | BD24: =IFERROR(IRR($G21:BD21),"--") -> 0.2788380486
C25: =NPV(Paramètres!$F$93,$H$21:$BD$21)+$G$21 -> 527.8970093 | D25: Flux de tresorerie du projet avant impots, VAN10 | E25: $mm reel
D27: Reperes
C28: =MAX(G28:BD28) -> 50 | D28: Annees du projet | E28: annee | G28: =(SUM($G$8:G20)>0)*1+F28 -> 1 | H28: =(SUM($G$8:H20)>0)*1+G28 -> 2 | I28: =(SUM($G$8:I20)>0)*1+H28 -> 3 | J28: =(SUM($G$8:J20)>0)*1+I28 -> 4 | K28: =(SUM($G$8:K20)>0)*1+J28 -> 5 | L28: =(SUM($G$8:L20)>0)*1+K28 -> 6 | M28: =(SUM($G$8:M20)>0)*1+L28 -> 7 | N28: =(SUM($G$8:N20)>0)*1+M28 -> 8 | O28: =(SUM($G$8:O20)>0)*1+N28 -> 9 | P28: =(SUM($G$8:P20)>0)*1+O28 -> 10 | Q28: =(SUM($G$8:Q20)>0)*1+P28 -> 11 | R28: =(SUM($G$8:R20)>0)*1+Q28 -> 12 | S28: =(SUM($G$8:S20)>0)*1+R28 -> 13 | T28: =(SUM($G$8:T20)>0)*1+S28 -> 14 | U28: =(SUM($G$8:U20)>0)*1+T28 -> 15 | V28: =(SUM($G$8:V20)>0)*1+U28 -> 16 | W28: =(SUM($G$8:W20)>0)*1+V28 -> 17 | X28: =(SUM($G$8:X20)>0)*1+W28 -> 18 | Y28: =(SUM($G$8:Y20)>0)*1+X28 -> 19 | Z28: =(SUM($G$8:Z20)>0)*1+Y28 -> 20 | AA28: =(SUM($G$8:AA20)>0)*1+Z28 -> 21 | AB28: =(SUM($G$8:AB20)>0)*1+AA28 -> 22 | AC28: =(SUM($G$8:AC20)>0)*1+AB28 -> 23 | AD28: =(SUM($G$8:AD20)>0)*1+AC28 -> 24 | AE28: =(SUM($G$8:AE20)>0)*1+AD28 -> 25 | AF28: =(SUM($G$8:AF20)>0)*1+AE28 -> 26 | AG28: =(SUM($G$8:AG20)>0)*1+AF28 -> 27 | AH28: =(SUM($G$8:AH20)>0)*1+AG28 -> 28 | AI28: =(SUM($G$8:AI20)>0)*1+AH28 -> 29 | AJ28: =(SUM($G$8:AJ20)>0)*1+AI28 -> 30 | AK28: =(SUM($G$8:AK20)>0)*1+AJ28 -> 31 | AL28: =(SUM($G$8:AL20)>0)*1+AK28 -> 32 | AM28: =(SUM($G$8:AM20)>0)*1+AL28 -> 33 | AN28: =(SUM($G$8:AN20)>0)*1+AM28 -> 34 | AO28: =(SUM($G$8:AO20)>0)*1+AN28 -> 35 | AP28: =(SUM($G$8:AP20)>0)*1+AO28 -> 36 | AQ28: =(SUM($G$8:AQ20)>0)*1+AP28 -> 37 | AR28: =(SUM($G$8:AR20)>0)*1+AQ28 -> 38 | AS28: =(SUM($G$8:AS20)>0)*1+AR28 -> 39 | AT28: =(SUM($G$8:AT20)>0)*1+AS28 -> 40 | AU28: =(SUM($G$8:AU20)>0)*1+AT28 -> 41 | AV28: =(SUM($G$8:AV20)>0)*1+AU28 -> 42 | AW28: =(SUM($G$8:AW20)>0)*1+AV28 -> 43 | AX28: =(SUM($G$8:AX20)>0)*1+AW28 -> 44 | AY28: =(SUM($G$8:AY20)>0)*1+AX28 -> 45 | AZ28: =(SUM($G$8:AZ20)>0)*1+AY28 -> 46 | BA28: =(SUM($G$8:BA20)>0)*1+AZ28 -> 47 | BB28: =(SUM($G$8:BB20)>0)*1+BA28 -> 48 | BC28: =(SUM($G$8:BC20)>0)*1+BB28 -> 49 | BD28: =(SUM($G$8:BD20)>0)*1+BC28 -> 50
C29: =MAX(G29:BD29) -> 11 | D29: Annees de production | E29: annee | G29: =((G8>0)*1+F29)*(G8>0) -> 0 | H29: 0 | I29: 1 | J29: 2 | K29: 3 | L29: 4 | M29: 5 | N29: 6 | O29: 7 | P29: 8 | Q29: 9 | R29: 10 | S29: 11 | T29: 0 | U29: 0 | V29: 0 | W29: 0 | X29: 0 | Y29: 0 | Z29: 0 | AA29: 0 | AB29: 0 | AC29: 0 | AD29: 0 | AE29: 0 | AF29: 0 | AG29: 0 | AH29: 0 | AI29: 0 | AJ29: 0 | AK29: 0 | AL29: 0 | AM29: =((AM8>0)*1+AL29)*(AM8>0) -> 0 | AN29: 0 | AO29: 0 | AP29: 0 | AQ29: 0 | AR29: 0 | AS29: 0 | AT29: 0 | AU29: 0 | AV29: 0 | AW29: 0 | AX29: 0 | AY29: 0 | AZ29: 0 | BA29: 0 | BB29: 0 | BC29: 0 | BD29: 0
C30: =MAX(G30:BD30) -> 11 | D30: Annees de production restantes | E30: annee | G30: =($C$29-G29+1)*(G8>0) -> 0 | H30: 0 | I30: 11 | J30: 10 | K30: 9 | L30: 8 | M30: 7 | N30: 6 | O30: 5 | P30: 4 | Q30: 3 | R30: 2 | S30: 1 | T30: 0 | U30: 0 | V30: 0 | W30: 0 | X30: 0 | Y30: 0 | Z30: 0 | AA30: 0 | AB30: 0 | AC30: 0 | AD30: 0 | AE30: 0 | AF30: 0 | AG30: 0 | AH30: 0 | AI30: 0 | AJ30: 0 | AK30: 0 | AL30: 0 | AM30: =($C$29-AM29+1)*(AM8>0) -> 0 | AN30: 0 | AO30: 0 | AP30: 0 | AQ30: 0 | AR30: 0 | AS30: 0 | AT30: 0 | AU30: 0 | AV30: 0 | AW30: 0 | AX30: 0 | AY30: 0 | AZ30: 0 | BA30: 0 | BB30: 0 | BC30: 0 | BD30: 0
C31: =SUM(G31:BD31) -> 3 | D31: Annee de premiere production | E31: annee | G31: =IF(G29=1,G28,0) -> 0 | H31: =IF(H29=1,H28,0) -> 0 | I31: 3 | J31: 0 | K31: 0 | L31: 0 | M31: 0 | N31: 0 | O31: 0 | P31: 0 | Q31: 0 | R31: 0 | S31: 0 | T31: 0 | U31: 0 | V31: 0 | W31: 0 | X31: 0 | Y31: 0 | Z31: 0 | AA31: 0 | AB31: 0 | AC31: 0 | AD31: 0 | AE31: 0 | AF31: 0 | AG31: 0 | AH31: 0 | AI31: 0 | AJ31: 0 | AK31: 0 | AL31: 0 | AM31: 0 | AN31: 0 | AO31: 0 | AP31: 0 | AQ31: 0 | AR31: 0 | AS31: 0 | AT31: 0 | AU31: 0 | AV31: 0 | AW31: 0 | AX31: 0 | AY31: 0 | AZ31: 0 | BA31: 0 | BB31: 0 | BC31: 0 | BD31: 0
D34: Periode de retour sur investissement
C35: =MAX(G35:BD35) -> 170.235 | D35: Flux de tresorerie du projet avant impot | E35: $mm reel | G35: =G21 -> -250 | H35: -250 | I35: 170.235 | J35: 170.235 | K35: 170.235 | L35: 170.235 | M35: 170.235 | N35: 170.235 | O35: 170.235 | P35: 170.235 | Q35: 170.235 | R35: 170.235 | S35: 170.235 | T35: 0 | U35: 0 | V35: 0 | W35: 0 | X35: 0 | Y35: 0 | Z35: 0 | AA35: 0 | AB35: 0 | AC35: 0 | AD35: 0 | AE35: 0 | AF35: 0 | AG35: 0 | AH35: 0 | AI35: 0 | AJ35: 0 | AK35: 0 | AL35: 0 | AM35: =AM21 -> 0 | AN35: 0 | AO35: 0 | AP35: 0 | AQ35: 0 | AR35: 0 | AS35: 0 | AT35: 0 | AU35: 0 | AV35: 0 | AW35: 0 | AX35: 0 | AY35: 0 | AZ35: 0 | BA35: 0 | BB35: 0 | BC35: 0 | BD35: 0
C36: =MAX(G36:BD36) -> 1372.585 | D36: Flux cumulatifs de tresorerie du projet avant impot | E36: $mm reel | G36: =G35+F36 -> -250 | H36: -500 | I36: -329.765 | J36: -159.53 | K36: 10.705 | L36: 180.94 | M36: 351.175 | N36: 521.41 | O36: 691.645 | P36: 861.88 | Q36: 1032.115 | R36: 1202.35 | S36: 1372.585 | T36: 1372.585 | U36: 1372.585 | V36: 1372.585 | W36: 1372.585 | X36: 1372.585 | Y36: 1372.585 | Z36: 1372.585 | AA36: 1372.585 | AB36: 1372.585 | AC36: 1372.585 | AD36: 1372.585 | AE36: 1372.585 | AF36: 1372.585 | AG36: 1372.585 | AH36: 1372.585 | AI36: 1372.585 | AJ36: 1372.585 | AK36: 1372.585 | AL36: 1372.585 | AM36: =AM35+AL36 -> 1372.585 | AN36: 1372.585 | AO36: 1372.585 | AP36: 1372.585 | AQ36: 1372.585 | AR36: 1372.585 | AS36: 1372.585 | AT36: 1372.585 | AU36: 1372.585 | AV36: 1372.585 | AW36: 1372.585 | AX36: 1372.585 | AY36: 1372.585 | AZ36: 1372.585 | BA36: 1372.585 | BB36: 1372.585 | BC36: 1372.585 | BD36: 1372.585
C37: =MAX(G37:BD37) -> 4.937116339 | D37: Periode de retour sur investissement | E37: annee | G37: =IF(AND(G36<=0,H36>0),G28+(-G36/H35),0) -> 0 | H37: 0 | I37: 0 | J37: 4.937116339 | K37: 0 | L37: 0 | M37: 0 | N37: 0 | O37: 0 | P37: 0 | Q37: 0 | R37: 0 | S37: 0 | T37: 0 | U37: 0 | V37: 0 | W37: 0 | X37: 0 | Y37: 0 | Z37: 0 | AA37: 0 | AB37: 0 | AC37: 0 | AD37: 0 | AE37: 0 | AF37: 0 | AG37: 0 | AH37: 0 | AI37: 0 | AJ37: 0 | AK37: 0 | AL37: 0 | AM37: =IF(AND(AM36<=0,AN36>0),AM28+(-AM36/AN35),0) -> 0 | AN37: 0 | AO37: 0 | AP37: 0 | AQ37: 0 | AR37: 0 | AS37: 0 | AT37: 0 | AU37: 0 | AV37: 0 | AW37: 0 | AX37: 0 | AY37: 0 | AZ37: 0 | BA37: 0 | BB37: 0 | BC37: 0 | BD37: 0
D39: Inflation
D40: Indice d'inflation | E40: indice | G40: =IF(Paramètres!G$110=1,1,(1+Paramètres!$F$95)^(Paramètres!G$110-1)) -> 1 | H40: =IF(Paramètres!H$110=1,1,(1+Paramètres!$F$95)^(Paramètres!H$110-1)) -> 1.02 | I40: =IF(Paramètres!I$110=1,1,(1+Paramètres!$F$95)^(Paramètres!I$110-1)) -> 1.0404 | J40: =IF(Paramètres!J$110=1,1,(1+Paramètres!$F$95)^(Paramètres!J$110-1)) -> 1.061208 | K40: =IF(Paramètres!K$110=1,1,(1+Paramètres!$F$95)^(Paramètres!K$110-1)) -> 1.08243216 | L40: =IF(Paramètres!L$110=1,1,(1+Paramètres!$F$95)^(Paramètres!L$110-1)) -> 1.104080803 | M40: =IF(Paramètres!M$110=1,1,(1+Paramètres!$F$95)^(Paramètres!M$110-1)) -> 1.126162419 | N40: =IF(Paramètres!N$110=1,1,(1+Paramètres!$F$95)^(Paramètres!N$110-1)) -> 1.148685668 | O40: =IF(Paramètres!O$110=1,1,(1+Paramètres!$F$95)^(Paramètres!O$110-1)) -> 1.171659381 | P40: =IF(Paramètres!P$110=1,1,(1+Paramètres!$F$95)^(Paramètres!P$110-1)) -> 1.195092569 | Q40: =IF(Paramètres!Q$110=1,1,(1+Paramètres!$F$95)^(Paramètres!Q$110-1)) -> 1.21899442 | R40: =IF(Paramètres!R$110=1,1,(1+Paramètres!$F$95)^(Paramètres!R$110-1)) -> 1.243374308 | S40: =IF(Paramètres!S$110=1,1,(1+Paramètres!$F$95)^(Paramètres!S$110-1)) -> 1.268241795 | T40: =IF(Paramètres!T$110=1,1,(1+Paramètres!$F$95)^(Paramètres!T$110-1)) -> 1.29360663 | U40: =IF(Paramètres!U$110=1,1,(1+Paramètres!$F$95)^(Paramètres!U$110-1)) -> 1.319478763 | V40: =IF(Paramètres!V$110=1,1,(1+Paramètres!$F$95)^(Paramètres!V$110-1)) -> 1.345868338 | W40: =IF(Paramètres!W$110=1,1,(1+Paramètres!$F$95)^(Paramètres!W$110-1)) -> 1.372785705 | X40: =IF(Paramètres!X$110=1,1,(1+Paramètres!$F$95)^(Paramètres!X$110-1)) -> 1.400241419 | Y40: =IF(Paramètres!Y$110=1,1,(1+Paramètres!$F$95)^(Paramètres!Y$110-1)) -> 1.428246248 | Z40: =IF(Paramètres!Z$110=1,1,(1+Paramètres!$F$95)^(Paramètres!Z$110-1)) -> 1.456811173 | AA40: =IF(Paramètres!AA$110=1,1,(1+Paramètres!$F$95)^(Paramètres!AA$110-1)) -> 1.485947396 | AB40: =IF(Paramètres!AB$110=1,1,(1+Paramètres!$F$95)^(Paramètres!AB$110-1)) -> 1.515666344 | AC40: =IF(Paramètres!AC$110=1,1,(1+Paramètres!$F$95)^(Paramètres!AC$110-1)) -> 1.545979671 | AD40: =IF(Paramètres!AD$110=1,1,(1+Paramètres!$F$95)^(Paramètres!AD$110-1)) -> 1.576899264 | AE40: =IF(Paramètres!AE$110=1,1,(1+Paramètres!$F$95)^(Paramètres!AE$110-1)) -> 1.608437249 | AF40: =IF(Paramètres!AF$110=1,1,(1+Paramètres!$F$95)^(Paramètres!AF$110-1)) -> 1.640605994 | AG40: =IF(Paramètres!AG$110=1,1,(1+Paramètres!$F$95)^(Paramètres!AG$110-1)) -> 1.673418114 | AH40: =IF(Paramètres!AH$110=1,1,(1+Paramètres!$F$95)^(Paramètres!AH$110-1)) -> 1.706886477 | AI40: =IF(Paramètres!AI$110=1,1,(1+Paramètres!$F$95)^(Paramètres!AI$110-1)) -> 1.741024206 | AJ40: =IF(Paramètres!AJ$110=1,1,(1+Paramètres!$F$95)^(Paramètres!AJ$110-1)) -> 1.77584469 | AK40: =IF(Paramètres!AK$110=1,1,(1+Paramètres!$F$95)^(Paramètres!AK$110-1)) -> 1.811361584 | AL40: =IF(Paramètres!AL$110=1,1,(1+Paramètres!$F$95)^(Paramètres!AL$110-1)) -> 1.847588816 | AM40: =IF(Paramètres!AM$110=1,1,(1+Paramètres!$F$95)^(Paramètres!AM$110-1)) -> 1.884540592 | AN40: =IF(Paramètres!AN$110=1,1,(1+Paramètres!$F$95)^(Paramètres!AN$110-1)) -> 1.922231404 | AO40: =IF(Paramètres!AO$110=1,1,(1+Paramètres!$F$95)^(Paramètres!AO$110-1)) -> 1.960676032 | AP40: =IF(Paramètres!AP$110=1,1,(1+Paramètres!$F$95)^(Paramètres!AP$110-1)) -> 1.999889553 | AQ40: =IF(Paramètres!AQ$110=1,1,(1+Paramètres!$F$95)^(Paramètres!AQ$110-1)) -> 2.039887344 | AR40: =IF(Paramètres!AR$110=1,1,(1+Paramètres!$F$95)^(Paramètres!AR$110-1)) -> 2.080685091 | AS40: =IF(Paramètres!AS$110=1,1,(1+Paramètres!$F$95)^(Paramètres!AS$110-1)) -> 2.122298792 | AT40: =IF(Paramètres!AT$110=1,1,(1+Paramètres!$F$95)^(Paramètres!AT$110-1)) -> 2.164744768 | AU40: =IF(Paramètres!AU$110=1,1,(1+Paramètres!$F$95)^(Paramètres!AU$110-1)) -> 2.208039664 | AV40: =IF(Paramètres!AV$110=1,1,(1+Paramètres!$F$95)^(Paramètres!AV$110-1)) -> 2.252200457 | AW40: =IF(Paramètres!AW$110=1,1,(1+Paramètres!$F$95)^(Paramètres!AW$110-1)) -> 2.297244466 | AX40: =IF(Paramètres!AX$110=1,1,(1+Paramètres!$F$95)^(Paramètres!AX$110-1)) -> 2.343189355 | AY40: =IF(Paramètres!AY$110=1,1,(1+Paramètres!$F$95)^(Paramètres!AY$110-1)) -> 2.390053142 | AZ40: =IF(Paramètres!AZ$110=1,1,(1+Paramètres!$F$95)^(Paramètres!AZ$110-1)) -> 2.437854205 | BA40: =IF(Paramètres!BA$110=1,1,(1+Paramètres!$F$95)^(Paramètres!BA$110-1)) -> 2.486611289 | BB40: =IF(Paramètres!BB$110=1,1,(1+Paramètres!$F$95)^(Paramètres!BB$110-1)) -> 2.536343515 | BC40: =IF(Paramètres!BC$110=1,1,(1+Paramètres!$F$95)^(Paramètres!BC$110-1)) -> 2.587070385 | BD40: =IF(Paramètres!BD$110=1,1,(1+Paramètres!$F$95)^(Paramètres!BD$110-1)) -> 2.638811793
D42: Flux de tresorerie du projet avant impot: Nominal | E42: year | G42: =G$2 -> 1 | H42: 2 | I42: 3 | J42: 4 | K42: 5 | L42: 6 | M42: 7 | N42: 8 | O42: 9 | P42: 10 | Q42: 11 | R42: 12 | S42: 13 | T42: 14 | U42: 15 | V42: 16 | W42: 17 | X42: 18 | Y42: 19 | Z42: 20 | AA42: 21 | AB42: 22 | AC42: 23 | AD42: 24 | AE42: 25 | AF42: 26 | AG42: 27 | AH42: 28 | AI42: 29 | AJ42: 30 | AK42: 31 | AL42: 32 | AM42: =AM$2 -> 33 | AN42: 34 | AO42: 35 | AP42: 36 | AQ42: 37 | AR42: 38 | AS42: 39 | AT42: 40 | AU42: 41 | AV42: 42 | AW42: 43 | AX42: 44 | AY42: 45 | AZ42: 46 | BA42: 47 | BB42: 48 | BC42: 49 | BD42: 50
C43: =SUM(G43:BD43) -> 4443.776364 | D43: Chiffre d'affaires brut | E43: $mm nominal | G43: =G9*G$40 -> 0 | H43: 0 | I43: 365.1804 | J43: 372.484008 | K43: 379.9336882 | L43: 387.5323619 | M43: 395.2830092 | N43: 403.1886693 | O43: 411.2524427 | P43: 419.4774916 | Q43: 427.8670414 | R43: 436.4243822 | S43: 445.1528699 | T43: 0 | U43: 0 | V43: 0 | W43: 0 | X43: 0 | Y43: 0 | Z43: 0 | AA43: 0 | AB43: 0 | AC43: 0 | AD43: 0 | AE43: 0 | AF43: 0 | AG43: 0 | AH43: 0 | AI43: 0 | AJ43: 0 | AK43: 0 | AL43: 0 | AM43: =AM9*AM$40 -> 0 | AN43: 0 | AO43: 0 | AP43: 0 | AQ43: 0 | AR43: 0 | AS43: 0 | AT43: 0 | AU43: 0 | AV43: 0 | AW43: 0 | AX43: 0 | AY43: 0 | AZ43: 0 | BA43: 0 | BB43: 0 | BC43: 0 | BD43: 0
C44: =SUM(G44:BD44) -> 0 | D44: Transport et traitement apres imposition | E44: $mm nominal | G44: =G10*G$40 -> 0 | H44: 0 | I44: 0 | J44: 0 | K44: 0 | L44: 0 | M44: 0 | N44: 0 | O44: 0 | P44: 0 | Q44: 0 | R44: 0 | S44: 0 | T44: 0 | U44: 0 | V44: 0 | W44: 0 | X44: 0 | Y44: 0 | Z44: 0 | AA44: 0 | AB44: 0 | AC44: 0 | AD44: 0 | AE44: 0 | AF44: 0 | AG44: 0 | AH44: 0 | AI44: 0 | AJ44: 0 | AK44: 0 | AL44: 0 | AM44: =AM10*AM$40 -> 0 | AN44: 0 | AO44: 0 | AP44: 0 | AQ44: 0 | AR44: 0 | AS44: 0 | AT44: 0 | AU44: 0 | AV44: 0 | AW44: 0 | AX44: 0 | AY44: 0 | AZ44: 0 | BA44: 0 | BB44: 0 | BC44: 0 | BD44: 0
A45: =ROUND(C45-(C43-C44),5)=0 -> TRUE | C45: =SUM(G45:BD45) -> 4443.776364 | D45: Chiffre d'affaires net | E45: $mm nominal | G45: =G11*G$40 -> 0 | H45: 0 | I45: 365.1804 | J45: 372.484008 | K45: 379.9336882 | L45: 387.5323619 | M45: 395.2830092 | N45: 403.1886693 | O45: 411.2524427 | P45: 419.4774916 | Q45: 427.8670414 | R45: 436.4243822 | S45: 445.1528699 | T45: 0 | U45: 0 | V45: 0 | W45: 0 | X45: 0 | Y45: 0 | Z45: 0 | AA45: 0 | AB45: 0 | AC45: 0 | AD45: 0 | AE45: 0 | AF45: 0 | AG45: 0 | AH45: 0 | AI45: 0 | AJ45: 0 | AK45: 0 | AL45: 0 | AM45: =AM11*AM$40 -> 0 | AN45: 0 | AO45: 0 | AP45: 0 | AQ45: 0 | AR45: 0 | AS45: 0 | AT45: 0 | AU45: 0 | AV45: 0 | AW45: 0 | AX45: 0 | AY45: 0 | AZ45: 0 | BA45: 0 | BB45: 0 | BC45: 0 | BD45: 0
C46: 0 | D46: Couts d’exploration | E46: $mm nominal | G46: =G12*G$40 -> 0 | H46: 0 | I46: 0 | J46: 0 | K46: 0 | L46: 0 | M46: 0 | N46: 0 | O46: 0 | P46: 0 | Q46: 0 | R46: 0 | S46: 0 | T46: 0 | U46: 0 | V46: 0 | W46: 0 | X46: 0 | Y46: 0 | Z46: 0 | AA46: 0 | AB46: 0 | AC46: 0 | AD46: 0 | AE46: 0 | AF46: 0 | AG46: 0 | AH46: 0 | AI46: 0 | AJ46: 0 | AK46: 0 | AL46: 0 | AM46: =AM12*AM$40 -> 0 | AN46: 0 | AO46: 0 | AP46: 0 | AQ46: 0 | AR46: 0 | AS46: 0 | AT46: 0 | AU46: 0 | AV46: 0 | AW46: 0 | AX46: 0 | AY46: 0 | AZ46: 0 | BA46: 0 | BB46: 0 | BC46: 0 | BD46: 0
C47: 0 | D47: Couts d’investissement en capital - incorporel | E47: $mm nominal | G47: =G13*G$40 -> 0 | H47: 0 | I47: 0 | J47: 0 | K47: 0 | L47: 0 | M47: 0 | N47: 0 | O47: 0 | P47: 0 | Q47: 0 | R47: 0 | S47: 0 | T47: 0 | U47: 0 | V47: 0 | W47: 0 | X47: 0 | Y47: 0 | Z47: 0 | AA47: 0 | AB47: 0 | AC47: 0 | AD47: 0 | AE47: 0 | AF47: 0 | AG47: 0 | AH47: 0 | AI47: 0 | AJ47: 0 | AK47: 0 | AL47: 0 | AM47: =AM13*AM$40 -> 0 | AN47: 0 | AO47: 0 | AP47: 0 | AQ47: 0 | AR47: 0 | AS47: 0 | AT47: 0 | AU47: 0 | AV47: 0 | AW47: 0 | AX47: 0 | AY47: 0 | AZ47: 0 | BA47: 0 | BB47: 0 | BC47: 0 | BD47: 0
C48: 505 | D48: Couts d’investissement en capital - corporel | E48: $mm nominal | G48: =G14*G$40 -> 250 | H48: 255 | I48: 0 | J48: 0 | K48: 0 | L48: 0 | M48: 0 | N48: 0 | O48: 0 | P48: 0 | Q48: 0 | R48: 0 | S48: 0 | T48: 0 | U48: 0 | V48: 0 | W48: 0 | X48: 0 | Y48: 0 | Z48: 0 | AA48: 0 | AB48: 0 | AC48: 0 | AD48: 0 | AE48: 0 | AF48: 0 | AG48: 0 | AH48: 0 | AI48: 0 | AJ48: 0 | AK48: 0 | AL48: 0 | AM48: =AM14*AM$40 -> 0 | AN48: 0 | AO48: 0 | AP48: 0 | AQ48: 0 | AR48: 0 | AS48: 0 | AT48: 0 | AU48: 0 | AV48: 0 | AW48: 0 | AX48: 0 | AY48: 0 | AZ48: 0 | BA48: 0 | BB48: 0 | BC48: 0 | BD48: 0
C49: 66.65664547 | D49: Capital de réinvestissement | E49: $mm nominal | G49: =G15*G$40 -> 0 | H49: 0 | I49: 5.477706 | J49: 5.58726012 | K49: 5.699005322 | L49: 5.812985429 | M49: 5.929245137 | N49: 6.04783004 | O49: 6.168786641 | P49: 6.292162374 | Q49: 6.418005621 | R49: 6.546365734 | S49: 6.677293048 | T49: 0 | U49: 0 | V49: 0 | W49: 0 | X49: 0 | Y49: 0 | Z49: 0 | AA49: 0 | AB49: 0 | AC49: 0 | AD49: 0 | AE49: 0 | AF49: 0 | AG49: 0 | AH49: 0 | AI49: 0 | AJ49: 0 | AK49: 0 | AL49: 0 | AM49: =AM15*AM$40 -> 0 | AN49: 0 | AO49: 0 | AP49: 0 | AQ49: 0 | AR49: 0 | AS49: 0 | AT49: 0 | AU49: 0 | AV49: 0 | AW49: 0 | AX49: 0 | AY49: 0 | AZ49: 0 | BA49: 0 | BB49: 0 | BC49: 0 | BD49: 0
C50: =SUM(G50:BD50) -> 2221.888182 | D50: Couts opérationnels - extraction | E50: $mm nominal | G50: =G17*G$40 -> 0 | H50: 0 | I50: 182.5902 | J50: 186.242004 | K50: 189.9668441 | L50: 193.766181 | M50: 197.6415046 | N50: 201.5943347 | O50: 205.6262214 | P50: 209.7387458 | Q50: 213.9335207 | R50: 218.2121911 | S50: 222.5764349 | T50: 0 | U50: 0 | V50: 0 | W50: 0 | X50: 0 | Y50: 0 | Z50: 0 | AA50: 0 | AB50: 0 | AC50: 0 | AD50: 0 | AE50: 0 | AF50: 0 | AG50: 0 | AH50: 0 | AI50: 0 | AJ50: 0 | AK50: 0 | AL50: 0 | AM50: =AM17*AM$40 -> 0 | AN50: 0 | AO50: 0 | AP50: 0 | AQ50: 0 | AR50: 0 | AS50: 0 | AT50: 0 | AU50: 0 | AV50: 0 | AW50: 0 | AX50: 0 | AY50: 0 | AZ50: 0 | BA50: 0 | BB50: 0 | BC50: 0 | BD50: 0
C51: 0 | D51: Parafiscalité | E51: $mm nominal | G51: =G18*G$40 -> 0 | H51: 0 | I51: 0 | J51: 0 | K51: 0 | L51: 0 | M51: 0 | N51: 0 | O51: 0 | P51: 0 | Q51: 0 | R51: 0 | S51: 0 | T51: 0 | U51: 0 | V51: 0 | W51: 0 | X51: 0 | Y51: 0 | Z51: 0 | AA51: 0 | AB51: 0 | AC51: 0 | AD51: 0 | AE51: 0 | AF51: 0 | AG51: 0 | AH51: 0 | AI51: 0 | AJ51: 0 | AK51: 0 | AL51: 0 | AM51: =AM18*AM$40 -> 0 | AN51: 0 | AO51: 0 | AP51: 0 | AQ51: 0 | AR51: 0 | AS51: 0 | AT51: 0 | AU51: 0 | AV51: 0 | AW51: 0 | AX51: 0 | AY51: 0 | AZ51: 0 | BA51: 0 | BB51: 0 | BC51: 0 | BD51: 0
C52: 0 | D52: Couts de fermeture et de rehabilitation | E52: $mm nominal | G52: =G19*G$40 -> 0 | H52: 0 | I52: 0 | J52: 0 | K52: 0 | L52: 0 | M52: 0 | N52: 0 | O52: 0 | P52: 0 | Q52: 0 | R52: 0 | S52: 0 | T52: 0 | U52: 0 | V52: 0 | W52: 0 | X52: 0 | Y52: 0 | Z52: 0 | AA52: 0 | AB52: 0 | AC52: 0 | AD52: 0 | AE52: 0 | AF52: 0 | AG52: 0 | AH52: 0 | AI52: 0 | AJ52: 0 | AK52: 0 | AL52: 0 | AM52: =AM19*AM$40 -> 0 | AN52: 0 | AO52: 0 | AP52: 0 | AQ52: 0 | AR52: 0 | AS52: 0 | AT52: 0 | AU52: 0 | AV52: 0 | AW52: 0 | AX52: 0 | AY52: 0 | AZ52: 0 | BA52: 0 | BB52: 0 | BC52: 0 | BD52: 0
C53: =SUM(G53:BD53) -> 2793.544828 | D53: Couts totaux | E53: $mm nominal | G53: =SUM(G46:G52) -> 250 | H53: =SUM(H46:H52) -> 255 | I53: =SUM(I46:I52) -> 188.067906 | J53: 191.8292641 | K53: 195.6658494 | L53: 199.5791664 | M53: 203.5707497 | N53: 207.6421647 | O53: 211.795008 | P53: 216.0309082 | Q53: 220.3515263 | R53: 224.7585569 | S53: 229.253728 | T53: =SUM(T46:T52) -> 0 | U53: 0 | V53: 0 | W53: 0 | X53: 0 | Y53: 0 | Z53: 0 | AA53: 0 | AB53: 0 | AC53: 0 | AD53: 0 | AE53: 0 | AF53: 0 | AG53: 0 | AH53: 0 | AI53: 0 | AJ53: 0 | AK53: 0 | AL53: 0 | AM53: 0 | AN53: 0 | AO53: 0 | AP53: 0 | AQ53: 0 | AR53: 0 | AS53: 0 | AT53: 0 | AU53: 0 | AV53: 0 | AW53: 0 | AX53: 0 | AY53: 0 | AZ53: 0 | BA53: 0 | BB53: 0 | BC53: 0 | BD53: 0
A54: =ROUND(C54-(C45-SUM(C46:C52)),5)=0 -> TRUE | C54: =SUM(G54:BD54) -> 1650.231537 | D54: Flux de tresorerie du projet avant redevances, droits de douanes et impots | E54: $mm nominal | G54: =G45-G53 -> -250 | H54: =H45-H53 -> -255 | I54: 177.112494 | J54: 180.6547439 | K54: 184.2678388 | L54: 187.9531955 | M54: 191.7122594 | N54: 195.5465046 | O54: 199.4574347 | P54: 203.4465834 | Q54: 207.5155151 | R54: 211.6658254 | S54: 215.8991419 | T54: =T45-T53 -> 0 | U54: 0 | V54: 0 | W54: 0 | X54: 0 | Y54: 0 | Z54: 0 | AA54: 0 | AB54: 0 | AC54: 0 | AD54: 0 | AE54: 0 | AF54: 0 | AG54: 0 | AH54: 0 | AI54: 0 | AJ54: 0 | AK54: 0 | AL54: 0 | AM54: 0 | AN54: 0 | AO54: 0 | AP54: 0 | AQ54: 0 | AR54: 0 | AS54: 0 | AT54: 0 | AU54: 0 | AV54: 0 | AW54: 0 | AX54: 0 | AY54: 0 | AZ54: 0 | BA54: 0 | BB54: 0 | BC54: 0 | BD54: 0
C57: =IFERROR(IRR($G54:BD54),0) -> 0.3044148095 | D57: Taux de rendement interne (nominal) | E57: % | G57: =IFERROR(IRR($G54:G54),"--") -> -- | H57: =IFERROR(IRR($G54:H54),"--") -> -- | I57: =IFERROR(IRR($G54:I54),"--") -> -0.5258506333 | J57: =IFERROR(IRR($G54:J54),"--") -> -0.1583052953 | K57: =IFERROR(IRR($G54:K54),"--") -> 0.02868596897 | L57: =IFERROR(IRR($G54:L54),"--") -> 0.1326777607 | M57: =IFERROR(IRR($G54:M54),"--") -> 0.1948571105 | N57: =IFERROR(IRR($G54:N54),"--") -> 0.2341024816 | O57: =IFERROR(IRR($G54:O54),"--") -> 0.2599045728 | P57: =IFERROR(IRR($G54:P54),"--") -> 0.2774086909 | Q57: =IFERROR(IRR($G54:Q54),"--") -> 0.2895780216 | R57: =IFERROR(IRR($G54:R54),"--") -> 0.2982042816 | S57: =IFERROR(IRR($G54:S54),"--") -> 0.3044148095 | T57: =IFERROR(IRR($G54:T54),"--") -> 0.3044148095 | U57: =IFERROR(IRR($G54:U54),"--") -> 0.3044148095 | V57: =IFERROR(IRR($G54:V54),"--") -> 0.3044148095 | W57: =IFERROR(IRR($G54:W54),"--") -> 0.3044148095 | X57: =IFERROR(IRR($G54:X54),"--") -> 0.3044148095 | Y57: =IFERROR(IRR($G54:Y54),"--") -> 0.3044148095 | Z57: =IFERROR(IRR($G54:Z54),"--") -> 0.3044148095 | AA57: =IFERROR(IRR($G54:AA54),"--") -> 0.3044148095 | AB57: =IFERROR(IRR($G54:AB54),"--") -> 0.3044148095 | AC57: =IFERROR(IRR($G54:AC54),"--") -> 0.3044148095 | AD57: =IFERROR(IRR($G54:AD54),"--") -> 0.3044148095 | AE57: =IFERROR(IRR($G54:AE54),"--") -> 0.3044148095 | AF57: =IFERROR(IRR($G54:AF54),"--") -> 0.3044148095 | AG57: =IFERROR(IRR($G54:AG54),"--") -> 0.3044148095 | AH57: =IFERROR(IRR($G54:AH54),"--") -> 0.3044148095 | AI57: =IFERROR(IRR($G54:AI54),"--") -> 0.3044148095 | AJ57: =IFERROR(IRR($G54:AJ54),"--") -> 0.3044148095 | AK57: =IFERROR(IRR($G54:AK54),"--") -> 0.3044148095 | AL57: =IFERROR(IRR($G54:AL54),"--") -> 0.3044148095 | AM57: =IFERROR(IRR($G54:AM54),"--") -> 0.3044148095 | AN57: =IFERROR(IRR($G54:AN54),"--") -> 0.3044148095 | AO57: =IFERROR(IRR($G54:AO54),"--") -> 0.3044148095 | AP57: =IFERROR(IRR($G54:AP54),"--") -> 0.3044148095 | AQ57: =IFERROR(IRR($G54:AQ54),"--") -> 0.3044148095 | AR57: =IFERROR(IRR($G54:AR54),"--") -> 0.3044148095 | AS57: =IFERROR(IRR($G54:AS54),"--") -> 0.3044148095 | AT57: =IFERROR(IRR($G54:AT54),"--") -> 0.3044148095 | AU57: =IFERROR(IRR($G54:AU54),"--") -> 0.3044148095 | AV57: =IFERROR(IRR($G54:AV54),"--") -> 0.3044148095 | AW57: =IFERROR(IRR($G54:AW54),"--") -> 0.3044148095 | AX57: =IFERROR(IRR($G54:AX54),"--") -> 0.3044148095 | AY57: =IFERROR(IRR($G54:AY54),"--") -> 0.3044148095 | AZ57: =IFERROR(IRR($G54:AZ54),"--") -> 0.3044148095 | BA57: =IFERROR(IRR($G54:BA54),"--") -> 0.3044148095 | BB57: =IFERROR(IRR($G54:BB54),"--") -> 0.3044148095 | BC57: =IFERROR(IRR($G54:BC54),"--") -> 0.3044148095 | BD57: =IFERROR(IRR($G54:BD54),"--") -> 0.3044148095
C58: =NPV(Paramètres!$F$93,$H$54:$BD$54)+$G$54 -> 653.7242639 | D58: Flux de tresorerie du projet avant impots, VAN10 | E58: $mm nominal
A61: Calculs - fiscalite
C63: Total | D63: Fermeture et rehabilitation
C64: =SUM(G64:BD64) -> 0 | D64: Annee de fermeture | E64: years | G64: =Paramètres!G110*(G65>0) -> 0 | H64: =Paramètres!H110*(H65>0) -> 0 | I64: =Paramètres!I110*(I65>0) -> 0 | J64: =Paramètres!J110*(J65>0) -> 0 | K64: =Paramètres!K110*(K65>0) -> 0 | L64: =Paramètres!L110*(L65>0) -> 0 | M64: =Paramètres!M110*(M65>0) -> 0 | N64: =Paramètres!N110*(N65>0) -> 0 | O64: =Paramètres!O110*(O65>0) -> 0 | P64: =Paramètres!P110*(P65>0) -> 0 | Q64: =Paramètres!Q110*(Q65>0) -> 0 | R64: =Paramètres!R110*(R65>0) -> 0 | S64: =Paramètres!S110*(S65>0) -> 0 | T64: =Paramètres!T110*(T65>0) -> 0 | U64: =Paramètres!U110*(U65>0) -> 0 | V64: =Paramètres!V110*(V65>0) -> 0 | W64: =Paramètres!W110*(W65>0) -> 0 | X64: =Paramètres!X110*(X65>0) -> 0 | Y64: =Paramètres!Y110*(Y65>0) -> 0 | Z64: =Paramètres!Z110*(Z65>0) -> 0 | AA64: =Paramètres!AA110*(AA65>0) -> 0 | AB64: =Paramètres!AB110*(AB65>0) -> 0 | AC64: =Paramètres!AC110*(AC65>0) -> 0 | AD64: =Paramètres!AD110*(AD65>0) -> 0 | AE64: =Paramètres!AE110*(AE65>0) -> 0 | AF64: =Paramètres!AF110*(AF65>0) -> 0 | AG64: =Paramètres!AG110*(AG65>0) -> 0 | AH64: =Paramètres!AH110*(AH65>0) -> 0 | AI64: =Paramètres!AI110*(AI65>0) -> 0 | AJ64: =Paramètres!AJ110*(AJ65>0) -> 0 | AK64: =Paramètres!AK110*(AK65>0) -> 0 | AL64: =Paramètres!AL110*(AL65>0) -> 0 | AM64: =Paramètres!AM110*(AM65>0) -> 0 | AN64: =Paramètres!AN110*(AN65>0) -> 0 | AO64: =Paramètres!AO110*(AO65>0) -> 0 | AP64: =Paramètres!AP110*(AP65>0) -> 0 | AQ64: =Paramètres!AQ110*(AQ65>0) -> 0 | AR64: =Paramètres!AR110*(AR65>0) -> 0 | AS64: =Paramètres!AS110*(AS65>0) -> 0 | AT64: =Paramètres!AT110*(AT65>0) -> 0 | AU64: =Paramètres!AU110*(AU65>0) -> 0 | AV64: =Paramètres!AV110*(AV65>0) -> 0 | AW64: =Paramètres!AW110*(AW65>0) -> 0 | AX64: =Paramètres!AX110*(AX65>0) -> 0 | AY64: =Paramètres!AY110*(AY65>0) -> 0 | AZ64: =Paramètres!AZ110*(AZ65>0) -> 0 | BA64: =Paramètres!BA110*(BA65>0) -> 0 | BB64: =Paramètres!BB110*(BB65>0) -> 0 | BC64: =Paramètres!BC110*(BC65>0) -> 0 | BD64: =Paramètres!BD110*(BD65>0) -> 0
C65: =SUM(G65:BD65) -> 0 | D65: Couts de fermeture et rehabilitation | E65: $mm nominal | G65: =G52 -> 0 | H65: 0 | I65: 0 | J65: 0 | K65: 0 | L65: 0 | M65: 0 | N65: 0 | O65: 0 | P65: 0 | Q65: 0 | R65: 0 | S65: 0 | T65: 0 | U65: 0 | V65: 0 | W65: 0 | X65: 0 | Y65: 0 | Z65: 0 | AA65: 0 | AB65: 0 | AC65: 0 | AD65: 0 | AE65: 0 | AF65: 0 | AG65: 0 | AH65: 0 | AI65: 0 | AJ65: 0 | AK65: 0 | AL65: 0 | AM65: =AM52 -> 0 | AN65: 0 | AO65: 0 | AP65: 0 | AQ65: 0 | AR65: 0 | AS65: 0 | AT65: 0 | AU65: 0 | AV65: 0 | AW65: 0 | AX65: 0 | AY65: 0 | AZ65: 0 | BA65: 0 | BB65: 0 | BC65: 0 | BD65: 0
C66: =SUM(G66:BD66) -> 0 | D66: Couts de fermeture et rehabilitation (reel) | E66: $mm const | G66: =G65/G40 -> 0 | H66: 0 | I66: 0 | J66: 0 | K66: 0 | L66: 0 | M66: 0 | N66: 0 | O66: 0 | P66: 0 | Q66: 0 | R66: 0 | S66: 0 | T66: 0 | U66: 0 | V66: 0 | W66: 0 | X66: 0 | Y66: 0 | Z66: 0 | AA66: 0 | AB66: 0 | AC66: 0 | AD66: 0 | AE66: 0 | AF66: 0 | AG66: 0 | AH66: 0 | AI66: 0 | AJ66: 0 | AK66: 0 | AL66: 0 | AM66: =AM65/AM40 -> 0 | AN66: 0 | AO66: 0 | AP66: 0 | AQ66: 0 | AR66: 0 | AS66: 0 | AT66: 0 | AU66: 0 | AV66: 0 | AW66: 0 | AX66: 0 | AY66: 0 | AZ66: 0 | BA66: 0 | BB66: 0 | BC66: 0 | BD66: 0
D67: Couts de fermeture, equivalent par annee | E67: $mm nominal | G67: =$C$66*G40*(Paramètres!G110<=$C$64)*(1+Paramètres!$F$95) -> 0 | H67: =$C$66*H40*(Paramètres!H110<=$C$64)*(1+Paramètres!$F$95) -> 0 | I67: =$C$66*I40*(Paramètres!I110<=$C$64)*(1+Paramètres!$F$95) -> 0 | J67: =$C$66*J40*(Paramètres!J110<=$C$64)*(1+Paramètres!$F$95) -> 0 | K67: =$C$66*K40*(Paramètres!K110<=$C$64)*(1+Paramètres!$F$95) -> 0 | L67: =$C$66*L40*(Paramètres!L110<=$C$64)*(1+Paramètres!$F$95) -> 0 | M67: =$C$66*M40*(Paramètres!M110<=$C$64)*(1+Paramètres!$F$95) -> 0 | N67: =$C$66*N40*(Paramètres!N110<=$C$64)*(1+Paramètres!$F$95) -> 0 | O67: =$C$66*O40*(Paramètres!O110<=$C$64)*(1+Paramètres!$F$95) -> 0 | P67: =$C$66*P40*(Paramètres!P110<=$C$64)*(1+Paramètres!$F$95) -> 0 | Q67: =$C$66*Q40*(Paramètres!Q110<=$C$64)*(1+Paramètres!$F$95) -> 0 | R67: =$C$66*R40*(Paramètres!R110<=$C$64)*(1+Paramètres!$F$95) -> 0 | S67: =$C$66*S40*(Paramètres!S110<=$C$64)*(1+Paramètres!$F$95) -> 0 | T67: =$C$66*T40*(Paramètres!T110<=$C$64)*(1+Paramètres!$F$95) -> 0 | U67: =$C$66*U40*(Paramètres!U110<=$C$64)*(1+Paramètres!$F$95) -> 0 | V67: =$C$66*V40*(Paramètres!V110<=$C$64)*(1+Paramètres!$F$95) -> 0 | W67: =$C$66*W40*(Paramètres!W110<=$C$64)*(1+Paramètres!$F$95) -> 0 | X67: =$C$66*X40*(Paramètres!X110<=$C$64)*(1+Paramètres!$F$95) -> 0 | Y67: =$C$66*Y40*(Paramètres!Y110<=$C$64)*(1+Paramètres!$F$95) -> 0 | Z67: =$C$66*Z40*(Paramètres!Z110<=$C$64)*(1+Paramètres!$F$95) -> 0 | AA67: =$C$66*AA40*(Paramètres!AA110<=$C$64)*(1+Paramètres!$F$95) -> 0 | AB67: =$C$66*AB40*(Paramètres!AB110<=$C$64)*(1+Paramètres!$F$95) -> 0 | AC67: =$C$66*AC40*(Paramètres!AC110<=$C$64)*(1+Paramètres!$F$95) -> 0 | AD67: =$C$66*AD40*(Paramètres!AD110<=$C$64)*(1+Paramètres!$F$95) -> 0 | AE67: =$C$66*AE40*(Paramètres!AE110<=$C$64)*(1+Paramètres!$F$95) -> 0 | AF67: =$C$66*AF40*(Paramètres!AF110<=$C$64)*(1+Paramètres!$F$95) -> 0 | AG67: =$C$66*AG40*(Paramètres!AG110<=$C$64)*(1+Paramètres!$F$95) -> 0 | AH67: =$C$66*AH40*(Paramètres!AH110<=$C$64)*(1+Paramètres!$F$95) -> 0 | AI67: =$C$66*AI40*(Paramètres!AI110<=$C$64)*(1+Paramètres!$F$95) -> 0 | AJ67: =$C$66*AJ40*(Paramètres!AJ110<=$C$64)*(1+Paramètres!$F$95) -> 0 | AK67: =$C$66*AK40*(Paramètres!AK110<=$C$64)*(1+Paramètres!$F$95) -> 0 | AL67: =$C$66*AL40*(Paramètres!AL110<=$C$64)*(1+Paramètres!$F$95) -> 0 | AM67: =$C$66*AM40*(Paramètres!AM110<=$C$64)*(1+Paramètres!$F$95) -> 0 | AN67: =$C$66*AN40*(Paramètres!AN110<=$C$64)*(1+Paramètres!$F$95) -> 0 | AO67: =$C$66*AO40*(Paramètres!AO110<=$C$64)*(1+Paramètres!$F$95) -> 0 | AP67: =$C$66*AP40*(Paramètres!AP110<=$C$64)*(1+Paramètres!$F$95) -> 0 | AQ67: =$C$66*AQ40*(Paramètres!AQ110<=$C$64)*(1+Paramètres!$F$95) -> 0 | AR67: =$C$66*AR40*(Paramètres!AR110<=$C$64)*(1+Paramètres!$F$95) -> 0 | AS67: =$C$66*AS40*(Paramètres!AS110<=$C$64)*(1+Paramètres!$F$95) -> 0 | AT67: =$C$66*AT40*(Paramètres!AT110<=$C$64)*(1+Paramètres!$F$95) -> 0 | AU67: =$C$66*AU40*(Paramètres!AU110<=$C$64)*(1+Paramètres!$F$95) -> 0 | AV67: =$C$66*AV40*(Paramètres!AV110<=$C$64)*(1+Paramètres!$F$95) -> 0 | AW67: =$C$66*AW40*(Paramètres!AW110<=$C$64)*(1+Paramètres!$F$95) -> 0 | AX67: =$C$66*AX40*(Paramètres!AX110<=$C$64)*(1+Paramètres!$F$95) -> 0 | AY67: =$C$66*AY40*(Paramètres!AY110<=$C$64)*(1+Paramètres!$F$95) -> 0 | AZ67: =$C$66*AZ40*(Paramètres!AZ110<=$C$64)*(1+Paramètres!$F$95) -> 0 | BA67: =$C$66*BA40*(Paramètres!BA110<=$C$64)*(1+Paramètres!$F$95) -> 0 | BB67: =$C$66*BB40*(Paramètres!BB110<=$C$64)*(1+Paramètres!$F$95) -> 0 | BC67: =$C$66*BC40*(Paramètres!BC110<=$C$64)*(1+Paramètres!$F$95) -> 0 | BD67: =$C$66*BD40*(Paramètres!BD110<=$C$64)*(1+Paramètres!$F$95) -> 0
D69: % des reserves extraites, par annee | E69: % | G69: =SUM(Paramètres!$G$112:G112)/Paramètres!$C$112 -> 0 | H69: =SUM(Paramètres!$G$112:H112)/Paramètres!$C$112 -> 0 | I69: =SUM(Paramètres!$G$112:I112)/Paramètres!$C$112 -> 0.09090909091 | J69: =SUM(Paramètres!$G$112:J112)/Paramètres!$C$112 -> 0.1818181818 | K69: =SUM(Paramètres!$G$112:K112)/Paramètres!$C$112 -> 0.2727272727 | L69: =SUM(Paramètres!$G$112:L112)/Paramètres!$C$112 -> 0.3636363636 | M69: =SUM(Paramètres!$G$112:M112)/Paramètres!$C$112 -> 0.4545454545 | N69: =SUM(Paramètres!$G$112:N112)/Paramètres!$C$112 -> 0.5454545455 | O69: =SUM(Paramètres!$G$112:O112)/Paramètres!$C$112 -> 0.6363636364 | P69: =SUM(Paramètres!$G$112:P112)/Paramètres!$C$112 -> 0.7272727273 | Q69: =SUM(Paramètres!$G$112:Q112)/Paramètres!$C$112 -> 0.8181818182 | R69: =SUM(Paramètres!$G$112:R112)/Paramètres!$C$112 -> 0.9090909091 | S69: =SUM(Paramètres!$G$112:S112)/Paramètres!$C$112 -> 1 | T69: =SUM(Paramètres!$G$112:T112)/Paramètres!$C$112 -> 1 | U69: =SUM(Paramètres!$G$112:U112)/Paramètres!$C$112 -> 1 | V69: =SUM(Paramètres!$G$112:V112)/Paramètres!$C$112 -> 1 | W69: =SUM(Paramètres!$G$112:W112)/Paramètres!$C$112 -> 1 | X69: =SUM(Paramètres!$G$112:X112)/Paramètres!$C$112 -> 1 | Y69: =SUM(Paramètres!$G$112:Y112)/Paramètres!$C$112 -> 1 | Z69: =SUM(Paramètres!$G$112:Z112)/Paramètres!$C$112 -> 1 | AA69: =SUM(Paramètres!$G$112:AA112)/Paramètres!$C$112 -> 1 | AB69: =SUM(Paramètres!$G$112:AB112)/Paramètres!$C$112 -> 1 | AC69: =SUM(Paramètres!$G$112:AC112)/Paramètres!$C$112 -> 1 | AD69: =SUM(Paramètres!$G$112:AD112)/Paramètres!$C$112 -> 1 | AE69: =SUM(Paramètres!$G$112:AE112)/Paramètres!$C$112 -> 1 | AF69: =SUM(Paramètres!$G$112:AF112)/Paramètres!$C$112 -> 1 | AG69: =SUM(Paramètres!$G$112:AG112)/Paramètres!$C$112 -> 1 | AH69: =SUM(Paramètres!$G$112:AH112)/Paramètres!$C$112 -> 1 | AI69: =SUM(Paramètres!$G$112:AI112)/Paramètres!$C$112 -> 1 | AJ69: =SUM(Paramètres!$G$112:AJ112)/Paramètres!$C$112 -> 1 | AK69: =SUM(Paramètres!$G$112:AK112)/Paramètres!$C$112 -> 1 | AL69: =SUM(Paramètres!$G$112:AL112)/Paramètres!$C$112 -> 1 | AM69: =SUM(Paramètres!$G$112:AM112)/Paramètres!$C$112 -> 1 | AN69: =SUM(Paramètres!$G$112:AN112)/Paramètres!$C$112 -> 1 | AO69: =SUM(Paramètres!$G$112:AO112)/Paramètres!$C$112 -> 1 | AP69: =SUM(Paramètres!$G$112:AP112)/Paramètres!$C$112 -> 1 | AQ69: =SUM(Paramètres!$G$112:AQ112)/Paramètres!$C$112 -> 1 | AR69: =SUM(Paramètres!$G$112:AR112)/Paramètres!$C$112 -> 1 | AS69: =SUM(Paramètres!$G$112:AS112)/Paramètres!$C$112 -> 1 | AT69: =SUM(Paramètres!$G$112:AT112)/Paramètres!$C$112 -> 1 | AU69: =SUM(Paramètres!$G$112:AU112)/Paramètres!$C$112 -> 1 | AV69: =SUM(Paramètres!$G$112:AV112)/Paramètres!$C$112 -> 1 | AW69: =SUM(Paramètres!$G$112:AW112)/Paramètres!$C$112 -> 1 | AX69: =SUM(Paramètres!$G$112:AX112)/Paramètres!$C$112 -> 1 | AY69: =SUM(Paramètres!$G$112:AY112)/Paramètres!$C$112 -> 1 | AZ69: =SUM(Paramètres!$G$112:AZ112)/Paramètres!$C$112 -> 1 | BA69: =SUM(Paramètres!$G$112:BA112)/Paramètres!$C$112 -> 1 | BB69: =SUM(Paramètres!$G$112:BB112)/Paramètres!$C$112 -> 1 | BC69: =SUM(Paramètres!$G$112:BC112)/Paramètres!$C$112 -> 1 | BD69: =SUM(Paramètres!$G$112:BD112)/Paramètres!$C$112 -> 1
D70: Reserves exploitables restantes au 31 decembre | E70: tons | G70: =Paramètres!$C$112-SUM(Paramètres!$G$112:G112) -> 2970000 | H70: =Paramètres!$C$112-SUM(Paramètres!$G$112:H112) -> 2970000 | I70: =Paramètres!$C$112-SUM(Paramètres!$G$112:I112) -> 2700000 | J70: =Paramètres!$C$112-SUM(Paramètres!$G$112:J112) -> 2430000 | K70: =Paramètres!$C$112-SUM(Paramètres!$G$112:K112) -> 2160000 | L70: =Paramètres!$C$112-SUM(Paramètres!$G$112:L112) -> 1890000 | M70: =Paramètres!$C$112-SUM(Paramètres!$G$112:M112) -> 1620000 | N70: =Paramètres!$C$112-SUM(Paramètres!$G$112:N112) -> 1350000 | O70: =Paramètres!$C$112-SUM(Paramètres!$G$112:O112) -> 1080000 | P70: =Paramètres!$C$112-SUM(Paramètres!$G$112:P112) -> 810000 | Q70: =Paramètres!$C$112-SUM(Paramètres!$G$112:Q112) -> 540000 | R70: =Paramètres!$C$112-SUM(Paramètres!$G$112:R112) -> 270000 | S70: =Paramètres!$C$112-SUM(Paramètres!$G$112:S112) -> 0 | T70: =Paramètres!$C$112-SUM(Paramètres!$G$112:T112) -> 0 | U70: =Paramètres!$C$112-SUM(Paramètres!$G$112:U112) -> 0 | V70: =Paramètres!$C$112-SUM(Paramètres!$G$112:V112) -> 0 | W70: =Paramètres!$C$112-SUM(Paramètres!$G$112:W112) -> 0 | X70: =Paramètres!$C$112-SUM(Paramètres!$G$112:X112) -> 0 | Y70: =Paramètres!$C$112-SUM(Paramètres!$G$112:Y112) -> 0 | Z70: =Paramètres!$C$112-SUM(Paramètres!$G$112:Z112) -> 0 | AA70: =Paramètres!$C$112-SUM(Paramètres!$G$112:AA112) -> 0 | AB70: =Paramètres!$C$112-SUM(Paramètres!$G$112:AB112) -> 0 | AC70: =Paramètres!$C$112-SUM(Paramètres!$G$112:AC112) -> 0 | AD70: =Paramètres!$C$112-SUM(Paramètres!$G$112:AD112) -> 0 | AE70: =Paramètres!$C$112-SUM(Paramètres!$G$112:AE112) -> 0 | AF70: =Paramètres!$C$112-SUM(Paramètres!$G$112:AF112) -> 0 | AG70: =Paramètres!$C$112-SUM(Paramètres!$G$112:AG112) -> 0 | AH70: =Paramètres!$C$112-SUM(Paramètres!$G$112:AH112) -> 0 | AI70: =Paramètres!$C$112-SUM(Paramètres!$G$112:AI112) -> 0 | AJ70: =Paramètres!$C$112-SUM(Paramètres!$G$112:AJ112) -> 0 | AK70: =Paramètres!$C$112-SUM(Paramètres!$G$112:AK112) -> 0 | AL70: =Paramètres!$C$112-SUM(Paramètres!$G$112:AL112) -> 0 | AM70: =Paramètres!$C$112-SUM(Paramètres!$G$112:AM112) -> 0 | AN70: =Paramètres!$C$112-SUM(Paramètres!$G$112:AN112) -> 0 | AO70: =Paramètres!$C$112-SUM(Paramètres!$G$112:AO112) -> 0 | AP70: =Paramètres!$C$112-SUM(Paramètres!$G$112:AP112) -> 0 | AQ70: =Paramètres!$C$112-SUM(Paramètres!$G$112:AQ112) -> 0 | AR70: =Paramètres!$C$112-SUM(Paramètres!$G$112:AR112) -> 0 | AS70: =Paramètres!$C$112-SUM(Paramètres!$G$112:AS112) -> 0 | AT70: =Paramètres!$C$112-SUM(Paramètres!$G$112:AT112) -> 0 | AU70: =Paramètres!$C$112-SUM(Paramètres!$G$112:AU112) -> 0 | AV70: =Paramètres!$C$112-SUM(Paramètres!$G$112:AV112) -> 0 | AW70: =Paramètres!$C$112-SUM(Paramètres!$G$112:AW112) -> 0 | AX70: =Paramètres!$C$112-SUM(Paramètres!$G$112:AX112) -> 0 | AY70: =Paramètres!$C$112-SUM(Paramètres!$G$112:AY112) -> 0 | AZ70: =Paramètres!$C$112-SUM(Paramètres!$G$112:AZ112) -> 0 | BA70: =Paramètres!$C$112-SUM(Paramètres!$G$112:BA112) -> 0 | BB70: =Paramètres!$C$112-SUM(Paramètres!$G$112:BB112) -> 0 | BC70: =Paramètres!$C$112-SUM(Paramètres!$G$112:BC112) -> 0 | BD70: =Paramètres!$C$112-SUM(Paramètres!$G$112:BD112) -> 0
D71: Repere - fonds de rehabilitation | E71: repere | G71: =1*(G69>Paramètres!$F$39)*(Paramètres!G112>0) -> 0 | H71: =1*(H69>Paramètres!$F$39)*(Paramètres!H112>0) -> 0 | I71: =1*(I69>Paramètres!$F$39)*(Paramètres!I112>0) -> 1 | J71: =1*(J69>Paramètres!$F$39)*(Paramètres!J112>0) -> 1 | K71: =1*(K69>Paramètres!$F$39)*(Paramètres!K112>0) -> 1 | L71: =1*(L69>Paramètres!$F$39)*(Paramètres!L112>0) -> 1 | M71: =1*(M69>Paramètres!$F$39)*(Paramètres!M112>0) -> 1 | N71: =1*(N69>Paramètres!$F$39)*(Paramètres!N112>0) -> 1 | O71: =1*(O69>Paramètres!$F$39)*(Paramètres!O112>0) -> 1 | P71: =1*(P69>Paramètres!$F$39)*(Paramètres!P112>0) -> 1 | Q71: =1*(Q69>Paramètres!$F$39)*(Paramètres!Q112>0) -> 1 | R71: =1*(R69>Paramètres!$F$39)*(Paramètres!R112>0) -> 1 | S71: =1*(S69>Paramètres!$F$39)*(Paramètres!S112>0) -> 1 | T71: =1*(T69>Paramètres!$F$39)*(Paramètres!T112>0) -> 0 | U71: =1*(U69>Paramètres!$F$39)*(Paramètres!U112>0) -> 0 | V71: =1*(V69>Paramètres!$F$39)*(Paramètres!V112>0) -> 0 | W71: =1*(W69>Paramètres!$F$39)*(Paramètres!W112>0) -> 0 | X71: =1*(X69>Paramètres!$F$39)*(Paramètres!X112>0) -> 0 | Y71: =1*(Y69>Paramètres!$F$39)*(Paramètres!Y112>0) -> 0 | Z71: =1*(Z69>Paramètres!$F$39)*(Paramètres!Z112>0) -> 0 | AA71: =1*(AA69>Paramètres!$F$39)*(Paramètres!AA112>0) -> 0 | AB71: =1*(AB69>Paramètres!$F$39)*(Paramètres!AB112>0) -> 0 | AC71: =1*(AC69>Paramètres!$F$39)*(Paramètres!AC112>0) -> 0 | AD71: =1*(AD69>Paramètres!$F$39)*(Paramètres!AD112>0) -> 0 | AE71: =1*(AE69>Paramètres!$F$39)*(Paramètres!AE112>0) -> 0 | AF71: =1*(AF69>Paramètres!$F$39)*(Paramètres!AF112>0) -> 0 | AG71: =1*(AG69>Paramètres!$F$39)*(Paramètres!AG112>0) -> 0 | AH71: =1*(AH69>Paramètres!$F$39)*(Paramètres!AH112>0) -> 0 | AI71: =1*(AI69>Paramètres!$F$39)*(Paramètres!AI112>0) -> 0 | AJ71: =1*(AJ69>Paramètres!$F$39)*(Paramètres!AJ112>0) -> 0 | AK71: =1*(AK69>Paramètres!$F$39)*(Paramètres!AK112>0) -> 0 | AL71: =1*(AL69>Paramètres!$F$39)*(Paramètres!AL112>0) -> 0 | AM71: =1*(AM69>Paramètres!$F$39)*(Paramètres!AM112>0) -> 0 | AN71: =1*(AN69>Paramètres!$F$39)*(Paramètres!AN112>0) -> 0 | AO71: =1*(AO69>Paramètres!$F$39)*(Paramètres!AO112>0) -> 0 | AP71: =1*(AP69>Paramètres!$F$39)*(Paramètres!AP112>0) -> 0 | AQ71: =1*(AQ69>Paramètres!$F$39)*(Paramètres!AQ112>0) -> 0 | AR71: =1*(AR69>Paramètres!$F$39)*(Paramètres!AR112>0) -> 0 | AS71: =1*(AS69>Paramètres!$F$39)*(Paramètres!AS112>0) -> 0 | AT71: =1*(AT69>Paramètres!$F$39)*(Paramètres!AT112>0) -> 0 | AU71: =1*(AU69>Paramètres!$F$39)*(Paramètres!AU112>0) -> 0 | AV71: =1*(AV69>Paramètres!$F$39)*(Paramètres!AV112>0) -> 0 | AW71: =1*(AW69>Paramètres!$F$39)*(Paramètres!AW112>0) -> 0 | AX71: =1*(AX69>Paramètres!$F$39)*(Paramètres!AX112>0) -> 0 | AY71: =1*(AY69>Paramètres!$F$39)*(Paramètres!AY112>0) -> 0 | AZ71: =1*(AZ69>Paramètres!$F$39)*(Paramètres!AZ112>0) -> 0 | BA71: =1*(BA69>Paramètres!$F$39)*(Paramètres!BA112>0) -> 0 | BB71: =1*(BB69>Paramètres!$F$39)*(Paramètres!BB112>0) -> 0 | BC71: =1*(BC69>Paramètres!$F$39)*(Paramètres!BC112>0) -> 0 | BD71: =1*(BD69>Paramètres!$F$39)*(Paramètres!BD112>0) -> 0
C72: =SUM(G72:BD72) -> 2970000 | D72: Production pendant la periode de rehabilitation | E72: tonnes | G72: =G71*Paramètres!G112 -> 0 | H72: =H71*Paramètres!H112 -> 0 | I72: =I71*Paramètres!I112 -> 270000 | J72: =J71*Paramètres!J112 -> 270000 | K72: =K71*Paramètres!K112 -> 270000 | L72: =L71*Paramètres!L112 -> 270000 | M72: =M71*Paramètres!M112 -> 270000 | N72: =N71*Paramètres!N112 -> 270000 | O72: =O71*Paramètres!O112 -> 270000 | P72: =P71*Paramètres!P112 -> 270000 | Q72: =Q71*Paramètres!Q112 -> 270000 | R72: =R71*Paramètres!R112 -> 270000 | S72: =S71*Paramètres!S112 -> 270000 | T72: =T71*Paramètres!T112 -> 0 | U72: =U71*Paramètres!U112 -> 0 | V72: =V71*Paramètres!V112 -> 0 | W72: =W71*Paramètres!W112 -> 0 | X72: =X71*Paramètres!X112 -> 0 | Y72: =Y71*Paramètres!Y112 -> 0 | Z72: =Z71*Paramètres!Z112 -> 0 | AA72: =AA71*Paramètres!AA112 -> 0 | AB72: =AB71*Paramètres!AB112 -> 0 | AC72: =AC71*Paramètres!AC112 -> 0 | AD72: =AD71*Paramètres!AD112 -> 0 | AE72: =AE71*Paramètres!AE112 -> 0 | AF72: =AF71*Paramètres!AF112 -> 0 | AG72: =AG71*Paramètres!AG112 -> 0 | AH72: =AH71*Paramètres!AH112 -> 0 | AI72: =AI71*Paramètres!AI112 -> 0 | AJ72: =AJ71*Paramètres!AJ112 -> 0 | AK72: =AK71*Paramètres!AK112 -> 0 | AL72: =AL71*Paramètres!AL112 -> 0 | AM72: =AM71*Paramètres!AM112 -> 0 | AN72: =AN71*Paramètres!AN112 -> 0 | AO72: =AO71*Paramètres!AO112 -> 0 | AP72: =AP71*Paramètres!AP112 -> 0 | AQ72: =AQ71*Paramètres!AQ112 -> 0 | AR72: =AR71*Paramètres!AR112 -> 0 | AS72: =AS71*Paramètres!AS112 -> 0 | AT72: =AT71*Paramètres!AT112 -> 0 | AU72: =AU71*Paramètres!AU112 -> 0 | AV72: =AV71*Paramètres!AV112 -> 0 | AW72: =AW71*Paramètres!AW112 -> 0 | AX72: =AX71*Paramètres!AX112 -> 0 | AY72: =AY71*Paramètres!AY112 -> 0 | AZ72: =AZ71*Paramètres!AZ112 -> 0 | BA72: =BA71*Paramètres!BA112 -> 0 | BB72: =BB71*Paramètres!BB112 -> 0 | BC72: =BC71*Paramètres!BC112 -> 0 | BD72: =BD71*Paramètres!BD112 -> 0
C73: 17820000 | D73: Production cumulee pendant la periode de rehabilitation | E73: tonnes | G73: =(G72+F73)*G71 -> 0 | H73: 0 | I73: 270000 | J73: 540000 | K73: 810000 | L73: 1080000 | M73: 1350000 | N73: 1620000 | O73: 1890000 | P73: 2160000 | Q73: 2430000 | R73: 2700000 | S73: 2970000 | T73: 0 | U73: 0 | V73: 0 | W73: 0 | X73: 0 | Y73: 0 | Z73: 0 | AA73: 0 | AB73: 0 | AC73: 0 | AD73: 0 | AE73: 0 | AF73: 0 | AG73: 0 | AH73: 0 | AI73: 0 | AJ73: 0 | AK73: 0 | AL73: 0 | AM73: =(AM72+AL73)*AM71 -> 0 | AN73: 0 | AO73: 0 | AP73: 0 | AQ73: 0 | AR73: 0 | AS73: 0 | AT73: 0 | AU73: 0 | AV73: 0 | AW73: 0 | AX73: 0 | AY73: 0 | AZ73: 0 | BA73: 0 | BB73: 0 | BC73: 0 | BD73: 0
C74: 0 | D74: Solde initial du fonds de rehabilitation | E74: $mm nominal | G74: =F78 -> 0 | H74: 0 | I74: 0 | J74: 0 | K74: 0 | L74: 0 | M74: 0 | N74: 0 | O74: 0 | P74: 0 | Q74: 0 | R74: 0 | S74: 0 | T74: 0 | U74: 0 | V74: 0 | W74: 0 | X74: 0 | Y74: 0 | Z74: 0 | AA74: 0 | AB74: 0 | AC74: 0 | AD74: 0 | AE74: 0 | AF74: 0 | AG74: 0 | AH74: 0 | AI74: 0 | AJ74: 0 | AK74: 0 | AL74: 0 | AM74: =AL78 -> 0 | AN74: 0 | AO74: 0 | AP74: 0 | AQ74: 0 | AR74: 0 | AS74: 0 | AT74: 0 | AU74: 0 | AV74: 0 | AW74: 0 | AX74: 0 | AY74: 0 | AZ74: 0 | BA74: 0 | BB74: 0 | BC74: 0 | BD74: 0
C75: 0 | D75: Provision autorisee pendant l'annee | E75: $mm nominal | G75: =IF(G71<>0,(G67-G74)*IFERROR(G72/F70,1)*(Paramètres!$F$38="yes"),0) -> 0 | H75: =IF(H71<>0,(H67-H74)*IFERROR(H72/G70,1)*(Paramètres!$F$38="yes"),0) -> 0 | I75: =IF(I71<>0,(I67-I74)*IFERROR(I72/H70,1)*(Paramètres!$F$38="yes"),0) -> 0 | J75: =IF(J71<>0,(J67-J74)*IFERROR(J72/I70,1)*(Paramètres!$F$38="yes"),0) -> 0 | K75: =IF(K71<>0,(K67-K74)*IFERROR(K72/J70,1)*(Paramètres!$F$38="yes"),0) -> 0 | L75: =IF(L71<>0,(L67-L74)*IFERROR(L72/K70,1)*(Paramètres!$F$38="yes"),0) -> 0 | M75: =IF(M71<>0,(M67-M74)*IFERROR(M72/L70,1)*(Paramètres!$F$38="yes"),0) -> 0 | N75: =IF(N71<>0,(N67-N74)*IFERROR(N72/M70,1)*(Paramètres!$F$38="yes"),0) -> 0 | O75: =IF(O71<>0,(O67-O74)*IFERROR(O72/N70,1)*(Paramètres!$F$38="yes"),0) -> 0 | P75: =IF(P71<>0,(P67-P74)*IFERROR(P72/O70,1)*(Paramètres!$F$38="yes"),0) -> 0 | Q75: =IF(Q71<>0,(Q67-Q74)*IFERROR(Q72/P70,1)*(Paramètres!$F$38="yes"),0) -> 0 | R75: =IF(R71<>0,(R67-R74)*IFERROR(R72/Q70,1)*(Paramètres!$F$38="yes"),0) -> 0 | S75: =IF(S71<>0,(S67-S74)*IFERROR(S72/R70,1)*(Paramètres!$F$38="yes"),0) -> 0 | T75: =IF(T71<>0,(T67-T74)*IFERROR(T72/S70,1)*(Paramètres!$F$38="yes"),0) -> 0 | U75: =IF(U71<>0,(U67-U74)*IFERROR(U72/T70,1)*(Paramètres!$F$38="yes"),0) -> 0 | V75: =IF(V71<>0,(V67-V74)*IFERROR(V72/U70,1)*(Paramètres!$F$38="yes"),0) -> 0 | W75: =IF(W71<>0,(W67-W74)*IFERROR(W72/V70,1)*(Paramètres!$F$38="yes"),0) -> 0 | X75: =IF(X71<>0,(X67-X74)*IFERROR(X72/W70,1)*(Paramètres!$F$38="yes"),0) -> 0 | Y75: =IF(Y71<>0,(Y67-Y74)*IFERROR(Y72/X70,1)*(Paramètres!$F$38="yes"),0) -> 0 | Z75: =IF(Z71<>0,(Z67-Z74)*IFERROR(Z72/Y70,1)*(Paramètres!$F$38="yes"),0) -> 0 | AA75: =IF(AA71<>0,(AA67-AA74)*IFERROR(AA72/Z70,1)*(Paramètres!$F$38="yes"),0) -> 0 | AB75: =IF(AB71<>0,(AB67-AB74)*IFERROR(AB72/AA70,1)*(Paramètres!$F$38="yes"),0) -> 0 | AC75: =IF(AC71<>0,(AC67-AC74)*IFERROR(AC72/AB70,1)*(Paramètres!$F$38="yes"),0) -> 0 | AD75: =IF(AD71<>0,(AD67-AD74)*IFERROR(AD72/AC70,1)*(Paramètres!$F$38="yes"),0) -> 0 | AE75: =IF(AE71<>0,(AE67-AE74)*IFERROR(AE72/AD70,1)*(Paramètres!$F$38="yes"),0) -> 0 | AF75: =IF(AF71<>0,(AF67-AF74)*IFERROR(AF72/AE70,1)*(Paramètres!$F$38="yes"),0) -> 0 | AG75: =IF(AG71<>0,(AG67-AG74)*IFERROR(AG72/AF70,1)*(Paramètres!$F$38="yes"),0) -> 0 | AH75: =IF(AH71<>0,(AH67-AH74)*IFERROR(AH72/AG70,1)*(Paramètres!$F$38="yes"),0) -> 0 | AI75: =IF(AI71<>0,(AI67-AI74)*IFERROR(AI72/AH70,1)*(Paramètres!$F$38="yes"),0) -> 0 | AJ75: =IF(AJ71<>0,(AJ67-AJ74)*IFERROR(AJ72/AI70,1)*(Paramètres!$F$38="yes"),0) -> 0 | AK75: =IF(AK71<>0,(AK67-AK74)*IFERROR(AK72/AJ70,1)*(Paramètres!$F$38="yes"),0) -> 0 | AL75: =IF(AL71<>0,(AL67-AL74)*IFERROR(AL72/AK70,1)*(Paramètres!$F$38="yes"),0) -> 0 | AM75: =IF(AM71<>0,(AM67-AM74)*IFERROR(AM72/AL70,1)*(Paramètres!$F$38="yes"),0) -> 0 | AN75: =IF(AN71<>0,(AN67-AN74)*IFERROR(AN72/AM70,1)*(Paramètres!$F$38="yes"),0) -> 0 | AO75: =IF(AO71<>0,(AO67-AO74)*IFERROR(AO72/AN70,1)*(Paramètres!$F$38="yes"),0) -> 0 | AP75: =IF(AP71<>0,(AP67-AP74)*IFERROR(AP72/AO70,1)*(Paramètres!$F$38="yes"),0) -> 0 | AQ75: =IF(AQ71<>0,(AQ67-AQ74)*IFERROR(AQ72/AP70,1)*(Paramètres!$F$38="yes"),0) -> 0 | AR75: =IF(AR71<>0,(AR67-AR74)*IFERROR(AR72/AQ70,1)*(Paramètres!$F$38="yes"),0) -> 0 | AS75: =IF(AS71<>0,(AS67-AS74)*IFERROR(AS72/AR70,1)*(Paramètres!$F$38="yes"),0) -> 0 | AT75: =IF(AT71<>0,(AT67-AT74)*IFERROR(AT72/AS70,1)*(Paramètres!$F$38="yes"),0) -> 0 | AU75: =IF(AU71<>0,(AU67-AU74)*IFERROR(AU72/AT70,1)*(Paramètres!$F$38="yes"),0) -> 0 | AV75: =IF(AV71<>0,(AV67-AV74)*IFERROR(AV72/AU70,1)*(Paramètres!$F$38="yes"),0) -> 0 | AW75: =IF(AW71<>0,(AW67-AW74)*IFERROR(AW72/AV70,1)*(Paramètres!$F$38="yes"),0) -> 0 | AX75: =IF(AX71<>0,(AX67-AX74)*IFERROR(AX72/AW70,1)*(Paramètres!$F$38="yes"),0) -> 0 | AY75: =IF(AY71<>0,(AY67-AY74)*IFERROR(AY72/AX70,1)*(Paramètres!$F$38="yes"),0) -> 0 | AZ75: =IF(AZ71<>0,(AZ67-AZ74)*IFERROR(AZ72/AY70,1)*(Paramètres!$F$38="yes"),0) -> 0 | BA75: =IF(BA71<>0,(BA67-BA74)*IFERROR(BA72/AZ70,1)*(Paramètres!$F$38="yes"),0) -> 0 | BB75: =IF(BB71<>0,(BB67-BB74)*IFERROR(BB72/BA70,1)*(Paramètres!$F$38="yes"),0) -> 0 | BC75: =IF(BC71<>0,(BC67-BC74)*IFERROR(BC72/BB70,1)*(Paramètres!$F$38="yes"),0) -> 0 | BD75: =IF(BD71<>0,(BD67-BD74)*IFERROR(BD72/BC70,1)*(Paramètres!$F$38="yes"),0) -> 0
C76: 0 | D76: Retraits du fonds pour payer les couts de rehabilitation | E76: $mm nominal | G76: =MIN(G65,F78)*-1 -> 0 | H76: 0 | I76: 0 | J76: 0 | K76: 0 | L76: 0 | M76: 0 | N76: 0 | O76: 0 | P76: 0 | Q76: 0 | R76: 0 | S76: 0 | T76: 0 | U76: 0 | V76: 0 | W76: 0 | X76: 0 | Y76: 0 | Z76: 0 | AA76: 0 | AB76: 0 | AC76: 0 | AD76: 0 | AE76: 0 | AF76: 0 | AG76: 0 | AH76: 0 | AI76: 0 | AJ76: 0 | AK76: 0 | AL76: 0 | AM76: =MIN(AM65,AL78)*-1 -> 0 | AN76: 0 | AO76: 0 | AP76: 0 | AQ76: 0 | AR76: 0 | AS76: 0 | AT76: 0 | AU76: 0 | AV76: 0 | AW76: 0 | AX76: 0 | AY76: 0 | AZ76: 0 | BA76: 0 | BB76: 0 | BC76: 0 | BD76: 0
C77: 0 | D77: Solde positive | E77: $mm nominal | G77: =(G76<>0)*(G74+G76)*-1 -> 0 | H77: 0 | I77: 0 | J77: 0 | K77: 0 | L77: 0 | M77: 0 | N77: 0 | O77: 0 | P77: 0 | Q77: 0 | R77: 0 | S77: 0 | T77: 0 | U77: 0 | V77: 0 | W77: 0 | X77: 0 | Y77: 0 | Z77: 0 | AA77: 0 | AB77: 0 | AC77: 0 | AD77: 0 | AE77: 0 | AF77: 0 | AG77: 0 | AH77: 0 | AI77: 0 | AJ77: 0 | AK77: 0 | AL77: 0 | AM77: =(AM76<>0)*(AM74+AM76)*-1 -> 0 | AN77: 0 | AO77: 0 | AP77: 0 | AQ77: 0 | AR77: 0 | AS77: 0 | AT77: 0 | AU77: 0 | AV77: 0 | AW77: 0 | AX77: 0 | AY77: 0 | AZ77: 0 | BA77: 0 | BB77: 0 | BC77: 0 | BD77: 0
D78: Solde final | E78: $mm nominal | G78: =SUM(G74:G77) -> 0 | H78: 0 | I78: 0 | J78: 0 | K78: 0 | L78: 0 | M78: 0 | N78: 0 | O78: 0 | P78: 0 | Q78: 0 | R78: 0 | S78: 0 | T78: 0 | U78: 0 | V78: 0 | W78: 0 | X78: 0 | Y78: 0 | Z78: 0 | AA78: 0 | AB78: 0 | AC78: 0 | AD78: 0 | AE78: 0 | AF78: 0 | AG78: 0 | AH78: 0 | AI78: 0 | AJ78: 0 | AK78: 0 | AL78: 0 | AM78: =SUM(AM74:AM77) -> 0 | AN78: 0 | AO78: 0 | AP78: 0 | AQ78: 0 | AR78: 0 | AS78: 0 | AT78: 0 | AU78: 0 | AV78: 0 | AW78: 0 | AX78: 0 | AY78: 0 | AZ78: 0 | BA78: 0 | BB78: 0 | BC78: 0 | BD78: 0
D80: Redevance
C81: =SUM(G81:BD81) -> 4443.776364 | D81: Chiffre d'affaires brut | E81: $mm nominal | G81: =G43 -> 0 | H81: 0 | I81: 365.1804 | J81: 372.484008 | K81: 379.9336882 | L81: 387.5323619 | M81: 395.2830092 | N81: 403.1886693 | O81: 411.2524427 | P81: 419.4774916 | Q81: 427.8670414 | R81: 436.4243822 | S81: 445.1528699 | T81: 0 | U81: 0 | V81: 0 | W81: 0 | X81: 0 | Y81: 0 | Z81: 0 | AA81: 0 | AB81: 0 | AC81: 0 | AD81: 0 | AE81: 0 | AF81: 0 | AG81: 0 | AH81: 0 | AI81: 0 | AJ81: 0 | AK81: 0 | AL81: 0 | AM81: =AM43 -> 0 | AN81: 0 | AO81: 0 | AP81: 0 | AQ81: 0 | AR81: 0 | AS81: 0 | AT81: 0 | AU81: 0 | AV81: 0 | AW81: 0 | AX81: 0 | AY81: 0 | AZ81: 0 | BA81: 0 | BB81: 0 | BC81: 0 | BD81: 0
C82: =SUM(G82:BD82) -> 4443.776364 | D82: Chiffre d'affaires net | E82: $mm nominal | G82: =G45 -> 0 | H82: =H45 -> 0 | I82: 365.1804 | J82: 372.484008 | K82: 379.9336882 | L82: 387.5323619 | M82: 395.2830092 | N82: 403.1886693 | O82: 411.2524427 | P82: 419.4774916 | Q82: 427.8670414 | R82: 436.4243822 | S82: 445.1528699 | T82: 0 | U82: 0 | V82: 0 | W82: 0 | X82: 0 | Y82: 0 | Z82: 0 | AA82: 0 | AB82: 0 | AC82: 0 | AD82: 0 | AE82: 0 | AF82: 0 | AG82: 0 | AH82: 0 | AI82: 0 | AJ82: 0 | AK82: 0 | AL82: 0 | AM82: =AM45 -> 0 | AN82: 0 | AO82: 0 | AP82: 0 | AQ82: 0 | AR82: 0 | AS82: 0 | AT82: 0 | AU82: 0 | AV82: 0 | AW82: 0 | AX82: 0 | AY82: 0 | AZ82: 0 | BA82: 0 | BB82: 0 | BC82: 0 | BD82: 0
C83: =SUM(G83:BD83) -> 4443.776364 | D83: Assiette de la redevance: revenu net | E83: $mm nominal | G83: =IF(G29=0,0,IF(Paramètres!$F$12="gross",G81,G82)) -> 0 | H83: =IF(H29=0,0,IF(Paramètres!$F$12="gross",H81,H82)) -> 0 | I83: =IF(I29=0,0,IF(Paramètres!$F$12="gross",I81,I82)) -> 365.1804 | J83: =IF(J29=0,0,IF(Paramètres!$F$12="gross",J81,J82)) -> 372.484008 | K83: =IF(K29=0,0,IF(Paramètres!$F$12="gross",K81,K82)) -> 379.9336882 | L83: =IF(L29=0,0,IF(Paramètres!$F$12="gross",L81,L82)) -> 387.5323619 | M83: =IF(M29=0,0,IF(Paramètres!$F$12="gross",M81,M82)) -> 395.2830092 | N83: =IF(N29=0,0,IF(Paramètres!$F$12="gross",N81,N82)) -> 403.1886693 | O83: =IF(O29=0,0,IF(Paramètres!$F$12="gross",O81,O82)) -> 411.2524427 | P83: =IF(P29=0,0,IF(Paramètres!$F$12="gross",P81,P82)) -> 419.4774916 | Q83: =IF(Q29=0,0,IF(Paramètres!$F$12="gross",Q81,Q82)) -> 427.8670414 | R83: =IF(R29=0,0,IF(Paramètres!$F$12="gross",R81,R82)) -> 436.4243822 | S83: =IF(S29=0,0,IF(Paramètres!$F$12="gross",S81,S82)) -> 445.1528699 | T83: =IF(T29=0,0,IF(Paramètres!$F$12="gross",T81,T82)) -> 0 | U83: =IF(U29=0,0,IF(Paramètres!$F$12="gross",U81,U82)) -> 0 | V83: =IF(V29=0,0,IF(Paramètres!$F$12="gross",V81,V82)) -> 0 | W83: =IF(W29=0,0,IF(Paramètres!$F$12="gross",W81,W82)) -> 0 | X83: =IF(X29=0,0,IF(Paramètres!$F$12="gross",X81,X82)) -> 0 | Y83: =IF(Y29=0,0,IF(Paramètres!$F$12="gross",Y81,Y82)) -> 0 | Z83: =IF(Z29=0,0,IF(Paramètres!$F$12="gross",Z81,Z82)) -> 0 | AA83: =IF(AA29=0,0,IF(Paramètres!$F$12="gross",AA81,AA82)) -> 0 | AB83: =IF(AB29=0,0,IF(Paramètres!$F$12="gross",AB81,AB82)) -> 0 | AC83: =IF(AC29=0,0,IF(Paramètres!$F$12="gross",AC81,AC82)) -> 0 | AD83: =IF(AD29=0,0,IF(Paramètres!$F$12="gross",AD81,AD82)) -> 0 | AE83: =IF(AE29=0,0,IF(Paramètres!$F$12="gross",AE81,AE82)) -> 0 | AF83: =IF(AF29=0,0,IF(Paramètres!$F$12="gross",AF81,AF82)) -> 0 | AG83: =IF(AG29=0,0,IF(Paramètres!$F$12="gross",AG81,AG82)) -> 0 | AH83: =IF(AH29=0,0,IF(Paramètres!$F$12="gross",AH81,AH82)) -> 0 | AI83: =IF(AI29=0,0,IF(Paramètres!$F$12="gross",AI81,AI82)) -> 0 | AJ83: =IF(AJ29=0,0,IF(Paramètres!$F$12="gross",AJ81,AJ82)) -> 0 | AK83: =IF(AK29=0,0,IF(Paramètres!$F$12="gross",AK81,AK82)) -> 0 | AL83: =IF(AL29=0,0,IF(Paramètres!$F$12="gross",AL81,AL82)) -> 0 | AM83: =IF(AM29=0,0,IF(Paramètres!$F$12="gross",AM81,AM82)) -> 0 | AN83: =IF(AN29=0,0,IF(Paramètres!$F$12="gross",AN81,AN82)) -> 0 | AO83: =IF(AO29=0,0,IF(Paramètres!$F$12="gross",AO81,AO82)) -> 0 | AP83: =IF(AP29=0,0,IF(Paramètres!$F$12="gross",AP81,AP82)) -> 0 | AQ83: =IF(AQ29=0,0,IF(Paramètres!$F$12="gross",AQ81,AQ82)) -> 0 | AR83: =IF(AR29=0,0,IF(Paramètres!$F$12="gross",AR81,AR82)) -> 0 | AS83: =IF(AS29=0,0,IF(Paramètres!$F$12="gross",AS81,AS82)) -> 0 | AT83: =IF(AT29=0,0,IF(Paramètres!$F$12="gross",AT81,AT82)) -> 0 | AU83: =IF(AU29=0,0,IF(Paramètres!$F$12="gross",AU81,AU82)) -> 0 | AV83: =IF(AV29=0,0,IF(Paramètres!$F$12="gross",AV81,AV82)) -> 0 | AW83: =IF(AW29=0,0,IF(Paramètres!$F$12="gross",AW81,AW82)) -> 0 | AX83: =IF(AX29=0,0,IF(Paramètres!$F$12="gross",AX81,AX82)) -> 0 | AY83: =IF(AY29=0,0,IF(Paramètres!$F$12="gross",AY81,AY82)) -> 0 | AZ83: =IF(AZ29=0,0,IF(Paramètres!$F$12="gross",AZ81,AZ82)) -> 0 | BA83: =IF(BA29=0,0,IF(Paramètres!$F$12="gross",BA81,BA82)) -> 0 | BB83: =IF(BB29=0,0,IF(Paramètres!$F$12="gross",BB81,BB82)) -> 0 | BC83: =IF(BC29=0,0,IF(Paramètres!$F$12="gross",BC81,BC82)) -> 0 | BD83: =IF(BD29=0,0,IF(Paramètres!$F$12="gross",BD81,BD82)) -> 0
D84: Taux 1 | E84: % | G84: =Paramètres!$F$11 -> 0.025 | H84: =Paramètres!$F$11 -> 0.025 | I84: =Paramètres!$F$11 -> 0.025 | J84: =Paramètres!$F$11 -> 0.025 | K84: =Paramètres!$F$11 -> 0.025 | L84: =Paramètres!$F$11 -> 0.025 | M84: =Paramètres!$F$11 -> 0.025 | N84: =Paramètres!$F$11 -> 0.025 | O84: =Paramètres!$F$11 -> 0.025 | P84: =Paramètres!$F$11 -> 0.025 | Q84: =Paramètres!$F$11 -> 0.025 | R84: =Paramètres!$F$11 -> 0.025 | S84: =Paramètres!$F$11 -> 0.025 | T84: =Paramètres!$F$11 -> 0.025 | U84: =Paramètres!$F$11 -> 0.025 | V84: =Paramètres!$F$11 -> 0.025 | W84: =Paramètres!$F$11 -> 0.025 | X84: =Paramètres!$F$11 -> 0.025 | Y84: =Paramètres!$F$11 -> 0.025 | Z84: =Paramètres!$F$11 -> 0.025 | AA84: =Paramètres!$F$11 -> 0.025 | AB84: =Paramètres!$F$11 -> 0.025 | AC84: =Paramètres!$F$11 -> 0.025 | AD84: =Paramètres!$F$11 -> 0.025 | AE84: =Paramètres!$F$11 -> 0.025 | AF84: =Paramètres!$F$11 -> 0.025 | AG84: =Paramètres!$F$11 -> 0.025 | AH84: =Paramètres!$F$11 -> 0.025 | AI84: =Paramètres!$F$11 -> 0.025 | AJ84: =Paramètres!$F$11 -> 0.025 | AK84: =Paramètres!$F$11 -> 0.025 | AL84: =Paramètres!$F$11 -> 0.025 | AM84: =Paramètres!$F$11 -> 0.025 | AN84: =Paramètres!$F$11 -> 0.025 | AO84: =Paramètres!$F$11 -> 0.025 | AP84: =Paramètres!$F$11 -> 0.025 | AQ84: =Paramètres!$F$11 -> 0.025 | AR84: =Paramètres!$F$11 -> 0.025 | AS84: =Paramètres!$F$11 -> 0.025 | AT84: =Paramètres!$F$11 -> 0.025 | AU84: =Paramètres!$F$11 -> 0.025 | AV84: =Paramètres!$F$11 -> 0.025 | AW84: =Paramètres!$F$11 -> 0.025 | AX84: =Paramètres!$F$11 -> 0.025 | AY84: =Paramètres!$F$11 -> 0.025 | AZ84: =Paramètres!$F$11 -> 0.025 | BA84: =Paramètres!$F$11 -> 0.025 | BB84: =Paramètres!$F$11 -> 0.025 | BC84: =Paramètres!$F$11 -> 0.025 | BD84: =Paramètres!$F$11 -> 0.025
D85: Taux 2 | E85: % | G85: =IF(Paramètres!G$104<Paramètres!$E$59,Paramètres!$F$59,IF(Paramètres!G$104<Paramètres!$E$60,Paramètres!$F$60,IF(Paramètres!G$104<Paramètres!$E$61,Paramètres!$F$61,IF(Paramètres!G$104<Paramètres!$E$62,Paramètres!$F$62,Paramètres!$F$63)))) -> 0 | H85: =IF(Paramètres!H$104<Paramètres!$E$59,Paramètres!$F$59,IF(Paramètres!H$104<Paramètres!$E$60,Paramètres!$F$60,IF(Paramètres!H$104<Paramètres!$E$61,Paramètres!$F$61,IF(Paramètres!H$104<Paramètres!$E$62,Paramètres!$F$62,Paramètres!$F$63)))) -> 0 | I85: =IF(Paramètres!I$104<Paramètres!$E$59,Paramètres!$F$59,IF(Paramètres!I$104<Paramètres!$E$60,Paramètres!$F$60,IF(Paramètres!I$104<Paramètres!$E$61,Paramètres!$F$61,IF(Paramètres!I$104<Paramètres!$E$62,Paramètres!$F$62,Paramètres!$F$63)))) -> 0 | J85: =IF(Paramètres!J$104<Paramètres!$E$59,Paramètres!$F$59,IF(Paramètres!J$104<Paramètres!$E$60,Paramètres!$F$60,IF(Paramètres!J$104<Paramètres!$E$61,Paramètres!$F$61,IF(Paramètres!J$104<Paramètres!$E$62,Paramètres!$F$62,Paramètres!$F$63)))) -> 0 | K85: =IF(Paramètres!K$104<Paramètres!$E$59,Paramètres!$F$59,IF(Paramètres!K$104<Paramètres!$E$60,Paramètres!$F$60,IF(Paramètres!K$104<Paramètres!$E$61,Paramètres!$F$61,IF(Paramètres!K$104<Paramètres!$E$62,Paramètres!$F$62,Paramètres!$F$63)))) -> 0 | L85: =IF(Paramètres!L$104<Paramètres!$E$59,Paramètres!$F$59,IF(Paramètres!L$104<Paramètres!$E$60,Paramètres!$F$60,IF(Paramètres!L$104<Paramètres!$E$61,Paramètres!$F$61,IF(Paramètres!L$104<Paramètres!$E$62,Paramètres!$F$62,Paramètres!$F$63)))) -> 0 | M85: =IF(Paramètres!M$104<Paramètres!$E$59,Paramètres!$F$59,IF(Paramètres!M$104<Paramètres!$E$60,Paramètres!$F$60,IF(Paramètres!M$104<Paramètres!$E$61,Paramètres!$F$61,IF(Paramètres!M$104<Paramètres!$E$62,Paramètres!$F$62,Paramètres!$F$63)))) -> 0 | N85: =IF(Paramètres!N$104<Paramètres!$E$59,Paramètres!$F$59,IF(Paramètres!N$104<Paramètres!$E$60,Paramètres!$F$60,IF(Paramètres!N$104<Paramètres!$E$61,Paramètres!$F$61,IF(Paramètres!N$104<Paramètres!$E$62,Paramètres!$F$62,Paramètres!$F$63)))) -> 0 | O85: =IF(Paramètres!O$104<Paramètres!$E$59,Paramètres!$F$59,IF(Paramètres!O$104<Paramètres!$E$60,Paramètres!$F$60,IF(Paramètres!O$104<Paramètres!$E$61,Paramètres!$F$61,IF(Paramètres!O$104<Paramètres!$E$62,Paramètres!$F$62,Paramètres!$F$63)))) -> 0 | P85: =IF(Paramètres!P$104<Paramètres!$E$59,Paramètres!$F$59,IF(Paramètres!P$104<Paramètres!$E$60,Paramètres!$F$60,IF(Paramètres!P$104<Paramètres!$E$61,Paramètres!$F$61,IF(Paramètres!P$104<Paramètres!$E$62,Paramètres!$F$62,Paramètres!$F$63)))) -> 0 | Q85: =IF(Paramètres!Q$104<Paramètres!$E$59,Paramètres!$F$59,IF(Paramètres!Q$104<Paramètres!$E$60,Paramètres!$F$60,IF(Paramètres!Q$104<Paramètres!$E$61,Paramètres!$F$61,IF(Paramètres!Q$104<Paramètres!$E$62,Paramètres!$F$62,Paramètres!$F$63)))) -> 0 | R85: =IF(Paramètres!R$104<Paramètres!$E$59,Paramètres!$F$59,IF(Paramètres!R$104<Paramètres!$E$60,Paramètres!$F$60,IF(Paramètres!R$104<Paramètres!$E$61,Paramètres!$F$61,IF(Paramètres!R$104<Paramètres!$E$62,Paramètres!$F$62,Paramètres!$F$63)))) -> 0 | S85: =IF(Paramètres!S$104<Paramètres!$E$59,Paramètres!$F$59,IF(Paramètres!S$104<Paramètres!$E$60,Paramètres!$F$60,IF(Paramètres!S$104<Paramètres!$E$61,Paramètres!$F$61,IF(Paramètres!S$104<Paramètres!$E$62,Paramètres!$F$62,Paramètres!$F$63)))) -> 0 | T85: =IF(Paramètres!T$104<Paramètres!$E$59,Paramètres!$F$59,IF(Paramètres!T$104<Paramètres!$E$60,Paramètres!$F$60,IF(Paramètres!T$104<Paramètres!$E$61,Paramètres!$F$61,IF(Paramètres!T$104<Paramètres!$E$62,Paramètres!$F$62,Paramètres!$F$63)))) -> 0 | U85: =IF(Paramètres!U$104<Paramètres!$E$59,Paramètres!$F$59,IF(Paramètres!U$104<Paramètres!$E$60,Paramètres!$F$60,IF(Paramètres!U$104<Paramètres!$E$61,Paramètres!$F$61,IF(Paramètres!U$104<Paramètres!$E$62,Paramètres!$F$62,Paramètres!$F$63)))) -> 0 | V85: =IF(Paramètres!V$104<Paramètres!$E$59,Paramètres!$F$59,IF(Paramètres!V$104<Paramètres!$E$60,Paramètres!$F$60,IF(Paramètres!V$104<Paramètres!$E$61,Paramètres!$F$61,IF(Paramètres!V$104<Paramètres!$E$62,Paramètres!$F$62,Paramètres!$F$63)))) -> 0 | W85: =IF(Paramètres!W$104<Paramètres!$E$59,Paramètres!$F$59,IF(Paramètres!W$104<Paramètres!$E$60,Paramètres!$F$60,IF(Paramètres!W$104<Paramètres!$E$61,Paramètres!$F$61,IF(Paramètres!W$104<Paramètres!$E$62,Paramètres!$F$62,Paramètres!$F$63)))) -> 0 | X85: =IF(Paramètres!X$104<Paramètres!$E$59,Paramètres!$F$59,IF(Paramètres!X$104<Paramètres!$E$60,Paramètres!$F$60,IF(Paramètres!X$104<Paramètres!$E$61,Paramètres!$F$61,IF(Paramètres!X$104<Paramètres!$E$62,Paramètres!$F$62,Paramètres!$F$63)))) -> 0 | Y85: =IF(Paramètres!Y$104<Paramètres!$E$59,Paramètres!$F$59,IF(Paramètres!Y$104<Paramètres!$E$60,Paramètres!$F$60,IF(Paramètres!Y$104<Paramètres!$E$61,Paramètres!$F$61,IF(Paramètres!Y$104<Paramètres!$E$62,Paramètres!$F$62,Paramètres!$F$63)))) -> 0 | Z85: =IF(Paramètres!Z$104<Paramètres!$E$59,Paramètres!$F$59,IF(Paramètres!Z$104<Paramètres!$E$60,Paramètres!$F$60,IF(Paramètres!Z$104<Paramètres!$E$61,Paramètres!$F$61,IF(Paramètres!Z$104<Paramètres!$E$62,Paramètres!$F$62,Paramètres!$F$63)))) -> 0 | AA85: =IF(Paramètres!AA$104<Paramètres!$E$59,Paramètres!$F$59,IF(Paramètres!AA$104<Paramètres!$E$60,Paramètres!$F$60,IF(Paramètres!AA$104<Paramètres!$E$61,Paramètres!$F$61,IF(Paramètres!AA$104<Paramètres!$E$62,Paramètres!$F$62,Paramètres!$F$63)))) -> 0 | AB85: =IF(Paramètres!AB$104<Paramètres!$E$59,Paramètres!$F$59,IF(Paramètres!AB$104<Paramètres!$E$60,Paramètres!$F$60,IF(Paramètres!AB$104<Paramètres!$E$61,Paramètres!$F$61,IF(Paramètres!AB$104<Paramètres!$E$62,Paramètres!$F$62,Paramètres!$F$63)))) -> 0 | AC85: =IF(Paramètres!AC$104<Paramètres!$E$59,Paramètres!$F$59,IF(Paramètres!AC$104<Paramètres!$E$60,Paramètres!$F$60,IF(Paramètres!AC$104<Paramètres!$E$61,Paramètres!$F$61,IF(Paramètres!AC$104<Paramètres!$E$62,Paramètres!$F$62,Paramètres!$F$63)))) -> 0 | AD85: =IF(Paramètres!AD$104<Paramètres!$E$59,Paramètres!$F$59,IF(Paramètres!AD$104<Paramètres!$E$60,Paramètres!$F$60,IF(Paramètres!AD$104<Paramètres!$E$61,Paramètres!$F$61,IF(Paramètres!AD$104<Paramètres!$E$62,Paramètres!$F$62,Paramètres!$F$63)))) -> 0 | AE85: =IF(Paramètres!AE$104<Paramètres!$E$59,Paramètres!$F$59,IF(Paramètres!AE$104<Paramètres!$E$60,Paramètres!$F$60,IF(Paramètres!AE$104<Paramètres!$E$61,Paramètres!$F$61,IF(Paramètres!AE$104<Paramètres!$E$62,Paramètres!$F$62,Paramètres!$F$63)))) -> 0 | AF85: =IF(Paramètres!AF$104<Paramètres!$E$59,Paramètres!$F$59,IF(Paramètres!AF$104<Paramètres!$E$60,Paramètres!$F$60,IF(Paramètres!AF$104<Paramètres!$E$61,Paramètres!$F$61,IF(Paramètres!AF$104<Paramètres!$E$62,Paramètres!$F$62,Paramètres!$F$63)))) -> 0 | AG85: =IF(Paramètres!AG$104<Paramètres!$E$59,Paramètres!$F$59,IF(Paramètres!AG$104<Paramètres!$E$60,Paramètres!$F$60,IF(Paramètres!AG$104<Paramètres!$E$61,Paramètres!$F$61,IF(Paramètres!AG$104<Paramètres!$E$62,Paramètres!$F$62,Paramètres!$F$63)))) -> 0 | AH85: =IF(Paramètres!AH$104<Paramètres!$E$59,Paramètres!$F$59,IF(Paramètres!AH$104<Paramètres!$E$60,Paramètres!$F$60,IF(Paramètres!AH$104<Paramètres!$E$61,Paramètres!$F$61,IF(Paramètres!AH$104<Paramètres!$E$62,Paramètres!$F$62,Paramètres!$F$63)))) -> 0 | AI85: =IF(Paramètres!AI$104<Paramètres!$E$59,Paramètres!$F$59,IF(Paramètres!AI$104<Paramètres!$E$60,Paramètres!$F$60,IF(Paramètres!AI$104<Paramètres!$E$61,Paramètres!$F$61,IF(Paramètres!AI$104<Paramètres!$E$62,Paramètres!$F$62,Paramètres!$F$63)))) -> 0 | AJ85: =IF(Paramètres!AJ$104<Paramètres!$E$59,Paramètres!$F$59,IF(Paramètres!AJ$104<Paramètres!$E$60,Paramètres!$F$60,IF(Paramètres!AJ$104<Paramètres!$E$61,Paramètres!$F$61,IF(Paramètres!AJ$104<Paramètres!$E$62,Paramètres!$F$62,Paramètres!$F$63)))) -> 0 | AK85: =IF(Paramètres!AK$104<Paramètres!$E$59,Paramètres!$F$59,IF(Paramètres!AK$104<Paramètres!$E$60,Paramètres!$F$60,IF(Paramètres!AK$104<Paramètres!$E$61,Paramètres!$F$61,IF(Paramètres!AK$104<Paramètres!$E$62,Paramètres!$F$62,Paramètres!$F$63)))) -> 0 | AL85: =IF(Paramètres!AL$104<Paramètres!$E$59,Paramètres!$F$59,IF(Paramètres!AL$104<Paramètres!$E$60,Paramètres!$F$60,IF(Paramètres!AL$104<Paramètres!$E$61,Paramètres!$F$61,IF(Paramètres!AL$104<Paramètres!$E$62,Paramètres!$F$62,Paramètres!$F$63)))) -> 0 | AM85: =IF(Paramètres!AM$104<Paramètres!$E$59,Paramètres!$F$59,IF(Paramètres!AM$104<Paramètres!$E$60,Paramètres!$F$60,IF(Paramètres!AM$104<Paramètres!$E$61,Paramètres!$F$61,IF(Paramètres!AM$104<Paramètres!$E$62,Paramètres!$F$62,Paramètres!$F$63)))) -> 0 | AN85: =IF(Paramètres!AN$104<Paramètres!$E$59,Paramètres!$F$59,IF(Paramètres!AN$104<Paramètres!$E$60,Paramètres!$F$60,IF(Paramètres!AN$104<Paramètres!$E$61,Paramètres!$F$61,IF(Paramètres!AN$104<Paramètres!$E$62,Paramètres!$F$62,Paramètres!$F$63)))) -> 0 | AO85: =IF(Paramètres!AO$104<Paramètres!$E$59,Paramètres!$F$59,IF(Paramètres!AO$104<Paramètres!$E$60,Paramètres!$F$60,IF(Paramètres!AO$104<Paramètres!$E$61,Paramètres!$F$61,IF(Paramètres!AO$104<Paramètres!$E$62,Paramètres!$F$62,Paramètres!$F$63)))) -> 0 | AP85: =IF(Paramètres!AP$104<Paramètres!$E$59,Paramètres!$F$59,IF(Paramètres!AP$104<Paramètres!$E$60,Paramètres!$F$60,IF(Paramètres!AP$104<Paramètres!$E$61,Paramètres!$F$61,IF(Paramètres!AP$104<Paramètres!$E$62,Paramètres!$F$62,Paramètres!$F$63)))) -> 0 | AQ85: =IF(Paramètres!AQ$104<Paramètres!$E$59,Paramètres!$F$59,IF(Paramètres!AQ$104<Paramètres!$E$60,Paramètres!$F$60,IF(Paramètres!AQ$104<Paramètres!$E$61,Paramètres!$F$61,IF(Paramètres!AQ$104<Paramètres!$E$62,Paramètres!$F$62,Paramètres!$F$63)))) -> 0 | AR85: =IF(Paramètres!AR$104<Paramètres!$E$59,Paramètres!$F$59,IF(Paramètres!AR$104<Paramètres!$E$60,Paramètres!$F$60,IF(Paramètres!AR$104<Paramètres!$E$61,Paramètres!$F$61,IF(Paramètres!AR$104<Paramètres!$E$62,Paramètres!$F$62,Paramètres!$F$63)))) -> 0 | AS85: =IF(Paramètres!AS$104<Paramètres!$E$59,Paramètres!$F$59,IF(Paramètres!AS$104<Paramètres!$E$60,Paramètres!$F$60,IF(Paramètres!AS$104<Paramètres!$E$61,Paramètres!$F$61,IF(Paramètres!AS$104<Paramètres!$E$62,Paramètres!$F$62,Paramètres!$F$63)))) -> 0 | AT85: =IF(Paramètres!AT$104<Paramètres!$E$59,Paramètres!$F$59,IF(Paramètres!AT$104<Paramètres!$E$60,Paramètres!$F$60,IF(Paramètres!AT$104<Paramètres!$E$61,Paramètres!$F$61,IF(Paramètres!AT$104<Paramètres!$E$62,Paramètres!$F$62,Paramètres!$F$63)))) -> 0 | AU85: =IF(Paramètres!AU$104<Paramètres!$E$59,Paramètres!$F$59,IF(Paramètres!AU$104<Paramètres!$E$60,Paramètres!$F$60,IF(Paramètres!AU$104<Paramètres!$E$61,Paramètres!$F$61,IF(Paramètres!AU$104<Paramètres!$E$62,Paramètres!$F$62,Paramètres!$F$63)))) -> 0 | AV85: =IF(Paramètres!AV$104<Paramètres!$E$59,Paramètres!$F$59,IF(Paramètres!AV$104<Paramètres!$E$60,Paramètres!$F$60,IF(Paramètres!AV$104<Paramètres!$E$61,Paramètres!$F$61,IF(Paramètres!AV$104<Paramètres!$E$62,Paramètres!$F$62,Paramètres!$F$63)))) -> 0 | AW85: =IF(Paramètres!AW$104<Paramètres!$E$59,Paramètres!$F$59,IF(Paramètres!AW$104<Paramètres!$E$60,Paramètres!$F$60,IF(Paramètres!AW$104<Paramètres!$E$61,Paramètres!$F$61,IF(Paramètres!AW$104<Paramètres!$E$62,Paramètres!$F$62,Paramètres!$F$63)))) -> 0 | AX85: =IF(Paramètres!AX$104<Paramètres!$E$59,Paramètres!$F$59,IF(Paramètres!AX$104<Paramètres!$E$60,Paramètres!$F$60,IF(Paramètres!AX$104<Paramètres!$E$61,Paramètres!$F$61,IF(Paramètres!AX$104<Paramètres!$E$62,Paramètres!$F$62,Paramètres!$F$63)))) -> 0 | AY85: =IF(Paramètres!AY$104<Paramètres!$E$59,Paramètres!$F$59,IF(Paramètres!AY$104<Paramètres!$E$60,Paramètres!$F$60,IF(Paramètres!AY$104<Paramètres!$E$61,Paramètres!$F$61,IF(Paramètres!AY$104<Paramètres!$E$62,Paramètres!$F$62,Paramètres!$F$63)))) -> 0 | AZ85: =IF(Paramètres!AZ$104<Paramètres!$E$59,Paramètres!$F$59,IF(Paramètres!AZ$104<Paramètres!$E$60,Paramètres!$F$60,IF(Paramètres!AZ$104<Paramètres!$E$61,Paramètres!$F$61,IF(Paramètres!AZ$104<Paramètres!$E$62,Paramètres!$F$62,Paramètres!$F$63)))) -> 0 | BA85: =IF(Paramètres!BA$104<Paramètres!$E$59,Paramètres!$F$59,IF(Paramètres!BA$104<Paramètres!$E$60,Paramètres!$F$60,IF(Paramètres!BA$104<Paramètres!$E$61,Paramètres!$F$61,IF(Paramètres!BA$104<Paramètres!$E$62,Paramètres!$F$62,Paramètres!$F$63)))) -> 0 | BB85: =IF(Paramètres!BB$104<Paramètres!$E$59,Paramètres!$F$59,IF(Paramètres!BB$104<Paramètres!$E$60,Paramètres!$F$60,IF(Paramètres!BB$104<Paramètres!$E$61,Paramètres!$F$61,IF(Paramètres!BB$104<Paramètres!$E$62,Paramètres!$F$62,Paramètres!$F$63)))) -> 0 | BC85: =IF(Paramètres!BC$104<Paramètres!$E$59,Paramètres!$F$59,IF(Paramètres!BC$104<Paramètres!$E$60,Paramètres!$F$60,IF(Paramètres!BC$104<Paramètres!$E$61,Paramètres!$F$61,IF(Paramètres!BC$104<Paramètres!$E$62,Paramètres!$F$62,Paramètres!$F$63)))) -> 0 | BD85: =IF(Paramètres!BD$104<Paramètres!$E$59,Paramètres!$F$59,IF(Paramètres!BD$104<Paramètres!$E$60,Paramètres!$F$60,IF(Paramètres!BD$104<Paramètres!$E$61,Paramètres!$F$61,IF(Paramètres!BD$104<Paramètres!$E$62,Paramètres!$F$62,Paramètres!$F$63)))) -> 0
C86: =SUM(G86:BD86) -> 111.0944091 | D86: Montant de la redevance | E86: $mm nominal | G86: =G83*CHOOSE(Paramètres!$F$24,G84,G85) -> 0 | H86: =H83*CHOOSE(Paramètres!$F$24,H84,H85) -> 0 | I86: =I83*CHOOSE(Paramètres!$F$24,I84,I85) -> 9.12951 | J86: =J83*CHOOSE(Paramètres!$F$24,J84,J85) -> 9.3121002 | K86: =K83*CHOOSE(Paramètres!$F$24,K84,K85) -> 9.498342204 | L86: =L83*CHOOSE(Paramètres!$F$24,L84,L85) -> 9.688309048 | M86: =M83*CHOOSE(Paramètres!$F$24,M84,M85) -> 9.882075229 | N86: =N83*CHOOSE(Paramètres!$F$24,N84,N85) -> 10.07971673 | O86: =O83*CHOOSE(Paramètres!$F$24,O84,O85) -> 10.28131107 | P86: =P83*CHOOSE(Paramètres!$F$24,P84,P85) -> 10.48693729 | Q86: =Q83*CHOOSE(Paramètres!$F$24,Q84,Q85) -> 10.69667604 | R86: =R83*CHOOSE(Paramètres!$F$24,R84,R85) -> 10.91060956 | S86: =S83*CHOOSE(Paramètres!$F$24,S84,S85) -> 11.12882175 | T86: =T83*CHOOSE(Paramètres!$F$24,T84,T85) -> 0 | U86: =U83*CHOOSE(Paramètres!$F$24,U84,U85) -> 0 | V86: =V83*CHOOSE(Paramètres!$F$24,V84,V85) -> 0 | W86: =W83*CHOOSE(Paramètres!$F$24,W84,W85) -> 0 | X86: =X83*CHOOSE(Paramètres!$F$24,X84,X85) -> 0 | Y86: =Y83*CHOOSE(Paramètres!$F$24,Y84,Y85) -> 0 | Z86: =Z83*CHOOSE(Paramètres!$F$24,Z84,Z85) -> 0 | AA86: =AA83*CHOOSE(Paramètres!$F$24,AA84,AA85) -> 0 | AB86: =AB83*CHOOSE(Paramètres!$F$24,AB84,AB85) -> 0 | AC86: =AC83*CHOOSE(Paramètres!$F$24,AC84,AC85) -> 0 | AD86: =AD83*CHOOSE(Paramètres!$F$24,AD84,AD85) -> 0 | AE86: =AE83*CHOOSE(Paramètres!$F$24,AE84,AE85) -> 0 | AF86: =AF83*CHOOSE(Paramètres!$F$24,AF84,AF85) -> 0 | AG86: =AG83*CHOOSE(Paramètres!$F$24,AG84,AG85) -> 0 | AH86: =AH83*CHOOSE(Paramètres!$F$24,AH84,AH85) -> 0 | AI86: =AI83*CHOOSE(Paramètres!$F$24,AI84,AI85) -> 0 | AJ86: =AJ83*CHOOSE(Paramètres!$F$24,AJ84,AJ85) -> 0 | AK86: =AK83*CHOOSE(Paramètres!$F$24,AK84,AK85) -> 0 | AL86: =AL83*CHOOSE(Paramètres!$F$24,AL84,AL85) -> 0 | AM86: =AM83*CHOOSE(Paramètres!$F$24,AM84,AM85) -> 0 | AN86: =AN83*CHOOSE(Paramètres!$F$24,AN84,AN85) -> 0 | AO86: =AO83*CHOOSE(Paramètres!$F$24,AO84,AO85) -> 0 | AP86: =AP83*CHOOSE(Paramètres!$F$24,AP84,AP85) -> 0 | AQ86: =AQ83*CHOOSE(Paramètres!$F$24,AQ84,AQ85) -> 0 | AR86: =AR83*CHOOSE(Paramètres!$F$24,AR84,AR85) -> 0 | AS86: =AS83*CHOOSE(Paramètres!$F$24,AS84,AS85) -> 0 | AT86: =AT83*CHOOSE(Paramètres!$F$24,AT84,AT85) -> 0 | AU86: =AU83*CHOOSE(Paramètres!$F$24,AU84,AU85) -> 0 | AV86: =AV83*CHOOSE(Paramètres!$F$24,AV84,AV85) -> 0 | AW86: =AW83*CHOOSE(Paramètres!$F$24,AW84,AW85) -> 0 | AX86: =AX83*CHOOSE(Paramètres!$F$24,AX84,AX85) -> 0 | AY86: =AY83*CHOOSE(Paramètres!$F$24,AY84,AY85) -> 0 | AZ86: =AZ83*CHOOSE(Paramètres!$F$24,AZ84,AZ85) -> 0 | BA86: =BA83*CHOOSE(Paramètres!$F$24,BA84,BA85) -> 0 | BB86: =BB83*CHOOSE(Paramètres!$F$24,BB84,BB85) -> 0 | BC86: =BC83*CHOOSE(Paramètres!$F$24,BC84,BC85) -> 0 | BD86: =BD83*CHOOSE(Paramètres!$F$24,BD84,BD85) -> 0
D88: Redevance de controle de change (banque centrale)
C89: =SUM(G89:BD89) -> 4443.776364 | D89: Chiffre d'affaires net | E89: $mm nominal | G89: =G45 -> 0 | H89: =H45 -> 0 | I89: 365.1804 | J89: 372.484008 | K89: 379.9336882 | L89: 387.5323619 | M89: 395.2830092 | N89: 403.1886693 | O89: 411.2524427 | P89: 419.4774916 | Q89: 427.8670414 | R89: 436.4243822 | S89: 445.1528699 | T89: 0 | U89: 0 | V89: 0 | W89: 0 | X89: 0 | Y89: 0 | Z89: 0 | AA89: 0 | AB89: 0 | AC89: 0 | AD89: 0 | AE89: 0 | AF89: 0 | AG89: 0 | AH89: 0 | AI89: 0 | AJ89: 0 | AK89: 0 | AL89: 0 | AM89: 0 | AN89: 0 | AO89: 0 | AP89: 0 | AQ89: 0 | AR89: 0 | AS89: 0 | AT89: 0 | AU89: 0 | AV89: 0 | AW89: 0 | AX89: 0 | AY89: 0 | AZ89: 0 | BA89: 0 | BB89: 0 | BC89: 0 | BD89: 0
C90: =SUM(G90:BD90) -> 0 | D90: Redevance de controle de change | E90: $mm nominal | G90: =(Paramètres!$F$35*Modèle!G89) -> 0 | H90: =(Paramètres!$F$35*Modèle!H89) -> 0 | I90: =(Paramètres!$F$35*Modèle!I89) -> 0 | J90: =(Paramètres!$F$35*Modèle!J89) -> 0 | K90: =(Paramètres!$F$35*Modèle!K89) -> 0 | L90: =(Paramètres!$F$35*Modèle!L89) -> 0 | M90: =(Paramètres!$F$35*Modèle!M89) -> 0 | N90: =(Paramètres!$F$35*Modèle!N89) -> 0 | O90: =(Paramètres!$F$35*Modèle!O89) -> 0 | P90: =(Paramètres!$F$35*Modèle!P89) -> 0 | Q90: =(Paramètres!$F$35*Modèle!Q89) -> 0 | R90: =(Paramètres!$F$35*Modèle!R89) -> 0 | S90: =(Paramètres!$F$35*Modèle!S89) -> 0 | T90: =(Paramètres!$F$35*Modèle!T89) -> 0 | U90: =(Paramètres!$F$35*Modèle!U89) -> 0 | V90: =(Paramètres!$F$35*Modèle!V89) -> 0 | W90: =(Paramètres!$F$35*Modèle!W89) -> 0 | X90: =(Paramètres!$F$35*Modèle!X89) -> 0 | Y90: =(Paramètres!$F$35*Modèle!Y89) -> 0 | Z90: =(Paramètres!$F$35*Modèle!Z89) -> 0 | AA90: =(Paramètres!$F$35*Modèle!AA89) -> 0 | AB90: =(Paramètres!$F$35*Modèle!AB89) -> 0 | AC90: =(Paramètres!$F$35*Modèle!AC89) -> 0 | AD90: =(Paramètres!$F$35*Modèle!AD89) -> 0 | AE90: =(Paramètres!$F$35*Modèle!AE89) -> 0 | AF90: =(Paramètres!$F$35*Modèle!AF89) -> 0 | AG90: =(Paramètres!$F$35*Modèle!AG89) -> 0 | AH90: =(Paramètres!$F$35*Modèle!AH89) -> 0 | AI90: =(Paramètres!$F$35*Modèle!AI89) -> 0 | AJ90: =(Paramètres!$F$35*Modèle!AJ89) -> 0 | AK90: =(Paramètres!$F$35*Modèle!AK89) -> 0 | AL90: =(Paramètres!$F$35*Modèle!AL89) -> 0 | AM90: =(Paramètres!$F$35*Modèle!AM89) -> 0 | AN90: =(Paramètres!$F$35*Modèle!AN89) -> 0 | AO90: =(Paramètres!$F$35*Modèle!AO89) -> 0 | AP90: =(Paramètres!$F$35*Modèle!AP89) -> 0 | AQ90: =(Paramètres!$F$35*Modèle!AQ89) -> 0 | AR90: =(Paramètres!$F$35*Modèle!AR89) -> 0 | AS90: =(Paramètres!$F$35*Modèle!AS89) -> 0 | AT90: =(Paramètres!$F$35*Modèle!AT89) -> 0 | AU90: =(Paramètres!$F$35*Modèle!AU89) -> 0 | AV90: =(Paramètres!$F$35*Modèle!AV89) -> 0 | AW90: =(Paramètres!$F$35*Modèle!AW89) -> 0 | AX90: =(Paramètres!$F$35*Modèle!AX89) -> 0 | AY90: =(Paramètres!$F$35*Modèle!AY89) -> 0 | AZ90: =(Paramètres!$F$35*Modèle!AZ89) -> 0 | BA90: =(Paramètres!$F$35*Modèle!BA89) -> 0 | BB90: =(Paramètres!$F$35*Modèle!BB89) -> 0 | BC90: =(Paramètres!$F$35*Modèle!BC89) -> 0 | BD90: =(Paramètres!$F$35*Modèle!BD89) -> 0
D92: Contribution au developpement communautaire
C93: =SUM(G93:BD93) -> 4443.776364 | D93: Chiffre d'affaires brut | E93: $mm nominal | G93: =G43 -> 0 | H93: =H43 -> 0 | I93: 365.1804 | J93: 372.484008 | K93: 379.9336882 | L93: 387.5323619 | M93: 395.2830092 | N93: 403.1886693 | O93: 411.2524427 | P93: 419.4774916 | Q93: 427.8670414 | R93: 436.4243822 | S93: 445.1528699 | T93: 0 | U93: 0 | V93: 0 | W93: 0 | X93: 0 | Y93: 0 | Z93: 0 | AA93: 0 | AB93: 0 | AC93: 0 | AD93: 0 | AE93: 0 | AF93: 0 | AG93: 0 | AH93: 0 | AI93: 0 | AJ93: 0 | AK93: 0 | AL93: 0 | AM93: 0 | AN93: 0 | AO93: 0 | AP93: 0 | AQ93: 0 | AR93: 0 | AS93: 0 | AT93: 0 | AU93: 0 | AV93: 0 | AW93: 0 | AX93: 0 | AY93: 0 | AZ93: 0 | BA93: 0 | BB93: 0 | BC93: 0 | BD93: 0
C94: =SUM(G94:BD94) -> 0 | D94: Contribution au developpement communautaire | E94: $mm nominal | G94: =Paramètres!$F$36*G93 -> 0 | H94: =Paramètres!$F$36*H93 -> 0 | I94: =Paramètres!$F$36*I93 -> 0 | J94: =Paramètres!$F$36*J93 -> 0 | K94: =Paramètres!$F$36*K93 -> 0 | L94: =Paramètres!$F$36*L93 -> 0 | M94: =Paramètres!$F$36*M93 -> 0 | N94: =Paramètres!$F$36*N93 -> 0 | O94: =Paramètres!$F$36*O93 -> 0 | P94: =Paramètres!$F$36*P93 -> 0 | Q94: =Paramètres!$F$36*Q93 -> 0 | R94: =Paramètres!$F$36*R93 -> 0 | S94: =Paramètres!$F$36*S93 -> 0 | T94: =Paramètres!$F$36*T93 -> 0 | U94: =Paramètres!$F$36*U93 -> 0 | V94: =Paramètres!$F$36*V93 -> 0 | W94: =Paramètres!$F$36*W93 -> 0 | X94: =Paramètres!$F$36*X93 -> 0 | Y94: =Paramètres!$F$36*Y93 -> 0 | Z94: =Paramètres!$F$36*Z93 -> 0 | AA94: =Paramètres!$F$36*AA93 -> 0 | AB94: =Paramètres!$F$36*AB93 -> 0 | AC94: =Paramètres!$F$36*AC93 -> 0 | AD94: =Paramètres!$F$36*AD93 -> 0 | AE94: =Paramètres!$F$36*AE93 -> 0 | AF94: =Paramètres!$F$36*AF93 -> 0 | AG94: =Paramètres!$F$36*AG93 -> 0 | AH94: =Paramètres!$F$36*AH93 -> 0 | AI94: =Paramètres!$F$36*AI93 -> 0 | AJ94: =Paramètres!$F$36*AJ93 -> 0 | AK94: =Paramètres!$F$36*AK93 -> 0 | AL94: =Paramètres!$F$36*AL93 -> 0 | AM94: =Paramètres!$F$36*AM93 -> 0 | AN94: =Paramètres!$F$36*AN93 -> 0 | AO94: =Paramètres!$F$36*AO93 -> 0 | AP94: =Paramètres!$F$36*AP93 -> 0 | AQ94: =Paramètres!$F$36*AQ93 -> 0 | AR94: =Paramètres!$F$36*AR93 -> 0 | AS94: =Paramètres!$F$36*AS93 -> 0 | AT94: =Paramètres!$F$36*AT93 -> 0 | AU94: =Paramètres!$F$36*AU93 -> 0 | AV94: =Paramètres!$F$36*AV93 -> 0 | AW94: =Paramètres!$F$36*AW93 -> 0 | AX94: =Paramètres!$F$36*AX93 -> 0 | AY94: =Paramètres!$F$36*AY93 -> 0 | AZ94: =Paramètres!$F$36*AZ93 -> 0 | BA94: =Paramètres!$F$36*BA93 -> 0 | BB94: =Paramètres!$F$36*BB93 -> 0 | BC94: =Paramètres!$F$36*BC93 -> 0 | BD94: =Paramètres!$F$36*BD93 -> 0
D96: Redevance a taux variable
D97: Assiette | G97: =G45 -> 0 | H97: 0 | I97: 365.1804 | J97: 372.484008 | K97: 379.9336882 | L97: 387.5323619 | M97: 395.2830092 | N97: 403.1886693 | O97: 411.2524427 | P97: 419.4774916 | Q97: 427.8670414 | R97: 436.4243822 | S97: 445.1528699 | T97: 0 | U97: 0 | V97: 0 | W97: 0 | X97: 0 | Y97: 0 | Z97: 0 | AA97: 0 | AB97: 0 | AC97: 0 | AD97: 0 | AE97: 0 | AF97: 0 | AG97: 0 | AH97: 0 | AI97: 0 | AJ97: 0 | AK97: 0 | AL97: 0 | AM97: =AM45 -> 0 | AN97: 0 | AO97: 0 | AP97: 0 | AQ97: 0 | AR97: 0 | AS97: 0 | AT97: 0 | AU97: 0 | AV97: 0 | AW97: 0 | AX97: 0 | AY97: 0 | AZ97: 0 | BA97: 0 | BB97: 0 | BC97: 0 | BD97: 0
D99: Fourchette de prix 1 | E99: $ | G99: =MIN(Paramètres!G$104,Paramètres!$E59) -> 0 | H99: =MIN(Paramètres!H$104,Paramètres!$E59) -> 0 | I99: =MIN(Paramètres!I$104,Paramètres!$E59) -> 0 | J99: =MIN(Paramètres!J$104,Paramètres!$E59) -> 0 | K99: =MIN(Paramètres!K$104,Paramètres!$E59) -> 0 | L99: =MIN(Paramètres!L$104,Paramètres!$E59) -> 0 | M99: =MIN(Paramètres!M$104,Paramètres!$E59) -> 0 | N99: =MIN(Paramètres!N$104,Paramètres!$E59) -> 0 | O99: =MIN(Paramètres!O$104,Paramètres!$E59) -> 0 | P99: =MIN(Paramètres!P$104,Paramètres!$E59) -> 0 | Q99: =MIN(Paramètres!Q$104,Paramètres!$E59) -> 0 | R99: =MIN(Paramètres!R$104,Paramètres!$E59) -> 0 | S99: =MIN(Paramètres!S$104,Paramètres!$E59) -> 0 | T99: =MIN(Paramètres!T$104,Paramètres!$E59) -> 0 | U99: =MIN(Paramètres!U$104,Paramètres!$E59) -> 0 | V99: =MIN(Paramètres!V$104,Paramètres!$E59) -> 0 | W99: =MIN(Paramètres!W$104,Paramètres!$E59) -> 0 | X99: =MIN(Paramètres!X$104,Paramètres!$E59) -> 0 | Y99: =MIN(Paramètres!Y$104,Paramètres!$E59) -> 0 | Z99: =MIN(Paramètres!Z$104,Paramètres!$E59) -> 0 | AA99: =MIN(Paramètres!AA$104,Paramètres!$E59) -> 0 | AB99: =MIN(Paramètres!AB$104,Paramètres!$E59) -> 0 | AC99: =MIN(Paramètres!AC$104,Paramètres!$E59) -> 0 | AD99: =MIN(Paramètres!AD$104,Paramètres!$E59) -> 0 | AE99: =MIN(Paramètres!AE$104,Paramètres!$E59) -> 0 | AF99: =MIN(Paramètres!AF$104,Paramètres!$E59) -> 0 | AG99: =MIN(Paramètres!AG$104,Paramètres!$E59) -> 0 | AH99: =MIN(Paramètres!AH$104,Paramètres!$E59) -> 0 | AI99: =MIN(Paramètres!AI$104,Paramètres!$E59) -> 0 | AJ99: =MIN(Paramètres!AJ$104,Paramètres!$E59) -> 0 | AK99: =MIN(Paramètres!AK$104,Paramètres!$E59) -> 0 | AL99: =MIN(Paramètres!AL$104,Paramètres!$E59) -> 0 | AM99: =MIN(Paramètres!AM$104,Paramètres!$E59) -> 0 | AN99: =MIN(Paramètres!AN$104,Paramètres!$E59) -> 0 | AO99: =MIN(Paramètres!AO$104,Paramètres!$E59) -> 0 | AP99: =MIN(Paramètres!AP$104,Paramètres!$E59) -> 0 | AQ99: =MIN(Paramètres!AQ$104,Paramètres!$E59) -> 0 | AR99: =MIN(Paramètres!AR$104,Paramètres!$E59) -> 0 | AS99: =MIN(Paramètres!AS$104,Paramètres!$E59) -> 0 | AT99: =MIN(Paramètres!AT$104,Paramètres!$E59) -> 0 | AU99: =MIN(Paramètres!AU$104,Paramètres!$E59) -> 0 | AV99: =MIN(Paramètres!AV$104,Paramètres!$E59) -> 0 | AW99: =MIN(Paramètres!AW$104,Paramètres!$E59) -> 0 | AX99: =MIN(Paramètres!AX$104,Paramètres!$E59) -> 0 | AY99: =MIN(Paramètres!AY$104,Paramètres!$E59) -> 0 | AZ99: =MIN(Paramètres!AZ$104,Paramètres!$E59) -> 0 | BA99: =MIN(Paramètres!BA$104,Paramètres!$E59) -> 0 | BB99: =MIN(Paramètres!BB$104,Paramètres!$E59) -> 0 | BC99: =MIN(Paramètres!BC$104,Paramètres!$E59) -> 0 | BD99: =MIN(Paramètres!BD$104,Paramètres!$E59) -> 0
D100: Fourchette de prix 2 | E100: $ | G100: =IF(Paramètres!G$104>Paramètres!$E60,Paramètres!G$104-Paramètres!$E60,0) -> 1300 | H100: =IF(Paramètres!H$104>Paramètres!$E60,Paramètres!H$104-Paramètres!$E60,0) -> 1300 | I100: =IF(Paramètres!I$104>Paramètres!$E60,Paramètres!I$104-Paramètres!$E60,0) -> 1300 | J100: =IF(Paramètres!J$104>Paramètres!$E60,Paramètres!J$104-Paramètres!$E60,0) -> 1300 | K100: =IF(Paramètres!K$104>Paramètres!$E60,Paramètres!K$104-Paramètres!$E60,0) -> 1300 | L100: =IF(Paramètres!L$104>Paramètres!$E60,Paramètres!L$104-Paramètres!$E60,0) -> 1300 | M100: =IF(Paramètres!M$104>Paramètres!$E60,Paramètres!M$104-Paramètres!$E60,0) -> 1300 | N100: =IF(Paramètres!N$104>Paramètres!$E60,Paramètres!N$104-Paramètres!$E60,0) -> 1300 | O100: =IF(Paramètres!O$104>Paramètres!$E60,Paramètres!O$104-Paramètres!$E60,0) -> 1300 | P100: =IF(Paramètres!P$104>Paramètres!$E60,Paramètres!P$104-Paramètres!$E60,0) -> 1300 | Q100: =IF(Paramètres!Q$104>Paramètres!$E60,Paramètres!Q$104-Paramètres!$E60,0) -> 1300 | R100: =IF(Paramètres!R$104>Paramètres!$E60,Paramètres!R$104-Paramètres!$E60,0) -> 1300 | S100: =IF(Paramètres!S$104>Paramètres!$E60,Paramètres!S$104-Paramètres!$E60,0) -> 1300 | T100: =IF(Paramètres!T$104>Paramètres!$E60,Paramètres!T$104-Paramètres!$E60,0) -> 1300 | U100: =IF(Paramètres!U$104>Paramètres!$E60,Paramètres!U$104-Paramètres!$E60,0) -> 1300 | V100: =IF(Paramètres!V$104>Paramètres!$E60,Paramètres!V$104-Paramètres!$E60,0) -> 1300 | W100: =IF(Paramètres!W$104>Paramètres!$E60,Paramètres!W$104-Paramètres!$E60,0) -> 1300 | X100: =IF(Paramètres!X$104>Paramètres!$E60,Paramètres!X$104-Paramètres!$E60,0) -> 1300 | Y100: =IF(Paramètres!Y$104>Paramètres!$E60,Paramètres!Y$104-Paramètres!$E60,0) -> 1300 | Z100: =IF(Paramètres!Z$104>Paramètres!$E60,Paramètres!Z$104-Paramètres!$E60,0) -> 1300 | AA100: =IF(Paramètres!AA$104>Paramètres!$E60,Paramètres!AA$104-Paramètres!$E60,0) -> 1300 | AB100: =IF(Paramètres!AB$104>Paramètres!$E60,Paramètres!AB$104-Paramètres!$E60,0) -> 1300 | AC100: =IF(Paramètres!AC$104>Paramètres!$E60,Paramètres!AC$104-Paramètres!$E60,0) -> 1300 | AD100: =IF(Paramètres!AD$104>Paramètres!$E60,Paramètres!AD$104-Paramètres!$E60,0) -> 1300 | AE100: =IF(Paramètres!AE$104>Paramètres!$E60,Paramètres!AE$104-Paramètres!$E60,0) -> 1300 | AF100: =IF(Paramètres!AF$104>Paramètres!$E60,Paramètres!AF$104-Paramètres!$E60,0) -> 1300 | AG100: =IF(Paramètres!AG$104>Paramètres!$E60,Paramètres!AG$104-Paramètres!$E60,0) -> 1300 | AH100: =IF(Paramètres!AH$104>Paramètres!$E60,Paramètres!AH$104-Paramètres!$E60,0) -> 1300 | AI100: =IF(Paramètres!AI$104>Paramètres!$E60,Paramètres!AI$104-Paramètres!$E60,0) -> 1300 | AJ100: =IF(Paramètres!AJ$104>Paramètres!$E60,Paramètres!AJ$104-Paramètres!$E60,0) -> 1300 | AK100: =IF(Paramètres!AK$104>Paramètres!$E60,Paramètres!AK$104-Paramètres!$E60,0) -> 1300 | AL100: =IF(Paramètres!AL$104>Paramètres!$E60,Paramètres!AL$104-Paramètres!$E60,0) -> 1300 | AM100: =IF(Paramètres!AM$104>Paramètres!$E60,Paramètres!AM$104-Paramètres!$E60,0) -> 1300 | AN100: =IF(Paramètres!AN$104>Paramètres!$E60,Paramètres!AN$104-Paramètres!$E60,0) -> 1300 | AO100: =IF(Paramètres!AO$104>Paramètres!$E60,Paramètres!AO$104-Paramètres!$E60,0) -> 1300 | AP100: =IF(Paramètres!AP$104>Paramètres!$E60,Paramètres!AP$104-Paramètres!$E60,0) -> 1300 | AQ100: =IF(Paramètres!AQ$104>Paramètres!$E60,Paramètres!AQ$104-Paramètres!$E60,0) -> 1300 | AR100: =IF(Paramètres!AR$104>Paramètres!$E60,Paramètres!AR$104-Paramètres!$E60,0) -> 1300 | AS100: =IF(Paramètres!AS$104>Paramètres!$E60,Paramètres!AS$104-Paramètres!$E60,0) -> 1300 | AT100: =IF(Paramètres!AT$104>Paramètres!$E60,Paramètres!AT$104-Paramètres!$E60,0) -> 1300 | AU100: =IF(Paramètres!AU$104>Paramètres!$E60,Paramètres!AU$104-Paramètres!$E60,0) -> 1300 | AV100: =IF(Paramètres!AV$104>Paramètres!$E60,Paramètres!AV$104-Paramètres!$E60,0) -> 1300 | AW100: =IF(Paramètres!AW$104>Paramètres!$E60,Paramètres!AW$104-Paramètres!$E60,0) -> 1300 | AX100: =IF(Paramètres!AX$104>Paramètres!$E60,Paramètres!AX$104-Paramètres!$E60,0) -> 1300 | AY100: =IF(Paramètres!AY$104>Paramètres!$E60,Paramètres!AY$104-Paramètres!$E60,0) -> 1300 | AZ100: =IF(Paramètres!AZ$104>Paramètres!$E60,Paramètres!AZ$104-Paramètres!$E60,0) -> 1300 | BA100: =IF(Paramètres!BA$104>Paramètres!$E60,Paramètres!BA$104-Paramètres!$E60,0) -> 1300 | BB100: =IF(Paramètres!BB$104>Paramètres!$E60,Paramètres!BB$104-Paramètres!$E60,0) -> 1300 | BC100: =IF(Paramètres!BC$104>Paramètres!$E60,Paramètres!BC$104-Paramètres!$E60,0) -> 1300 | BD100: =IF(Paramètres!BD$104>Paramètres!$E60,Paramètres!BD$104-Paramètres!$E60,0) -> 1300
D101: Fourchette de prix 3 | E101: $ | G101: =IF(Paramètres!G$104>Paramètres!$E61,Paramètres!G$104-Paramètres!$E61,0) -> 1300 | H101: =IF(Paramètres!H$104>Paramètres!$E61,Paramètres!H$104-Paramètres!$E61,0) -> 1300 | I101: =IF(Paramètres!I$104>Paramètres!$E61,Paramètres!I$104-Paramètres!$E61,0) -> 1300 | J101: =IF(Paramètres!J$104>Paramètres!$E61,Paramètres!J$104-Paramètres!$E61,0) -> 1300 | K101: =IF(Paramètres!K$104>Paramètres!$E61,Paramètres!K$104-Paramètres!$E61,0) -> 1300 | L101: =IF(Paramètres!L$104>Paramètres!$E61,Paramètres!L$104-Paramètres!$E61,0) -> 1300 | M101: =IF(Paramètres!M$104>Paramètres!$E61,Paramètres!M$104-Paramètres!$E61,0) -> 1300 | N101: =IF(Paramètres!N$104>Paramètres!$E61,Paramètres!N$104-Paramètres!$E61,0) -> 1300 | O101: =IF(Paramètres!O$104>Paramètres!$E61,Paramètres!O$104-Paramètres!$E61,0) -> 1300 | P101: =IF(Paramètres!P$104>Paramètres!$E61,Paramètres!P$104-Paramètres!$E61,0) -> 1300 | Q101: =IF(Paramètres!Q$104>Paramètres!$E61,Paramètres!Q$104-Paramètres!$E61,0) -> 1300 | R101: =IF(Paramètres!R$104>Paramètres!$E61,Paramètres!R$104-Paramètres!$E61,0) -> 1300 | S101: =IF(Paramètres!S$104>Paramètres!$E61,Paramètres!S$104-Paramètres!$E61,0) -> 1300 | T101: =IF(Paramètres!T$104>Paramètres!$E61,Paramètres!T$104-Paramètres!$E61,0) -> 1300 | U101: =IF(Paramètres!U$104>Paramètres!$E61,Paramètres!U$104-Paramètres!$E61,0) -> 1300 | V101: =IF(Paramètres!V$104>Paramètres!$E61,Paramètres!V$104-Paramètres!$E61,0) -> 1300 | W101: =IF(Paramètres!W$104>Paramètres!$E61,Paramètres!W$104-Paramètres!$E61,0) -> 1300 | X101: =IF(Paramètres!X$104>Paramètres!$E61,Paramètres!X$104-Paramètres!$E61,0) -> 1300 | Y101: =IF(Paramètres!Y$104>Paramètres!$E61,Paramètres!Y$104-Paramètres!$E61,0) -> 1300 | Z101: =IF(Paramètres!Z$104>Paramètres!$E61,Paramètres!Z$104-Paramètres!$E61,0) -> 1300 | AA101: =IF(Paramètres!AA$104>Paramètres!$E61,Paramètres!AA$104-Paramètres!$E61,0) -> 1300 | AB101: =IF(Paramètres!AB$104>Paramètres!$E61,Paramètres!AB$104-Paramètres!$E61,0) -> 1300 | AC101: =IF(Paramètres!AC$104>Paramètres!$E61,Paramètres!AC$104-Paramètres!$E61,0) -> 1300 | AD101: =IF(Paramètres!AD$104>Paramètres!$E61,Paramètres!AD$104-Paramètres!$E61,0) -> 1300 | AE101: =IF(Paramètres!AE$104>Paramètres!$E61,Paramètres!AE$104-Paramètres!$E61,0) -> 1300 | AF101: =IF(Paramètres!AF$104>Paramètres!$E61,Paramètres!AF$104-Paramètres!$E61,0) -> 1300 | AG101: =IF(Paramètres!AG$104>Paramètres!$E61,Paramètres!AG$104-Paramètres!$E61,0) -> 1300 | AH101: =IF(Paramètres!AH$104>Paramètres!$E61,Paramètres!AH$104-Paramètres!$E61,0) -> 1300 | AI101: =IF(Paramètres!AI$104>Paramètres!$E61,Paramètres!AI$104-Paramètres!$E61,0) -> 1300 | AJ101: =IF(Paramètres!AJ$104>Paramètres!$E61,Paramètres!AJ$104-Paramètres!$E61,0) -> 1300 | AK101: =IF(Paramètres!AK$104>Paramètres!$E61,Paramètres!AK$104-Paramètres!$E61,0) -> 1300 | AL101: =IF(Paramètres!AL$104>Paramètres!$E61,Paramètres!AL$104-Paramètres!$E61,0) -> 1300 | AM101: =IF(Paramètres!AM$104>Paramètres!$E61,Paramètres!AM$104-Paramètres!$E61,0) -> 1300 | AN101: =IF(Paramètres!AN$104>Paramètres!$E61,Paramètres!AN$104-Paramètres!$E61,0) -> 1300 | AO101: =IF(Paramètres!AO$104>Paramètres!$E61,Paramètres!AO$104-Paramètres!$E61,0) -> 1300 | AP101: =IF(Paramètres!AP$104>Paramètres!$E61,Paramètres!AP$104-Paramètres!$E61,0) -> 1300 | AQ101: =IF(Paramètres!AQ$104>Paramètres!$E61,Paramètres!AQ$104-Paramètres!$E61,0) -> 1300 | AR101: =IF(Paramètres!AR$104>Paramètres!$E61,Paramètres!AR$104-Paramètres!$E61,0) -> 1300 | AS101: =IF(Paramètres!AS$104>Paramètres!$E61,Paramètres!AS$104-Paramètres!$E61,0) -> 1300 | AT101: =IF(Paramètres!AT$104>Paramètres!$E61,Paramètres!AT$104-Paramètres!$E61,0) -> 1300 | AU101: =IF(Paramètres!AU$104>Paramètres!$E61,Paramètres!AU$104-Paramètres!$E61,0) -> 1300 | AV101: =IF(Paramètres!AV$104>Paramètres!$E61,Paramètres!AV$104-Paramètres!$E61,0) -> 1300 | AW101: =IF(Paramètres!AW$104>Paramètres!$E61,Paramètres!AW$104-Paramètres!$E61,0) -> 1300 | AX101: =IF(Paramètres!AX$104>Paramètres!$E61,Paramètres!AX$104-Paramètres!$E61,0) -> 1300 | AY101: =IF(Paramètres!AY$104>Paramètres!$E61,Paramètres!AY$104-Paramètres!$E61,0) -> 1300 | AZ101: =IF(Paramètres!AZ$104>Paramètres!$E61,Paramètres!AZ$104-Paramètres!$E61,0) -> 1300 | BA101: =IF(Paramètres!BA$104>Paramètres!$E61,Paramètres!BA$104-Paramètres!$E61,0) -> 1300 | BB101: =IF(Paramètres!BB$104>Paramètres!$E61,Paramètres!BB$104-Paramètres!$E61,0) -> 1300 | BC101: =IF(Paramètres!BC$104>Paramètres!$E61,Paramètres!BC$104-Paramètres!$E61,0) -> 1300 | BD101: =IF(Paramètres!BD$104>Paramètres!$E61,Paramètres!BD$104-Paramètres!$E61,0) -> 1300
D102: Fourchette de prix 4 | E102: $ | G102: =IF(Paramètres!G$104>Paramètres!$E62,Paramètres!G$104-Paramètres!$E62,0) -> 1300 | H102: =IF(Paramètres!H$104>Paramètres!$E62,Paramètres!H$104-Paramètres!$E62,0) -> 1300 | I102: =IF(Paramètres!I$104>Paramètres!$E62,Paramètres!I$104-Paramètres!$E62,0) -> 1300 | J102: =IF(Paramètres!J$104>Paramètres!$E62,Paramètres!J$104-Paramètres!$E62,0) -> 1300 | K102: =IF(Paramètres!K$104>Paramètres!$E62,Paramètres!K$104-Paramètres!$E62,0) -> 1300 | L102: =IF(Paramètres!L$104>Paramètres!$E62,Paramètres!L$104-Paramètres!$E62,0) -> 1300 | M102: =IF(Paramètres!M$104>Paramètres!$E62,Paramètres!M$104-Paramètres!$E62,0) -> 1300 | N102: =IF(Paramètres!N$104>Paramètres!$E62,Paramètres!N$104-Paramètres!$E62,0) -> 1300 | O102: =IF(Paramètres!O$104>Paramètres!$E62,Paramètres!O$104-Paramètres!$E62,0) -> 1300 | P102: =IF(Paramètres!P$104>Paramètres!$E62,Paramètres!P$104-Paramètres!$E62,0) -> 1300 | Q102: =IF(Paramètres!Q$104>Paramètres!$E62,Paramètres!Q$104-Paramètres!$E62,0) -> 1300 | R102: =IF(Paramètres!R$104>Paramètres!$E62,Paramètres!R$104-Paramètres!$E62,0) -> 1300 | S102: =IF(Paramètres!S$104>Paramètres!$E62,Paramètres!S$104-Paramètres!$E62,0) -> 1300 | T102: =IF(Paramètres!T$104>Paramètres!$E62,Paramètres!T$104-Paramètres!$E62,0) -> 1300 | U102: =IF(Paramètres!U$104>Paramètres!$E62,Paramètres!U$104-Paramètres!$E62,0) -> 1300 | V102: =IF(Paramètres!V$104>Paramètres!$E62,Paramètres!V$104-Paramètres!$E62,0) -> 1300 | W102: =IF(Paramètres!W$104>Paramètres!$E62,Paramètres!W$104-Paramètres!$E62,0) -> 1300 | X102: =IF(Paramètres!X$104>Paramètres!$E62,Paramètres!X$104-Paramètres!$E62,0) -> 1300 | Y102: =IF(Paramètres!Y$104>Paramètres!$E62,Paramètres!Y$104-Paramètres!$E62,0) -> 1300 | Z102: =IF(Paramètres!Z$104>Paramètres!$E62,Paramètres!Z$104-Paramètres!$E62,0) -> 1300 | AA102: =IF(Paramètres!AA$104>Paramètres!$E62,Paramètres!AA$104-Paramètres!$E62,0) -> 1300 | AB102: =IF(Paramètres!AB$104>Paramètres!$E62,Paramètres!AB$104-Paramètres!$E62,0) -> 1300 | AC102: =IF(Paramètres!AC$104>Paramètres!$E62,Paramètres!AC$104-Paramètres!$E62,0) -> 1300 | AD102: =IF(Paramètres!AD$104>Paramètres!$E62,Paramètres!AD$104-Paramètres!$E62,0) -> 1300 | AE102: =IF(Paramètres!AE$104>Paramètres!$E62,Paramètres!AE$104-Paramètres!$E62,0) -> 1300 | AF102: =IF(Paramètres!AF$104>Paramètres!$E62,Paramètres!AF$104-Paramètres!$E62,0) -> 1300 | AG102: =IF(Paramètres!AG$104>Paramètres!$E62,Paramètres!AG$104-Paramètres!$E62,0) -> 1300 | AH102: =IF(Paramètres!AH$104>Paramètres!$E62,Paramètres!AH$104-Paramètres!$E62,0) -> 1300 | AI102: =IF(Paramètres!AI$104>Paramètres!$E62,Paramètres!AI$104-Paramètres!$E62,0) -> 1300 | AJ102: =IF(Paramètres!AJ$104>Paramètres!$E62,Paramètres!AJ$104-Paramètres!$E62,0) -> 1300 | AK102: =IF(Paramètres!AK$104>Paramètres!$E62,Paramètres!AK$104-Paramètres!$E62,0) -> 1300 | AL102: =IF(Paramètres!AL$104>Paramètres!$E62,Paramètres!AL$104-Paramètres!$E62,0) -> 1300 | AM102: =IF(Paramètres!AM$104>Paramètres!$E62,Paramètres!AM$104-Paramètres!$E62,0) -> 1300 | AN102: =IF(Paramètres!AN$104>Paramètres!$E62,Paramètres!AN$104-Paramètres!$E62,0) -> 1300 | AO102: =IF(Paramètres!AO$104>Paramètres!$E62,Paramètres!AO$104-Paramètres!$E62,0) -> 1300 | AP102: =IF(Paramètres!AP$104>Paramètres!$E62,Paramètres!AP$104-Paramètres!$E62,0) -> 1300 | AQ102: =IF(Paramètres!AQ$104>Paramètres!$E62,Paramètres!AQ$104-Paramètres!$E62,0) -> 1300 | AR102: =IF(Paramètres!AR$104>Paramètres!$E62,Paramètres!AR$104-Paramètres!$E62,0) -> 1300 | AS102: =IF(Paramètres!AS$104>Paramètres!$E62,Paramètres!AS$104-Paramètres!$E62,0) -> 1300 | AT102: =IF(Paramètres!AT$104>Paramètres!$E62,Paramètres!AT$104-Paramètres!$E62,0) -> 1300 | AU102: =IF(Paramètres!AU$104>Paramètres!$E62,Paramètres!AU$104-Paramètres!$E62,0) -> 1300 | AV102: =IF(Paramètres!AV$104>Paramètres!$E62,Paramètres!AV$104-Paramètres!$E62,0) -> 1300 | AW102: =IF(Paramètres!AW$104>Paramètres!$E62,Paramètres!AW$104-Paramètres!$E62,0) -> 1300 | AX102: =IF(Paramètres!AX$104>Paramètres!$E62,Paramètres!AX$104-Paramètres!$E62,0) -> 1300 | AY102: =IF(Paramètres!AY$104>Paramètres!$E62,Paramètres!AY$104-Paramètres!$E62,0) -> 1300 | AZ102: =IF(Paramètres!AZ$104>Paramètres!$E62,Paramètres!AZ$104-Paramètres!$E62,0) -> 1300 | BA102: =IF(Paramètres!BA$104>Paramètres!$E62,Paramètres!BA$104-Paramètres!$E62,0) -> 1300 | BB102: =IF(Paramètres!BB$104>Paramètres!$E62,Paramètres!BB$104-Paramètres!$E62,0) -> 1300 | BC102: =IF(Paramètres!BC$104>Paramètres!$E62,Paramètres!BC$104-Paramètres!$E62,0) -> 1300 | BD102: =IF(Paramètres!BD$104>Paramètres!$E62,Paramètres!BD$104-Paramètres!$E62,0) -> 1300
D104: Palier 1 | E104: $mm nominal | G104: =Paramètres!$F59*G99 -> 0 | H104: =Paramètres!$F59*H99 -> 0 | I104: =Paramètres!$F59*I99 -> 0 | J104: =Paramètres!$F59*J99 -> 0 | K104: =Paramètres!$F59*K99 -> 0 | L104: =Paramètres!$F59*L99 -> 0 | M104: =Paramètres!$F59*M99 -> 0 | N104: =Paramètres!$F59*N99 -> 0 | O104: =Paramètres!$F59*O99 -> 0 | P104: =Paramètres!$F59*P99 -> 0 | Q104: =Paramètres!$F59*Q99 -> 0 | R104: =Paramètres!$F59*R99 -> 0 | S104: =Paramètres!$F59*S99 -> 0 | T104: =Paramètres!$F59*T99 -> 0 | U104: =Paramètres!$F59*U99 -> 0 | V104: =Paramètres!$F59*V99 -> 0 | W104: =Paramètres!$F59*W99 -> 0 | X104: =Paramètres!$F59*X99 -> 0 | Y104: =Paramètres!$F59*Y99 -> 0 | Z104: =Paramètres!$F59*Z99 -> 0 | AA104: =Paramètres!$F59*AA99 -> 0 | AB104: =Paramètres!$F59*AB99 -> 0 | AC104: =Paramètres!$F59*AC99 -> 0 | AD104: =Paramètres!$F59*AD99 -> 0 | AE104: =Paramètres!$F59*AE99 -> 0 | AF104: =Paramètres!$F59*AF99 -> 0 | AG104: =Paramètres!$F59*AG99 -> 0 | AH104: =Paramètres!$F59*AH99 -> 0 | AI104: =Paramètres!$F59*AI99 -> 0 | AJ104: =Paramètres!$F59*AJ99 -> 0 | AK104: =Paramètres!$F59*AK99 -> 0 | AL104: =Paramètres!$F59*AL99 -> 0 | AM104: =Paramètres!$F59*AM99 -> 0 | AN104: =Paramètres!$F59*AN99 -> 0 | AO104: =Paramètres!$F59*AO99 -> 0 | AP104: =Paramètres!$F59*AP99 -> 0 | AQ104: =Paramètres!$F59*AQ99 -> 0 | AR104: =Paramètres!$F59*AR99 -> 0 | AS104: =Paramètres!$F59*AS99 -> 0 | AT104: =Paramètres!$F59*AT99 -> 0 | AU104: =Paramètres!$F59*AU99 -> 0 | AV104: =Paramètres!$F59*AV99 -> 0 | AW104: =Paramètres!$F59*AW99 -> 0 | AX104: =Paramètres!$F59*AX99 -> 0 | AY104: =Paramètres!$F59*AY99 -> 0 | AZ104: =Paramètres!$F59*AZ99 -> 0 | BA104: =Paramètres!$F59*BA99 -> 0 | BB104: =Paramètres!$F59*BB99 -> 0 | BC104: =Paramètres!$F59*BC99 -> 0 | BD104: =Paramètres!$F59*BD99 -> 0
D105: Palier 2 | E105: $mm nominal | G105: =Paramètres!$F60*G100 -> 0 | H105: =Paramètres!$F60*H100 -> 0 | I105: =Paramètres!$F60*I100 -> 0 | J105: =Paramètres!$F60*J100 -> 0 | K105: =Paramètres!$F60*K100 -> 0 | L105: =Paramètres!$F60*L100 -> 0 | M105: =Paramètres!$F60*M100 -> 0 | N105: =Paramètres!$F60*N100 -> 0 | O105: =Paramètres!$F60*O100 -> 0 | P105: =Paramètres!$F60*P100 -> 0 | Q105: =Paramètres!$F60*Q100 -> 0 | R105: =Paramètres!$F60*R100 -> 0 | S105: =Paramètres!$F60*S100 -> 0 | T105: =Paramètres!$F60*T100 -> 0 | U105: =Paramètres!$F60*U100 -> 0 | V105: =Paramètres!$F60*V100 -> 0 | W105: =Paramètres!$F60*W100 -> 0 | X105: =Paramètres!$F60*X100 -> 0 | Y105: =Paramètres!$F60*Y100 -> 0 | Z105: =Paramètres!$F60*Z100 -> 0 | AA105: =Paramètres!$F60*AA100 -> 0 | AB105: =Paramètres!$F60*AB100 -> 0 | AC105: =Paramètres!$F60*AC100 -> 0 | AD105: =Paramètres!$F60*AD100 -> 0 | AE105: =Paramètres!$F60*AE100 -> 0 | AF105: =Paramètres!$F60*AF100 -> 0 | AG105: =Paramètres!$F60*AG100 -> 0 | AH105: =Paramètres!$F60*AH100 -> 0 | AI105: =Paramètres!$F60*AI100 -> 0 | AJ105: =Paramètres!$F60*AJ100 -> 0 | AK105: =Paramètres!$F60*AK100 -> 0 | AL105: =Paramètres!$F60*AL100 -> 0 | AM105: =Paramètres!$F60*AM100 -> 0 | AN105: =Paramètres!$F60*AN100 -> 0 | AO105: =Paramètres!$F60*AO100 -> 0 | AP105: =Paramètres!$F60*AP100 -> 0 | AQ105: =Paramètres!$F60*AQ100 -> 0 | AR105: =Paramètres!$F60*AR100 -> 0 | AS105: =Paramètres!$F60*AS100 -> 0 | AT105: =Paramètres!$F60*AT100 -> 0 | AU105: =Paramètres!$F60*AU100 -> 0 | AV105: =Paramètres!$F60*AV100 -> 0 | AW105: =Paramètres!$F60*AW100 -> 0 | AX105: =Paramètres!$F60*AX100 -> 0 | AY105: =Paramètres!$F60*AY100 -> 0 | AZ105: =Paramètres!$F60*AZ100 -> 0 | BA105: =Paramètres!$F60*BA100 -> 0 | BB105: =Paramètres!$F60*BB100 -> 0 | BC105: =Paramètres!$F60*BC100 -> 0 | BD105: =Paramètres!$F60*BD100 -> 0
D106: Palier 3 | E106: $mm nominal | G106: =Paramètres!$F61*G101 -> 0 | H106: =Paramètres!$F61*H101 -> 0 | I106: =Paramètres!$F61*I101 -> 0 | J106: =Paramètres!$F61*J101 -> 0 | K106: =Paramètres!$F61*K101 -> 0 | L106: =Paramètres!$F61*L101 -> 0 | M106: =Paramètres!$F61*M101 -> 0 | N106: =Paramètres!$F61*N101 -> 0 | O106: =Paramètres!$F61*O101 -> 0 | P106: =Paramètres!$F61*P101 -> 0 | Q106: =Paramètres!$F61*Q101 -> 0 | R106: =Paramètres!$F61*R101 -> 0 | S106: =Paramètres!$F61*S101 -> 0 | T106: =Paramètres!$F61*T101 -> 0 | U106: =Paramètres!$F61*U101 -> 0 | V106: =Paramètres!$F61*V101 -> 0 | W106: =Paramètres!$F61*W101 -> 0 | X106: =Paramètres!$F61*X101 -> 0 | Y106: =Paramètres!$F61*Y101 -> 0 | Z106: =Paramètres!$F61*Z101 -> 0 | AA106: =Paramètres!$F61*AA101 -> 0 | AB106: =Paramètres!$F61*AB101 -> 0 | AC106: =Paramètres!$F61*AC101 -> 0 | AD106: =Paramètres!$F61*AD101 -> 0 | AE106: =Paramètres!$F61*AE101 -> 0 | AF106: =Paramètres!$F61*AF101 -> 0 | AG106: =Paramètres!$F61*AG101 -> 0 | AH106: =Paramètres!$F61*AH101 -> 0 | AI106: =Paramètres!$F61*AI101 -> 0 | AJ106: =Paramètres!$F61*AJ101 -> 0 | AK106: =Paramètres!$F61*AK101 -> 0 | AL106: =Paramètres!$F61*AL101 -> 0 | AM106: =Paramètres!$F61*AM101 -> 0 | AN106: =Paramètres!$F61*AN101 -> 0 | AO106: =Paramètres!$F61*AO101 -> 0 | AP106: =Paramètres!$F61*AP101 -> 0 | AQ106: =Paramètres!$F61*AQ101 -> 0 | AR106: =Paramètres!$F61*AR101 -> 0 | AS106: =Paramètres!$F61*AS101 -> 0 | AT106: =Paramètres!$F61*AT101 -> 0 | AU106: =Paramètres!$F61*AU101 -> 0 | AV106: =Paramètres!$F61*AV101 -> 0 | AW106: =Paramètres!$F61*AW101 -> 0 | AX106: =Paramètres!$F61*AX101 -> 0 | AY106: =Paramètres!$F61*AY101 -> 0 | AZ106: =Paramètres!$F61*AZ101 -> 0 | BA106: =Paramètres!$F61*BA101 -> 0 | BB106: =Paramètres!$F61*BB101 -> 0 | BC106: =Paramètres!$F61*BC101 -> 0 | BD106: =Paramètres!$F61*BD101 -> 0
D107: Palier 4 | E107: $mm nominal | G107: =Paramètres!$F62*G102 -> 0 | H107: =Paramètres!$F62*H102 -> 0 | I107: =Paramètres!$F62*I102 -> 0 | J107: =Paramètres!$F62*J102 -> 0 | K107: =Paramètres!$F62*K102 -> 0 | L107: =Paramètres!$F62*L102 -> 0 | M107: =Paramètres!$F62*M102 -> 0 | N107: =Paramètres!$F62*N102 -> 0 | O107: =Paramètres!$F62*O102 -> 0 | P107: =Paramètres!$F62*P102 -> 0 | Q107: =Paramètres!$F62*Q102 -> 0 | R107: =Paramètres!$F62*R102 -> 0 | S107: =Paramètres!$F62*S102 -> 0 | T107: =Paramètres!$F62*T102 -> 0 | U107: =Paramètres!$F62*U102 -> 0 | V107: =Paramètres!$F62*V102 -> 0 | W107: =Paramètres!$F62*W102 -> 0 | X107: =Paramètres!$F62*X102 -> 0 | Y107: =Paramètres!$F62*Y102 -> 0 | Z107: =Paramètres!$F62*Z102 -> 0 | AA107: =Paramètres!$F62*AA102 -> 0 | AB107: =Paramètres!$F62*AB102 -> 0 | AC107: =Paramètres!$F62*AC102 -> 0 | AD107: =Paramètres!$F62*AD102 -> 0 | AE107: =Paramètres!$F62*AE102 -> 0 | AF107: =Paramètres!$F62*AF102 -> 0 | AG107: =Paramètres!$F62*AG102 -> 0 | AH107: =Paramètres!$F62*AH102 -> 0 | AI107: =Paramètres!$F62*AI102 -> 0 | AJ107: =Paramètres!$F62*AJ102 -> 0 | AK107: =Paramètres!$F62*AK102 -> 0 | AL107: =Paramètres!$F62*AL102 -> 0 | AM107: =Paramètres!$F62*AM102 -> 0 | AN107: =Paramètres!$F62*AN102 -> 0 | AO107: =Paramètres!$F62*AO102 -> 0 | AP107: =Paramètres!$F62*AP102 -> 0 | AQ107: =Paramètres!$F62*AQ102 -> 0 | AR107: =Paramètres!$F62*AR102 -> 0 | AS107: =Paramètres!$F62*AS102 -> 0 | AT107: =Paramètres!$F62*AT102 -> 0 | AU107: =Paramètres!$F62*AU102 -> 0 | AV107: =Paramètres!$F62*AV102 -> 0 | AW107: =Paramètres!$F62*AW102 -> 0 | AX107: =Paramètres!$F62*AX102 -> 0 | AY107: =Paramètres!$F62*AY102 -> 0 | AZ107: =Paramètres!$F62*AZ102 -> 0 | BA107: =Paramètres!$F62*BA102 -> 0 | BB107: =Paramètres!$F62*BB102 -> 0 | BC107: =Paramètres!$F62*BC102 -> 0 | BD107: =Paramètres!$F62*BD102 -> 0
C109: =SUM(G109:BD109) -> 0 | D109: Redevance a taux variable | E109: $mm nominal | G109: =IF(Paramètres!$F$24=1,SUM(G104:G107)*G8/1000000,0) -> 0 | H109: =IF(Paramètres!$F$24=1,SUM(H104:H107)*H8/1000000,0) -> 0 | I109: =IF(Paramètres!$F$24=1,SUM(I104:I107)*I8/1000000,0) -> 0 | J109: =IF(Paramètres!$F$24=1,SUM(J104:J107)*J8/1000000,0) -> 0 | K109: =IF(Paramètres!$F$24=1,SUM(K104:K107)*K8/1000000,0) -> 0 | L109: =IF(Paramètres!$F$24=1,SUM(L104:L107)*L8/1000000,0) -> 0 | M109: =IF(Paramètres!$F$24=1,SUM(M104:M107)*M8/1000000,0) -> 0 | N109: =IF(Paramètres!$F$24=1,SUM(N104:N107)*N8/1000000,0) -> 0 | O109: =IF(Paramètres!$F$24=1,SUM(O104:O107)*O8/1000000,0) -> 0 | P109: =IF(Paramètres!$F$24=1,SUM(P104:P107)*P8/1000000,0) -> 0 | Q109: =IF(Paramètres!$F$24=1,SUM(Q104:Q107)*Q8/1000000,0) -> 0 | R109: =IF(Paramètres!$F$24=1,SUM(R104:R107)*R8/1000000,0) -> 0 | S109: =IF(Paramètres!$F$24=1,SUM(S104:S107)*S8/1000000,0) -> 0 | T109: =IF(Paramètres!$F$24=1,SUM(T104:T107)*T8/1000000,0) -> 0 | U109: =IF(Paramètres!$F$24=1,SUM(U104:U107)*U8/1000000,0) -> 0 | V109: =IF(Paramètres!$F$24=1,SUM(V104:V107)*V8/1000000,0) -> 0 | W109: =IF(Paramètres!$F$24=1,SUM(W104:W107)*W8/1000000,0) -> 0 | X109: =IF(Paramètres!$F$24=1,SUM(X104:X107)*X8/1000000,0) -> 0 | Y109: =IF(Paramètres!$F$24=1,SUM(Y104:Y107)*Y8/1000000,0) -> 0 | Z109: =IF(Paramètres!$F$24=1,SUM(Z104:Z107)*Z8/1000000,0) -> 0 | AA109: =IF(Paramètres!$F$24=1,SUM(AA104:AA107)*AA8/1000000,0) -> 0 | AB109: =IF(Paramètres!$F$24=1,SUM(AB104:AB107)*AB8/1000000,0) -> 0 | AC109: =IF(Paramètres!$F$24=1,SUM(AC104:AC107)*AC8/1000000,0) -> 0 | AD109: =IF(Paramètres!$F$24=1,SUM(AD104:AD107)*AD8/1000000,0) -> 0 | AE109: =IF(Paramètres!$F$24=1,SUM(AE104:AE107)*AE8/1000000,0) -> 0 | AF109: =IF(Paramètres!$F$24=1,SUM(AF104:AF107)*AF8/1000000,0) -> 0 | AG109: =IF(Paramètres!$F$24=1,SUM(AG104:AG107)*AG8/1000000,0) -> 0 | AH109: =IF(Paramètres!$F$24=1,SUM(AH104:AH107)*AH8/1000000,0) -> 0 | AI109: =IF(Paramètres!$F$24=1,SUM(AI104:AI107)*AI8/1000000,0) -> 0 | AJ109: =IF(Paramètres!$F$24=1,SUM(AJ104:AJ107)*AJ8/1000000,0) -> 0 | AK109: =IF(Paramètres!$F$24=1,SUM(AK104:AK107)*AK8/1000000,0) -> 0 | AL109: =IF(Paramètres!$F$24=1,SUM(AL104:AL107)*AL8/1000000,0) -> 0 | AM109: =IF(Paramètres!$F$24=1,SUM(AM104:AM107)*AM8/1000000,0) -> 0 | AN109: =IF(Paramètres!$F$24=1,SUM(AN104:AN107)*AN8/1000000,0) -> 0 | AO109: =IF(Paramètres!$F$24=1,SUM(AO104:AO107)*AO8/1000000,0) -> 0 | AP109: =IF(Paramètres!$F$24=1,SUM(AP104:AP107)*AP8/1000000,0) -> 0 | AQ109: =IF(Paramètres!$F$24=1,SUM(AQ104:AQ107)*AQ8/1000000,0) -> 0 | AR109: =IF(Paramètres!$F$24=1,SUM(AR104:AR107)*AR8/1000000,0) -> 0 | AS109: =IF(Paramètres!$F$24=1,SUM(AS104:AS107)*AS8/1000000,0) -> 0 | AT109: =IF(Paramètres!$F$24=1,SUM(AT104:AT107)*AT8/1000000,0) -> 0 | AU109: =IF(Paramètres!$F$24=1,SUM(AU104:AU107)*AU8/1000000,0) -> 0 | AV109: =IF(Paramètres!$F$24=1,SUM(AV104:AV107)*AV8/1000000,0) -> 0 | AW109: =IF(Paramètres!$F$24=1,SUM(AW104:AW107)*AW8/1000000,0) -> 0 | AX109: =IF(Paramètres!$F$24=1,SUM(AX104:AX107)*AX8/1000000,0) -> 0 | AY109: =IF(Paramètres!$F$24=1,SUM(AY104:AY107)*AY8/1000000,0) -> 0 | AZ109: =IF(Paramètres!$F$24=1,SUM(AZ104:AZ107)*AZ8/1000000,0) -> 0 | BA109: =IF(Paramètres!$F$24=1,SUM(BA104:BA107)*BA8/1000000,0) -> 0 | BB109: =IF(Paramètres!$F$24=1,SUM(BB104:BB107)*BB8/1000000,0) -> 0 | BC109: =IF(Paramètres!$F$24=1,SUM(BC104:BC107)*BC8/1000000,0) -> 0 | BD109: =IF(Paramètres!$F$24=1,SUM(BD104:BD107)*BD8/1000000,0) -> 0
D111: Droits de douane
C112: =SUM(G112:BD112) -> 69.83862069 | D112: Droits de douane | E112: $mm nominal | G112: =G50*Paramètres!$F$37*Paramètres!$F$99+SUM(Modèle!G48:G49)*Paramètres!$F$37*Paramètres!$F$100 -> 6.25 | H112: =H50*Paramètres!$F$37*Paramètres!$F$99+SUM(Modèle!H48:H49)*Paramètres!$F$37*Paramètres!$F$100 -> 6.375 | I112: =I50*Paramètres!$F$37*Paramètres!$F$99+SUM(Modèle!I48:I49)*Paramètres!$F$37*Paramètres!$F$100 -> 4.70169765 | J112: =J50*Paramètres!$F$37*Paramètres!$F$99+SUM(Modèle!J48:J49)*Paramètres!$F$37*Paramètres!$F$100 -> 4.795731603 | K112: =K50*Paramètres!$F$37*Paramètres!$F$99+SUM(Modèle!K48:K49)*Paramètres!$F$37*Paramètres!$F$100 -> 4.891646235 | L112: =L50*Paramètres!$F$37*Paramètres!$F$99+SUM(Modèle!L48:L49)*Paramètres!$F$37*Paramètres!$F$100 -> 4.98947916 | M112: =M50*Paramètres!$F$37*Paramètres!$F$99+SUM(Modèle!M48:M49)*Paramètres!$F$37*Paramètres!$F$100 -> 5.089268743 | N112: =N50*Paramètres!$F$37*Paramètres!$F$99+SUM(Modèle!N48:N49)*Paramètres!$F$37*Paramètres!$F$100 -> 5.191054118 | O112: =O50*Paramètres!$F$37*Paramètres!$F$99+SUM(Modèle!O48:O49)*Paramètres!$F$37*Paramètres!$F$100 -> 5.2948752 | P112: =P50*Paramètres!$F$37*Paramètres!$F$99+SUM(Modèle!P48:P49)*Paramètres!$F$37*Paramètres!$F$100 -> 5.400772704 | Q112: =Q50*Paramètres!$F$37*Paramètres!$F$99+SUM(Modèle!Q48:Q49)*Paramètres!$F$37*Paramètres!$F$100 -> 5.508788158 | R112: =R50*Paramètres!$F$37*Paramètres!$F$99+SUM(Modèle!R48:R49)*Paramètres!$F$37*Paramètres!$F$100 -> 5.618963921 | S112: =S50*Paramètres!$F$37*Paramètres!$F$99+SUM(Modèle!S48:S49)*Paramètres!$F$37*Paramètres!$F$100 -> 5.7313432 | T112: =T50*Paramètres!$F$37*Paramètres!$F$99+SUM(Modèle!T48:T49)*Paramètres!$F$37*Paramètres!$F$100 -> 0 | U112: =U50*Paramètres!$F$37*Paramètres!$F$99+SUM(Modèle!U48:U49)*Paramètres!$F$37*Paramètres!$F$100 -> 0 | V112: =V50*Paramètres!$F$37*Paramètres!$F$99+SUM(Modèle!V48:V49)*Paramètres!$F$37*Paramètres!$F$100 -> 0 | W112: =W50*Paramètres!$F$37*Paramètres!$F$99+SUM(Modèle!W48:W49)*Paramètres!$F$37*Paramètres!$F$100 -> 0 | X112: =X50*Paramètres!$F$37*Paramètres!$F$99+SUM(Modèle!X48:X49)*Paramètres!$F$37*Paramètres!$F$100 -> 0 | Y112: =Y50*Paramètres!$F$37*Paramètres!$F$99+SUM(Modèle!Y48:Y49)*Paramètres!$F$37*Paramètres!$F$100 -> 0 | Z112: =Z50*Paramètres!$F$37*Paramètres!$F$99+SUM(Modèle!Z48:Z49)*Paramètres!$F$37*Paramètres!$F$100 -> 0 | AA112: =AA50*Paramètres!$F$37*Paramètres!$F$99+SUM(Modèle!AA48:AA49)*Paramètres!$F$37*Paramètres!$F$100 -> 0 | AB112: =AB50*Paramètres!$F$37*Paramètres!$F$99+SUM(Modèle!AB48:AB49)*Paramètres!$F$37*Paramètres!$F$100 -> 0 | AC112: =AC50*Paramètres!$F$37*Paramètres!$F$99+SUM(Modèle!AC48:AC49)*Paramètres!$F$37*Paramètres!$F$100 -> 0 | AD112: =AD50*Paramètres!$F$37*Paramètres!$F$99+SUM(Modèle!AD48:AD49)*Paramètres!$F$37*Paramètres!$F$100 -> 0 | AE112: =AE50*Paramètres!$F$37*Paramètres!$F$99+SUM(Modèle!AE48:AE49)*Paramètres!$F$37*Paramètres!$F$100 -> 0 | AF112: =AF50*Paramètres!$F$37*Paramètres!$F$99+SUM(Modèle!AF48:AF49)*Paramètres!$F$37*Paramètres!$F$100 -> 0 | AG112: =AG50*Paramètres!$F$37*Paramètres!$F$99+SUM(Modèle!AG48:AG49)*Paramètres!$F$37*Paramètres!$F$100 -> 0 | AH112: =AH50*Paramètres!$F$37*Paramètres!$F$99+SUM(Modèle!AH48:AH49)*Paramètres!$F$37*Paramètres!$F$100 -> 0 | AI112: =AI50*Paramètres!$F$37*Paramètres!$F$99+SUM(Modèle!AI48:AI49)*Paramètres!$F$37*Paramètres!$F$100 -> 0 | AJ112: =AJ50*Paramètres!$F$37*Paramètres!$F$99+SUM(Modèle!AJ48:AJ49)*Paramètres!$F$37*Paramètres!$F$100 -> 0 | AK112: =AK50*Paramètres!$F$37*Paramètres!$F$99+SUM(Modèle!AK48:AK49)*Paramètres!$F$37*Paramètres!$F$100 -> 0 | AL112: =AL50*Paramètres!$F$37*Paramètres!$F$99+SUM(Modèle!AL48:AL49)*Paramètres!$F$37*Paramètres!$F$100 -> 0 | AM112: =AM50*Paramètres!$F$37*Paramètres!$F$99+SUM(Modèle!AM48:AM49)*Paramètres!$F$37*Paramètres!$F$100 -> 0 | AN112: =AN50*Paramètres!$F$37*Paramètres!$F$99+SUM(Modèle!AN48:AN49)*Paramètres!$F$37*Paramètres!$F$100 -> 0 | AO112: =AO50*Paramètres!$F$37*Paramètres!$F$99+SUM(Modèle!AO48:AO49)*Paramètres!$F$37*Paramètres!$F$100 -> 0 | AP112: =AP50*Paramètres!$F$37*Paramètres!$F$99+SUM(Modèle!AP48:AP49)*Paramètres!$F$37*Paramètres!$F$100 -> 0 | AQ112: =AQ50*Paramètres!$F$37*Paramètres!$F$99+SUM(Modèle!AQ48:AQ49)*Paramètres!$F$37*Paramètres!$F$100 -> 0 | AR112: =AR50*Paramètres!$F$37*Paramètres!$F$99+SUM(Modèle!AR48:AR49)*Paramètres!$F$37*Paramètres!$F$100 -> 0 | AS112: =AS50*Paramètres!$F$37*Paramètres!$F$99+SUM(Modèle!AS48:AS49)*Paramètres!$F$37*Paramètres!$F$100 -> 0 | AT112: =AT50*Paramètres!$F$37*Paramètres!$F$99+SUM(Modèle!AT48:AT49)*Paramètres!$F$37*Paramètres!$F$100 -> 0 | AU112: =AU50*Paramètres!$F$37*Paramètres!$F$99+SUM(Modèle!AU48:AU49)*Paramètres!$F$37*Paramètres!$F$100 -> 0 | AV112: =AV50*Paramètres!$F$37*Paramètres!$F$99+SUM(Modèle!AV48:AV49)*Paramètres!$F$37*Paramètres!$F$100 -> 0 | AW112: =AW50*Paramètres!$F$37*Paramètres!$F$99+SUM(Modèle!AW48:AW49)*Paramètres!$F$37*Paramètres!$F$100 -> 0 | AX112: =AX50*Paramètres!$F$37*Paramètres!$F$99+SUM(Modèle!AX48:AX49)*Paramètres!$F$37*Paramètres!$F$100 -> 0 | AY112: =AY50*Paramètres!$F$37*Paramètres!$F$99+SUM(Modèle!AY48:AY49)*Paramètres!$F$37*Paramètres!$F$100 -> 0 | AZ112: =AZ50*Paramètres!$F$37*Paramètres!$F$99+SUM(Modèle!AZ48:AZ49)*Paramètres!$F$37*Paramètres!$F$100 -> 0 | BA112: =BA50*Paramètres!$F$37*Paramètres!$F$99+SUM(Modèle!BA48:BA49)*Paramètres!$F$37*Paramètres!$F$100 -> 0 | BB112: =BB50*Paramètres!$F$37*Paramètres!$F$99+SUM(Modèle!BB48:BB49)*Paramètres!$F$37*Paramètres!$F$100 -> 0 | BC112: =BC50*Paramètres!$F$37*Paramètres!$F$99+SUM(Modèle!BC48:BC49)*Paramètres!$F$37*Paramètres!$F$100 -> 0 | BD112: =BD50*Paramètres!$F$37*Paramètres!$F$99+SUM(Modèle!BD48:BD49)*Paramètres!$F$37*Paramètres!$F$100 -> 0
D114: Bonus
C115: =SUM(G115:BD115) -> 0 | D115: Bonus de signature | E115: $mm nominal | G115: =(G28=1)*Paramètres!$F$9 -> 0 | H115: =(H28=1)*Paramètres!$F$9 -> 0 | I115: =(I28=1)*Paramètres!$F$9 -> 0 | J115: =(J28=1)*Paramètres!$F$9 -> 0 | K115: =(K28=1)*Paramètres!$F$9 -> 0 | L115: =(L28=1)*Paramètres!$F$9 -> 0 | M115: =(M28=1)*Paramètres!$F$9 -> 0 | N115: =(N28=1)*Paramètres!$F$9 -> 0 | O115: =(O28=1)*Paramètres!$F$9 -> 0 | P115: =(P28=1)*Paramètres!$F$9 -> 0 | Q115: =(Q28=1)*Paramètres!$F$9 -> 0 | R115: =(R28=1)*Paramètres!$F$9 -> 0 | S115: =(S28=1)*Paramètres!$F$9 -> 0 | T115: =(T28=1)*Paramètres!$F$9 -> 0 | U115: =(U28=1)*Paramètres!$F$9 -> 0 | V115: =(V28=1)*Paramètres!$F$9 -> 0 | W115: =(W28=1)*Paramètres!$F$9 -> 0 | X115: =(X28=1)*Paramètres!$F$9 -> 0 | Y115: =(Y28=1)*Paramètres!$F$9 -> 0 | Z115: =(Z28=1)*Paramètres!$F$9 -> 0 | AA115: =(AA28=1)*Paramètres!$F$9 -> 0 | AB115: =(AB28=1)*Paramètres!$F$9 -> 0 | AC115: =(AC28=1)*Paramètres!$F$9 -> 0 | AD115: =(AD28=1)*Paramètres!$F$9 -> 0 | AE115: =(AE28=1)*Paramètres!$F$9 -> 0 | AF115: =(AF28=1)*Paramètres!$F$9 -> 0 | AG115: =(AG28=1)*Paramètres!$F$9 -> 0 | AH115: =(AH28=1)*Paramètres!$F$9 -> 0 | AI115: =(AI28=1)*Paramètres!$F$9 -> 0 | AJ115: =(AJ28=1)*Paramètres!$F$9 -> 0 | AK115: =(AK28=1)*Paramètres!$F$9 -> 0 | AL115: =(AL28=1)*Paramètres!$F$9 -> 0 | AM115: =(AM28=1)*Paramètres!$F$9 -> 0 | AN115: =(AN28=1)*Paramètres!$F$9 -> 0 | AO115: =(AO28=1)*Paramètres!$F$9 -> 0 | AP115: =(AP28=1)*Paramètres!$F$9 -> 0 | AQ115: =(AQ28=1)*Paramètres!$F$9 -> 0 | AR115: =(AR28=1)*Paramètres!$F$9 -> 0 | AS115: =(AS28=1)*Paramètres!$F$9 -> 0 | AT115: =(AT28=1)*Paramètres!$F$9 -> 0 | AU115: =(AU28=1)*Paramètres!$F$9 -> 0 | AV115: =(AV28=1)*Paramètres!$F$9 -> 0 | AW115: =(AW28=1)*Paramètres!$F$9 -> 0 | AX115: =(AX28=1)*Paramètres!$F$9 -> 0 | AY115: =(AY28=1)*Paramètres!$F$9 -> 0 | AZ115: =(AZ28=1)*Paramètres!$F$9 -> 0 | BA115: =(BA28=1)*Paramètres!$F$9 -> 0 | BB115: =(BB28=1)*Paramètres!$F$9 -> 0 | BC115: =(BC28=1)*Paramètres!$F$9 -> 0 | BD115: =(BD28=1)*Paramètres!$F$9 -> 0
D118: EBITDA | E118: $mm nominal | G118: =G45-G50-G112 -> -6.25 | H118: =H45-H50-H112 -> -6.375 | I118: 177.8885024 | J118: 181.4462724 | K118: 185.0751978 | L118: 188.7767018 | M118: 192.5522358 | N118: 196.4032806 | O118: 200.3313462 | P118: 204.3379731 | Q118: 208.4247326 | R118: 212.5932272 | S118: 216.8450917 | T118: 0 | U118: 0 | V118: 0 | W118: 0 | X118: 0 | Y118: 0 | Z118: 0 | AA118: 0 | AB118: 0 | AC118: 0 | AD118: 0 | AE118: 0 | AF118: 0 | AG118: 0 | AH118: 0 | AI118: 0 | AJ118: 0 | AK118: 0 | AL118: 0 | AM118: 0 | AN118: 0 | AO118: 0 | AP118: 0 | AQ118: 0 | AR118: 0 | AS118: 0 | AT118: 0 | AU118: 0 | AV118: 0 | AW118: 0 | AX118: 0 | AY118: 0 | AZ118: 0 | BA118: 0 | BB118: 0 | BC118: 0 | BD118: 0
C119: =SUM(G119:BD119) -> 2040.955152 | D119: Excedent Brut d'exploitation | E119: $mm nominal | G119: =G118-G86-G90-G94-G109-G115 -> -6.25 | H119: =H118-H86-H90-H94-H109-H115 -> -6.375 | I119: 168.7589923 | J119: 172.1341722 | K119: 175.5768556 | L119: 179.0883928 | M119: 182.6701606 | N119: 186.3235638 | O119: 190.0500351 | P119: 193.8510358 | Q119: 197.7280565 | R119: 201.6826176 | S119: 205.71627 | T119: 0 | U119: 0 | V119: 0 | W119: 0 | X119: 0 | Y119: 0 | Z119: 0 | AA119: 0 | AB119: 0 | AC119: 0 | AD119: 0 | AE119: 0 | AF119: 0 | AG119: 0 | AH119: 0 | AI119: 0 | AJ119: 0 | AK119: 0 | AL119: 0 | AM119: 0 | AN119: 0 | AO119: 0 | AP119: 0 | AQ119: 0 | AR119: 0 | AS119: 0 | AT119: 0 | AU119: 0 | AV119: 0 | AW119: 0 | AX119: 0 | AY119: 0 | AZ119: 0 | BA119: 0 | BB119: 0 | BC119: 0 | BD119: 0
D121: Taxe sur la marge operationnelle
D122: Profit operationnel [EBITDA] | E122: $mm nominal | G122: =IF(G118<0,0,G118) -> 0 | H122: =IF(H118<0,0,H118) -> 0 | I122: 177.8885024 | J122: 181.4462724 | K122: 185.0751978 | L122: 188.7767018 | M122: 192.5522358 | N122: 196.4032806 | O122: 200.3313462 | P122: 204.3379731 | Q122: 208.4247326 | R122: 212.5932272 | S122: 216.8450917 | T122: 0 | U122: 0 | V122: 0 | W122: 0 | X122: 0 | Y122: 0 | Z122: 0 | AA122: 0 | AB122: 0 | AC122: 0 | AD122: 0 | AE122: 0 | AF122: 0 | AG122: 0 | AH122: 0 | AI122: 0 | AJ122: 0 | AK122: 0 | AL122: 0 | AM122: =IF(AM118<0,0,AM118) -> 0 | AN122: 0 | AO122: 0 | AP122: 0 | AQ122: 0 | AR122: 0 | AS122: 0 | AT122: 0 | AU122: 0 | AV122: 0 | AW122: 0 | AX122: 0 | AY122: 0 | AZ122: 0 | BA122: 0 | BB122: 0 | BC122: 0 | BD122: 0
D123: Marge operationnelle | E123: % | G123: =IFERROR(IF(G118/G43>0,G118/G43,0),0) -> 0 | H123: =IFERROR(IF(H118/H43>0,H118/H43,0),0) -> 0 | I123: 0.487125 | J123: 0.487125 | K123: 0.487125 | L123: 0.487125 | M123: 0.487125 | N123: 0.487125 | O123: 0.487125 | P123: 0.487125 | Q123: 0.487125 | R123: 0.487125 | S123: 0.487125 | T123: 0 | U123: 0 | V123: 0 | W123: 0 | X123: 0 | Y123: 0 | Z123: 0 | AA123: 0 | AB123: 0 | AC123: 0 | AD123: 0 | AE123: 0 | AF123: 0 | AG123: 0 | AH123: 0 | AI123: 0 | AJ123: 0 | AK123: 0 | AL123: 0 | AM123: 0 | AN123: 0 | AO123: 0 | AP123: 0 | AQ123: 0 | AR123: 0 | AS123: 0 | AT123: 0 | AU123: 0 | AV123: 0 | AW123: 0 | AX123: 0 | AY123: 0 | AZ123: 0 | BA123: 0 | BB123: 0 | BC123: 0 | BD123: 0
D125: Palier 1 | E125: % | G125: =MIN(G$123,Paramètres!$E$68) -> 0 | H125: =MIN(H$123,Paramètres!$E$68) -> 0 | I125: =MIN(I$123,Paramètres!$E$68) -> 0 | J125: =MIN(J$123,Paramètres!$E$68) -> 0 | K125: =MIN(K$123,Paramètres!$E$68) -> 0 | L125: =MIN(L$123,Paramètres!$E$68) -> 0 | M125: =MIN(M$123,Paramètres!$E$68) -> 0 | N125: =MIN(N$123,Paramètres!$E$68) -> 0 | O125: =MIN(O$123,Paramètres!$E$68) -> 0 | P125: =MIN(P$123,Paramètres!$E$68) -> 0 | Q125: =MIN(Q$123,Paramètres!$E$68) -> 0 | R125: =MIN(R$123,Paramètres!$E$68) -> 0 | S125: =MIN(S$123,Paramètres!$E$68) -> 0 | T125: =MIN(T$123,Paramètres!$E$68) -> 0 | U125: =MIN(U$123,Paramètres!$E$68) -> 0 | V125: =MIN(V$123,Paramètres!$E$68) -> 0 | W125: =MIN(W$123,Paramètres!$E$68) -> 0 | X125: =MIN(X$123,Paramètres!$E$68) -> 0 | Y125: =MIN(Y$123,Paramètres!$E$68) -> 0 | Z125: =MIN(Z$123,Paramètres!$E$68) -> 0 | AA125: =MIN(AA$123,Paramètres!$E$68) -> 0 | AB125: =MIN(AB$123,Paramètres!$E$68) -> 0 | AC125: =MIN(AC$123,Paramètres!$E$68) -> 0 | AD125: =MIN(AD$123,Paramètres!$E$68) -> 0 | AE125: =MIN(AE$123,Paramètres!$E$68) -> 0 | AF125: =MIN(AF$123,Paramètres!$E$68) -> 0 | AG125: =MIN(AG$123,Paramètres!$E$68) -> 0 | AH125: =MIN(AH$123,Paramètres!$E$68) -> 0 | AI125: =MIN(AI$123,Paramètres!$E$68) -> 0 | AJ125: =MIN(AJ$123,Paramètres!$E$68) -> 0 | AK125: =MIN(AK$123,Paramètres!$E$68) -> 0 | AL125: =MIN(AL$123,Paramètres!$E$68) -> 0 | AM125: =MIN(AM$123,Paramètres!$E$68) -> 0 | AN125: =MIN(AN$123,Paramètres!$E$68) -> 0 | AO125: =MIN(AO$123,Paramètres!$E$68) -> 0 | AP125: =MIN(AP$123,Paramètres!$E$68) -> 0 | AQ125: =MIN(AQ$123,Paramètres!$E$68) -> 0 | AR125: =MIN(AR$123,Paramètres!$E$68) -> 0 | AS125: =MIN(AS$123,Paramètres!$E$68) -> 0 | AT125: =MIN(AT$123,Paramètres!$E$68) -> 0 | AU125: =MIN(AU$123,Paramètres!$E$68) -> 0 | AV125: =MIN(AV$123,Paramètres!$E$68) -> 0 | AW125: =MIN(AW$123,Paramètres!$E$68) -> 0 | AX125: =MIN(AX$123,Paramètres!$E$68) -> 0 | AY125: =MIN(AY$123,Paramètres!$E$68) -> 0 | AZ125: =MIN(AZ$123,Paramètres!$E$68) -> 0 | BA125: =MIN(BA$123,Paramètres!$E$68) -> 0 | BB125: =MIN(BB$123,Paramètres!$E$68) -> 0 | BC125: =MIN(BC$123,Paramètres!$E$68) -> 0 | BD125: =MIN(BD$123,Paramètres!$E$68) -> 0
D126: Palier 2 | E126: % | G126: =(G$123>Paramètres!$E68)*(G$123-Paramètres!$E68-SUM(G127:G$141)) -> 0 | H126: =(H$123>Paramètres!$E68)*(H$123-Paramètres!$E68-SUM(H127:H$141)) -> 0 | I126: =(I$123>Paramètres!$E68)*(I$123-Paramètres!$E68-SUM(I127:I$141)) -> 0 | J126: =(J$123>Paramètres!$E68)*(J$123-Paramètres!$E68-SUM(J127:J$141)) -> 0 | K126: =(K$123>Paramètres!$E68)*(K$123-Paramètres!$E68-SUM(K127:K$141)) -> 0 | L126: =(L$123>Paramètres!$E68)*(L$123-Paramètres!$E68-SUM(L127:L$141)) -> 0 | M126: =(M$123>Paramètres!$E68)*(M$123-Paramètres!$E68-SUM(M127:M$141)) -> 0 | N126: =(N$123>Paramètres!$E68)*(N$123-Paramètres!$E68-SUM(N127:N$141)) -> 0 | O126: =(O$123>Paramètres!$E68)*(O$123-Paramètres!$E68-SUM(O127:O$141)) -> 0 | P126: =(P$123>Paramètres!$E68)*(P$123-Paramètres!$E68-SUM(P127:P$141)) -> 0 | Q126: =(Q$123>Paramètres!$E68)*(Q$123-Paramètres!$E68-SUM(Q127:Q$141)) -> 0 | R126: =(R$123>Paramètres!$E68)*(R$123-Paramètres!$E68-SUM(R127:R$141)) -> 0 | S126: =(S$123>Paramètres!$E68)*(S$123-Paramètres!$E68-SUM(S127:S$141)) -> 0 | T126: =(T$123>Paramètres!$E68)*(T$123-Paramètres!$E68-SUM(T127:T$141)) -> 0 | U126: =(U$123>Paramètres!$E68)*(U$123-Paramètres!$E68-SUM(U127:U$141)) -> 0 | V126: =(V$123>Paramètres!$E68)*(V$123-Paramètres!$E68-SUM(V127:V$141)) -> 0 | W126: =(W$123>Paramètres!$E68)*(W$123-Paramètres!$E68-SUM(W127:W$141)) -> 0 | X126: =(X$123>Paramètres!$E68)*(X$123-Paramètres!$E68-SUM(X127:X$141)) -> 0 | Y126: =(Y$123>Paramètres!$E68)*(Y$123-Paramètres!$E68-SUM(Y127:Y$141)) -> 0 | Z126: =(Z$123>Paramètres!$E68)*(Z$123-Paramètres!$E68-SUM(Z127:Z$141)) -> 0 | AA126: =(AA$123>Paramètres!$E68)*(AA$123-Paramètres!$E68-SUM(AA127:AA$141)) -> 0 | AB126: =(AB$123>Paramètres!$E68)*(AB$123-Paramètres!$E68-SUM(AB127:AB$141)) -> 0 | AC126: =(AC$123>Paramètres!$E68)*(AC$123-Paramètres!$E68-SUM(AC127:AC$141)) -> 0 | AD126: =(AD$123>Paramètres!$E68)*(AD$123-Paramètres!$E68-SUM(AD127:AD$141)) -> 0 | AE126: =(AE$123>Paramètres!$E68)*(AE$123-Paramètres!$E68-SUM(AE127:AE$141)) -> 0 | AF126: =(AF$123>Paramètres!$E68)*(AF$123-Paramètres!$E68-SUM(AF127:AF$141)) -> 0 | AG126: =(AG$123>Paramètres!$E68)*(AG$123-Paramètres!$E68-SUM(AG127:AG$141)) -> 0 | AH126: =(AH$123>Paramètres!$E68)*(AH$123-Paramètres!$E68-SUM(AH127:AH$141)) -> 0 | AI126: =(AI$123>Paramètres!$E68)*(AI$123-Paramètres!$E68-SUM(AI127:AI$141)) -> 0 | AJ126: =(AJ$123>Paramètres!$E68)*(AJ$123-Paramètres!$E68-SUM(AJ127:AJ$141)) -> 0 | AK126: =(AK$123>Paramètres!$E68)*(AK$123-Paramètres!$E68-SUM(AK127:AK$141)) -> 0 | AL126: =(AL$123>Paramètres!$E68)*(AL$123-Paramètres!$E68-SUM(AL127:AL$141)) -> 0 | AM126: =(AM$123>Paramètres!$E68)*(AM$123-Paramètres!$E68-SUM(AM127:AM$141)) -> 0 | AN126: =(AN$123>Paramètres!$E68)*(AN$123-Paramètres!$E68-SUM(AN127:AN$141)) -> 0 | AO126: =(AO$123>Paramètres!$E68)*(AO$123-Paramètres!$E68-SUM(AO127:AO$141)) -> 0 | AP126: =(AP$123>Paramètres!$E68)*(AP$123-Paramètres!$E68-SUM(AP127:AP$141)) -> 0 | AQ126: =(AQ$123>Paramètres!$E68)*(AQ$123-Paramètres!$E68-SUM(AQ127:AQ$141)) -> 0 | AR126: =(AR$123>Paramètres!$E68)*(AR$123-Paramètres!$E68-SUM(AR127:AR$141)) -> 0 | AS126: =(AS$123>Paramètres!$E68)*(AS$123-Paramètres!$E68-SUM(AS127:AS$141)) -> 0 | AT126: =(AT$123>Paramètres!$E68)*(AT$123-Paramètres!$E68-SUM(AT127:AT$141)) -> 0 | AU126: =(AU$123>Paramètres!$E68)*(AU$123-Paramètres!$E68-SUM(AU127:AU$141)) -> 0 | AV126: =(AV$123>Paramètres!$E68)*(AV$123-Paramètres!$E68-SUM(AV127:AV$141)) -> 0 | AW126: =(AW$123>Paramètres!$E68)*(AW$123-Paramètres!$E68-SUM(AW127:AW$141)) -> 0 | AX126: =(AX$123>Paramètres!$E68)*(AX$123-Paramètres!$E68-SUM(AX127:AX$141)) -> 0 | AY126: =(AY$123>Paramètres!$E68)*(AY$123-Paramètres!$E68-SUM(AY127:AY$141)) -> 0 | AZ126: =(AZ$123>Paramètres!$E68)*(AZ$123-Paramètres!$E68-SUM(AZ127:AZ$141)) -> 0 | BA126: =(BA$123>Paramètres!$E68)*(BA$123-Paramètres!$E68-SUM(BA127:BA$141)) -> 0 | BB126: =(BB$123>Paramètres!$E68)*(BB$123-Paramètres!$E68-SUM(BB127:BB$141)) -> 0 | BC126: =(BC$123>Paramètres!$E68)*(BC$123-Paramètres!$E68-SUM(BC127:BC$141)) -> 0 | BD126: =(BD$123>Paramètres!$E68)*(BD$123-Paramètres!$E68-SUM(BD127:BD$141)) -> 0
D127: Palier 3 | E127: % | G127: =(G$123>Paramètres!$E69)*(G$123-Paramètres!$E69-SUM(G128:G$141)) -> 0 | H127: =(H$123>Paramètres!$E69)*(H$123-Paramètres!$E69-SUM(H128:H$141)) -> 0 | I127: =(I$123>Paramètres!$E69)*(I$123-Paramètres!$E69-SUM(I128:I$141)) -> 0 | J127: =(J$123>Paramètres!$E69)*(J$123-Paramètres!$E69-SUM(J128:J$141)) -> 0 | K127: =(K$123>Paramètres!$E69)*(K$123-Paramètres!$E69-SUM(K128:K$141)) -> 0 | L127: =(L$123>Paramètres!$E69)*(L$123-Paramètres!$E69-SUM(L128:L$141)) -> 0 | M127: =(M$123>Paramètres!$E69)*(M$123-Paramètres!$E69-SUM(M128:M$141)) -> 0 | N127: =(N$123>Paramètres!$E69)*(N$123-Paramètres!$E69-SUM(N128:N$141)) -> 0 | O127: =(O$123>Paramètres!$E69)*(O$123-Paramètres!$E69-SUM(O128:O$141)) -> 0 | P127: =(P$123>Paramètres!$E69)*(P$123-Paramètres!$E69-SUM(P128:P$141)) -> 0 | Q127: =(Q$123>Paramètres!$E69)*(Q$123-Paramètres!$E69-SUM(Q128:Q$141)) -> 0 | R127: =(R$123>Paramètres!$E69)*(R$123-Paramètres!$E69-SUM(R128:R$141)) -> 0 | S127: =(S$123>Paramètres!$E69)*(S$123-Paramètres!$E69-SUM(S128:S$141)) -> 0 | T127: =(T$123>Paramètres!$E69)*(T$123-Paramètres!$E69-SUM(T128:T$141)) -> 0 | U127: =(U$123>Paramètres!$E69)*(U$123-Paramètres!$E69-SUM(U128:U$141)) -> 0 | V127: =(V$123>Paramètres!$E69)*(V$123-Paramètres!$E69-SUM(V128:V$141)) -> 0 | W127: =(W$123>Paramètres!$E69)*(W$123-Paramètres!$E69-SUM(W128:W$141)) -> 0 | X127: =(X$123>Paramètres!$E69)*(X$123-Paramètres!$E69-SUM(X128:X$141)) -> 0 | Y127: =(Y$123>Paramètres!$E69)*(Y$123-Paramètres!$E69-SUM(Y128:Y$141)) -> 0 | Z127: =(Z$123>Paramètres!$E69)*(Z$123-Paramètres!$E69-SUM(Z128:Z$141)) -> 0 | AA127: =(AA$123>Paramètres!$E69)*(AA$123-Paramètres!$E69-SUM(AA128:AA$141)) -> 0 | AB127: =(AB$123>Paramètres!$E69)*(AB$123-Paramètres!$E69-SUM(AB128:AB$141)) -> 0 | AC127: =(AC$123>Paramètres!$E69)*(AC$123-Paramètres!$E69-SUM(AC128:AC$141)) -> 0 | AD127: =(AD$123>Paramètres!$E69)*(AD$123-Paramètres!$E69-SUM(AD128:AD$141)) -> 0 | AE127: =(AE$123>Paramètres!$E69)*(AE$123-Paramètres!$E69-SUM(AE128:AE$141)) -> 0 | AF127: =(AF$123>Paramètres!$E69)*(AF$123-Paramètres!$E69-SUM(AF128:AF$141)) -> 0 | AG127: =(AG$123>Paramètres!$E69)*(AG$123-Paramètres!$E69-SUM(AG128:AG$141)) -> 0 | AH127: =(AH$123>Paramètres!$E69)*(AH$123-Paramètres!$E69-SUM(AH128:AH$141)) -> 0 | AI127: =(AI$123>Paramètres!$E69)*(AI$123-Paramètres!$E69-SUM(AI128:AI$141)) -> 0 | AJ127: =(AJ$123>Paramètres!$E69)*(AJ$123-Paramètres!$E69-SUM(AJ128:AJ$141)) -> 0 | AK127: =(AK$123>Paramètres!$E69)*(AK$123-Paramètres!$E69-SUM(AK128:AK$141)) -> 0 | AL127: =(AL$123>Paramètres!$E69)*(AL$123-Paramètres!$E69-SUM(AL128:AL$141)) -> 0 | AM127: =(AM$123>Paramètres!$E69)*(AM$123-Paramètres!$E69-SUM(AM128:AM$141)) -> 0 | AN127: =(AN$123>Paramètres!$E69)*(AN$123-Paramètres!$E69-SUM(AN128:AN$141)) -> 0 | AO127: =(AO$123>Paramètres!$E69)*(AO$123-Paramètres!$E69-SUM(AO128:AO$141)) -> 0 | AP127: =(AP$123>Paramètres!$E69)*(AP$123-Paramètres!$E69-SUM(AP128:AP$141)) -> 0 | AQ127: =(AQ$123>Paramètres!$E69)*(AQ$123-Paramètres!$E69-SUM(AQ128:AQ$141)) -> 0 | AR127: =(AR$123>Paramètres!$E69)*(AR$123-Paramètres!$E69-SUM(AR128:AR$141)) -> 0 | AS127: =(AS$123>Paramètres!$E69)*(AS$123-Paramètres!$E69-SUM(AS128:AS$141)) -> 0 | AT127: =(AT$123>Paramètres!$E69)*(AT$123-Paramètres!$E69-SUM(AT128:AT$141)) -> 0 | AU127: =(AU$123>Paramètres!$E69)*(AU$123-Paramètres!$E69-SUM(AU128:AU$141)) -> 0 | AV127: =(AV$123>Paramètres!$E69)*(AV$123-Paramètres!$E69-SUM(AV128:AV$141)) -> 0 | AW127: =(AW$123>Paramètres!$E69)*(AW$123-Paramètres!$E69-SUM(AW128:AW$141)) -> 0 | AX127: =(AX$123>Paramètres!$E69)*(AX$123-Paramètres!$E69-SUM(AX128:AX$141)) -> 0 | AY127: =(AY$123>Paramètres!$E69)*(AY$123-Paramètres!$E69-SUM(AY128:AY$141)) -> 0 | AZ127: =(AZ$123>Paramètres!$E69)*(AZ$123-Paramètres!$E69-SUM(AZ128:AZ$141)) -> 0 | BA127: =(BA$123>Paramètres!$E69)*(BA$123-Paramètres!$E69-SUM(BA128:BA$141)) -> 0 | BB127: =(BB$123>Paramètres!$E69)*(BB$123-Paramètres!$E69-SUM(BB128:BB$141)) -> 0 | BC127: =(BC$123>Paramètres!$E69)*(BC$123-Paramètres!$E69-SUM(BC128:BC$141)) -> 0 | BD127: =(BD$123>Paramètres!$E69)*(BD$123-Paramètres!$E69-SUM(BD128:BD$141)) -> 0
D128: Palier 4 | E128: % | G128: =(G$123>Paramètres!$E70)*(G$123-Paramètres!$E70-SUM(G129:G$141)) -> 0 | H128: =(H$123>Paramètres!$E70)*(H$123-Paramètres!$E70-SUM(H129:H$141)) -> 0 | I128: =(I$123>Paramètres!$E70)*(I$123-Paramètres!$E70-SUM(I129:I$141)) -> 0 | J128: =(J$123>Paramètres!$E70)*(J$123-Paramètres!$E70-SUM(J129:J$141)) -> 0 | K128: =(K$123>Paramètres!$E70)*(K$123-Paramètres!$E70-SUM(K129:K$141)) -> 0 | L128: =(L$123>Paramètres!$E70)*(L$123-Paramètres!$E70-SUM(L129:L$141)) -> 0 | M128: =(M$123>Paramètres!$E70)*(M$123-Paramètres!$E70-SUM(M129:M$141)) -> 0 | N128: =(N$123>Paramètres!$E70)*(N$123-Paramètres!$E70-SUM(N129:N$141)) -> 0 | O128: =(O$123>Paramètres!$E70)*(O$123-Paramètres!$E70-SUM(O129:O$141)) -> 0 | P128: =(P$123>Paramètres!$E70)*(P$123-Paramètres!$E70-SUM(P129:P$141)) -> 0 | Q128: =(Q$123>Paramètres!$E70)*(Q$123-Paramètres!$E70-SUM(Q129:Q$141)) -> 0 | R128: =(R$123>Paramètres!$E70)*(R$123-Paramètres!$E70-SUM(R129:R$141)) -> 0 | S128: =(S$123>Paramètres!$E70)*(S$123-Paramètres!$E70-SUM(S129:S$141)) -> 0 | T128: =(T$123>Paramètres!$E70)*(T$123-Paramètres!$E70-SUM(T129:T$141)) -> 0 | U128: =(U$123>Paramètres!$E70)*(U$123-Paramètres!$E70-SUM(U129:U$141)) -> 0 | V128: =(V$123>Paramètres!$E70)*(V$123-Paramètres!$E70-SUM(V129:V$141)) -> 0 | W128: =(W$123>Paramètres!$E70)*(W$123-Paramètres!$E70-SUM(W129:W$141)) -> 0 | X128: =(X$123>Paramètres!$E70)*(X$123-Paramètres!$E70-SUM(X129:X$141)) -> 0 | Y128: =(Y$123>Paramètres!$E70)*(Y$123-Paramètres!$E70-SUM(Y129:Y$141)) -> 0 | Z128: =(Z$123>Paramètres!$E70)*(Z$123-Paramètres!$E70-SUM(Z129:Z$141)) -> 0 | AA128: =(AA$123>Paramètres!$E70)*(AA$123-Paramètres!$E70-SUM(AA129:AA$141)) -> 0 | AB128: =(AB$123>Paramètres!$E70)*(AB$123-Paramètres!$E70-SUM(AB129:AB$141)) -> 0 | AC128: =(AC$123>Paramètres!$E70)*(AC$123-Paramètres!$E70-SUM(AC129:AC$141)) -> 0 | AD128: =(AD$123>Paramètres!$E70)*(AD$123-Paramètres!$E70-SUM(AD129:AD$141)) -> 0 | AE128: =(AE$123>Paramètres!$E70)*(AE$123-Paramètres!$E70-SUM(AE129:AE$141)) -> 0 | AF128: =(AF$123>Paramètres!$E70)*(AF$123-Paramètres!$E70-SUM(AF129:AF$141)) -> 0 | AG128: =(AG$123>Paramètres!$E70)*(AG$123-Paramètres!$E70-SUM(AG129:AG$141)) -> 0 | AH128: =(AH$123>Paramètres!$E70)*(AH$123-Paramètres!$E70-SUM(AH129:AH$141)) -> 0 | AI128: =(AI$123>Paramètres!$E70)*(AI$123-Paramètres!$E70-SUM(AI129:AI$141)) -> 0 | AJ128: =(AJ$123>Paramètres!$E70)*(AJ$123-Paramètres!$E70-SUM(AJ129:AJ$141)) -> 0 | AK128: =(AK$123>Paramètres!$E70)*(AK$123-Paramètres!$E70-SUM(AK129:AK$141)) -> 0 | AL128: =(AL$123>Paramètres!$E70)*(AL$123-Paramètres!$E70-SUM(AL129:AL$141)) -> 0 | AM128: =(AM$123>Paramètres!$E70)*(AM$123-Paramètres!$E70-SUM(AM129:AM$141)) -> 0 | AN128: =(AN$123>Paramètres!$E70)*(AN$123-Paramètres!$E70-SUM(AN129:AN$141)) -> 0 | AO128: =(AO$123>Paramètres!$E70)*(AO$123-Paramètres!$E70-SUM(AO129:AO$141)) -> 0 | AP128: =(AP$123>Paramètres!$E70)*(AP$123-Paramètres!$E70-SUM(AP129:AP$141)) -> 0 | AQ128: =(AQ$123>Paramètres!$E70)*(AQ$123-Paramètres!$E70-SUM(AQ129:AQ$141)) -> 0 | AR128: =(AR$123>Paramètres!$E70)*(AR$123-Paramètres!$E70-SUM(AR129:AR$141)) -> 0 | AS128: =(AS$123>Paramètres!$E70)*(AS$123-Paramètres!$E70-SUM(AS129:AS$141)) -> 0 | AT128: =(AT$123>Paramètres!$E70)*(AT$123-Paramètres!$E70-SUM(AT129:AT$141)) -> 0 | AU128: =(AU$123>Paramètres!$E70)*(AU$123-Paramètres!$E70-SUM(AU129:AU$141)) -> 0 | AV128: =(AV$123>Paramètres!$E70)*(AV$123-Paramètres!$E70-SUM(AV129:AV$141)) -> 0 | AW128: =(AW$123>Paramètres!$E70)*(AW$123-Paramètres!$E70-SUM(AW129:AW$141)) -> 0 | AX128: =(AX$123>Paramètres!$E70)*(AX$123-Paramètres!$E70-SUM(AX129:AX$141)) -> 0 | AY128: =(AY$123>Paramètres!$E70)*(AY$123-Paramètres!$E70-SUM(AY129:AY$141)) -> 0 | AZ128: =(AZ$123>Paramètres!$E70)*(AZ$123-Paramètres!$E70-SUM(AZ129:AZ$141)) -> 0 | BA128: =(BA$123>Paramètres!$E70)*(BA$123-Paramètres!$E70-SUM(BA129:BA$141)) -> 0 | BB128: =(BB$123>Paramètres!$E70)*(BB$123-Paramètres!$E70-SUM(BB129:BB$141)) -> 0 | BC128: =(BC$123>Paramètres!$E70)*(BC$123-Paramètres!$E70-SUM(BC129:BC$141)) -> 0 | BD128: =(BD$123>Paramètres!$E70)*(BD$123-Paramètres!$E70-SUM(BD129:BD$141)) -> 0
D129: Palier 5 | E129: % | G129: =(G$123>Paramètres!$E71)*(G$123-Paramètres!$E71-SUM(G130:G$141)) -> 0 | H129: =(H$123>Paramètres!$E71)*(H$123-Paramètres!$E71-SUM(H130:H$141)) -> 0 | I129: =(I$123>Paramètres!$E71)*(I$123-Paramètres!$E71-SUM(I130:I$141)) -> 0 | J129: =(J$123>Paramètres!$E71)*(J$123-Paramètres!$E71-SUM(J130:J$141)) -> 0 | K129: =(K$123>Paramètres!$E71)*(K$123-Paramètres!$E71-SUM(K130:K$141)) -> 0 | L129: =(L$123>Paramètres!$E71)*(L$123-Paramètres!$E71-SUM(L130:L$141)) -> 0 | M129: =(M$123>Paramètres!$E71)*(M$123-Paramètres!$E71-SUM(M130:M$141)) -> 0 | N129: =(N$123>Paramètres!$E71)*(N$123-Paramètres!$E71-SUM(N130:N$141)) -> 0 | O129: =(O$123>Paramètres!$E71)*(O$123-Paramètres!$E71-SUM(O130:O$141)) -> 0 | P129: =(P$123>Paramètres!$E71)*(P$123-Paramètres!$E71-SUM(P130:P$141)) -> 0 | Q129: =(Q$123>Paramètres!$E71)*(Q$123-Paramètres!$E71-SUM(Q130:Q$141)) -> 0 | R129: =(R$123>Paramètres!$E71)*(R$123-Paramètres!$E71-SUM(R130:R$141)) -> 0 | S129: =(S$123>Paramètres!$E71)*(S$123-Paramètres!$E71-SUM(S130:S$141)) -> 0 | T129: =(T$123>Paramètres!$E71)*(T$123-Paramètres!$E71-SUM(T130:T$141)) -> 0 | U129: =(U$123>Paramètres!$E71)*(U$123-Paramètres!$E71-SUM(U130:U$141)) -> 0 | V129: =(V$123>Paramètres!$E71)*(V$123-Paramètres!$E71-SUM(V130:V$141)) -> 0 | W129: =(W$123>Paramètres!$E71)*(W$123-Paramètres!$E71-SUM(W130:W$141)) -> 0 | X129: =(X$123>Paramètres!$E71)*(X$123-Paramètres!$E71-SUM(X130:X$141)) -> 0 | Y129: =(Y$123>Paramètres!$E71)*(Y$123-Paramètres!$E71-SUM(Y130:Y$141)) -> 0 | Z129: =(Z$123>Paramètres!$E71)*(Z$123-Paramètres!$E71-SUM(Z130:Z$141)) -> 0 | AA129: =(AA$123>Paramètres!$E71)*(AA$123-Paramètres!$E71-SUM(AA130:AA$141)) -> 0 | AB129: =(AB$123>Paramètres!$E71)*(AB$123-Paramètres!$E71-SUM(AB130:AB$141)) -> 0 | AC129: =(AC$123>Paramètres!$E71)*(AC$123-Paramètres!$E71-SUM(AC130:AC$141)) -> 0 | AD129: =(AD$123>Paramètres!$E71)*(AD$123-Paramètres!$E71-SUM(AD130:AD$141)) -> 0 | AE129: =(AE$123>Paramètres!$E71)*(AE$123-Paramètres!$E71-SUM(AE130:AE$141)) -> 0 | AF129: =(AF$123>Paramètres!$E71)*(AF$123-Paramètres!$E71-SUM(AF130:AF$141)) -> 0 | AG129: =(AG$123>Paramètres!$E71)*(AG$123-Paramètres!$E71-SUM(AG130:AG$141)) -> 0 | AH129: =(AH$123>Paramètres!$E71)*(AH$123-Paramètres!$E71-SUM(AH130:AH$141)) -> 0 | AI129: =(AI$123>Paramètres!$E71)*(AI$123-Paramètres!$E71-SUM(AI130:AI$141)) -> 0 | AJ129: =(AJ$123>Paramètres!$E71)*(AJ$123-Paramètres!$E71-SUM(AJ130:AJ$141)) -> 0 | AK129: =(AK$123>Paramètres!$E71)*(AK$123-Paramètres!$E71-SUM(AK130:AK$141)) -> 0 | AL129: =(AL$123>Paramètres!$E71)*(AL$123-Paramètres!$E71-SUM(AL130:AL$141)) -> 0 | AM129: =(AM$123>Paramètres!$E71)*(AM$123-Paramètres!$E71-SUM(AM130:AM$141)) -> 0 | AN129: =(AN$123>Paramètres!$E71)*(AN$123-Paramètres!$E71-SUM(AN130:AN$141)) -> 0 | AO129: =(AO$123>Paramètres!$E71)*(AO$123-Paramètres!$E71-SUM(AO130:AO$141)) -> 0 | AP129: =(AP$123>Paramètres!$E71)*(AP$123-Paramètres!$E71-SUM(AP130:AP$141)) -> 0 | AQ129: =(AQ$123>Paramètres!$E71)*(AQ$123-Paramètres!$E71-SUM(AQ130:AQ$141)) -> 0 | AR129: =(AR$123>Paramètres!$E71)*(AR$123-Paramètres!$E71-SUM(AR130:AR$141)) -> 0 | AS129: =(AS$123>Paramètres!$E71)*(AS$123-Paramètres!$E71-SUM(AS130:AS$141)) -> 0 | AT129: =(AT$123>Paramètres!$E71)*(AT$123-Paramètres!$E71-SUM(AT130:AT$141)) -> 0 | AU129: =(AU$123>Paramètres!$E71)*(AU$123-Paramètres!$E71-SUM(AU130:AU$141)) -> 0 | AV129: =(AV$123>Paramètres!$E71)*(AV$123-Paramètres!$E71-SUM(AV130:AV$141)) -> 0 | AW129: =(AW$123>Paramètres!$E71)*(AW$123-Paramètres!$E71-SUM(AW130:AW$141)) -> 0 | AX129: =(AX$123>Paramètres!$E71)*(AX$123-Paramètres!$E71-SUM(AX130:AX$141)) -> 0 | AY129: =(AY$123>Paramètres!$E71)*(AY$123-Paramètres!$E71-SUM(AY130:AY$141)) -> 0 | AZ129: =(AZ$123>Paramètres!$E71)*(AZ$123-Paramètres!$E71-SUM(AZ130:AZ$141)) -> 0 | BA129: =(BA$123>Paramètres!$E71)*(BA$123-Paramètres!$E71-SUM(BA130:BA$141)) -> 0 | BB129: =(BB$123>Paramètres!$E71)*(BB$123-Paramètres!$E71-SUM(BB130:BB$141)) -> 0 | BC129: =(BC$123>Paramètres!$E71)*(BC$123-Paramètres!$E71-SUM(BC130:BC$141)) -> 0 | BD129: =(BD$123>Paramètres!$E71)*(BD$123-Paramètres!$E71-SUM(BD130:BD$141)) -> 0
D130: Palier 6 | E130: % | G130: =(G$123>Paramètres!$E72)*(G$123-Paramètres!$E72-SUM(G131:G$141)) -> 0 | H130: =(H$123>Paramètres!$E72)*(H$123-Paramètres!$E72-SUM(H131:H$141)) -> 0 | I130: =(I$123>Paramètres!$E72)*(I$123-Paramètres!$E72-SUM(I131:I$141)) -> 0 | J130: =(J$123>Paramètres!$E72)*(J$123-Paramètres!$E72-SUM(J131:J$141)) -> 0 | K130: =(K$123>Paramètres!$E72)*(K$123-Paramètres!$E72-SUM(K131:K$141)) -> 0 | L130: =(L$123>Paramètres!$E72)*(L$123-Paramètres!$E72-SUM(L131:L$141)) -> 0 | M130: =(M$123>Paramètres!$E72)*(M$123-Paramètres!$E72-SUM(M131:M$141)) -> 0 | N130: =(N$123>Paramètres!$E72)*(N$123-Paramètres!$E72-SUM(N131:N$141)) -> 0 | O130: =(O$123>Paramètres!$E72)*(O$123-Paramètres!$E72-SUM(O131:O$141)) -> 0 | P130: =(P$123>Paramètres!$E72)*(P$123-Paramètres!$E72-SUM(P131:P$141)) -> 0 | Q130: =(Q$123>Paramètres!$E72)*(Q$123-Paramètres!$E72-SUM(Q131:Q$141)) -> 0 | R130: =(R$123>Paramètres!$E72)*(R$123-Paramètres!$E72-SUM(R131:R$141)) -> 0 | S130: =(S$123>Paramètres!$E72)*(S$123-Paramètres!$E72-SUM(S131:S$141)) -> 0 | T130: =(T$123>Paramètres!$E72)*(T$123-Paramètres!$E72-SUM(T131:T$141)) -> 0 | U130: =(U$123>Paramètres!$E72)*(U$123-Paramètres!$E72-SUM(U131:U$141)) -> 0 | V130: =(V$123>Paramètres!$E72)*(V$123-Paramètres!$E72-SUM(V131:V$141)) -> 0 | W130: =(W$123>Paramètres!$E72)*(W$123-Paramètres!$E72-SUM(W131:W$141)) -> 0 | X130: =(X$123>Paramètres!$E72)*(X$123-Paramètres!$E72-SUM(X131:X$141)) -> 0 | Y130: =(Y$123>Paramètres!$E72)*(Y$123-Paramètres!$E72-SUM(Y131:Y$141)) -> 0 | Z130: =(Z$123>Paramètres!$E72)*(Z$123-Paramètres!$E72-SUM(Z131:Z$141)) -> 0 | AA130: =(AA$123>Paramètres!$E72)*(AA$123-Paramètres!$E72-SUM(AA131:AA$141)) -> 0 | AB130: =(AB$123>Paramètres!$E72)*(AB$123-Paramètres!$E72-SUM(AB131:AB$141)) -> 0 | AC130: =(AC$123>Paramètres!$E72)*(AC$123-Paramètres!$E72-SUM(AC131:AC$141)) -> 0 | AD130: =(AD$123>Paramètres!$E72)*(AD$123-Paramètres!$E72-SUM(AD131:AD$141)) -> 0 | AE130: =(AE$123>Paramètres!$E72)*(AE$123-Paramètres!$E72-SUM(AE131:AE$141)) -> 0 | AF130: =(AF$123>Paramètres!$E72)*(AF$123-Paramètres!$E72-SUM(AF131:AF$141)) -> 0 | AG130: =(AG$123>Paramètres!$E72)*(AG$123-Paramètres!$E72-SUM(AG131:AG$141)) -> 0 | AH130: =(AH$123>Paramètres!$E72)*(AH$123-Paramètres!$E72-SUM(AH131:AH$141)) -> 0 | AI130: =(AI$123>Paramètres!$E72)*(AI$123-Paramètres!$E72-SUM(AI131:AI$141)) -> 0 | AJ130: =(AJ$123>Paramètres!$E72)*(AJ$123-Paramètres!$E72-SUM(AJ131:AJ$141)) -> 0 | AK130: =(AK$123>Paramètres!$E72)*(AK$123-Paramètres!$E72-SUM(AK131:AK$141)) -> 0 | AL130: =(AL$123>Paramètres!$E72)*(AL$123-Paramètres!$E72-SUM(AL131:AL$141)) -> 0 | AM130: =(AM$123>Paramètres!$E72)*(AM$123-Paramètres!$E72-SUM(AM131:AM$141)) -> 0 | AN130: =(AN$123>Paramètres!$E72)*(AN$123-Paramètres!$E72-SUM(AN131:AN$141)) -> 0 | AO130: =(AO$123>Paramètres!$E72)*(AO$123-Paramètres!$E72-SUM(AO131:AO$141)) -> 0 | AP130: =(AP$123>Paramètres!$E72)*(AP$123-Paramètres!$E72-SUM(AP131:AP$141)) -> 0 | AQ130: =(AQ$123>Paramètres!$E72)*(AQ$123-Paramètres!$E72-SUM(AQ131:AQ$141)) -> 0 | AR130: =(AR$123>Paramètres!$E72)*(AR$123-Paramètres!$E72-SUM(AR131:AR$141)) -> 0 | AS130: =(AS$123>Paramètres!$E72)*(AS$123-Paramètres!$E72-SUM(AS131:AS$141)) -> 0 | AT130: =(AT$123>Paramètres!$E72)*(AT$123-Paramètres!$E72-SUM(AT131:AT$141)) -> 0 | AU130: =(AU$123>Paramètres!$E72)*(AU$123-Paramètres!$E72-SUM(AU131:AU$141)) -> 0 | AV130: =(AV$123>Paramètres!$E72)*(AV$123-Paramètres!$E72-SUM(AV131:AV$141)) -> 0 | AW130: =(AW$123>Paramètres!$E72)*(AW$123-Paramètres!$E72-SUM(AW131:AW$141)) -> 0 | AX130: =(AX$123>Paramètres!$E72)*(AX$123-Paramètres!$E72-SUM(AX131:AX$141)) -> 0 | AY130: =(AY$123>Paramètres!$E72)*(AY$123-Paramètres!$E72-SUM(AY131:AY$141)) -> 0 | AZ130: =(AZ$123>Paramètres!$E72)*(AZ$123-Paramètres!$E72-SUM(AZ131:AZ$141)) -> 0 | BA130: =(BA$123>Paramètres!$E72)*(BA$123-Paramètres!$E72-SUM(BA131:BA$141)) -> 0 | BB130: =(BB$123>Paramètres!$E72)*(BB$123-Paramètres!$E72-SUM(BB131:BB$141)) -> 0 | BC130: =(BC$123>Paramètres!$E72)*(BC$123-Paramètres!$E72-SUM(BC131:BC$141)) -> 0 | BD130: =(BD$123>Paramètres!$E72)*(BD$123-Paramètres!$E72-SUM(BD131:BD$141)) -> 0
D131: Palier 7 | E131: % | G131: =(G$123>Paramètres!$E73)*(G$123-Paramètres!$E73-SUM(G132:G$141)) -> 0 | H131: =(H$123>Paramètres!$E73)*(H$123-Paramètres!$E73-SUM(H132:H$141)) -> 0 | I131: =(I$123>Paramètres!$E73)*(I$123-Paramètres!$E73-SUM(I132:I$141)) -> 0 | J131: =(J$123>Paramètres!$E73)*(J$123-Paramètres!$E73-SUM(J132:J$141)) -> 0 | K131: =(K$123>Paramètres!$E73)*(K$123-Paramètres!$E73-SUM(K132:K$141)) -> 0 | L131: =(L$123>Paramètres!$E73)*(L$123-Paramètres!$E73-SUM(L132:L$141)) -> 0 | M131: =(M$123>Paramètres!$E73)*(M$123-Paramètres!$E73-SUM(M132:M$141)) -> 0 | N131: =(N$123>Paramètres!$E73)*(N$123-Paramètres!$E73-SUM(N132:N$141)) -> 0 | O131: =(O$123>Paramètres!$E73)*(O$123-Paramètres!$E73-SUM(O132:O$141)) -> 0 | P131: =(P$123>Paramètres!$E73)*(P$123-Paramètres!$E73-SUM(P132:P$141)) -> 0 | Q131: =(Q$123>Paramètres!$E73)*(Q$123-Paramètres!$E73-SUM(Q132:Q$141)) -> 0 | R131: =(R$123>Paramètres!$E73)*(R$123-Paramètres!$E73-SUM(R132:R$141)) -> 0 | S131: =(S$123>Paramètres!$E73)*(S$123-Paramètres!$E73-SUM(S132:S$141)) -> 0 | T131: =(T$123>Paramètres!$E73)*(T$123-Paramètres!$E73-SUM(T132:T$141)) -> 0 | U131: =(U$123>Paramètres!$E73)*(U$123-Paramètres!$E73-SUM(U132:U$141)) -> 0 | V131: =(V$123>Paramètres!$E73)*(V$123-Paramètres!$E73-SUM(V132:V$141)) -> 0 | W131: =(W$123>Paramètres!$E73)*(W$123-Paramètres!$E73-SUM(W132:W$141)) -> 0 | X131: =(X$123>Paramètres!$E73)*(X$123-Paramètres!$E73-SUM(X132:X$141)) -> 0 | Y131: =(Y$123>Paramètres!$E73)*(Y$123-Paramètres!$E73-SUM(Y132:Y$141)) -> 0 | Z131: =(Z$123>Paramètres!$E73)*(Z$123-Paramètres!$E73-SUM(Z132:Z$141)) -> 0 | AA131: =(AA$123>Paramètres!$E73)*(AA$123-Paramètres!$E73-SUM(AA132:AA$141)) -> 0 | AB131: =(AB$123>Paramètres!$E73)*(AB$123-Paramètres!$E73-SUM(AB132:AB$141)) -> 0 | AC131: =(AC$123>Paramètres!$E73)*(AC$123-Paramètres!$E73-SUM(AC132:AC$141)) -> 0 | AD131: =(AD$123>Paramètres!$E73)*(AD$123-Paramètres!$E73-SUM(AD132:AD$141)) -> 0 | AE131: =(AE$123>Paramètres!$E73)*(AE$123-Paramètres!$E73-SUM(AE132:AE$141)) -> 0 | AF131: =(AF$123>Paramètres!$E73)*(AF$123-Paramètres!$E73-SUM(AF132:AF$141)) -> 0 | AG131: =(AG$123>Paramètres!$E73)*(AG$123-Paramètres!$E73-SUM(AG132:AG$141)) -> 0 | AH131: =(AH$123>Paramètres!$E73)*(AH$123-Paramètres!$E73-SUM(AH132:AH$141)) -> 0 | AI131: =(AI$123>Paramètres!$E73)*(AI$123-Paramètres!$E73-SUM(AI132:AI$141)) -> 0 | AJ131: =(AJ$123>Paramètres!$E73)*(AJ$123-Paramètres!$E73-SUM(AJ132:AJ$141)) -> 0 | AK131: =(AK$123>Paramètres!$E73)*(AK$123-Paramètres!$E73-SUM(AK132:AK$141)) -> 0 | AL131: =(AL$123>Paramètres!$E73)*(AL$123-Paramètres!$E73-SUM(AL132:AL$141)) -> 0 | AM131: =(AM$123>Paramètres!$E73)*(AM$123-Paramètres!$E73-SUM(AM132:AM$141)) -> 0 | AN131: =(AN$123>Paramètres!$E73)*(AN$123-Paramètres!$E73-SUM(AN132:AN$141)) -> 0 | AO131: =(AO$123>Paramètres!$E73)*(AO$123-Paramètres!$E73-SUM(AO132:AO$141)) -> 0 | AP131: =(AP$123>Paramètres!$E73)*(AP$123-Paramètres!$E73-SUM(AP132:AP$141)) -> 0 | AQ131: =(AQ$123>Paramètres!$E73)*(AQ$123-Paramètres!$E73-SUM(AQ132:AQ$141)) -> 0 | AR131: =(AR$123>Paramètres!$E73)*(AR$123-Paramètres!$E73-SUM(AR132:AR$141)) -> 0 | AS131: =(AS$123>Paramètres!$E73)*(AS$123-Paramètres!$E73-SUM(AS132:AS$141)) -> 0 | AT131: =(AT$123>Paramètres!$E73)*(AT$123-Paramètres!$E73-SUM(AT132:AT$141)) -> 0 | AU131: =(AU$123>Paramètres!$E73)*(AU$123-Paramètres!$E73-SUM(AU132:AU$141)) -> 0 | AV131: =(AV$123>Paramètres!$E73)*(AV$123-Paramètres!$E73-SUM(AV132:AV$141)) -> 0 | AW131: =(AW$123>Paramètres!$E73)*(AW$123-Paramètres!$E73-SUM(AW132:AW$141)) -> 0 | AX131: =(AX$123>Paramètres!$E73)*(AX$123-Paramètres!$E73-SUM(AX132:AX$141)) -> 0 | AY131: =(AY$123>Paramètres!$E73)*(AY$123-Paramètres!$E73-SUM(AY132:AY$141)) -> 0 | AZ131: =(AZ$123>Paramètres!$E73)*(AZ$123-Paramètres!$E73-SUM(AZ132:AZ$141)) -> 0 | BA131: =(BA$123>Paramètres!$E73)*(BA$123-Paramètres!$E73-SUM(BA132:BA$141)) -> 0 | BB131: =(BB$123>Paramètres!$E73)*(BB$123-Paramètres!$E73-SUM(BB132:BB$141)) -> 0 | BC131: =(BC$123>Paramètres!$E73)*(BC$123-Paramètres!$E73-SUM(BC132:BC$141)) -> 0 | BD131: =(BD$123>Paramètres!$E73)*(BD$123-Paramètres!$E73-SUM(BD132:BD$141)) -> 0
D132: Palier 8 | E132: % | G132: =(G$123>Paramètres!$E74)*(G$123-Paramètres!$E74-SUM(G133:G$141)) -> 0 | H132: =(H$123>Paramètres!$E74)*(H$123-Paramètres!$E74-SUM(H133:H$141)) -> 0 | I132: =(I$123>Paramètres!$E74)*(I$123-Paramètres!$E74-SUM(I133:I$141)) -> 0 | J132: =(J$123>Paramètres!$E74)*(J$123-Paramètres!$E74-SUM(J133:J$141)) -> 0 | K132: =(K$123>Paramètres!$E74)*(K$123-Paramètres!$E74-SUM(K133:K$141)) -> 0 | L132: =(L$123>Paramètres!$E74)*(L$123-Paramètres!$E74-SUM(L133:L$141)) -> 0 | M132: =(M$123>Paramètres!$E74)*(M$123-Paramètres!$E74-SUM(M133:M$141)) -> 0 | N132: =(N$123>Paramètres!$E74)*(N$123-Paramètres!$E74-SUM(N133:N$141)) -> 0 | O132: =(O$123>Paramètres!$E74)*(O$123-Paramètres!$E74-SUM(O133:O$141)) -> 0 | P132: =(P$123>Paramètres!$E74)*(P$123-Paramètres!$E74-SUM(P133:P$141)) -> 0 | Q132: =(Q$123>Paramètres!$E74)*(Q$123-Paramètres!$E74-SUM(Q133:Q$141)) -> 0 | R132: =(R$123>Paramètres!$E74)*(R$123-Paramètres!$E74-SUM(R133:R$141)) -> 0 | S132: =(S$123>Paramètres!$E74)*(S$123-Paramètres!$E74-SUM(S133:S$141)) -> 0 | T132: =(T$123>Paramètres!$E74)*(T$123-Paramètres!$E74-SUM(T133:T$141)) -> 0 | U132: =(U$123>Paramètres!$E74)*(U$123-Paramètres!$E74-SUM(U133:U$141)) -> 0 | V132: =(V$123>Paramètres!$E74)*(V$123-Paramètres!$E74-SUM(V133:V$141)) -> 0 | W132: =(W$123>Paramètres!$E74)*(W$123-Paramètres!$E74-SUM(W133:W$141)) -> 0 | X132: =(X$123>Paramètres!$E74)*(X$123-Paramètres!$E74-SUM(X133:X$141)) -> 0 | Y132: =(Y$123>Paramètres!$E74)*(Y$123-Paramètres!$E74-SUM(Y133:Y$141)) -> 0 | Z132: =(Z$123>Paramètres!$E74)*(Z$123-Paramètres!$E74-SUM(Z133:Z$141)) -> 0 | AA132: =(AA$123>Paramètres!$E74)*(AA$123-Paramètres!$E74-SUM(AA133:AA$141)) -> 0 | AB132: =(AB$123>Paramètres!$E74)*(AB$123-Paramètres!$E74-SUM(AB133:AB$141)) -> 0 | AC132: =(AC$123>Paramètres!$E74)*(AC$123-Paramètres!$E74-SUM(AC133:AC$141)) -> 0 | AD132: =(AD$123>Paramètres!$E74)*(AD$123-Paramètres!$E74-SUM(AD133:AD$141)) -> 0 | AE132: =(AE$123>Paramètres!$E74)*(AE$123-Paramètres!$E74-SUM(AE133:AE$141)) -> 0 | AF132: =(AF$123>Paramètres!$E74)*(AF$123-Paramètres!$E74-SUM(AF133:AF$141)) -> 0 | AG132: =(AG$123>Paramètres!$E74)*(AG$123-Paramètres!$E74-SUM(AG133:AG$141)) -> 0 | AH132: =(AH$123>Paramètres!$E74)*(AH$123-Paramètres!$E74-SUM(AH133:AH$141)) -> 0 | AI132: =(AI$123>Paramètres!$E74)*(AI$123-Paramètres!$E74-SUM(AI133:AI$141)) -> 0 | AJ132: =(AJ$123>Paramètres!$E74)*(AJ$123-Paramètres!$E74-SUM(AJ133:AJ$141)) -> 0 | AK132: =(AK$123>Paramètres!$E74)*(AK$123-Paramètres!$E74-SUM(AK133:AK$141)) -> 0 | AL132: =(AL$123>Paramètres!$E74)*(AL$123-Paramètres!$E74-SUM(AL133:AL$141)) -> 0 | AM132: =(AM$123>Paramètres!$E74)*(AM$123-Paramètres!$E74-SUM(AM133:AM$141)) -> 0 | AN132: =(AN$123>Paramètres!$E74)*(AN$123-Paramètres!$E74-SUM(AN133:AN$141)) -> 0 | AO132: =(AO$123>Paramètres!$E74)*(AO$123-Paramètres!$E74-SUM(AO133:AO$141)) -> 0 | AP132: =(AP$123>Paramètres!$E74)*(AP$123-Paramètres!$E74-SUM(AP133:AP$141)) -> 0 | AQ132: =(AQ$123>Paramètres!$E74)*(AQ$123-Paramètres!$E74-SUM(AQ133:AQ$141)) -> 0 | AR132: =(AR$123>Paramètres!$E74)*(AR$123-Paramètres!$E74-SUM(AR133:AR$141)) -> 0 | AS132: =(AS$123>Paramètres!$E74)*(AS$123-Paramètres!$E74-SUM(AS133:AS$141)) -> 0 | AT132: =(AT$123>Paramètres!$E74)*(AT$123-Paramètres!$E74-SUM(AT133:AT$141)) -> 0 | AU132: =(AU$123>Paramètres!$E74)*(AU$123-Paramètres!$E74-SUM(AU133:AU$141)) -> 0 | AV132: =(AV$123>Paramètres!$E74)*(AV$123-Paramètres!$E74-SUM(AV133:AV$141)) -> 0 | AW132: =(AW$123>Paramètres!$E74)*(AW$123-Paramètres!$E74-SUM(AW133:AW$141)) -> 0 | AX132: =(AX$123>Paramètres!$E74)*(AX$123-Paramètres!$E74-SUM(AX133:AX$141)) -> 0 | AY132: =(AY$123>Paramètres!$E74)*(AY$123-Paramètres!$E74-SUM(AY133:AY$141)) -> 0 | AZ132: =(AZ$123>Paramètres!$E74)*(AZ$123-Paramètres!$E74-SUM(AZ133:AZ$141)) -> 0 | BA132: =(BA$123>Paramètres!$E74)*(BA$123-Paramètres!$E74-SUM(BA133:BA$141)) -> 0 | BB132: =(BB$123>Paramètres!$E74)*(BB$123-Paramètres!$E74-SUM(BB133:BB$141)) -> 0 | BC132: =(BC$123>Paramètres!$E74)*(BC$123-Paramètres!$E74-SUM(BC133:BC$141)) -> 0 | BD132: =(BD$123>Paramètres!$E74)*(BD$123-Paramètres!$E74-SUM(BD133:BD$141)) -> 0
D133: Palier 9 | E133: % | G133: =(G$123>Paramètres!$E75)*(G$123-Paramètres!$E75-SUM(G134:G$141)) -> 0 | H133: =(H$123>Paramètres!$E75)*(H$123-Paramètres!$E75-SUM(H134:H$141)) -> 0 | I133: =(I$123>Paramètres!$E75)*(I$123-Paramètres!$E75-SUM(I134:I$141)) -> 0 | J133: =(J$123>Paramètres!$E75)*(J$123-Paramètres!$E75-SUM(J134:J$141)) -> 0 | K133: =(K$123>Paramètres!$E75)*(K$123-Paramètres!$E75-SUM(K134:K$141)) -> 0 | L133: =(L$123>Paramètres!$E75)*(L$123-Paramètres!$E75-SUM(L134:L$141)) -> 0 | M133: =(M$123>Paramètres!$E75)*(M$123-Paramètres!$E75-SUM(M134:M$141)) -> 0 | N133: =(N$123>Paramètres!$E75)*(N$123-Paramètres!$E75-SUM(N134:N$141)) -> 0 | O133: =(O$123>Paramètres!$E75)*(O$123-Paramètres!$E75-SUM(O134:O$141)) -> 0 | P133: =(P$123>Paramètres!$E75)*(P$123-Paramètres!$E75-SUM(P134:P$141)) -> 0 | Q133: =(Q$123>Paramètres!$E75)*(Q$123-Paramètres!$E75-SUM(Q134:Q$141)) -> 0 | R133: =(R$123>Paramètres!$E75)*(R$123-Paramètres!$E75-SUM(R134:R$141)) -> 0 | S133: =(S$123>Paramètres!$E75)*(S$123-Paramètres!$E75-SUM(S134:S$141)) -> 0 | T133: =(T$123>Paramètres!$E75)*(T$123-Paramètres!$E75-SUM(T134:T$141)) -> 0 | U133: =(U$123>Paramètres!$E75)*(U$123-Paramètres!$E75-SUM(U134:U$141)) -> 0 | V133: =(V$123>Paramètres!$E75)*(V$123-Paramètres!$E75-SUM(V134:V$141)) -> 0 | W133: =(W$123>Paramètres!$E75)*(W$123-Paramètres!$E75-SUM(W134:W$141)) -> 0 | X133: =(X$123>Paramètres!$E75)*(X$123-Paramètres!$E75-SUM(X134:X$141)) -> 0 | Y133: =(Y$123>Paramètres!$E75)*(Y$123-Paramètres!$E75-SUM(Y134:Y$141)) -> 0 | Z133: =(Z$123>Paramètres!$E75)*(Z$123-Paramètres!$E75-SUM(Z134:Z$141)) -> 0 | AA133: =(AA$123>Paramètres!$E75)*(AA$123-Paramètres!$E75-SUM(AA134:AA$141)) -> 0 | AB133: =(AB$123>Paramètres!$E75)*(AB$123-Paramètres!$E75-SUM(AB134:AB$141)) -> 0 | AC133: =(AC$123>Paramètres!$E75)*(AC$123-Paramètres!$E75-SUM(AC134:AC$141)) -> 0 | AD133: =(AD$123>Paramètres!$E75)*(AD$123-Paramètres!$E75-SUM(AD134:AD$141)) -> 0 | AE133: =(AE$123>Paramètres!$E75)*(AE$123-Paramètres!$E75-SUM(AE134:AE$141)) -> 0 | AF133: =(AF$123>Paramètres!$E75)*(AF$123-Paramètres!$E75-SUM(AF134:AF$141)) -> 0 | AG133: =(AG$123>Paramètres!$E75)*(AG$123-Paramètres!$E75-SUM(AG134:AG$141)) -> 0 | AH133: =(AH$123>Paramètres!$E75)*(AH$123-Paramètres!$E75-SUM(AH134:AH$141)) -> 0 | AI133: =(AI$123>Paramètres!$E75)*(AI$123-Paramètres!$E75-SUM(AI134:AI$141)) -> 0 | AJ133: =(AJ$123>Paramètres!$E75)*(AJ$123-Paramètres!$E75-SUM(AJ134:AJ$141)) -> 0 | AK133: =(AK$123>Paramètres!$E75)*(AK$123-Paramètres!$E75-SUM(AK134:AK$141)) -> 0 | AL133: =(AL$123>Paramètres!$E75)*(AL$123-Paramètres!$E75-SUM(AL134:AL$141)) -> 0 | AM133: =(AM$123>Paramètres!$E75)*(AM$123-Paramètres!$E75-SUM(AM134:AM$141)) -> 0 | AN133: =(AN$123>Paramètres!$E75)*(AN$123-Paramètres!$E75-SUM(AN134:AN$141)) -> 0 | AO133: =(AO$123>Paramètres!$E75)*(AO$123-Paramètres!$E75-SUM(AO134:AO$141)) -> 0 | AP133: =(AP$123>Paramètres!$E75)*(AP$123-Paramètres!$E75-SUM(AP134:AP$141)) -> 0 | AQ133: =(AQ$123>Paramètres!$E75)*(AQ$123-Paramètres!$E75-SUM(AQ134:AQ$141)) -> 0 | AR133: =(AR$123>Paramètres!$E75)*(AR$123-Paramètres!$E75-SUM(AR134:AR$141)) -> 0 | AS133: =(AS$123>Paramètres!$E75)*(AS$123-Paramètres!$E75-SUM(AS134:AS$141)) -> 0 | AT133: =(AT$123>Paramètres!$E75)*(AT$123-Paramètres!$E75-SUM(AT134:AT$141)) -> 0 | AU133: =(AU$123>Paramètres!$E75)*(AU$123-Paramètres!$E75-SUM(AU134:AU$141)) -> 0 | AV133: =(AV$123>Paramètres!$E75)*(AV$123-Paramètres!$E75-SUM(AV134:AV$141)) -> 0 | AW133: =(AW$123>Paramètres!$E75)*(AW$123-Paramètres!$E75-SUM(AW134:AW$141)) -> 0 | AX133: =(AX$123>Paramètres!$E75)*(AX$123-Paramètres!$E75-SUM(AX134:AX$141)) -> 0 | AY133: =(AY$123>Paramètres!$E75)*(AY$123-Paramètres!$E75-SUM(AY134:AY$141)) -> 0 | AZ133: =(AZ$123>Paramètres!$E75)*(AZ$123-Paramètres!$E75-SUM(AZ134:AZ$141)) -> 0 | BA133: =(BA$123>Paramètres!$E75)*(BA$123-Paramètres!$E75-SUM(BA134:BA$141)) -> 0 | BB133: =(BB$123>Paramètres!$E75)*(BB$123-Paramètres!$E75-SUM(BB134:BB$141)) -> 0 | BC133: =(BC$123>Paramètres!$E75)*(BC$123-Paramètres!$E75-SUM(BC134:BC$141)) -> 0 | BD133: =(BD$123>Paramètres!$E75)*(BD$123-Paramètres!$E75-SUM(BD134:BD$141)) -> 0
D134: Palier 10 | E134: % | G134: =(G$123>Paramètres!$E76)*(G$123-Paramètres!$E76-SUM(G135:G$141)) -> 0 | H134: =(H$123>Paramètres!$E76)*(H$123-Paramètres!$E76-SUM(H135:H$141)) -> 0 | I134: =(I$123>Paramètres!$E76)*(I$123-Paramètres!$E76-SUM(I135:I$141)) -> 0 | J134: =(J$123>Paramètres!$E76)*(J$123-Paramètres!$E76-SUM(J135:J$141)) -> 0 | K134: =(K$123>Paramètres!$E76)*(K$123-Paramètres!$E76-SUM(K135:K$141)) -> 0 | L134: =(L$123>Paramètres!$E76)*(L$123-Paramètres!$E76-SUM(L135:L$141)) -> 0 | M134: =(M$123>Paramètres!$E76)*(M$123-Paramètres!$E76-SUM(M135:M$141)) -> 0 | N134: =(N$123>Paramètres!$E76)*(N$123-Paramètres!$E76-SUM(N135:N$141)) -> 0 | O134: =(O$123>Paramètres!$E76)*(O$123-Paramètres!$E76-SUM(O135:O$141)) -> 0 | P134: =(P$123>Paramètres!$E76)*(P$123-Paramètres!$E76-SUM(P135:P$141)) -> 0 | Q134: =(Q$123>Paramètres!$E76)*(Q$123-Paramètres!$E76-SUM(Q135:Q$141)) -> 0 | R134: =(R$123>Paramètres!$E76)*(R$123-Paramètres!$E76-SUM(R135:R$141)) -> 0 | S134: =(S$123>Paramètres!$E76)*(S$123-Paramètres!$E76-SUM(S135:S$141)) -> 0 | T134: =(T$123>Paramètres!$E76)*(T$123-Paramètres!$E76-SUM(T135:T$141)) -> 0 | U134: =(U$123>Paramètres!$E76)*(U$123-Paramètres!$E76-SUM(U135:U$141)) -> 0 | V134: =(V$123>Paramètres!$E76)*(V$123-Paramètres!$E76-SUM(V135:V$141)) -> 0 | W134: =(W$123>Paramètres!$E76)*(W$123-Paramètres!$E76-SUM(W135:W$141)) -> 0 | X134: =(X$123>Paramètres!$E76)*(X$123-Paramètres!$E76-SUM(X135:X$141)) -> 0 | Y134: =(Y$123>Paramètres!$E76)*(Y$123-Paramètres!$E76-SUM(Y135:Y$141)) -> 0 | Z134: =(Z$123>Paramètres!$E76)*(Z$123-Paramètres!$E76-SUM(Z135:Z$141)) -> 0 | AA134: =(AA$123>Paramètres!$E76)*(AA$123-Paramètres!$E76-SUM(AA135:AA$141)) -> 0 | AB134: =(AB$123>Paramètres!$E76)*(AB$123-Paramètres!$E76-SUM(AB135:AB$141)) -> 0 | AC134: =(AC$123>Paramètres!$E76)*(AC$123-Paramètres!$E76-SUM(AC135:AC$141)) -> 0 | AD134: =(AD$123>Paramètres!$E76)*(AD$123-Paramètres!$E76-SUM(AD135:AD$141)) -> 0 | AE134: =(AE$123>Paramètres!$E76)*(AE$123-Paramètres!$E76-SUM(AE135:AE$141)) -> 0 | AF134: =(AF$123>Paramètres!$E76)*(AF$123-Paramètres!$E76-SUM(AF135:AF$141)) -> 0 | AG134: =(AG$123>Paramètres!$E76)*(AG$123-Paramètres!$E76-SUM(AG135:AG$141)) -> 0 | AH134: =(AH$123>Paramètres!$E76)*(AH$123-Paramètres!$E76-SUM(AH135:AH$141)) -> 0 | AI134: =(AI$123>Paramètres!$E76)*(AI$123-Paramètres!$E76-SUM(AI135:AI$141)) -> 0 | AJ134: =(AJ$123>Paramètres!$E76)*(AJ$123-Paramètres!$E76-SUM(AJ135:AJ$141)) -> 0 | AK134: =(AK$123>Paramètres!$E76)*(AK$123-Paramètres!$E76-SUM(AK135:AK$141)) -> 0 | AL134: =(AL$123>Paramètres!$E76)*(AL$123-Paramètres!$E76-SUM(AL135:AL$141)) -> 0 | AM134: =(AM$123>Paramètres!$E76)*(AM$123-Paramètres!$E76-SUM(AM135:AM$141)) -> 0 | AN134: =(AN$123>Paramètres!$E76)*(AN$123-Paramètres!$E76-SUM(AN135:AN$141)) -> 0 | AO134: =(AO$123>Paramètres!$E76)*(AO$123-Paramètres!$E76-SUM(AO135:AO$141)) -> 0 | AP134: =(AP$123>Paramètres!$E76)*(AP$123-Paramètres!$E76-SUM(AP135:AP$141)) -> 0 | AQ134: =(AQ$123>Paramètres!$E76)*(AQ$123-Paramètres!$E76-SUM(AQ135:AQ$141)) -> 0 | AR134: =(AR$123>Paramètres!$E76)*(AR$123-Paramètres!$E76-SUM(AR135:AR$141)) -> 0 | AS134: =(AS$123>Paramètres!$E76)*(AS$123-Paramètres!$E76-SUM(AS135:AS$141)) -> 0 | AT134: =(AT$123>Paramètres!$E76)*(AT$123-Paramètres!$E76-SUM(AT135:AT$141)) -> 0 | AU134: =(AU$123>Paramètres!$E76)*(AU$123-Paramètres!$E76-SUM(AU135:AU$141)) -> 0 | AV134: =(AV$123>Paramètres!$E76)*(AV$123-Paramètres!$E76-SUM(AV135:AV$141)) -> 0 | AW134: =(AW$123>Paramètres!$E76)*(AW$123-Paramètres!$E76-SUM(AW135:AW$141)) -> 0 | AX134: =(AX$123>Paramètres!$E76)*(AX$123-Paramètres!$E76-SUM(AX135:AX$141)) -> 0 | AY134: =(AY$123>Paramètres!$E76)*(AY$123-Paramètres!$E76-SUM(AY135:AY$141)) -> 0 | AZ134: =(AZ$123>Paramètres!$E76)*(AZ$123-Paramètres!$E76-SUM(AZ135:AZ$141)) -> 0 | BA134: =(BA$123>Paramètres!$E76)*(BA$123-Paramètres!$E76-SUM(BA135:BA$141)) -> 0 | BB134: =(BB$123>Paramètres!$E76)*(BB$123-Paramètres!$E76-SUM(BB135:BB$141)) -> 0 | BC134: =(BC$123>Paramètres!$E76)*(BC$123-Paramètres!$E76-SUM(BC135:BC$141)) -> 0 | BD134: =(BD$123>Paramètres!$E76)*(BD$123-Paramètres!$E76-SUM(BD135:BD$141)) -> 0
D135: Palier 11 | E135: % | G135: =(G$123>Paramètres!$E77)*(G$123-Paramètres!$E77-SUM(G136:G$141)) -> 0 | H135: =(H$123>Paramètres!$E77)*(H$123-Paramètres!$E77-SUM(H136:H$141)) -> 0 | I135: =(I$123>Paramètres!$E77)*(I$123-Paramètres!$E77-SUM(I136:I$141)) -> 0 | J135: =(J$123>Paramètres!$E77)*(J$123-Paramètres!$E77-SUM(J136:J$141)) -> 0 | K135: =(K$123>Paramètres!$E77)*(K$123-Paramètres!$E77-SUM(K136:K$141)) -> 0 | L135: =(L$123>Paramètres!$E77)*(L$123-Paramètres!$E77-SUM(L136:L$141)) -> 0 | M135: =(M$123>Paramètres!$E77)*(M$123-Paramètres!$E77-SUM(M136:M$141)) -> 0 | N135: =(N$123>Paramètres!$E77)*(N$123-Paramètres!$E77-SUM(N136:N$141)) -> 0 | O135: =(O$123>Paramètres!$E77)*(O$123-Paramètres!$E77-SUM(O136:O$141)) -> 0 | P135: =(P$123>Paramètres!$E77)*(P$123-Paramètres!$E77-SUM(P136:P$141)) -> 0 | Q135: =(Q$123>Paramètres!$E77)*(Q$123-Paramètres!$E77-SUM(Q136:Q$141)) -> 0 | R135: =(R$123>Paramètres!$E77)*(R$123-Paramètres!$E77-SUM(R136:R$141)) -> 0 | S135: =(S$123>Paramètres!$E77)*(S$123-Paramètres!$E77-SUM(S136:S$141)) -> 0 | T135: =(T$123>Paramètres!$E77)*(T$123-Paramètres!$E77-SUM(T136:T$141)) -> 0 | U135: =(U$123>Paramètres!$E77)*(U$123-Paramètres!$E77-SUM(U136:U$141)) -> 0 | V135: =(V$123>Paramètres!$E77)*(V$123-Paramètres!$E77-SUM(V136:V$141)) -> 0 | W135: =(W$123>Paramètres!$E77)*(W$123-Paramètres!$E77-SUM(W136:W$141)) -> 0 | X135: =(X$123>Paramètres!$E77)*(X$123-Paramètres!$E77-SUM(X136:X$141)) -> 0 | Y135: =(Y$123>Paramètres!$E77)*(Y$123-Paramètres!$E77-SUM(Y136:Y$141)) -> 0 | Z135: =(Z$123>Paramètres!$E77)*(Z$123-Paramètres!$E77-SUM(Z136:Z$141)) -> 0 | AA135: =(AA$123>Paramètres!$E77)*(AA$123-Paramètres!$E77-SUM(AA136:AA$141)) -> 0 | AB135: =(AB$123>Paramètres!$E77)*(AB$123-Paramètres!$E77-SUM(AB136:AB$141)) -> 0 | AC135: =(AC$123>Paramètres!$E77)*(AC$123-Paramètres!$E77-SUM(AC136:AC$141)) -> 0 | AD135: =(AD$123>Paramètres!$E77)*(AD$123-Paramètres!$E77-SUM(AD136:AD$141)) -> 0 | AE135: =(AE$123>Paramètres!$E77)*(AE$123-Paramètres!$E77-SUM(AE136:AE$141)) -> 0 | AF135: =(AF$123>Paramètres!$E77)*(AF$123-Paramètres!$E77-SUM(AF136:AF$141)) -> 0 | AG135: =(AG$123>Paramètres!$E77)*(AG$123-Paramètres!$E77-SUM(AG136:AG$141)) -> 0 | AH135: =(AH$123>Paramètres!$E77)*(AH$123-Paramètres!$E77-SUM(AH136:AH$141)) -> 0 | AI135: =(AI$123>Paramètres!$E77)*(AI$123-Paramètres!$E77-SUM(AI136:AI$141)) -> 0 | AJ135: =(AJ$123>Paramètres!$E77)*(AJ$123-Paramètres!$E77-SUM(AJ136:AJ$141)) -> 0 | AK135: =(AK$123>Paramètres!$E77)*(AK$123-Paramètres!$E77-SUM(AK136:AK$141)) -> 0 | AL135: =(AL$123>Paramètres!$E77)*(AL$123-Paramètres!$E77-SUM(AL136:AL$141)) -> 0 | AM135: =(AM$123>Paramètres!$E77)*(AM$123-Paramètres!$E77-SUM(AM136:AM$141)) -> 0 | AN135: =(AN$123>Paramètres!$E77)*(AN$123-Paramètres!$E77-SUM(AN136:AN$141)) -> 0 | AO135: =(AO$123>Paramètres!$E77)*(AO$123-Paramètres!$E77-SUM(AO136:AO$141)) -> 0 | AP135: =(AP$123>Paramètres!$E77)*(AP$123-Paramètres!$E77-SUM(AP136:AP$141)) -> 0 | AQ135: =(AQ$123>Paramètres!$E77)*(AQ$123-Paramètres!$E77-SUM(AQ136:AQ$141)) -> 0 | AR135: =(AR$123>Paramètres!$E77)*(AR$123-Paramètres!$E77-SUM(AR136:AR$141)) -> 0 | AS135: =(AS$123>Paramètres!$E77)*(AS$123-Paramètres!$E77-SUM(AS136:AS$141)) -> 0 | AT135: =(AT$123>Paramètres!$E77)*(AT$123-Paramètres!$E77-SUM(AT136:AT$141)) -> 0 | AU135: =(AU$123>Paramètres!$E77)*(AU$123-Paramètres!$E77-SUM(AU136:AU$141)) -> 0 | AV135: =(AV$123>Paramètres!$E77)*(AV$123-Paramètres!$E77-SUM(AV136:AV$141)) -> 0 | AW135: =(AW$123>Paramètres!$E77)*(AW$123-Paramètres!$E77-SUM(AW136:AW$141)) -> 0 | AX135: =(AX$123>Paramètres!$E77)*(AX$123-Paramètres!$E77-SUM(AX136:AX$141)) -> 0 | AY135: =(AY$123>Paramètres!$E77)*(AY$123-Paramètres!$E77-SUM(AY136:AY$141)) -> 0 | AZ135: =(AZ$123>Paramètres!$E77)*(AZ$123-Paramètres!$E77-SUM(AZ136:AZ$141)) -> 0 | BA135: =(BA$123>Paramètres!$E77)*(BA$123-Paramètres!$E77-SUM(BA136:BA$141)) -> 0 | BB135: =(BB$123>Paramètres!$E77)*(BB$123-Paramètres!$E77-SUM(BB136:BB$141)) -> 0 | BC135: =(BC$123>Paramètres!$E77)*(BC$123-Paramètres!$E77-SUM(BC136:BC$141)) -> 0 | BD135: =(BD$123>Paramètres!$E77)*(BD$123-Paramètres!$E77-SUM(BD136:BD$141)) -> 0
D136: Palier 12 | E136: % | G136: =(G$123>Paramètres!$E78)*(G$123-Paramètres!$E78-SUM(G137:G$141)) -> 0 | H136: =(H$123>Paramètres!$E78)*(H$123-Paramètres!$E78-SUM(H137:H$141)) -> 0 | I136: =(I$123>Paramètres!$E78)*(I$123-Paramètres!$E78-SUM(I137:I$141)) -> 0 | J136: =(J$123>Paramètres!$E78)*(J$123-Paramètres!$E78-SUM(J137:J$141)) -> 0 | K136: =(K$123>Paramètres!$E78)*(K$123-Paramètres!$E78-SUM(K137:K$141)) -> 0 | L136: =(L$123>Paramètres!$E78)*(L$123-Paramètres!$E78-SUM(L137:L$141)) -> 0 | M136: =(M$123>Paramètres!$E78)*(M$123-Paramètres!$E78-SUM(M137:M$141)) -> 0 | N136: =(N$123>Paramètres!$E78)*(N$123-Paramètres!$E78-SUM(N137:N$141)) -> 0 | O136: =(O$123>Paramètres!$E78)*(O$123-Paramètres!$E78-SUM(O137:O$141)) -> 0 | P136: =(P$123>Paramètres!$E78)*(P$123-Paramètres!$E78-SUM(P137:P$141)) -> 0 | Q136: =(Q$123>Paramètres!$E78)*(Q$123-Paramètres!$E78-SUM(Q137:Q$141)) -> 0 | R136: =(R$123>Paramètres!$E78)*(R$123-Paramètres!$E78-SUM(R137:R$141)) -> 0 | S136: =(S$123>Paramètres!$E78)*(S$123-Paramètres!$E78-SUM(S137:S$141)) -> 0 | T136: =(T$123>Paramètres!$E78)*(T$123-Paramètres!$E78-SUM(T137:T$141)) -> 0 | U136: =(U$123>Paramètres!$E78)*(U$123-Paramètres!$E78-SUM(U137:U$141)) -> 0 | V136: =(V$123>Paramètres!$E78)*(V$123-Paramètres!$E78-SUM(V137:V$141)) -> 0 | W136: =(W$123>Paramètres!$E78)*(W$123-Paramètres!$E78-SUM(W137:W$141)) -> 0 | X136: =(X$123>Paramètres!$E78)*(X$123-Paramètres!$E78-SUM(X137:X$141)) -> 0 | Y136: =(Y$123>Paramètres!$E78)*(Y$123-Paramètres!$E78-SUM(Y137:Y$141)) -> 0 | Z136: =(Z$123>Paramètres!$E78)*(Z$123-Paramètres!$E78-SUM(Z137:Z$141)) -> 0 | AA136: =(AA$123>Paramètres!$E78)*(AA$123-Paramètres!$E78-SUM(AA137:AA$141)) -> 0 | AB136: =(AB$123>Paramètres!$E78)*(AB$123-Paramètres!$E78-SUM(AB137:AB$141)) -> 0 | AC136: =(AC$123>Paramètres!$E78)*(AC$123-Paramètres!$E78-SUM(AC137:AC$141)) -> 0 | AD136: =(AD$123>Paramètres!$E78)*(AD$123-Paramètres!$E78-SUM(AD137:AD$141)) -> 0 | AE136: =(AE$123>Paramètres!$E78)*(AE$123-Paramètres!$E78-SUM(AE137:AE$141)) -> 0 | AF136: =(AF$123>Paramètres!$E78)*(AF$123-Paramètres!$E78-SUM(AF137:AF$141)) -> 0 | AG136: =(AG$123>Paramètres!$E78)*(AG$123-Paramètres!$E78-SUM(AG137:AG$141)) -> 0 | AH136: =(AH$123>Paramètres!$E78)*(AH$123-Paramètres!$E78-SUM(AH137:AH$141)) -> 0 | AI136: =(AI$123>Paramètres!$E78)*(AI$123-Paramètres!$E78-SUM(AI137:AI$141)) -> 0 | AJ136: =(AJ$123>Paramètres!$E78)*(AJ$123-Paramètres!$E78-SUM(AJ137:AJ$141)) -> 0 | AK136: =(AK$123>Paramètres!$E78)*(AK$123-Paramètres!$E78-SUM(AK137:AK$141)) -> 0 | AL136: =(AL$123>Paramètres!$E78)*(AL$123-Paramètres!$E78-SUM(AL137:AL$141)) -> 0 | AM136: =(AM$123>Paramètres!$E78)*(AM$123-Paramètres!$E78-SUM(AM137:AM$141)) -> 0 | AN136: =(AN$123>Paramètres!$E78)*(AN$123-Paramètres!$E78-SUM(AN137:AN$141)) -> 0 | AO136: =(AO$123>Paramètres!$E78)*(AO$123-Paramètres!$E78-SUM(AO137:AO$141)) -> 0 | AP136: =(AP$123>Paramètres!$E78)*(AP$123-Paramètres!$E78-SUM(AP137:AP$141)) -> 0 | AQ136: =(AQ$123>Paramètres!$E78)*(AQ$123-Paramètres!$E78-SUM(AQ137:AQ$141)) -> 0 | AR136: =(AR$123>Paramètres!$E78)*(AR$123-Paramètres!$E78-SUM(AR137:AR$141)) -> 0 | AS136: =(AS$123>Paramètres!$E78)*(AS$123-Paramètres!$E78-SUM(AS137:AS$141)) -> 0 | AT136: =(AT$123>Paramètres!$E78)*(AT$123-Paramètres!$E78-SUM(AT137:AT$141)) -> 0 | AU136: =(AU$123>Paramètres!$E78)*(AU$123-Paramètres!$E78-SUM(AU137:AU$141)) -> 0 | AV136: =(AV$123>Paramètres!$E78)*(AV$123-Paramètres!$E78-SUM(AV137:AV$141)) -> 0 | AW136: =(AW$123>Paramètres!$E78)*(AW$123-Paramètres!$E78-SUM(AW137:AW$141)) -> 0 | AX136: =(AX$123>Paramètres!$E78)*(AX$123-Paramètres!$E78-SUM(AX137:AX$141)) -> 0 | AY136: =(AY$123>Paramètres!$E78)*(AY$123-Paramètres!$E78-SUM(AY137:AY$141)) -> 0 | AZ136: =(AZ$123>Paramètres!$E78)*(AZ$123-Paramètres!$E78-SUM(AZ137:AZ$141)) -> 0 | BA136: =(BA$123>Paramètres!$E78)*(BA$123-Paramètres!$E78-SUM(BA137:BA$141)) -> 0 | BB136: =(BB$123>Paramètres!$E78)*(BB$123-Paramètres!$E78-SUM(BB137:BB$141)) -> 0 | BC136: =(BC$123>Paramètres!$E78)*(BC$123-Paramètres!$E78-SUM(BC137:BC$141)) -> 0 | BD136: =(BD$123>Paramètres!$E78)*(BD$123-Paramètres!$E78-SUM(BD137:BD$141)) -> 0
D137: Palier 13 | E137: % | G137: =(G$123>Paramètres!$E79)*(G$123-Paramètres!$E79-SUM(G138:G$141)) -> 0 | H137: =(H$123>Paramètres!$E79)*(H$123-Paramètres!$E79-SUM(H138:H$141)) -> 0 | I137: =(I$123>Paramètres!$E79)*(I$123-Paramètres!$E79-SUM(I138:I$141)) -> 0 | J137: =(J$123>Paramètres!$E79)*(J$123-Paramètres!$E79-SUM(J138:J$141)) -> 0 | K137: =(K$123>Paramètres!$E79)*(K$123-Paramètres!$E79-SUM(K138:K$141)) -> 0 | L137: =(L$123>Paramètres!$E79)*(L$123-Paramètres!$E79-SUM(L138:L$141)) -> 0 | M137: =(M$123>Paramètres!$E79)*(M$123-Paramètres!$E79-SUM(M138:M$141)) -> 0 | N137: =(N$123>Paramètres!$E79)*(N$123-Paramètres!$E79-SUM(N138:N$141)) -> 0 | O137: =(O$123>Paramètres!$E79)*(O$123-Paramètres!$E79-SUM(O138:O$141)) -> 0 | P137: =(P$123>Paramètres!$E79)*(P$123-Paramètres!$E79-SUM(P138:P$141)) -> 0 | Q137: =(Q$123>Paramètres!$E79)*(Q$123-Paramètres!$E79-SUM(Q138:Q$141)) -> 0 | R137: =(R$123>Paramètres!$E79)*(R$123-Paramètres!$E79-SUM(R138:R$141)) -> 0 | S137: =(S$123>Paramètres!$E79)*(S$123-Paramètres!$E79-SUM(S138:S$141)) -> 0 | T137: =(T$123>Paramètres!$E79)*(T$123-Paramètres!$E79-SUM(T138:T$141)) -> 0 | U137: =(U$123>Paramètres!$E79)*(U$123-Paramètres!$E79-SUM(U138:U$141)) -> 0 | V137: =(V$123>Paramètres!$E79)*(V$123-Paramètres!$E79-SUM(V138:V$141)) -> 0 | W137: =(W$123>Paramètres!$E79)*(W$123-Paramètres!$E79-SUM(W138:W$141)) -> 0 | X137: =(X$123>Paramètres!$E79)*(X$123-Paramètres!$E79-SUM(X138:X$141)) -> 0 | Y137: =(Y$123>Paramètres!$E79)*(Y$123-Paramètres!$E79-SUM(Y138:Y$141)) -> 0 | Z137: =(Z$123>Paramètres!$E79)*(Z$123-Paramètres!$E79-SUM(Z138:Z$141)) -> 0 | AA137: =(AA$123>Paramètres!$E79)*(AA$123-Paramètres!$E79-SUM(AA138:AA$141)) -> 0 | AB137: =(AB$123>Paramètres!$E79)*(AB$123-Paramètres!$E79-SUM(AB138:AB$141)) -> 0 | AC137: =(AC$123>Paramètres!$E79)*(AC$123-Paramètres!$E79-SUM(AC138:AC$141)) -> 0 | AD137: =(AD$123>Paramètres!$E79)*(AD$123-Paramètres!$E79-SUM(AD138:AD$141)) -> 0 | AE137: =(AE$123>Paramètres!$E79)*(AE$123-Paramètres!$E79-SUM(AE138:AE$141)) -> 0 | AF137: =(AF$123>Paramètres!$E79)*(AF$123-Paramètres!$E79-SUM(AF138:AF$141)) -> 0 | AG137: =(AG$123>Paramètres!$E79)*(AG$123-Paramètres!$E79-SUM(AG138:AG$141)) -> 0 | AH137: =(AH$123>Paramètres!$E79)*(AH$123-Paramètres!$E79-SUM(AH138:AH$141)) -> 0 | AI137: =(AI$123>Paramètres!$E79)*(AI$123-Paramètres!$E79-SUM(AI138:AI$141)) -> 0 | AJ137: =(AJ$123>Paramètres!$E79)*(AJ$123-Paramètres!$E79-SUM(AJ138:AJ$141)) -> 0 | AK137: =(AK$123>Paramètres!$E79)*(AK$123-Paramètres!$E79-SUM(AK138:AK$141)) -> 0 | AL137: =(AL$123>Paramètres!$E79)*(AL$123-Paramètres!$E79-SUM(AL138:AL$141)) -> 0 | AM137: =(AM$123>Paramètres!$E79)*(AM$123-Paramètres!$E79-SUM(AM138:AM$141)) -> 0 | AN137: =(AN$123>Paramètres!$E79)*(AN$123-Paramètres!$E79-SUM(AN138:AN$141)) -> 0 | AO137: =(AO$123>Paramètres!$E79)*(AO$123-Paramètres!$E79-SUM(AO138:AO$141)) -> 0 | AP137: =(AP$123>Paramètres!$E79)*(AP$123-Paramètres!$E79-SUM(AP138:AP$141)) -> 0 | AQ137: =(AQ$123>Paramètres!$E79)*(AQ$123-Paramètres!$E79-SUM(AQ138:AQ$141)) -> 0 | AR137: =(AR$123>Paramètres!$E79)*(AR$123-Paramètres!$E79-SUM(AR138:AR$141)) -> 0 | AS137: =(AS$123>Paramètres!$E79)*(AS$123-Paramètres!$E79-SUM(AS138:AS$141)) -> 0 | AT137: =(AT$123>Paramètres!$E79)*(AT$123-Paramètres!$E79-SUM(AT138:AT$141)) -> 0 | AU137: =(AU$123>Paramètres!$E79)*(AU$123-Paramètres!$E79-SUM(AU138:AU$141)) -> 0 | AV137: =(AV$123>Paramètres!$E79)*(AV$123-Paramètres!$E79-SUM(AV138:AV$141)) -> 0 | AW137: =(AW$123>Paramètres!$E79)*(AW$123-Paramètres!$E79-SUM(AW138:AW$141)) -> 0 | AX137: =(AX$123>Paramètres!$E79)*(AX$123-Paramètres!$E79-SUM(AX138:AX$141)) -> 0 | AY137: =(AY$123>Paramètres!$E79)*(AY$123-Paramètres!$E79-SUM(AY138:AY$141)) -> 0 | AZ137: =(AZ$123>Paramètres!$E79)*(AZ$123-Paramètres!$E79-SUM(AZ138:AZ$141)) -> 0 | BA137: =(BA$123>Paramètres!$E79)*(BA$123-Paramètres!$E79-SUM(BA138:BA$141)) -> 0 | BB137: =(BB$123>Paramètres!$E79)*(BB$123-Paramètres!$E79-SUM(BB138:BB$141)) -> 0 | BC137: =(BC$123>Paramètres!$E79)*(BC$123-Paramètres!$E79-SUM(BC138:BC$141)) -> 0 | BD137: =(BD$123>Paramètres!$E79)*(BD$123-Paramètres!$E79-SUM(BD138:BD$141)) -> 0
D138: Palier 14 | E138: % | G138: =(G$123>Paramètres!$E80)*(G$123-Paramètres!$E80-SUM(G139:G$141)) -> 0 | H138: =(H$123>Paramètres!$E80)*(H$123-Paramètres!$E80-SUM(H139:H$141)) -> 0 | I138: =(I$123>Paramètres!$E80)*(I$123-Paramètres!$E80-SUM(I139:I$141)) -> 0 | J138: =(J$123>Paramètres!$E80)*(J$123-Paramètres!$E80-SUM(J139:J$141)) -> 0 | K138: =(K$123>Paramètres!$E80)*(K$123-Paramètres!$E80-SUM(K139:K$141)) -> 0 | L138: =(L$123>Paramètres!$E80)*(L$123-Paramètres!$E80-SUM(L139:L$141)) -> 0 | M138: =(M$123>Paramètres!$E80)*(M$123-Paramètres!$E80-SUM(M139:M$141)) -> 0 | N138: =(N$123>Paramètres!$E80)*(N$123-Paramètres!$E80-SUM(N139:N$141)) -> 0 | O138: =(O$123>Paramètres!$E80)*(O$123-Paramètres!$E80-SUM(O139:O$141)) -> 0 | P138: =(P$123>Paramètres!$E80)*(P$123-Paramètres!$E80-SUM(P139:P$141)) -> 0 | Q138: =(Q$123>Paramètres!$E80)*(Q$123-Paramètres!$E80-SUM(Q139:Q$141)) -> 0 | R138: =(R$123>Paramètres!$E80)*(R$123-Paramètres!$E80-SUM(R139:R$141)) -> 0 | S138: =(S$123>Paramètres!$E80)*(S$123-Paramètres!$E80-SUM(S139:S$141)) -> 0 | T138: =(T$123>Paramètres!$E80)*(T$123-Paramètres!$E80-SUM(T139:T$141)) -> 0 | U138: =(U$123>Paramètres!$E80)*(U$123-Paramètres!$E80-SUM(U139:U$141)) -> 0 | V138: =(V$123>Paramètres!$E80)*(V$123-Paramètres!$E80-SUM(V139:V$141)) -> 0 | W138: =(W$123>Paramètres!$E80)*(W$123-Paramètres!$E80-SUM(W139:W$141)) -> 0 | X138: =(X$123>Paramètres!$E80)*(X$123-Paramètres!$E80-SUM(X139:X$141)) -> 0 | Y138: =(Y$123>Paramètres!$E80)*(Y$123-Paramètres!$E80-SUM(Y139:Y$141)) -> 0 | Z138: =(Z$123>Paramètres!$E80)*(Z$123-Paramètres!$E80-SUM(Z139:Z$141)) -> 0 | AA138: =(AA$123>Paramètres!$E80)*(AA$123-Paramètres!$E80-SUM(AA139:AA$141)) -> 0 | AB138: =(AB$123>Paramètres!$E80)*(AB$123-Paramètres!$E80-SUM(AB139:AB$141)) -> 0 | AC138: =(AC$123>Paramètres!$E80)*(AC$123-Paramètres!$E80-SUM(AC139:AC$141)) -> 0 | AD138: =(AD$123>Paramètres!$E80)*(AD$123-Paramètres!$E80-SUM(AD139:AD$141)) -> 0 | AE138: =(AE$123>Paramètres!$E80)*(AE$123-Paramètres!$E80-SUM(AE139:AE$141)) -> 0 | AF138: =(AF$123>Paramètres!$E80)*(AF$123-Paramètres!$E80-SUM(AF139:AF$141)) -> 0 | AG138: =(AG$123>Paramètres!$E80)*(AG$123-Paramètres!$E80-SUM(AG139:AG$141)) -> 0 | AH138: =(AH$123>Paramètres!$E80)*(AH$123-Paramètres!$E80-SUM(AH139:AH$141)) -> 0 | AI138: =(AI$123>Paramètres!$E80)*(AI$123-Paramètres!$E80-SUM(AI139:AI$141)) -> 0 | AJ138: =(AJ$123>Paramètres!$E80)*(AJ$123-Paramètres!$E80-SUM(AJ139:AJ$141)) -> 0 | AK138: =(AK$123>Paramètres!$E80)*(AK$123-Paramètres!$E80-SUM(AK139:AK$141)) -> 0 | AL138: =(AL$123>Paramètres!$E80)*(AL$123-Paramètres!$E80-SUM(AL139:AL$141)) -> 0 | AM138: =(AM$123>Paramètres!$E80)*(AM$123-Paramètres!$E80-SUM(AM139:AM$141)) -> 0 | AN138: =(AN$123>Paramètres!$E80)*(AN$123-Paramètres!$E80-SUM(AN139:AN$141)) -> 0 | AO138: =(AO$123>Paramètres!$E80)*(AO$123-Paramètres!$E80-SUM(AO139:AO$141)) -> 0 | AP138: =(AP$123>Paramètres!$E80)*(AP$123-Paramètres!$E80-SUM(AP139:AP$141)) -> 0 | AQ138: =(AQ$123>Paramètres!$E80)*(AQ$123-Paramètres!$E80-SUM(AQ139:AQ$141)) -> 0 | AR138: =(AR$123>Paramètres!$E80)*(AR$123-Paramètres!$E80-SUM(AR139:AR$141)) -> 0 | AS138: =(AS$123>Paramètres!$E80)*(AS$123-Paramètres!$E80-SUM(AS139:AS$141)) -> 0 | AT138: =(AT$123>Paramètres!$E80)*(AT$123-Paramètres!$E80-SUM(AT139:AT$141)) -> 0 | AU138: =(AU$123>Paramètres!$E80)*(AU$123-Paramètres!$E80-SUM(AU139:AU$141)) -> 0 | AV138: =(AV$123>Paramètres!$E80)*(AV$123-Paramètres!$E80-SUM(AV139:AV$141)) -> 0 | AW138: =(AW$123>Paramètres!$E80)*(AW$123-Paramètres!$E80-SUM(AW139:AW$141)) -> 0 | AX138: =(AX$123>Paramètres!$E80)*(AX$123-Paramètres!$E80-SUM(AX139:AX$141)) -> 0 | AY138: =(AY$123>Paramètres!$E80)*(AY$123-Paramètres!$E80-SUM(AY139:AY$141)) -> 0 | AZ138: =(AZ$123>Paramètres!$E80)*(AZ$123-Paramètres!$E80-SUM(AZ139:AZ$141)) -> 0 | BA138: =(BA$123>Paramètres!$E80)*(BA$123-Paramètres!$E80-SUM(BA139:BA$141)) -> 0 | BB138: =(BB$123>Paramètres!$E80)*(BB$123-Paramètres!$E80-SUM(BB139:BB$141)) -> 0 | BC138: =(BC$123>Paramètres!$E80)*(BC$123-Paramètres!$E80-SUM(BC139:BC$141)) -> 0 | BD138: =(BD$123>Paramètres!$E80)*(BD$123-Paramètres!$E80-SUM(BD139:BD$141)) -> 0
D139: Palier 15 | E139: % | G139: =(G$123>Paramètres!$E81)*(G$123-Paramètres!$E81-SUM(G140:G$141)) -> 0 | H139: =(H$123>Paramètres!$E81)*(H$123-Paramètres!$E81-SUM(H140:H$141)) -> 0 | I139: =(I$123>Paramètres!$E81)*(I$123-Paramètres!$E81-SUM(I140:I$141)) -> 0 | J139: =(J$123>Paramètres!$E81)*(J$123-Paramètres!$E81-SUM(J140:J$141)) -> 0 | K139: =(K$123>Paramètres!$E81)*(K$123-Paramètres!$E81-SUM(K140:K$141)) -> 0 | L139: =(L$123>Paramètres!$E81)*(L$123-Paramètres!$E81-SUM(L140:L$141)) -> 0 | M139: =(M$123>Paramètres!$E81)*(M$123-Paramètres!$E81-SUM(M140:M$141)) -> 0 | N139: =(N$123>Paramètres!$E81)*(N$123-Paramètres!$E81-SUM(N140:N$141)) -> 0 | O139: =(O$123>Paramètres!$E81)*(O$123-Paramètres!$E81-SUM(O140:O$141)) -> 0 | P139: =(P$123>Paramètres!$E81)*(P$123-Paramètres!$E81-SUM(P140:P$141)) -> 0 | Q139: =(Q$123>Paramètres!$E81)*(Q$123-Paramètres!$E81-SUM(Q140:Q$141)) -> 0 | R139: =(R$123>Paramètres!$E81)*(R$123-Paramètres!$E81-SUM(R140:R$141)) -> 0 | S139: =(S$123>Paramètres!$E81)*(S$123-Paramètres!$E81-SUM(S140:S$141)) -> 0 | T139: =(T$123>Paramètres!$E81)*(T$123-Paramètres!$E81-SUM(T140:T$141)) -> 0 | U139: =(U$123>Paramètres!$E81)*(U$123-Paramètres!$E81-SUM(U140:U$141)) -> 0 | V139: =(V$123>Paramètres!$E81)*(V$123-Paramètres!$E81-SUM(V140:V$141)) -> 0 | W139: =(W$123>Paramètres!$E81)*(W$123-Paramètres!$E81-SUM(W140:W$141)) -> 0 | X139: =(X$123>Paramètres!$E81)*(X$123-Paramètres!$E81-SUM(X140:X$141)) -> 0 | Y139: =(Y$123>Paramètres!$E81)*(Y$123-Paramètres!$E81-SUM(Y140:Y$141)) -> 0 | Z139: =(Z$123>Paramètres!$E81)*(Z$123-Paramètres!$E81-SUM(Z140:Z$141)) -> 0 | AA139: =(AA$123>Paramètres!$E81)*(AA$123-Paramètres!$E81-SUM(AA140:AA$141)) -> 0 | AB139: =(AB$123>Paramètres!$E81)*(AB$123-Paramètres!$E81-SUM(AB140:AB$141)) -> 0 | AC139: =(AC$123>Paramètres!$E81)*(AC$123-Paramètres!$E81-SUM(AC140:AC$141)) -> 0 | AD139: =(AD$123>Paramètres!$E81)*(AD$123-Paramètres!$E81-SUM(AD140:AD$141)) -> 0 | AE139: =(AE$123>Paramètres!$E81)*(AE$123-Paramètres!$E81-SUM(AE140:AE$141)) -> 0 | AF139: =(AF$123>Paramètres!$E81)*(AF$123-Paramètres!$E81-SUM(AF140:AF$141)) -> 0 | AG139: =(AG$123>Paramètres!$E81)*(AG$123-Paramètres!$E81-SUM(AG140:AG$141)) -> 0 | AH139: =(AH$123>Paramètres!$E81)*(AH$123-Paramètres!$E81-SUM(AH140:AH$141)) -> 0 | AI139: =(AI$123>Paramètres!$E81)*(AI$123-Paramètres!$E81-SUM(AI140:AI$141)) -> 0 | AJ139: =(AJ$123>Paramètres!$E81)*(AJ$123-Paramètres!$E81-SUM(AJ140:AJ$141)) -> 0 | AK139: =(AK$123>Paramètres!$E81)*(AK$123-Paramètres!$E81-SUM(AK140:AK$141)) -> 0 | AL139: =(AL$123>Paramètres!$E81)*(AL$123-Paramètres!$E81-SUM(AL140:AL$141)) -> 0 | AM139: =(AM$123>Paramètres!$E81)*(AM$123-Paramètres!$E81-SUM(AM140:AM$141)) -> 0 | AN139: =(AN$123>Paramètres!$E81)*(AN$123-Paramètres!$E81-SUM(AN140:AN$141)) -> 0 | AO139: =(AO$123>Paramètres!$E81)*(AO$123-Paramètres!$E81-SUM(AO140:AO$141)) -> 0 | AP139: =(AP$123>Paramètres!$E81)*(AP$123-Paramètres!$E81-SUM(AP140:AP$141)) -> 0 | AQ139: =(AQ$123>Paramètres!$E81)*(AQ$123-Paramètres!$E81-SUM(AQ140:AQ$141)) -> 0 | AR139: =(AR$123>Paramètres!$E81)*(AR$123-Paramètres!$E81-SUM(AR140:AR$141)) -> 0 | AS139: =(AS$123>Paramètres!$E81)*(AS$123-Paramètres!$E81-SUM(AS140:AS$141)) -> 0 | AT139: =(AT$123>Paramètres!$E81)*(AT$123-Paramètres!$E81-SUM(AT140:AT$141)) -> 0 | AU139: =(AU$123>Paramètres!$E81)*(AU$123-Paramètres!$E81-SUM(AU140:AU$141)) -> 0 | AV139: =(AV$123>Paramètres!$E81)*(AV$123-Paramètres!$E81-SUM(AV140:AV$141)) -> 0 | AW139: =(AW$123>Paramètres!$E81)*(AW$123-Paramètres!$E81-SUM(AW140:AW$141)) -> 0 | AX139: =(AX$123>Paramètres!$E81)*(AX$123-Paramètres!$E81-SUM(AX140:AX$141)) -> 0 | AY139: =(AY$123>Paramètres!$E81)*(AY$123-Paramètres!$E81-SUM(AY140:AY$141)) -> 0 | AZ139: =(AZ$123>Paramètres!$E81)*(AZ$123-Paramètres!$E81-SUM(AZ140:AZ$141)) -> 0 | BA139: =(BA$123>Paramètres!$E81)*(BA$123-Paramètres!$E81-SUM(BA140:BA$141)) -> 0 | BB139: =(BB$123>Paramètres!$E81)*(BB$123-Paramètres!$E81-SUM(BB140:BB$141)) -> 0 | BC139: =(BC$123>Paramètres!$E81)*(BC$123-Paramètres!$E81-SUM(BC140:BC$141)) -> 0 | BD139: =(BD$123>Paramètres!$E81)*(BD$123-Paramètres!$E81-SUM(BD140:BD$141)) -> 0
